Workbook

Sheet Previsão N+1
D1: Anual | E1: mensal | F1: 6 meses
C2: Variação de mercado TE | D2: 0 | E2: =(1+D2)^(1/12)-1 -> 0 | F2: =(1+E2)^6-1 -> 0
C3: Variação de mercado TUSD | D3: 0 | E3: =(1+D3)^(1/12)-1 -> 0 | F3: =(1+E3)^6-1 -> 0
C4: Variação mercado GD II e GD-III | D4: 0.2 | E4: 0.0153094705 | F4: 0.09544511501
C5: IPCA futuro 12 meses | D5: =VLOOKUP(EDATE(CAPA!C15,12),Índices!$B$10:$F$500,3)/VLOOKUP(EDATE(CAPA!C15,0),Índices!$B$10:$F$500,3)-1 -> 0.04038587399 | E5: 0.00330475512 | F5: 0.01999307546
C6: IGP-M futuro | D6: =VLOOKUP(EDATE(CAPA!C15,12),Índices!$B$10:$F$500,2)/VLOOKUP(EDATE(CAPA!C15,0),Índices!$B$10:$F$500,2)-1 -> 0.04671872351 | E6: 0.003812268768 | F6: 0.02309272478
C7: Dolar futuro | E7: 0 | F7: 0
C8: Selic Atual | D8: =VLOOKUP(EDATE(CAPA!C15,0),Índices!$B$10:$F$500,5)/VLOOKUP(EDATE(CAPA!C15,-12),Índices!$B$10:$F$500,5)-1 -> 0.1478963512 | E8: 0.01156056335 | F8: 0.07139924922
C9: Selic 12 meses
E10: Atenção
C11: Próximo processo tarifário (RTA ou RTP) | E11: RTA
D12: =YEAR(LnkTxtDRPData) -> 2026 | E12: =D12+1 -> 2027 | K12: Tabela auxiliar - cálculo de CVA M2 de encargos e Transporte
D13: Processo Atual (R$) | E13: Projeção para próximo processo (R$) | F13: ='Votos e NTs'!E46 -> Variação | G13: ='Votos e NTs'!F46 -> Participação no Reajuste | H13: ='Votos e NTs'!G46 -> Participação na Receita | I13: 1 | K13: Descasamento CVA (meses) | L13: Delta total para estimativa de CVA M2 | M13: Fator de cálculo da CVA M2
C14: ='Votos e NTs'!B47 -> PARCELA A [Encargos+Transmissão+Energia] | D14: ='Votos e NTs'!D47 -> 2481314011 | E14: =E15+E27+E36 -> 2533574741 | F14: =IFERROR(E14/D14-1,0) -> 0.02106171552 | G14: =IFERROR((E14-D14)/$D$39,0) -> 0.01186694225 | H14: =E14/$E$39 -> 0.5621305762 | I14: =IF(AND(E14=0,D14=0),0,1) -> 1
C15: ='Votos e NTs'!B48 -> Encargos Setoriais | D15: ='Votos e NTs'!D48 -> 881893321.2 | E15: =SUM(E16:E26) -> 913074050.1 | F15: =IFERROR(E15/D15-1,0) -> 0.03535657678 | G15: =IFERROR((E15-D15)/$D$39,0) -> 0.007080266784 | H15: =E15/$E$39 -> 0.2025860274 | I15: 1
C16: ='Votos e NTs'!B49 -> Taxa de Fisc. de Serviços de E.E. – TFSEE | D16: ='Votos e NTs'!D49 -> 8406344.81 | E16: =D16*E38/D38 -> 8629078.263 | F16: 0.02649587399 | G16: 5.057650421e-05 | H16: 0.001914555216 | I16: 1 | K16: 0 | L16: =E16-D16 -> 222733.4528 | M16: =IFERROR(VLOOKUP(K16,$AF$103:$AJ$114,5),0) -> 0
C17: ='Votos e NTs'!B50 -> Conta de Desenv. Energético – CDE (USO) | D17: ='Votos e NTs'!D50 -> 605808745 | E17: =D17*(1+D5) -> 630274860.6 | F17: 0.04038587399 | G17: 0.005555566912 | H17: 0.1398406626 | I17: =IF(AND(E17=0,D17=0),0,1) -> 1 | K17: =MONTH(LnkTxtDRPData)-1 -> 3 | L17: 24466115.64 | M17: 0.2754535497
C18: ='Votos e NTs'!B51 -> Conta de Desenv. Energético – CDE Conta-Covid | D18: ='Votos e NTs'!D51 -> 0 | E18: 0 | F18: 0 | G18: 0 | H18: 0 | I18: =IF(AND(E18=0,D18=0),0,1) -> 0 | K18: 0 | L18: 0 | M18: 0
C19: ='Votos e NTs'!B52 -> Conta de Desenv. Energético – CDE Eletrobrás | D19: ='Votos e NTs'!D52 -> -3078664.45 | E19: =D19*(1+D5) -> -3202999.005 | F19: 0.04038587399 | G19: -2.823288124e-05 | H19: -0.0007106574149 | I19: 1 | K19: 0 | L19: -124334.5545 | M19: 0
C20: ='Votos e NTs'!B53 -> Conta de Desenv. Energético – CDE Conta-Escassez Hídrica | D20: ='Votos e NTs'!D53 -> 79109674.63 | E20: =D20 -> 79109674.63 | F20: 0 | G20: 0 | H20: 0.01755226174 | I20: 1 | K20: 0 | L20: 0 | M20: 0
C21: ='Votos e NTs'!B54 -> Conta de Desenv. Energético – CDE GD | D21: ='Votos e NTs'!D54 -> 0.001 | E21: =D21*(1+D5)*(1+D4) -> 0.001248463049 | F21: 0.2484630488 | G21: 5.641897198e-14 | H21: 2.769996249e-13 | I21: 1 | K21: 0 | L21: 0.0002484630488 | M21: 0
C22: ='Votos e NTs'!B55 -> Compensação Financeira - CFURH | D22: ='Votos e NTs'!D55 -> 0 | E22: =D22*(1+D4) -> 0 | F22: 0 | G22: 0 | H22: 0 | I22: 0 | K22: 0 | L22: 0 | M22: 0
C23: ='Votos e NTs'!B56 -> Encargos Serv. Sist. - ESS/Energ. Reserv. - EER/ERCAP | D23: ='Votos e NTs'!D56 -> 94628919.51 | E23: =D23*(1+D5) -> 98450591.13 | F23: 0.04038587399 | G23: 0.0008677941651 | H23: 0.02184347934 | I23: 1 | K23: 0 | L23: 3821671.619 | M23: 0
C24: ='Votos e NTs'!B57 -> PROINFA | D24: ='Votos e NTs'!D57 -> 58327938.51 | E24: =D24*(1+D5) -> 60683563.28 | F24: 0.04038587399 | G24: 0.0005348961498 | H24: 0.01346401424 | I24: 1 | K24: =MONTH(LnkTxtDRPData)-1 -> 3 | L24: 2355624.775 | M24: 0.2754535497
C25: ='Votos e NTs'!B58 -> P&D, Efic.Energ e Ressarc.ICMS Sist.Isol. | D25: ='Votos e NTs'!D58 -> 38553982.82 | E25: =IFERROR(1%*(E16+E24+E23+E27+E36+E38+E37)+1%*E41,0) -> 38987392.98 | F25: 0.01124164411 | G25: 9.841525913e-05 | H25: 0.00865023057 | I25: 1 | K25: 0 | L25: 433410.154 | M25: 0
C26: ='Votos e NTs'!B59 -> ONS | D26: ='Votos e NTs'!D59 -> 136380.36 | E26: =D26*(1+D5) -> 141888.2 | F26: 0.04038587399 | G26: 1.2506756e-06 | H26: 3.148109047e-05 | I26: 1 | K26: 0 | L26: 5507.840034 | M26: 0
C27: ='Votos e NTs'!B60 -> Custos de Transmissão | D27: ='Votos e NTs'!D60 -> 469751800.1 | E27: =SUM(E28:E35) -> 488723137.2 | F27: 0.04038587399 | G27: 0.004307857189 | H27: 0.108434227 | I27: 1
C28: ='Votos e NTs'!B61 -> Rede Básica | D28: ='Votos e NTs'!D61 -> 284149110 | E28: =D28*(1+$D$5) -> 295624720.2 | F28: 0.04038587399 | G28: 0.002605788389 | H28: 0.06559099741 | I28: 1 | K28: =MONTH(LnkTxtDRPData)-1-7 -> -4 | L28: =E28-D28 -> 11475610.15 | M28: =IFERROR(VLOOKUP(K28,$AF$103:$AJ$114,5),0) -> 0
C29: ='Votos e NTs'!B62 -> Rede Básica Fronteira | D29: ='Votos e NTs'!D62 -> 69962652 | E29: =D29*(1+$D$5) -> 72788154.85 | F29: 0.04038587399 | G29: 0.0006415922479 | H29: 0.0161496903 | I29: 1 | K29: =K28 -> -4 | L29: 2825502.848 | M29: 0 | W29: Bandeira | X29: Verde | Z29: Amarela | AB29: Vermelha 1 | AD29: Vermelha 2 | AG29: PLDmin | AH29: 61.07
C30: ='Votos e NTs'!B63 -> Rede Básica ONS (A2) | D30: ='Votos e NTs'!D63 -> 3285402.57 | E30: =D30*(1+$D$5) -> 3418086.424 | F30: 0.04038587399 | G30: 3.012877242e-05 | H30: 0.0007583793996 | I30: 1 | K30: =K29 -> -4 | L30: 132683.8542 | M30: 0 | W30: Valor | X30: =AH36 -> 31.92797 | Z30: =AH37 -> 69.05913 | AB30: =AH38 -> 92.46868 | AD30: =AH39 -> 136.4595 | AG30: PLDmax | AH30: 716.8
C31: ='Votos e NTs'!B64 -> Rede Básica Export. (A2) | D31: ='Votos e NTs'!D64 -> 0 | E31: 0 | F31: 0 | G31: 0 | H31: 0 | I31: 0 | K31: =K30 -> -4 | L31: 0 | M31: 0 | V31: GSF previsto | W31: Profundidade da exposição | X31: PLD | Z31: PLD | AB31: PLD | AD31: PLD
C32: ='Votos e NTs'!B65 -> MUST Itaipu | D32: ='Votos e NTs'!D65 -> 16358065.51 | E32: 17018700.28 | F32: 0.04038587399 | G32: 0.0001500115808 | H32: 0.003775981675 | I32: 1 | K32: -4 | L32: 660634.7723 | M32: 0 | X32: Limite inferior | Y32: Limite superior | Z32: Limite inferior | AA32: Limite superior | AB32: Limite inferior | AC32: Limite superior | AD32: Limite inferior | AE32: Limite superior | AG32: Adicional AMARELA | AH32: 18.85
C33: ='Votos e NTs'!B66 -> Transporte de Itaipu | D33: ='Votos e NTs'!D66 -> 32171883.53 | E33: 33471173.16 | F33: 0.04038587399 | G33: 0.0002950321419 | H33: 0.007426333059 | I33: 1 | K33: -4 | L33: 1299289.634 | M33: 0 | V33: 1 | W33: =1-V33 -> 0 | X33: 61.07 | Y33: =AH30 -> 716.8 | AG33: Adicional VERMELHA I | AH33: 44.63
C34: ='Votos e NTs'!B67 -> Conexão | D34: ='Votos e NTs'!D67 -> 51902393.95 | E34: 53998517.5 | F34: 0.04038587399 | G34: 0.0004759707166 | H34: 0.01198078638 | I34: 1 | K34: 0 | L34: 2096123.542 | M34: 0 | V34: 0.99 | W34: =1-V34 -> 0.01 | X34: 61.07 | Y34: =IF($AH$36/$W34>$AH$30,$AH$30,IF($X$30/$W34<$AH$29,$AH$29,$AH$36/$W34)) -> 716.8 | AG34: Adicional VERMELHA II | AH34: 78.77
C35: ='Votos e NTs'!B68 -> Uso do sistema de distribuição e CCD | D35: ='Votos e NTs'!D68 -> 11922292.59 | E35: 12403784.79 | F35: 0.04038587399 | G35: 0.0001093333412 | H35: 0.002752058812 | I35: 1 | K35: 0 | L35: 481492.206 | M35: 0 | V35: 0.98 | W35: =1-V35 -> 0.02 | X35: 61.07 | Y35: =IF($AH$36/$W35>$AH$30,$AH$30,IF($X$30/$W35<$AH$29,$AH$29,$AH$36/$W35)) -> 716.8
C36: ='Votos e NTs'!B69 -> Custos de Aquisição de Energia | D36: ='Votos e NTs'!D69 -> 1129668890 | E36: =D36*(1+D5)*(Q157/P157) -> 1131777554 | F36: 0.001866621184 | G36: 0.0004788182751 | H36: 0.2511103218 | I36: 1 | V36: 0.97 | W36: 0.03 | X36: 61.07 | Y36: 716.8 | AG36: VERDE | AH36: 31.92797
V37: 0.96 | W37: 0.04 | X37: 61.07 | Y37: 716.8 | AG37: AMARELA | AH37: 69.05913
C38: ='Votos e NTs'!B71 -> PARCELA B | D38: ='Votos e NTs'!D71 -> 1922577801 | E38: =IF(E11="RTA",D38*(1+D5-AC184),D38*(1+Z179)*(1+D5)) -> 1973518181 | F38: 0.02649587399 | G38: =IFERROR((E38-D38)/$D$39,0) -> 0.01156712774 | H38: 0.4378694238 | I38: 1 | K38: Fator T | M38: =LnkTxtFatorT -> 0.01389 | V38: 0.95 | W38: 0.05 | X38: 61.07 | Y38: 638.5594 | Z38: =IF(Y38=$AH$29,$M$1+0.01,Y38+0.01) -> 638.5694 | AA38: =IF($Z$30/$W38>$AH$30,$AH$30,IF($Z$30/$W38<$AH$29,$AH$29,$Z$30/$W38)) -> 716.8 | AG38: VERMELHA I | AH38: 92.46868
C39: ='Votos e NTs'!B80 -> IRT | D39: ='Votos e NTs'!D80 -> 4403891813 | E39: =E38+E14 -> 4507092922 | F39: 0.02343406999 | G39: 0.02343406999 | H39: 1 | I39: 1 | V39: 0.94 | W39: 0.06 | X39: 61.07 | Y39: 532.1328333 | Z39: =IF(Y39=$AH$29,$M$1+0.01,Y39+0.01) -> 532.1428333 | AA39: =IF($Z$30/$W39>$AH$30,$AH$30,IF($Z$30/$W39<$AH$29,$AH$29,$Z$30/$W39)) -> 716.8 | AG39: VERMELHA II | AH39: 136.4595
I40: 0 | V40: 0.93 | W40: 0.07 | X40: 61.07 | Y40: 456.1138571 | Z40: 456.1238571 | AA40: 716.8 | AG40: VERMELHA II | AH40: 136.4595
C41: ='Votos e NTs'!B82 -> Efeito dos Componentes Financeiros do Processo Atual | D41: ='Votos e NTs'!D82 -> 254460900.2 | E41: =SUM(E42:E97) -> 136957193.3 | F41: -0.4617750972 | G41: -0.02668178781 | H41: 0.03038703564 | I41: 1 | V41: 0.92 | W41: 0.08 | X41: 61.07 | Y41: 399.099625 | Z41: 399.109625 | AA41: 716.8
C42: ='Votos e NTs'!B83 -> CVA em processamento - Energia | D42: ='Votos e NTs'!D83 -> 150259148.3 | E42: =SUMPRODUCT(S164:S170,T164:T170)-E60-AB119 -> 100960679.6 | F42: =ABS(IFERROR(E42/D42-1,0)) -> 0.3280896322 | G42: -0.01119429605 | H42: 0.02240039897 | I42: 1 | V42: 0.91 | W42: 0.09 | X42: 61.07 | Y42: 354.7552222 | Z42: 354.7652222 | AA42: 716.8
C43: ='Votos e NTs'!B84 -> CVA em processamento - Transporte | D43: ='Votos e NTs'!D84 -> 36030035.87 | E43: =SUMPRODUCT(L28:L35,M28:M35)+M43*(D27-D34-D35)*(1+D8) -> 39373810.34 | F43: =IFERROR(E43/D43-1,0) -> 0.09280519399 | G43: 0.0007592771601 | H43: 0.00873596596 | I43: 1 | K43: Tributos de transmissão na CVA | M43: 0.0845 | N43: <- Obter alíquota média na planilha de CVA transporte M3 | V43: 0.9 | W43: 0.1 | X43: 61.07 | Y43: 319.2797 | Z43: 319.2897 | AA43: 690.5913 | AB43: =IF(AA43=$AH$29,$M$1+0.01,AA43+0.01) -> 690.6013 | AC43: =IF($AB$30/$W43>$AH$30,$AH$30,IF($AB$30/$W43<$AH$29,$AH$29,$AB$30/$W43)) -> 716.8
C44: ='Votos e NTs'!B85 -> CVA em processamento - Encargos Setoriais | D44: ='Votos e NTs'!D85 -> 83657036.53 | E44: =SUMPRODUCT(L16:L26,M16:M26) -> 7388143.605 | F44: =ABS(IFERROR(E44/D44-1,0)) -> 0.9116853296 | G44: -0.01731852102 | H44: 0.001639225934 | I44: 1 | V44: 0.89 | W44: 0.11 | X44: 61.07 | Y44: =IF(AH42/$W44>$AH$30,"PLDmax",IF($X$30/$W44<$AH$29,"PLDmin",$AH$36/$W44)) -> 290.2542727 | Z44: 290.2642727 | AA44: 627.8102727 | AB44: =IF(AA44=$AH$29,$M$1+0.01,AA44+0.01) -> 627.8202727 | AC44: =IF($AB$30/$W44>$AH$30,$AH$30,IF($AB$30/$W44<$AH$29,$AH$29,$AB$30/$W44)) -> 716.8
C45: ='Votos e NTs'!B86 -> Saldo a Compensar CVA-Ano Anterior + Ajustes | D45: ='Votos e NTs'!D86 -> 12453119.51 | E45: 0 | F45: -1 | G45: -0.002827753279 | H45: 0 | I45: 1 | V45: 0.88 | W45: 0.12 | X45: 61.07 | Y45: =IF(AH36/$W45>$AH$30,"PLDmax",IF($X$30/$W45<$AH$29,"PLDmin",$AH$36/$W45)) -> 266.0664167 | Z45: 266.0764167 | AA45: 575.49275 | AB45: 575.50275 | AC45: 716.8
C46: ='Votos e NTs'!B87 -> Neutralidade de Parcela A - Encargos Setoriais | D46: ='Votos e NTs'!D87 -> 34094120.71 | E46: 0 | F46: -1 | G46: -0.007741816138 | H46: 0 | I46: 1 | V46: 0.87 | W46: 0.13 | X46: 61.07 | Y46: =IF(AH36/$W46>$AH$30,"PLDmax",IF($X$30/$W46<$AH$29,"PLDmin",$AH$36/$W46)) -> 245.5997692 | Z46: 245.6097692 | AA46: 531.2240769 | AB46: 531.2340769 | AC46: 711.2975385 | AD46: =IF(AC46=$AH$29,$M$1+0.01,AC46+0.01) -> 711.3075385 | AE46: =$AH$30 -> 716.8
C47: ='Votos e NTs'!B88 -> Neutralidade de Parcela A - Receita Irrecuperável | D47: ='Votos e NTs'!D88 -> 0 | E47: 0 | F47: 0 | G47: 0 | H47: 0 | I47: 0 | V47: 0.86 | W47: 0.14 | X47: 61.07 | Y47: =IF(AH36/$W47>$AH$30,"PLDmax",IF($X$30/$W47<$AH$29,"PLDmin",$AH$36/$W47)) -> 228.0569286 | Z47: 228.0669286 | AA47: 493.2795 | AB47: 493.2895 | AC47: 660.4905714 | AD47: =IF(AC47=$AH$29,$M$1+0.01,AC47+0.01) -> 660.5005714 | AE47: =$AH$30 -> 716.8
C48: ='Votos e NTs'!B89 -> Neutralidade de Fin. Parcela B - Conta Covid | D48: ='Votos e NTs'!D89 -> 0 | E48: 0 | F48: 0 | G48: 0 | H48: 0 | I48: 0 | V48: 0.85 | W48: 0.15 | X48: 61.07 | Y48: =IF(AH36/$W48>$AH$30,"PLDmax",IF($X$30/$W48<$AH$29,"PLDmin",$AH$36/$W48)) -> 212.8531333 | Z48: 212.8631333 | AA48: 460.3942 | AB48: 460.4042 | AC48: 616.4578667 | AD48: 616.4678667 | AE48: 716.8
C49: ='Votos e NTs'!B90 -> Financeiro CDE Eletrobras | D49: ='Votos e NTs'!D90 -> 0 | E49: 0 | F49: 0 | G49: 0 | H49: 0 | I49: 0 | V49: 0.84 | W49: 0.16 | X49: 61.07 | Y49: =IF(AH36/$W49>$AH$30,"PLDmax",IF($X$30/$W49<$AH$29,"PLDmin",$AH$36/$W49)) -> 199.5498125 | Z49: 199.5598125 | AA49: 431.6195625 | AB49: 431.6295625 | AC49: 577.92925 | AD49: 577.93925 | AE49: 716.8
C50: ='Votos e NTs'!B91 -> Restituição de encargo do ONS | D50: ='Votos e NTs'!D91 -> 0 | E50: 0 | F50: 0 | G50: 0 | H50: 0 | I50: 0 | V50: 0.83 | W50: 0.17 | X50: 61.07 | Y50: =IF(AH36/$W50>$AH$30,"PLDmax",IF($X$30/$W50<$AH$29,"PLDmin",$AH$36/$W50)) -> 187.8115882 | Z50: 187.8215882 | AA50: 406.2301765 | AB50: 406.2401765 | AC50: 543.9334118 | AD50: 543.9434118 | AE50: 716.8
C51: ='Votos e NTs'!B92 -> Financeiros residuais do encargo de ONS | D51: ='Votos e NTs'!D92 -> 0 | E51: 0 | F51: 0 | G51: 0 | H51: 0 | I51: 0 | V51: 0.82 | W51: 0.18 | X51: 61.07 | Y51: =IF(AH36/$W51>$AH$30,"PLDmax",IF($X$30/$W51<$AH$29,"PLDmin",$AH$36/$W51)) -> 177.3776111 | Z51: 177.3876111 | AA51: 383.6618333 | AB51: 383.6718333 | AC51: 513.7148889 | AD51: 513.7248889 | AE51: 716.8
C52: ='Votos e NTs'!B93 -> Neutralidade de Fin. Parcela B - Conta Covid | D52: ='Votos e NTs'!D93 -> 0 | E52: 0 | F52: 0 | G52: 0 | H52: 0 | I52: 0 | V52: 0.81 | W52: 0.19 | X52: 61.07 | Y52: =IF(AH36/$W52>$AH$30,"PLDmax",IF($X$30/$W52<$AH$29,"PLDmin",$AH$36/$W52)) -> 168.0419474 | Z52: 168.0519474 | AA52: 363.4691053 | AB52: 363.4791053 | AC52: 486.6772632 | AD52: 486.6872632 | AE52: 716.8
C53: ='Votos e NTs'!B94 -> Neutralidade Escassez Hídrica | D53: ='Votos e NTs'!D94 -> 0 | E53: 0 | F53: 0 | G53: 0 | H53: 0 | I53: 0 | V53: 0.8 | W53: 0.2 | X53: 61.07 | Y53: =IF(AH51/$W53>$AH$30,"PLDmax",IF($X$30/$W53<$AH$29,"PLDmin",$AH$36/$W53)) -> 159.63985 | Z53: 159.64985 | AA53: 345.29565 | AB53: 345.30565 | AC53: 462.3434 | AD53: 462.3534 | AE53: 716.8
C54: ='Votos e NTs'!B95 -> Neutralidade de Créditos de PIS/COFINS | D54: ='Votos e NTs'!D95 -> -10084545.07 | E54: 0 | F54: -1 | G54: 0.002289916624 | H54: 0 | I54: 1 | V54: 0.79 | W54: 0.21 | X54: 61.07 | Y54: =IF(AH36/$W54>$AH$30,"PLDmax",IF($X$30/$W54<$AH$29,"PLDmin",$AH$36/$W54)) -> 152.0379524 | Z54: 152.0479524 | AA54: 328.853 | AB54: 328.863 | AC54: 440.3270476 | AD54: 440.3370476 | AE54: 716.8
C55: ='Votos e NTs'!B96 -> Sobrecontratação | D55: ='Votos e NTs'!D96 -> 17840591.43 | E55: =V115 -> 3273539.314 | F55: -0.8165117269 | G55: -0.003307767933 | H55: 0.00072630837 | I55: 1 | V55: 0.78 | W55: 0.22 | X55: 61.07 | Y55: =IF(AH36/$W55>$AH$30,"PLDmax",IF($X$30/$W55<$AH$29,"PLDmin",$AH$36/$W55)) -> 145.1271364 | Z55: 145.1371364 | AA55: 313.9051364 | AB55: 313.9151364 | AC55: 420.3121818 | AD55: 420.3221818 | AE55: 716.8
C56: ='Votos e NTs'!B97 -> Garantias financeiras na contratação regulada de energia (CCEAR) | D56: ='Votos e NTs'!D97 -> 664780.8663 | E56: =D56*(1+$D$5) -> 691628.6226 | F56: 0.04038587399 | G56: 6.096370537e-06 | H56: 0.0001534533755 | I56: 1 | V56: 0.77 | W56: 0.23 | X56: 61.07 | Y56: =IF(AH36/$W56>$AH$30,"PLDmax",IF($X$30/$W56<$AH$29,"PLDmin",$AH$36/$W56)) -> 138.8172609 | Z56: 138.8272609 | AA56: 300.257087 | AB56: 300.267087 | AC56: 402.0377391 | AD56: 402.0477391 | AE56: 716.8
C57: ='Votos e NTs'!B98 -> Reversão Sobrecontratação | D57: ='Votos e NTs'!D98 -> 0 | E57: 0 | F57: 0 | G57: 0 | H57: 0 | I57: 0 | V57: 0.76 | W57: 0.24 | X57: 61.07 | Y57: =IF(AH36/$W57>$AH$30,"PLDmax",IF($X$30/$W57<$AH$29,"PLDmin",$AH$36/$W57)) -> 133.0332083 | Z57: 133.0432083 | AA57: 287.746375 | AB57: 287.756375 | AC57: 385.2861667 | AD57: 385.2961667 | AE57: 716.8
C58: ='Votos e NTs'!B99 -> Recálculo Exposição CCEAR entre Submercados | D58: ='Votos e NTs'!D99 -> 0 | E58: 0 | F58: 0 | G58: 0 | H58: 0 | I58: 0 | V58: 0.75 | W58: 0.25 | X58: 61.07 | Y58: =IF(AH36/$W58>$AH$30,"PLDmax",IF($X$30/$W58<$AH$29,"PLDmin",$AH$36/$W58)) -> 127.71188 | Z58: 127.72188 | AA58: 276.23652 | AB58: 276.24652 | AC58: 369.87472 | AD58: 369.88472 | AE58: 716.8
C59: ='Votos e NTs'!B100 -> Compensação ref. acordos bilaterais de CCEAR | D59: ='Votos e NTs'!D100 -> 0 | E59: 0 | F59: 0 | G59: 0 | H59: 0 | I59: 0 | V59: 0.74 | W59: 0.26 | X59: 61.07 | Y59: =IF(AH57/$W59>$AH$30,"PLDmax",IF($X$30/$W59<$AH$29,"PLDmin",$AH$36/$W59)) -> 122.7998846 | Z59: 122.8098846 | AA59: 265.6120385 | AB59: 265.6220385 | AC59: 355.6487692 | AD59: 355.6587692 | AE59: 716.8
C60: ='Votos e NTs'!B101 -> Reversão de Risco Hidrológico | D60: ='Votos e NTs'!D101 -> -83391404.81 | E60: =-NPV(-((1+D8)^(1/12)-1),D61/12,D61/12,D61/12,D61/12,D61/12,D61/12,D61/12,D61/12,D61/12,D61/12,D61/12,D61/12) -> -118590667.4 | F60: 0.4220970096 | G60: -0.007992762786 | H60: -0.02631200853 | I60: 1 | V60: 0.73 | W60: 0.27 | X60: 61.07 | Y60: =IF(AH36/$W60>$AH$30,"PLDmax",IF($X$30/$W60<$AH$29,"PLDmin",$AH$36/$W60)) -> 118.2517407 | Z60: 118.2617407 | AA60: 255.7745556 | AB60: 255.7845556 | AC60: 342.4765926 | AD60: 342.4865926 | AE60: 716.8
C61: ='Votos e NTs'!B102 -> Previsão de Risco Hidrológico | D61: ='Votos e NTs'!D102 -> 109869238.7 | E61: =D61*0.9*(1+D5) -> 102875763.5 | F61: -0.06365271341 | G61: -0.001588021564 | H61: 0.02282530343 | I61: 1 | V61: 0.72 | W61: 0.28 | X61: 61.07 | Y61: =IF(AH36/$W61>$AH$30,"PLDmax",IF($X$30/$W61<$AH$29,"PLDmin",$AH$36/$W61)) -> 114.0284643 | Z61: 114.0384643 | AA61: 246.63975 | AB61: 246.64975 | AC61: 330.2452857 | AD61: 330.2552857 | AE61: 716.8
C62: ='Votos e NTs'!B103 -> Repasse de ultrapassagem de Supridas/Permissionárias | D62: ='Votos e NTs'!D103 -> 0 | E62: 0 | F62: 0 | G62: 0 | H62: 0 | I62: 0 | V62: 0.71 | W62: 0.29 | X62: 61.07 | Y62: =IF(AH60/$W62>$AH$30,"PLDmax",IF($X$30/$W62<$AH$29,"PLDmin",$AH$36/$W62)) -> 110.0964483 | Z62: 110.1064483 | AA62: 238.134931 | AB62: 238.144931 | AC62: 318.8575172 | AD62: 318.8675172 | AE62: 716.8
C63: ='Votos e NTs'!B104 -> Ajuste CUSD | D63: ='Votos e NTs'!D104 -> 440229.6601 | E63: =D63*(1+$D$5) -> 458008.7197 | F63: 0.04038587399 | G63: 4.03712451e-06 | H63: 0.0001016195423 | I63: 1 | V63: 0.7 | W63: 0.3 | X63: 61.07 | Y63: =IF(AH36/$W63>$AH$30,"PLDmax",IF($X$30/$W63<$AH$29,"PLDmin",$AH$36/$W63)) -> 106.4265667 | Z63: 106.4365667 | AA63: 230.1971 | AB63: 230.2071 | AC63: 308.2289333 | AD63: 308.2389333 | AE63: 716.8
C64: ='Votos e NTs'!B105 -> Descasamento TUSD Distribuição | D64: ='Votos e NTs'!D105 -> 0 | E64: 0 | F64: 0 | G64: 0 | H64: 0 | I64: 0 | V64: 0.69 | W64: 0.31 | X64: 61.07 | Y64: =IF(AH36/$W64>$AH$30,"PLDmax",IF($X$30/$W64<$AH$29,"PLDmin",$AH$36/$W64)) -> 102.9934516 | Z64: 103.0034516 | AA64: 222.7713871 | AB64: 222.7813871 | AC64: 298.2860645 | AD64: 298.2960645 | AE64: 716.8
C65: ='Votos e NTs'!B106 -> Descasamento TUSD Geração | D65: ='Votos e NTs'!D106 -> 0 | E65: =D65*(1+$D$5) -> 0 | F65: 0 | G65: 0 | H65: 0 | I65: 0 | V65: 0.68 | W65: 0.32 | X65: 61.07 | Y65: =IF(AH36/$W65>$AH$30,"PLDmax",IF($X$30/$W65<$AH$29,"PLDmin",$AH$36/$W65)) -> 99.77490625 | Z65: 99.78490625 | AA65: 215.8097813 | AB65: 215.8197813 | AC65: 288.964625 | AD65: 288.974625 | AE65: 716.8
C66: ='Votos e NTs'!B107 -> Restituição da cobertura excedente do Conselho de Consumidores | D66: ='Votos e NTs'!D107 -> 0 | E66: 0 | F66: 0 | G66: 0 | H66: 0 | I66: 0 | V66: 0.67 | W66: 0.33 | X66: 61.07 | Y66: =IF(AH36/$W66>$AH$30,"PLDmax",IF($X$30/$W66<$AH$29,"PLDmin",$AH$36/$W66)) -> 96.75142424 | Z66: 96.76142424 | AA66: 209.2700909 | AB66: 209.2800909 | AC66: 280.2081212 | AD66: 280.2181212 | AE66: 716.8
C67: ='Votos e NTs'!B108 -> Repasse de compensação DIC/FIC | D67: ='Votos e NTs'!D108 -> -311750.6584 | E67: =D67*(1+D5) -> -324340.9812 | F67: 0.04038587399 | G67: -2.858908289e-06 | H67: -7.19623462e-05 | I67: 1 | V67: 0.66 | W67: 0.34 | X67: 61.07 | Y67: =IF(AH36/$W67>$AH$30,"PLDmax",IF($X$30/$W67<$AH$29,"PLDmin",$AH$36/$W67)) -> 93.90579412 | Z67: 93.91579412 | AA67: 203.1150882 | AB67: 203.1250882 | AC67: 271.9667059 | AD67: 271.9767059 | AE67: 716.8
C68: ='Votos e NTs'!B109 -> Acordo REN 824/2018 | D68: ='Votos e NTs'!D109 -> 0 | E68: 0 | F68: 0 | G68: 0 | H68: 0 | I68: 0 | V68: 0.65 | W68: 0.35 | X68: 61.07 | Y68: =IF(AH36/$W68>$AH$30,"PLDmax",IF($X$30/$W68<$AH$29,"PLDmin",$AH$36/$W68)) -> 91.22277143 | Z68: 91.23277143 | AA68: 197.3118 | AB68: 197.3218 | AC68: 264.1962286 | AD68: 264.2062286 | AE68: 716.8
C69: ='Votos e NTs'!B110 -> Custo Distribuidora - Conta Covid - Art 4º - REN 952/2021 - Tusd | D69: ='Votos e NTs'!D110 -> 0 | E69: 0 | F69: 0 | G69: 0 | H69: 0 | I69: 0 | V69: 0.64 | W69: 0.36 | X69: 61.07 | Y69: =IF(AH37/$W69>$AH$30,"PLDmax",IF($X$30/$W69<$AH$29,"PLDmin",$AH$36/$W69)) -> 88.68880556 | Z69: 88.69880556 | AA69: 191.8309167 | AB69: 191.8409167 | AC69: 256.8574444 | AD69: 256.8674444 | AE69: 716.8
C70: ='Votos e NTs'!B111 -> Custo Distribuidora - Conta Covid - Art 4º - REN 952/2021 - TE | D70: ='Votos e NTs'!D111 -> 0 | E70: 0 | F70: 0 | G70: 0 | H70: 0 | I70: 0 | V70: 0.63 | W70: 0.37 | X70: 61.07 | Y70: =IF(AH38/$W70>$AH$30,"PLDmax",IF($X$30/$W70<$AH$29,"PLDmin",$AH$36/$W70)) -> 86.29181081 | Z70: 86.30181081 | AA70: 186.6462973 | AB70: 186.6562973 | AC70: 249.9153514 | AD70: 249.9253514 | AE70: 716.8
C71: ='Votos e NTs'!B112 -> 0 | D71: ='Votos e NTs'!D112 -> 0 | E71: 0 | F71: 0 | G71: 0 | H71: 0 | I71: 0 | V71: 0.62 | W71: 0.38 | X71: 61.07 | Y71: =IF(AH39/$W71>$AH$30,"PLDmax",IF($X$30/$W71<$AH$29,"PLDmin",$AH$36/$W71)) -> 84.02097368 | Z71: 84.03097368 | AA71: 181.7345526 | AB71: 181.7445526 | AC71: 243.3386316 | AD71: 243.3486316 | AE71: 716.8
C72: ='Votos e NTs'!B113 -> Empr. Escassez Hídrica | D72: ='Votos e NTs'!D113 -> 0 | E72: 0 | F72: 0 | G72: 0 | H72: 0 | I72: 0 | V72: 0.61 | W72: 0.39 | X72: 61.07 | Y72: 81.86658974 | Z72: 81.87658974 | AA72: 177.0746923 | AB72: 177.0846923 | AC72: 237.0991795 | AD72: 237.1091795 | AE72: 716.8
C73: ='Votos e NTs'!B114 -> Diferimento Parcela B | D73: ='Votos e NTs'!D114 -> -21000000 | E73: 0 | F73: -1 | G73: 0.004768509512 | H73: 0 | I73: 1 | V73: 0.6 | W73: 0.4 | X73: 61.07 | Y73: =IF(AH46/$W73>$AH$30,"PLDmax",IF($X$30/$W73<$AH$29,"PLDmin",$AH$36/$W73)) -> 79.819925 | Z73: 79.829925 | AA73: 172.647825 | AB73: 172.657825 | AC73: 231.1717 | AD73: 231.1817 | AE73: 716.8
C74: ='Votos e NTs'!B115 -> Recomposição à conta de comercialização de Itaipu - Reversão Bônus Itaipu | D74: ='Votos e NTs'!D115 -> 0 | E74: 0 | F74: 0 | G74: 0 | H74: 0 | I74: 0 | V74: 0.59 | W74: 0.41 | X74: 61.07 | Y74: =IF(AH47/$W74>$AH$30,"PLDmax",IF($X$30/$W74<$AH$29,"PLDmin",$AH$36/$W74)) -> 77.87309756 | Z74: 77.88309756 | AA74: 168.4369024 | AB74: 168.4469024 | AC74: 225.5333659 | AD74: 225.5433659 | AE74: 716.8
C75: ='Votos e NTs'!B116 -> Neutralidade Mitigação Itaipu - Energia de Revenda | D75: ='Votos e NTs'!D116 -> 0 | E75: 0 | F75: 0 | G75: 0 | H75: 0 | I75: 0 | V75: 0.58 | W75: 0.42 | X75: 61.07 | Y75: =IF(AH48/$W75>$AH$30,"PLDmax",IF($X$30/$W75<$AH$29,"PLDmin",$AH$36/$W75)) -> 76.01897619 | Z75: 76.02897619 | AA75: 164.4265 | AB75: 164.4365 | AC75: 220.1635238 | AD75: 220.1735238 | AE75: 716.8
C76: ='Votos e NTs'!B117 -> Frustração de repasse Decreto 10.665/2021 - Ajuste Bônus Itaipu | D76: ='Votos e NTs'!D117 -> 0 | E76: 0 | F76: 0 | G76: 0 | H76: 0 | I76: 0 | V76: 0.57 | W76: 0.43 | X76: 61.07 | Y76: =IF(AH36/$W76>$AH$30,"PLDmax",IF($X$30/$W76<$AH$29,"PLDmin",$AH$36/$W76)) -> 74.25109302 | Z76: 74.26109302 | AA76: 160.6026279 | AB76: 160.6126279 | AC76: 215.0434419 | AD76: 215.0534419 | AE76: 716.8
C77: ='Votos e NTs'!B118 -> Financeiro referente ajuste encargo conexão | D77: ='Votos e NTs'!D118 -> 0 | E77: 0 | F77: 0 | G77: 0 | H77: 0 | I77: 0 | V77: 0.56 | W77: 0.44 | X77: 61.07 | Y77: =IF(AH36/$W77>$AH$30,"PLDmax",IF($X$30/$W77<$AH$29,"PLDmin",$AH$36/$W77)) -> 72.56356818 | Z77: 72.57356818 | AA77: 156.9525682 | AB77: 156.9625682 | AC77: 210.1560909 | AD77: 210.1660909 | AE77: 716.8
C78: ='Votos e NTs'!B119 -> Reversão diferimento Rede Básica | D78: ='Votos e NTs'!D119 -> 0 | E78: 0 | F78: 0 | G78: 0 | H78: 0 | I78: 0 | V78: 0.55 | W78: 0.45 | X78: 61.07 | Y78: =IF(AH36/$W78>$AH$30,"PLDmax",IF($X$30/$W78<$AH$29,"PLDmin",$AH$36/$W78)) -> 70.95104444 | Z78: 70.96104444 | AA78: 153.4647333 | AB78: 153.4747333 | AC78: 205.4859556 | AD78: 205.4959556 | AE78: 716.8
C79: ='Votos e NTs'!B120 -> Spread sobre a antecipação de créditos de UDER | D79: ='Votos e NTs'!D120 -> 0 | E79: 0 | F79: 0 | G79: 0 | H79: 0 | I79: 0 | V79: 0.54 | W79: 0.46 | X79: 61.07 | Y79: =IF(AH52/$W79>$AH$30,"PLDmax",IF($X$30/$W79<$AH$29,"PLDmin",$AH$36/$W79)) -> 69.40863043 | Z79: 69.41863043 | AA79: 150.1285435 | AB79: 150.1385435 | AC79: 201.0188696 | AD79: 201.0288696 | AE79: 716.8
C80: ='Votos e NTs'!B121 -> Reversão da antecipação de créditos de UDER | D80: ='Votos e NTs'!D121 -> 0 | E80: 0 | F80: 0 | G80: 0 | H80: 0 | I80: 0 | V80: 0.53 | W80: 0.47 | X80: 61.07 | Y80: =IF(AH53/$W80>$AH$30,"PLDmax",IF($X$30/$W80<$AH$29,"PLDmin",$AH$36/$W80)) -> 67.93185106 | Z80: 67.94185106 | AA80: 146.9343191 | AB80: 146.9443191 | AC80: 196.7418723 | AD80: 196.7518723 | AE80: 716.8
C81: ='Votos e NTs'!B122 -> Recomposição de diferença de cobertura CDE GD - RTA 2025 | D81: ='Votos e NTs'!D122 -> 64827677.83 | E81: 0 | F81: -1 | G81: -0.01472054278 | H81: 0 | I81: 1 | V81: 0.52 | W81: 0.48 | X81: 61.07 | Y81: =IF(AH54/$W81>$AH$30,"PLDmax",IF($X$30/$W81<$AH$29,"PLDmin",$AH$36/$W81)) -> 66.51660417 | Z81: 66.52660417 | AA81: 143.8731875 | AB81: 143.8831875 | AC81: 192.6430833 | AD81: 192.6530833 | AE81: 716.8
C82: ='Votos e NTs'!B123 -> Déficit de faturamento - Energia Angra - Baixa Renda- Art. 2º da Lei 15.235/2025 | D82: ='Votos e NTs'!D123 -> 1550866.759 | E82: 0 | F82: -1 | G82: -0.0003521582331 | H82: 0 | I82: =IF(AND(E82=0,D82=0),0,1) -> 1 | V82: 0.51 | W82: 0.49 | X82: 61.07 | Y82: =IF(AH36/$W82>$AH$30,"PLDmax",IF($X$30/$W82<$AH$29,"PLDmin",$AH$36/$W82)) -> 65.15912245 | Z82: 65.16912245 | AA82: 140.937 | AB82: 140.947 | AC82: 188.7115918 | AD82: 188.7215918 | AE82: 716.8
C83: ='Votos e NTs'!B124 -> 0 | D83: ='Votos e NTs'!D124 -> 0 | E83: 0 | F83: 0 | G83: 0 | H83: 0 | I83: 0 | V83: 0.5 | W83: 0.5 | X83: 61.07 | Y83: =IF(AH36/$W83>$AH$30,"PLDmax",IF($X$30/$W83<$AH$29,"PLDmin",$AH$36/$W83)) -> 63.85594 | Z83: 63.86594 | AA83: 138.11826 | AB83: 138.12826 | AC83: 184.93736 | AD83: 184.94736 | AE83: 716.8
C84: ='Votos e NTs'!B125 -> Reversão de Financeiro de Bandeira de Escassez Hídrica | D84: ='Votos e NTs'!D125 -> 0 | E84: 0 | F84: 0 | G84: 0 | H84: 0 | I84: 0
C85: ='Votos e NTs'!B126 -> Financeiro de Postergação Encargo | D85: ='Votos e NTs'!D126 -> 0 | E85: 0 | F85: 0 | G85: 0 | H85: 0 | I85: 0
C86: ='Votos e NTs'!B127 -> Financeiro de Postergação Energia | D86: ='Votos e NTs'!D127 -> 0 | E86: 0 | F86: =IFERROR(E86/D86-1,0) -> 0 | G86: =IFERROR((E86-D86)/$D$39,0) -> 0 | H86: =E86/$E$39 -> 0 | I86: 0
C87: ='Votos e NTs'!B128 -> Financeiro de Postergação Transporte | D87: ='Votos e NTs'!D128 -> 0 | E87: 0 | F87: 0 | G87: 0 | H87: 0 | I87: 0
C88: ='Votos e NTs'!B129 -> Financeiro de Postergação Parcela B | D88: ='Votos e NTs'!D129 -> 0 | E88: 0 | F88: 0 | G88: 0 | H88: 0 | I88: 0
C89: ='Votos e NTs'!B130 -> Créditos de Pis/Cofins | D89: ='Votos e NTs'!D130 -> -31281513.33 | E89: =-MIN(PIS_COFINS!E9-13*PIS_COFINS!K22,12*PIS_COFINS!K22) -> 83469125.96 | F89: -3.668321225 | G89: 0.02605664357 | H89: 0.01851950413 | I89: 1
C90: ='Votos e NTs'!B131 -> Reversão de Créditos de modicidade (REN 1.000/2021) | D90: ='Votos e NTs'!D131 -> -3372617.372 | E90: =D90*(1+$D$5) -> -3508823.472 | F90: 0.04038587399 | G90: -3.092857545e-05 | H90: -0.0007785114558 | I90: 1
C91: ='Votos e NTs'!B132 -> Arrecadação CDE Escassez de migrantes (REN 1.008/2022) | D91: ='Votos e NTs'!D132 -> -6458876.193 | E91: 0 | F91: -1 | G91: 0.00146662917 | H91: 0 | I91: 1
C92: ='Votos e NTs'!B133 -> Arrecadação CDE Covid de migrantes (REN 885/2020) | D92: ='Votos e NTs'!D133 -> -769668.4087 | E92: 0 | F92: -1 | G92: 0.0001747700537 | H92: 0 | I92: 1
C93: ='Votos e NTs'!B134 -> Custo da distribuidora - Conta Escassez Hídrica | D93: ='Votos e NTs'!D134 -> 0 | E93: =D93*(1+D5) -> 0 | F93: 0 | G93: 0 | H93: 0 | I93: 0
C94: ='Votos e NTs'!B135 -> Quitação cta. Escassez Hídrica - Reversão de componente econômico | D94: ='Votos e NTs'!D135 -> -79109674.63 | E94: =-E20 -> -79109674.63 | F94: 0 | G94: 0 | H94: -0.01755226174 | I94: 1 | X94: Bandeira
C95: ='Votos e NTs'!B136 -> Reversão de cobertura excedente Conta Escassez Hídrica (a partir 09/2024) | D95: ='Votos e NTs'!D136 -> 0 | E95: 0 | F95: 0 | G95: 0 | H95: 0 | I95: 0 | X95: AMARELA | Y95: REH 3.306/2024 | Z95: 18.85
C96: ='Votos e NTs'!B137 -> Multa CCEAR - Goiânia II - Desp. nº 4.863/2023 | D96: ='Votos e NTs'!D137 -> -339.2643077 | E96: 0 | F96: -1 | G96: 7.70373847e-08 | H96: 0 | I96: 1 | X96: VERMELHA I | Y96: REH 3.306/2024 | Z96: 44.63
C97: ='Votos e NTs'!B138 -> Multa CCEAR - Termoceará - Desp. nº 2.495/2024 | D97: ='Votos e NTs'!D138 -> -445556.3274 | E97: 0 | F97: -1 | G97: 0.0001011733136 | H97: 0 | I97: 1 | X97: VERMELHA II | Y97: REH 3.306/2024 | Z97: 78.77
C98: Receita Requerida Total | D98: =D39+D41 -> 4658352713 | E98: =E39+E41 -> 4644050115 | F98: =IFERROR(E98/D98-1,0) -> -0.003070312365 | I98: 1
C99: Efeito Médio | D99: =LnkTxtEfeito -> 0.1210648991 | E99: =(E39+E41/(1+IF(Mercado!H13>0,Mercado!H13,0)))/(D39+D41/(1+IF(Mercado!G13>0,Mercado!G13,0)))-1 -> -0.003070312365 | I99: =IF(AND(G99=0,E99=0),0,1) -> 1
AF100: Tabela de cálculo de fatores de atualização da CVA M2 devido à desconcatenação
O101: Previsão de liquidação de Energia no MCP informada pela distribuidora (preencher se informado) | T101: Projeção de PLD (Informa CCEE) | U101: Projeção de venda de energia no MCP | V101: Projeção de resultado MCP | X101: Previsão de acionamento de bandeiras (Informa CCEE) | Y101: Adicional de bandeiras | Z101: Mercado Bandeiras | AA101: Arrecadação de bandeiras | AB101: ="Expectativa de disponibilidade de bandeiras para "&E12 -> Expectativa de disponibilidade de bandeiras para 2027 | AF101: Quantidade de meses de desconcatenação | AG101: Atualização SELIC (Delta para Saldo a compensar) | AH101: somatório da atualização SELIC de "n" deltas consecutivos | AI101: Atualização SELIC de "a compensar" para "em processamento" | AJ101: Fator de cálculo da CVA M2 devido à desconcatenação
C102: Receita RA1 PCAT com ajuste de mercado sobre financeiros | D102: =(D39+D41/(1+IF(Mercado!G13>0,Mercado!G13,0))) -> 4658352713 | O102: Mês | P102: =U102 -> MWh | Q102: Perfil de liquidação | S102: Competência | T102: R$/MWh | U102: MWh | V102: R$ | X102: Bandeira | Y102: R$/MWh | Z102: Mercado TE (MWh) | AA102: R$ | AB102: R$ | AF102: n | AG102: % | AH102: % | AI102: % | AJ102: %
C103: Valor estimado da base de cálculo do efeito médio em 2025 | D103: =(D102)/(1+D99) -> 4155292630 | E103: =D102 -> 4658352713 | O103: =EDATE(CAPA!C15,1) -> 46113 | Q103: =P103/$P$115 ->  | S103: =O103 -> 46113 | T103: =VLOOKUP(S103,pld_gsf_previsao,2) -> 272 | U103: =IF(MAX($P$103:$P$114)>0,P103,IF((Energia!$H$24-Energia!$I$24)>0,(Energia!$H$24-Energia!$I$24)/12,0)) -> 86277.09474 | V103: =($P$160-T103)*U103 -> 891114.1218 | X103: =LOOKUP(S103,$W$136:$W$152,$AB$136:$AB$152) -> VERDE | Y103: =IF(X103="VERDE",0,VLOOKUP(X103,$X$95:$Z$97,3)) -> 0 | Z103: =SUMIFS(Mercado_Receita!P:P,Mercado_Receita!K:K,EDATE('Previsão N+1'!S103,-12)) -> 366496.609 | AA103: =Z103*Y103 -> 0 | AB103: =AA103*VLOOKUP(EDATE(CAPA!$C$15,12),Índices!$B$7:$F$500,5)/VLOOKUP('Previsão N+1'!S103,Índices!$B$7:$F$500,5) -> 0 | AF103: 0 | AG103: 0 | AH103: =SUM($AG$103:AG103)/12 -> 0 | AI103: =IFERROR(PMT($E$8,12,-1)*12,0)-1 -> 0.07672664321 | AJ103: =(AH103)*(1+AI103) -> 0
O104: =EDATE(O103,1) -> 46143 | S104: =EDATE(S103,1) -> 46143 | T104: 177 | U104: =IF(MAX($P$103:$P$114)>0,P104,IF((Energia!$H$24-Energia!$I$24)>0,(Energia!$H$24-Energia!$I$24)/12,0)) -> 86277.09474 | V104: 9087438.122 | X104: =LOOKUP(S104,$W$136:$W$152,$AB$136:$AB$152) -> VERDE | Y104: =IF(X104="VERDE",0,VLOOKUP(X104,$X$95:$Z$97,3)) -> 0 | Z104: =SUMIFS(Mercado_Receita!P:P,Mercado_Receita!K:K,EDATE('Previsão N+1'!S104,-12)) -> 334272.417 | AA104: 0 | AB104: =AA104*VLOOKUP(EDATE(CAPA!$C$15,12),Índices!$B$7:$F$500,5)/VLOOKUP('Previsão N+1'!S104,Índices!$B$7:$F$500,5) -> 0 | AF104: =AF103+1 -> 1 | AG104: =(1+$E$8)^(AF104) -> 1.011560563 | AH104: =SUM($AG$103:AG104)/12 -> 0.08429671361 | AI104: =IFERROR(PMT($E$8,12,-1)*12,0)-1 -> 0.07672664321 | AJ104: =(AH104)*(1+AI104) -> 0.09076451748
O105: =EDATE(O104,1) -> 46174 | S105: =EDATE(S104,1) -> 46174 | T105: 225 | U105: =IF(MAX($P$103:$P$114)>0,P105,IF((Energia!$H$24-Energia!$I$24)>0,(Energia!$H$24-Energia!$I$24)/12,0)) -> 86277.09474 | V105: 4946137.574 | X105: AMARELA | Y105: 18.85 | Z105: =SUMIFS(Mercado_Receita!P:P,Mercado_Receita!K:K,EDATE('Previsão N+1'!S105,-12)) -> 298326.811 | AA105: 5623460.387 | AB105: =AA105*VLOOKUP(EDATE(CAPA!$C$15,12),Índices!$B$7:$F$500,5)/VLOOKUP('Previsão N+1'!S105,Índices!$B$7:$F$500,5) -> 6223902.352 | AF105: =AF104+1 -> 2 | AG105: 1.023254773 | AH105: =SUM($AG$103:AG105)/12 -> 0.1695679447 | AI105: 0.07672664321 | AJ105: 0.1825783239
C106: Diferimento proposto | D106: -21000000 | E106: =-D106*(1+D8) -> 24105823.38 | H106: % equilavente RI | O106: 46204 | S106: 46204 | T106: 226 | U106: =IF(MAX($P$103:$P$114)>0,P106,IF((Energia!$H$24-Energia!$I$24)>0,(Energia!$H$24-Energia!$I$24)/12,0)) -> 86277.09474 | V106: 4859860.48 | X106: VERMELHA I | Y106: 44.63 | Z106: =SUMIFS(Mercado_Receita!P:P,Mercado_Receita!K:K,EDATE('Previsão N+1'!S106,-12)) -> 275336.224 | AA106: 12288255.68 | AB106: =AA106*VLOOKUP(EDATE(CAPA!$C$15,12),Índices!$B$7:$F$500,5)/VLOOKUP('Previsão N+1'!S106,Índices!$B$7:$F$500,5) -> 13431679.85 | AF106: 3 | AG106: 1.035084175 | AH106: =SUM($AG$103:AG106)/12 -> 0.2558249593 | AI106: 0.07672664321 | AJ106: 0.2754535497
C107: Efeito P&D | D107: =0.01*D106 -> -210000 | E107: =E106*1% -> 241058.2338 | F107: <- considerando que diferimento não seja de CDE | O107: 46235 | S107: 46235 | T107: 230 | U107: =IF(MAX($P$103:$P$114)>0,P107,IF((Energia!$H$24-Energia!$I$24)>0,(Energia!$H$24-Energia!$I$24)/12,0)) -> 86277.09474 | V107: 4514752.101 | X107: VERMELHA I | Y107: 44.63 | Z107: =SUMIFS(Mercado_Receita!P:P,Mercado_Receita!K:K,EDATE('Previsão N+1'!S107,-12)) -> 283749.173 | AA107: 12663725.59 | AB107: =AA107*VLOOKUP(EDATE(CAPA!$C$15,12),Índices!$B$7:$F$500,5)/VLOOKUP('Previsão N+1'!S107,Índices!$B$7:$F$500,5) -> 13685282.51 | AF107: 4 | AG107: 1.047050331 | AH107: =SUM($AG$103:AG107)/12 -> 0.3430791536 | AI107: 0.07672664321 | AJ107: 0.3694024654
C108: Efeito RI | D108: =H108*D106 -> 0 | E108: =H108*E106 -> 0 | H108: =D37/(D39+D41) -> 0 | O108: 46266 | S108: 46266 | T108: 115 | U108: =IF(MAX($P$103:$P$114)>0,P108,IF((Energia!$H$24-Energia!$I$24)>0,(Energia!$H$24-Energia!$I$24)/12,0)) -> 86277.09474 | V108: 14436618 | X108: VERDE | Y108: 0 | Z108: =SUMIFS(Mercado_Receita!P:P,Mercado_Receita!K:K,EDATE('Previsão N+1'!S108,-12)) -> 330135.871 | AA108: 0 | AB108: =AA108*VLOOKUP(EDATE(CAPA!$C$15,12),Índices!$B$7:$F$500,5)/VLOOKUP('Previsão N+1'!S108,Índices!$B$7:$F$500,5) -> 0 | AF108: 5 | AG108: 1.059154823 | AH108: =SUM($AG$103:AG108)/12 -> 0.4313420555 | AI108: 0.07672664321 | AJ108: 0.4644374835
C109: Efeito TFSEE | D109: =Encargos!J15*Encargos!J14*D106*0 -> 0 | E109: =0.004*E106*0 -> 0 | F109: <- considerar se diferimento for de PB | O109: 46296 | S109: 46296 | T109: 299 | U109: =IF(MAX($P$103:$P$114)>0,P109,IF((Energia!$H$24-Energia!$I$24)>0,(Energia!$H$24-Energia!$I$24)/12,0)) -> 86277.09474 | V109: -1438367.436 | X109: AMARELA | Y109: 18.85 | Z109: =SUMIFS(Mercado_Receita!P:P,Mercado_Receita!K:K,EDATE('Previsão N+1'!S109,-12)) -> 349332.057 | AA109: 6584909.274 | AB109: =AA109*VLOOKUP(EDATE(CAPA!$C$15,12),Índices!$B$7:$F$500,5)/VLOOKUP('Previsão N+1'!S109,Índices!$B$7:$F$500,5) -> 6955789.62 | AF109: 6 | AG109: 1.071399249 | AH109: =SUM($AG$103:AG109)/12 -> 0.5206253262 | AI109: 0.07672664321 | AJ109: 0.5605711599
C110: Receita Requerida com diferimento | D110: =D39+D41+D106+D107+D108+D109 -> 4637142713 | E110: =E98+E106+E107+E108 -> 4668396997 | O110: 46327 | S110: 46327 | T110: 613 | U110: =IF(MAX($P$103:$P$114)>0,P110,IF((Energia!$H$24-Energia!$I$24)>0,(Energia!$H$24-Energia!$I$24)/12,0)) -> 86277.09474 | V110: -28529375.18 | X110: VERMELHA II | Y110: 78.77 | Z110: =SUMIFS(Mercado_Receita!P:P,Mercado_Receita!K:K,EDATE('Previsão N+1'!S110,-12)) -> 348755.958 | AA110: 27471506.81 | AB110: =AA110*VLOOKUP(EDATE(CAPA!$C$15,12),Índices!$B$7:$F$500,5)/VLOOKUP('Previsão N+1'!S110,Índices!$B$7:$F$500,5) -> 28721196.45 | AF110: 7 | AG110: 1.083785228 | AH110: =SUM($AG$103:AG110)/12 -> 0.6109407619 | AI110: 0.07672664321 | AJ110: 0.6578161958
O111: 46357 | S111: 46357 | T111: 375 | U111: =IF(MAX($P$103:$P$114)>0,P111,IF((Energia!$H$24-Energia!$I$24)>0,(Energia!$H$24-Energia!$I$24)/12,0)) -> 86277.09474 | V111: -7995426.636 | X111: AMARELA | Y111: 18.85 | Z111: =SUMIFS(Mercado_Receita!P:P,Mercado_Receita!K:K,EDATE('Previsão N+1'!S111,-12)) -> 370345.161 | AA111: 6981006.285 | AB111: =AA111*VLOOKUP(EDATE(CAPA!$C$15,12),Índices!$B$7:$F$500,5)/VLOOKUP('Previsão N+1'!S111,Índices!$B$7:$F$500,5) -> 7211982.235 | AF111: 8 | AG111: 1.096314396 | AH111: =SUM($AG$103:AG111)/12 -> 0.7023002949 | AI111: 0.07672664321 | AJ111: 0.7561854391
D112: =D12 -> 2026 | E112: =E12 -> 2027 | O112: 46388 | S112: 46388 | T112: 407 | U112: =IF(MAX($P$103:$P$114)>0,P112,IF((Energia!$H$24-Energia!$I$24)>0,(Energia!$H$24-Energia!$I$24)/12,0)) -> 86277.09474 | V112: -10756293.67 | X112: VERDE | Y112: 0 | Z112: =SUMIFS(Mercado_Receita!P:P,Mercado_Receita!K:K,EDATE('Previsão N+1'!S112,-12)) -> 377359.603 | AA112: 0 | AB112: =AA112*VLOOKUP(EDATE(CAPA!$C$15,12),Índices!$B$7:$F$500,5)/VLOOKUP('Previsão N+1'!S112,Índices!$B$7:$F$500,5) -> 0 | AF112: 9 | AG112: 1.108988408 | AH112: =SUM($AG$103:AG112)/12 -> 0.7947159956 | AI112: 0.07672664321 | AJ112: 0.8556918862
C113: Efeito médio com diferimento | D113: =(D39+D107+D109+(D41+D106)/(1+IF(Mercado!G13>0,Mercado!G13,0)))/D103-1 -> 0.1159605654 | E113: =(E39+E107+E110+(E41+E106)/(1+IF(Mercado!H13>0,Mercado!H13,0)))/(D39+D107+D110+(D41+D106)/(1+IF(Mercado!G13>0,Mercado!G13,0)))-1 -> 0.006739987447 | G113: Diferença efeito | H113: =E113-D113 -> -0.109220578 | O113: 46419 | S113: 46419 | T113: 347 | U113: =IF(MAX($P$103:$P$114)>0,P113,IF((Energia!$H$24-Energia!$I$24)>0,(Energia!$H$24-Energia!$I$24)/12,0)) -> 86277.09474 | V113: -5579667.984 | X113: VERDE | Y113: 0 | Z113: =SUMIFS(Mercado_Receita!P:P,Mercado_Receita!K:K,EDATE('Previsão N+1'!S113,-12)) -> 368452.44 | AA113: 0 | AB113: =AA113*VLOOKUP(EDATE(CAPA!$C$15,12),Índices!$B$7:$F$500,5)/VLOOKUP('Previsão N+1'!S113,Índices!$B$7:$F$500,5) -> 0 | AF113: 10 | AG113: 1.121808939 | AH113: =SUM($AG$103:AG113)/12 -> 0.8882000738 | AI113: 0.07672664321 | AJ113: 0.9563486839
O114: 46447 | S114: 46447 | T114: 64 | U114: =IF(MAX($P$103:$P$114)>0,P114,IF((Energia!$H$24-Energia!$I$24)>0,(Energia!$H$24-Energia!$I$24)/12,0)) -> 86277.09474 | V114: 18836749.83 | X114: VERDE | Y114: 0 | Z114: =SUMIFS(Mercado_Receita!P:P,Mercado_Receita!K:K,EDATE('Previsão N+1'!S114,-12)) -> 368452.44 | AA114: 0 | AB114: =AA114*VLOOKUP(EDATE(CAPA!$C$15,12),Índices!$B$7:$F$500,5)/VLOOKUP('Previsão N+1'!S114,Índices!$B$7:$F$500,5) -> 0 | AF114: 11 | AG114: 1.134777682 | AH114: =SUM($AG$103:AG114)/12 -> 0.9827648806 | AI114: 0.07672664321 | AJ114: 1.058169131
P115: =SUM(P103:P114) -> 0 | S115: Total | U115: =SUM(U103:U114) -> 1035325.137 | V115: =SUM(V103:V114) -> 3273539.314 | X115: Arrecadação de conta Bandeira 5du | AB115: =SUM(AB102:AB114) -> 76229833.01
X116: Arrecadação de conta Bandeiras em processamento | AB116: =-12*PMT(E8,12,AB115) -> 82078692.21
O117: Energia - Percentuais de perdas regulatórias
O118: Perdas Regulatórias | P118: DRP | Q118: DRP +1 | X118: Alocação de receita de bandeiras em ESS/EER | AB118: =MIN(AB116,(1-0.637)*E23*(-12*PMT(E8,12,1))) -> 38479587.95 | AC118: <- Expectativa de reserva de recursos para cobertura de CVA de ESS/EER.
C119: Estimativa Efeito (sem diferimento) | D119: =D112 -> 2026 | E119: =E112 -> 2027 | O119: PNT | P119: =Energia!I13 -> 0.06717324022 | Q119: =P119 -> 0.06717324022 | R119: <- Atenção!!! Preencher percentual de perdas não técnicas previsto para próximo ano | X119: Alocação de receita de bandeiras em Energia | AB119: =AB116-AB118 -> 43599104.27
C120: Parcela A | D120: =Resultado!D39 -> 2481314011 | E120: =E14 -> 2533574741 | O120: PT | P120: =Energia!I14 -> 0.099495 | Q120: =P120 -> 0.099495
C121: Parcela B | D121: =Resultado!D41 -> 0 | E121: =E38 -> 1973518181 | O121: P_RB | P121: =Energia!I15 -> 0.01483011275 | Q121: 0.01483011275
C122: Financeiros | D122: =D41 -> 254460900.2 | E122: =E41 -> 136957193.3 | O122: P_DIT (MWh) | P122: =SUMIFS(TabPerdaDIT[Valor],TabPerdaDIT[Dados de perda],"Perdas DITs") -> 2096.369634 | Q122: =P122 -> 2096.369634
C123: Diferimento | D123: 0 | E123: 0
C124: RA1 + Financeiros | D124: =SUBTOTAL(9,D120:D123) -> 2735774912 | E124: =SUBTOTAL(9,E120:E123) -> 4644050115 | O124: Energia - Mercado de referência
C125: Efeito médio | D125: =D99 -> 0.1210648991 | E125: =E99 -> -0.003070312365 | O125: Mercado | P125: MWh DRP | Q125: MWh DRP +1
O126: Fornecimento | P126: =Energia!I4 -> 4998319.874 | Q126: =P126*(1+$D$2) -> 4998319.874
C127: Estimativa Efeito (com diferimento) | D127: =D119 -> 2026 | E127: =E119 -> 2027 | O127: Suprimento (Mercado TE) | P127: =Energia!D8 -> 0 | Q127: =P127*(1+$D$2) -> 0
C128: Parcela A | D128: =D14+D107+D108+D109 -> 2481104011 | E128: =E14+E107+E108+E109 -> 2533815799 | O128: Suprimento (Mercado TUSD) | P128: =Energia!I5 -> 0 | Q128: =P128*(1+$D$3) -> 0
C129: Parcela B | D129: =D38 -> 1922577801 | E129: =E38 -> 1973518181 | O129: Livre Total + Distribuição | P129: =Energia!I6+Energia!I7 -> 2158204.56 | Q129: =P129*(1+$D$3) -> 2158204.56
C130: Financeiros | D130: =D41 -> 254460900.2 | E130: =E41 -> 136957193.3 | O130: A1 | P130: =Energia!I8 -> 0 | Q130: =P130*(1+$D$3) -> 0
C131: Diferimento | D131: =D106 -> -21000000 | E131: =E106 -> 24105823.38 | O131: BT | P131: =Energia!I9 -> 4250108.387 | Q131: =P131*(1+$D$2) -> 4250108.387
C132: RA1 + Financeiros | D132: =SUM(D128:D131) -> 4637142713 | E132: =SUM(E128:E131) -> 4668396997 | O132: GD | P132: =Energia!J4 -> 2165378.63 | Q132: =P132*(1+$D$4) -> 2598454.356
C133: Efeito médio | D133: =D113 -> 0.1159605654 | E133: =E113 -> 0.006739987447
O134: Energia - Cálculo das perdas de acordo com percentuais regulatórios e mercado
O135: Descrição | P135: DRP | Q135: DRP+1 | W135: Competência | X135: PLD | Y135: Status_PLD | Z135: GSF | AA135: Status_GSF | AB135: Previsão Bandeira
O136: % Não Técnica (sobre Baixa Tensão) | P136: =P119 -> 0.06717324022 | Q136: 0.06717324022 | W136: 46023 | X136: 183 | Y136: VIGEN. | Z136: 95 | AA136: VIGEN. | AB136: =IF(X136<LOOKUP(MAX((100-Z136)/100,0.01),$W$33:$W$83,$Y$33:$Y$83),"VERDE",IF(X136<LOOKUP(MAX((100-Z136)/100,0.01),$W$33:$W$83,$AA$33:$AA$83),"AMARELA",IF(X136<LOOKUP(MAX((100-Z136)/100,0.01),$W$33:$W$83,$AC$33:$AC$83),"VERMELHA I","VERMELHA II"))) -> VERDE
O137: % Técnica (sobre energia injetada) | P137: 0.099495 | Q137: 0.099495 | W137: 46054 | X137: 355 | Y137: VIGEN. | Z137: 100 | AA137: VIGEN. | AB137: =IF(X137<LOOKUP(MAX((100-Z137)/100,0.01),$W$33:$W$83,$Y$33:$Y$83),"VERDE",IF(X137<LOOKUP(MAX((100-Z137)/100,0.01),$W$33:$W$83,$AA$33:$AA$83),"AMARELA",IF(X137<LOOKUP(MAX((100-Z137)/100,0.01),$W$33:$W$83,$AC$33:$AC$83),"VERMELHA I","VERMELHA II"))) -> VERDE
O138: % Rede Básica (s/ merc. Injetado) | P138: 0.01483011275 | Q138: 0.01483011275 | W138: 46082 | X138: 349 | Y138: PROJ. | Z138: 107 | AA138: PROJ. | AB138: VERDE
O139: Perda Não Técnica | P139: =P136*$P$131 -> 285493.5517 | Q139: =Q136*$Q$131 -> 285493.5517 | W139: 46113 | X139: 272 | Y139: PROJ. | Z139: 99 | AA139: PROJ. | AB139: VERDE
O140: Perda Técnica + Perdas DITs | P140: =SUM(P126,P128:P129,-$P$130,P139)/(1-P137)*P137+P144 -> 824350.0823 | Q140: =SUM(Q126,Q128:Q129,-$Q$130,Q139,Q132)/(1-Q137)*Q137+Q144 -> 1111448.117 | W140: 46143 | X140: 177 | Y140: PROJ. | Z140: 84 | AA140: PROJ. | AB140: VERDE
O141: Perda Rede Básica sobre Dist. | P141: =SUM(P139:P140)*P138 -> 16459.10622 | Q141: =SUM(Q139:Q140)*Q138 -> 20716.80246 | W141: 46174 | X141: 225 | Y141: PROJ. | Z141: 76 | AA141: PROJ. | AB141: AMARELA
O142: Perda Rede Básica sobre mercado Cat. | P142: =(SUM(P126,-P132)+P127)*P121 -> 42012.83806 | Q142: =(SUM(Q126,-Q132)+Q127)*Q121 -> 35590.27621 | W142: 46204 | X142: 226 | Y142: PROJ. | Z142: 66 | AA142: PROJ. | AB142: VERMELHA I
W143: 46235 | X143: 230 | Y143: PROJ. | Z143: 65 | AA143: PROJ. | AB143: VERMELHA I
O144: Perdas DIT (sobre mercado) | P144: =SUMIFS(TabPerdaDIT[Valor],TabPerdaDIT[Dados de perda],"Perdas DITs") -> 2096.369634 | Q144: =SUMIFS(TabPerdaDIT[Valor],TabPerdaDIT[Dados de perda],"Perdas DITs") -> 2096.369634 | W144: 46266 | X144: 115 | Y144: PROJ. | Z144: 75 | AA144: PROJ. | AB144: VERDE
O145: Perdas Técnicas (sem dits) | P145: =SUM(P126,P128:P129,-$P$130,P139,P132)/(1-P137)*P137 -> 1061502.075 | Q145: =SUM($Q$126:$Q$129,-$Q$130,Q139,Q132)/(1-Q137)*Q137 -> 1109351.748 | W145: 46296 | X145: 299 | Y145: PROJ. | Z145: 81 | AA145: PROJ. | AB145: AMARELA
W146: 46327 | X146: 613 | Y146: PROJ. | Z146: 80 | AA146: PROJ. | AB146: VERMELHA II
O147: Energia - Sintese do cálculod e energia requerida | W147: 46357 | X147: 375 | Y147: PROJ. | Z147: 84 | AA147: PROJ. | AB147: AMARELA
O148: Energia Requerida | P148: =P135 -> DRP | Q148: =Q135 -> DRP+1 | W148: 46388 | X148: 407 | Y148: PROJ. | Z148: 96 | AA148: PROJ. | AB148: VERDE
O149: =Energia!B6 -> Fornecimento + Suprimento | P149: =P150+P151 -> 2832941.244 | Q149: =Q150+Q151 -> 2399865.518 | W149: 46419 | X149: 347 | Y149: PROJ. | Z149: 103 | AA149: PROJ. | AB149: VERDE
O150: =Energia!B7 -> Fornecimento - GD_injetado | P150: =P126-P132 -> 2832941.244 | Q150: =Q126-Q132 -> 2399865.518 | W150: 46447 | X150: 64 | Y150: PROJ. | Z150: 109 | AA150: PROJ. | AB150: VERDE
O151: =Energia!B8 -> Suprimento (Mercado TE) | P151: =P127 -> 0 | Q151: =Q127 -> 0 | W151: 46478 | X151: 57 | Y151: PROJ. | Z151: 101 | AA151: PROJ. | AB151: VERDE
O152: =Energia!B9 -> Perdas Regulatórias | P152: =SUM(P153:P156) -> 1168315.578 | Q152: =SUM(Q153:Q156) -> 1453248.748 | AB152: VERDE
O153: =Energia!B10 -> Perda Não Técnica | P153: =P139 -> 285493.5517 | Q153: 285493.5517
O154: =Energia!B11 -> Perda Técnica | P154: 824350.0823 | Q154: 1111448.117 | W154: Arquivo | X154: InfoPLD_Diario27022026.pdf
O155: =Energia!B12 -> Perda Rede Básica sobre Dist. | P155: 16459.10622 | Q155: 20716.80246 | W155: Hora de atualização: | X155: 2026-03-02T11:22:43
O156: =Energia!B13 -> Perda Rede Básica sobre mercado Cat. | P156: 42012.83806 | Q156: 35590.27621
O157: Energia Requerida | P157: =P149+P152 -> 4001256.822 | Q157: =Q149+Q152 -> 3853114.266
O159: Energia - Custo médio futuro
O160: =Energia!B14 -> Custo Médio | P160: =Energia!D14 -> 282.3285133 | Q160: =P160*(1+D5) -> 293.7305971
O162: Energia - Cálculo da CVA M2 de energia conforme desconcatenação de contratos | R162: Energia - Custo médio futuro
O163: Energia | P163: DRP | Q163: DRP +1 | R163: Descasamento CVA (meses) | S163: Deslta total para estimativa de CVA M2 | T163: Fator de cálculo da CVA M2
O164: =Energia!B21 -> Geração Própria | P164: =Energia!E21 -> 0 | Q164: =Energia!F21 -> 0 | R164: 0 | S164: =Q164-P164 -> 0 | T164: =IFERROR(VLOOKUP(R164,$AF$103:$AJ$114,5),0) -> 0
O165: =Energia!B22 -> Cota Angra I/Angra II | P165: =Energia!E22 -> 28924503.49 | Q165: =P165*(1+D5) -> 30092644.85 | R165: =MONTH(LnkTxtDRPData)-1 -> 3 | S165: =Q165-P165 -> 1168141.353 | T165: 0.2754535497
O166: =Energia!B23 -> Cotas Lei n º 12783/2013 | P166: =Energia!E23 -> 103580672.6 | Q166: =P166*(1+D5) -> 107763868.6 | R166: =MONTH(LnkTxtDRPData)-1+12-7 -> 8 | S166: 4183195.993 | T166: 0.7561854391
O167: =Energia!B24 -> Itaipu (tirando as perdas) | P167: =Energia!E24 -> 153019901.6 | Q167: =P167*(1+D5) -> 159199744.1 | R167: =MONTH(LnkTxtDRPData)-1+12-7 -> 8 | S167: 6179842.464 | T167: 0.7561854391
O168: =Energia!B25 -> PROINFA | P168: =Energia!E25 -> 0 | Q168: =Energia!F25 -> 0 | S168: 0 | T168: 0
O169: =Energia!B26 -> Bilateral | P169: =Energia!E26 -> 57410912.39 | Q169: =P169*(1+D4) -> 68893094.86 | S169: 11482182.48 | T169: 0
O170: CCEAR | P170: =Energia!E28 -> 786732899.9 | Q170: =P170*(1+D5) -> 818505795.6 | R170: 6 | S170: 31772895.76 | T170: 0.5605711599
O171: Total | P171: =SUM(P164:P170) -> 1129668890 | Q171: =SUM(Q164:Q170) -> 1184455148
U173: PARCELA B - Usado apenas de o próximo processo for uma revisão
U175: Ciclo tarifário (anos) | V175: =VLOOKUP(CAPA!$N$2,V197:X249,3) -> 5 | X175: IPCA ciclo | Y175: =VLOOKUP(EDATE(CAPA!C15,12),Índices!$B$8:$F$500,3)/VLOOKUP(EDATE(CAPA!C15,-12*(V175-1)),Índices!$B$8:$F$500,3)-1 -> 0.2383101143
U177: Dados da última revisão tarifária | V177: Valores homologados na última RTP | W177: Última RTP com crescimento de BRR projetado | Z177: Crescimento de PB projetado | AB177: Estimativa de limites inferiores e superiores (CP 62)
U178: Custos Operacionais | V178: 1072420582 | W178: =IFERROR(V178*(1-AD184),0) -> 872671066.1 | AC178: Valor CP 62 (12/2020) | AD178: Valor na data da última RTP
U179: Anuidades | V179: 121992637.4 | W179: =IFERROR(V179*(1+AC188),0) -> 136813889.7 | Z179: =W185/V185-1 -> 0.01669307476 | AC179: 44166 | AD179: =DATE(LOOKUP(CAPA!N2,'Previsão N+1'!V197:V249,'Previsão N+1'!W197:W249),MONTH(LnkTxtDRPData),1) -> 45017
U180: Remuneração | V180: 551405936.6 | W180: =IFERROR(V180*(1+AC189),0) -> 700455465.8 | AB180: Limite inferior de CO | AC180: =LOOKUP(CAPA!C8,'Previsão N+1'!$U$312:$U$363,'Previsão N+1'!BE312:BE363)*1000 -> 290140553.5 | AD180: =AC180*VLOOKUP(EDATE($AD$179,-1),Índices!$B$7:$F$500,3)/VLOOKUP($AC$179,Índices!$B$7:$F$500,3) -> 344879466.4
U181: Depreciação | V181: 317982503.6 | W181: =IFERROR(V181*(1+AC190),0)*Z181 -> 385176072.7 | Y181: Aumento tx. depreciação | Z181: =4.1%/3.82% -> 1.073298429 | AB181: Limite superior de CO | AC181: =LOOKUP(CAPA!C8,'Previsão N+1'!$U$315:$U$366,'Previsão N+1'!BF315:BF366)*1000 -> 321909223.8 | AD181: =AC181*VLOOKUP(EDATE($AD$179,-1),Índices!$B$7:$F$500,3)/VLOOKUP($AC$179,Índices!$B$7:$F$500,3) -> 382641723.1
U182: Outras Receitas | V182: -141784206.9 | W182: =V182 -> -141784206.9 | X182: <- supondo manutenção da participação
U183: UDEROR | V183: -46099715.48 | W183: =V183 -> -46099715.48 | X183: <- supondo manutenção da participação | AC183: Atual | AD183: Próxima Revisão
U184: Ajuste Investimentos 2CRTP | AB184: Fator T | AC184: =LnkTxtFatorT -> 0.01389 | AD184: =-((AD181/V178)^(1/5)-1) -> 0.1862604271
U185: PARCELA B | V185: =SUM(V178:V184) -> 1875917737 | W185: =SUM(W178:W184) -> 1907232572
W187: variação anual média Brasil | X187: =LnkTxtNomeResumido -> EMS | Y187: Média região | Z187: Peso Brasil | AA187: Peso região | AB187: Expectativa de crescimento anual usada na projeção | AC187: crescimento real no ciclo, descontada a inflação e variação de mercado
U188: Estimativa de crescimento real de de AIS projetado para o ciclo | W188: =Y308 -> 0.02088112685 | X188: =Y309 -> 0.02237585865 | Y188: =Y310 -> 0.02633441146 | Z188: 0.333333 | AA188: 0.333333 | AB188: =W188*(Z188)+Y188*AA188+X188*(1-Z188-AA188) -> 0.0231971315 | AC188: =((1+AB188)^$V$175)-1 -> 0.1214930065
U189: Estimativa de crescimento real de de BRL projetada para o ciclo | W189: =AA308 -> 0.04087612112 | X189: =AA309 -> 0.04362317332 | Y189: =AA310 -> 0.06254659076 | Z189: 0.333333 | AA189: 0.333333 | AB189: =W189*(Z189)+Y189*AA189+X189*(1-Z189-AA189) -> 0.04901528968 | AC189: =((1+AB189)^$V$175)-1 -> 0.2703081692
U190: Estimativa de crescimento real de de BRB projetada para o ciclo | W190: =Z308 -> 0.02102286384 | X190: =Z309 -> 0.02001796464 | Y190: =Z310 -> 0.03242488834 | Z190: 0.333333 | AA190: 0.333333 | AB190: 0.02448856781 | AC190: =((1+AB190)^$V$175)-1 -> 0.128588401
U193: Dados de crescimento de Base de Remuneração das concessionárias observado nas última revisões tarifárias
Y194: Input da última RTP | AC194: Inputs da penúltima RTP (Atualizado para data da última RTP) | AG194: Output (última RTP) | AH194: Output (penúltima RTP)
V195: ID Agente | W195: Última RTP | X195: Ciclo | Y195: AIS | Z195: BRB | AA195: BRL | AB195: Número IPCA | AC195: AIS | AD195: BRB | AE195: BRL | AF195: Número IPCA | AG195: MWh | AH195: MWh
Y196: 413 | Z196: 417 | AA196: 426 | AC196: 413 | AD196: 417 | AE196: 426 | AG196: Energia TUSD (Energia Injetada) | AH196: Energia TUSD (Energia Injetada)
U197: Energisa AC | V197: 26 | W197: 2023 | X197: 5 | Y197: 2594685496 | Z197: 1426712835 | AA197: 1043042084 | AB197: 6735.67449 | AC197: 1503406817 | AD197: 916245625.7 | AE197: 596000790.6 | AF197: 5468.573472 | AG197: 1232551.137 | AH197: 1097923.064
U198: CEA | V198: 31 | W198: 2023 | X198: 5 | Y198: 2000430775 | Z198: 1505040169 | AA198: 940690254.7 | AB198: 6735.67449 | AC198: 0 | AD198: 0 | AE198: 0 | AF198: 5103.69 | AG198: 1130651.722 | AH198: 1056635.607
U199: Energisa TO | V199: 32 | W199: 2020 | X199: 4 | Y199: 4304184896 | Z199: 2004739384 | AA199: 1370455804 | AB199: 5321.21097 | AC199: 2893348044 | AD199: 1144224633 | AE199: 577082363.8 | AF199: 4690.658259 | AG199: 2411250.662 | AH199: 2173682.333
U200: Equatorial MA | V200: 37 | W200: 2021 | X200: 4 | Y200: 1.027670243e+10 | Z200: 6421994461 | AA200: 4365600367 | AB200: 5825.37 | AC200: 7807568634 | AD200: 4921565389 | AE200: 3309956657 | AF200: 4843.87 | AG200: 6747227.429 | AH200: 6065935.195
U201: Equatorial PI | V201: 38 | W201: 2023 | X201: 5 | Y201: 8472870626 | Z201: 4253089915 | AA201: 3102549073 | AB201: 6737.279791 | AC201: 5971799056 | AD201: 2701776382 | AE201: 1671301647 | AF201: 5458.241044 | AG201: 4076370.609 | AH201: 3759074.012
U202: Enel CE | V202: 39 | W202: 2023 | X202: 4 | Y202: 1.528626106e+10 | Z202: 1.119043108e+10 | AA202: 7196269954 | AB202: 6609.67 | AC202: 9483557461 | AD202: 7023006640 | AE202: 4241297386 | AF202: 5177.47 | AG202: 12650692.66 | AH202: 12009534.27
U203: Neoenergia RN | V203: 40 | W203: 2023 | X203: 5 | Y203: 5878331727 | Z203: 4595044647 | AA203: 3448020099 | AB203: 6609.67 | AC203: 3685461469 | AD203: 2553480179 | AE203: 1652645302 | AF203: 4950.95 | AG203: 5795898.503 | AH203: 5614984.767
U204: Neoenergia PE | V204: 43 | W204: 2021 | X204: 4 | Y204: 1.115947486e+10 | Z204: 9229257396 | AA204: 5648102700 | AB204: 5674.72 | AC204: 7812490850 | AD204: 6246987221 | AE204: 3514868913 | AF204: 4821.69 | AG204: 13900820.45 | AH204: 13595445.26
U205: Equatorial AL | V205: 44 | W205: 2024 | X205: 4 | Y205: 5576686378 | Z205: 3945212206 | AA205: 2567519828 | AB205: 6890.262606 | AC205: 3521605270 | AD205: 2436881793 | AE205: 1354070251 | AF205: 5354.908188 | AG205: 4359230.405 | AH205: 3868836.446
U206: SULGIPE | V206: 46 | W206: 2022 | X206: 5 | Y206: 507694939.5 | Z206: 203597674.9 | AA206: 119358174.4 | AB206: 6382.88 | AC206: 350547134.4 | AD206: 130059967.9 | AE206: 65142615.76 | AF206: 4828.44 | AG206: 491118.552 | AH206: 378578.001
U207: Neoenergia BA | V207: 47 | W207: 2023 | X207: 5 | Y207: 3.717913712e+10 | Z207: 2.341301925e+10 | AA207: 1.527856881e+10 | AB207: 6609.67 | AC207: 2.14498354e+10 | AD207: 1.289865022e+10 | AE207: 7380489706 | AF207: 4950.95 | AG207: 21402755.21 | AH207: 19669734.6
U208: DMED | V208: 51 | W208: 2020 | X208: 5 | Y208: 348153464.5 | Z208: 281519479.2 | AA208: 164414371.2 | AB208: 5438.12 | AC208: 230544499.4 | AD208: 193772671.4 | AE208: 116132551.1 | AF208: 4370.12 | AG208: 518765.816 | AH208: 458821.905
... 155 more rows

Sheet CAPA
B1: SPARTA | C1: ajuste botões | R1: DF | S1: Sudeste/Centro Oeste
B2: Helenístico LX | C2: 0.95 | M2: =C23 -> 151 | N2: =C22 -> 404
C3: Macro Ver.
C4: 81.06
B6: EMS | C6: =VLOOKUP(B6,TabEmpresas[#Data],5,FALSE) -> NÃO SUPRIDA | L6: CodigoSamp | M6: Empresa | N6: Nome Completo | O6: IdSgtAg | P6: CodigoSamp | Q6: Supridora/suprida | R6: Financeiro 243 (TUSD) | S6: Databse Fin. 243 | T6: Contrato de Concessão | U6: Data Aditivo (Cont Novo) | V6: Cidade Sede | W6: CNPJ | X6: Novo/Antigo | Y6: DtRevisao-2023:2027 | Z6: idCiclo | AA6: Considerar passante | AB6: AnoRevisao | AC6: Obs
B7: =VLOOKUP(B6,TabEmpresas[#Data],2,FALSE) -> Energisa Mato Grosso do Sul - Distribuidora de Energia S.A. | C7: Reajuste | G7: Últ. Atualização | L7: 7019 | M7: Amazonas Energia | N7: Amazonas Energia S.A. | O7: 102 | P7: 7019 | Q7: NÃO SUPRIDA | T7: 1/2019 | U7: 42579 | V7: Manaus - AM | W7: 02.341.467/0001-20 | X7: N | Y7: 45438 | Z7: 5 | AA7: N
B8: CÓDIGO DA EMPRESA | C8: ="D" & TEXT(C23-100,"00") -> D51 | F8: Info iniciais | G8: 2026-02-20T10:25:07 | L8: 31 | M8: CEA | N8: Companhia de Eletricidade do Amapá | O8: 107 | P8: 31 | Q8: NÃO SUPRIDA | T8: 01/2021 | U8: 42606 | V8: Macapá - AP | W8: 05.965.546/0001-09 | X8: N | Y8: 46369 | Z8: 5 | AA8: S | AB8: RTP-2026
B9: Data do Reajuste/Revisão Anterior | C9: 45755 | F9: Energia do ano anterior (CM compra, MWh Mercado, R$ Mercado) | G9: 2026-02-20T10:24:23 | L9: 5707 | M9: CEEE-D | N9: Companhia Estadual de Distribuição de Energia Elétrica | O9: 110 | P9: 5707 | Q9: NÃO SUPRIDA | T9: 81/1999 | U9: 42347 | V9: Porto Alegre - RS | W9: 08.467.115/0001-00 | X9: N | Y9: 46348 | Z9: 5 | AA9: S | AB9: RTP-2026
B10: Data de Reajuste/Revisão em Processamento | C10: 46120 | F10: Perdas Regulatórias | G10: 2026-02-20T10:24:23 | L10: 5697 | M10: Celesc-Dis | N10: Celesc Distribuição S.A. | O10: 111 | P10: 5697 | Q10: NÃO SUPRIDA | T10: 56/1999 | U10: 42347 | V10: Florianópolis - SC | W10: 08.336.783/0001-90 | X10: N | Y10: 46256 | Z10: 5 | AA10: S | AB10: RTP-2026
F11: TUSDg ONS-RB | G11: 2026-02-20T10:24:23 | L11: 4950 | M11: Cemig-D | N11: Cemig Distribuição S.A. | O11: 118 | P11: 4950 | Q11: NÃO SUPRIDA | T11: 3/1997 | U11: 42359 | V11: Belo Horizonte - MG | W11: 06.981.180/0001-16 | X11: N | Y11: 45074 | Z11: 5 | AA11: N
F12: Perda de RB | G12: 2026-02-20T10:24:23 | L12: 103 | M12: CHESP | N12: Companhia Hidroelétrica São Patrício | O12: 123 | P12: 103 | Q12: SUPRIDA | T12: 44/1999 | U12: 42347 | V12: Ceres - GO | W12: 01.377.555/0001-10 | X12: N | Y12: 46348 | Z12: 5 | AA12: S | AB12: RTP-2026
F13: Perda DIT | G13: 2026-02-20T10:24:24 | L13: 82 | M13: Cocel | N13: Companhia Campolarguense de Energia | O13: 128 | P13: 82 | Q13: SUPRIDA | T13: 27/1998 | U13: 42347 | V13: Campo Largo - PR | W13: 75.805.895/0001-30 | X13: N | Y13: 46202 | Z13: 5 | AA13: S | AB13: RTP-2026
F14: Encargos ano anterior (não RTE) | G14: 2026-02-20T10:24:24 | L14: 2904 | M14: Cooperaliança | N14: Cooperativa Aliança | O14: 131 | P14: 2904 | Q14: SUPRIDA | T14: 145/2002 | U14: 42347 | V14: Iraça - SC | W14: 83.647.990/0001-81 | X14: N | Y14: 46628 | Z14: 5 | AA14: N
B15: Período de Referencia final | C15: =DATE(YEAR($C$10),MONTH($C$10)-1,1) -> 46082 | F15: Dados da Revisão, Fator X e DecFec | G15: 2026-02-20T10:24:55 | L15: 2866 | M15: Copel-Dis | N15: Copel Distribuição S.A. | O15: 132 | P15: 2866 | Q15: NÃO SUPRIDA | T15: 46/1999 | U15: 42347 | V15: Curitiba - PR | W15: 04.368.898/0001-06 | X15: N | Y15: 46197 | Z15: 5 | AA15: S | AB15: RTP-2026
B16: Período de Referencia inicial | C16: =DATE(YEAR($C$10)-1,MONTH($C$10),1) -> 45748 | F16: Custos Operacionais/Beta | G16: 2026-02-20T10:25:07 | L16: 63 | M16: CPFL Paulista | N16: Companhia Paulista de Força e Luz | O16: 136 | P16: 63 | Q16: NÃO SUPRIDA | T16: 14/1997 | V16: Campinas - SP | W16: 33.050.196/0001-88 | X16: A | Y16: 45024 | Z16: 5 | AA16: N
B17: Índice IGPM na data Revisão/Reajuste | C17: =VLOOKUP(C15,Índices!$B$7:$F$500,2,FALSE) -> 1185.499 | F17: Previsão de Subsidios dos Processos Anteriores | G17: 2026-02-20T10:25:00 | L17: 2937 | M17: CPFL Piratininga | N17: Companhia Piratininga de Força e Luz | O17: 135 | P17: 2937 | Q17: NÃO SUPRIDA | T17: 9/2002 | V17: Sorocaba - SP | W17: 04.172.213/0001-51 | X17: A | Y17: 45222 | Z17: 4 | AA17: N
B18: Índice IPCA na data Revisão/Reajuste | C18: =VLOOKUP(C15,Índices!$B$7:$F$500,3,FALSE) -> 7517.48 | F18: Conexão ano anterior | G18: 2026-02-20T10:25:00 | L18: 1000041 | M18: CPFL Santa Cruz | N18: Companhia Jaguari de Energia | O18: 166 | P18: 1000041 | Q18: NÃO SUPRIDA | T18: 15/1999 | U18: 42347 | V18: Jaguariúna - SP | W18: 53.859.112/0001-69 | X18: N | Y18: 46103 | Z18: 5 | AA18: S | AB18: RTP-2026
B19: IGPM para o período de Referência | C19: =VLOOKUP(DATE(YEAR($C$10),MONTH($C$10)-1,1),Índices!$B$7:$F$500,2,FALSE)/VLOOKUP(DATE(YEAR($C$9),MONTH($C$9)-1,1),Índices!$B$7:$F$500,2,FALSE)-1 -> -0.01978862805 | F19: Receita de Bandeira | G19: 2026-02-20T10:25:03 | L19: 87 | M19: DCELT | N19: Distribuidora Catarinense de Energia Elétrica Ltda | O19: 158 | P19: 87 | Q19: NÃO SUPRIDA | T19: 50/1999 | U19: 42353 | V19: Xanxerê - SC | W19: 83.855.973/0001-30 | X19: N | Y19: 46263 | Z19: 5 | AA19: S | AB19: RTP-2026
B20: IPCA para o período de Referência | C20: =VLOOKUP(DATE(YEAR(C10),MONTH(C10)-1,1),Índices!$B$7:$F$500,3,FALSE)/VLOOKUP(DATE(YEAR($C$9),MONTH($C$9)-1,1),Índices!$B$7:$F$500,3,FALSE)-1 -> 0.03755496606 | F20: Financeiros | G20: 2026-03-24T09:06:26 | L20: 95 | M20: Demei | N20: Departamento Municipal de Energia de Ijuí | O20: 138 | P20: 95 | Q20: SUPRIDA | T20: 85/2000 | U20: 42347 | V20: Ijuí - RS | W20: 95.289.500/0001-00 | X20: N | Y20: 46590 | Z20: 5 | AA20: N
B21: Dados Gerenciais | F21: Financeiros ano anterior (CVA 5º dia útil, RTE restante) | G21: 2026-03-24T09:06:00 | L21: 51 | M21: DME-D | N21: DME Distribuição S.A. | O21: 139 | P21: 51 | Q21: NÃO SUPRIDA | T21: 49/1999 | U21: 42347 | V21: Poços de Caldas - MG | W21: 23.664.303/0001-04 | X21: N | Y21: 45983 | Z21: 5 | AA21: S | AB21: RTP-2025
B22: IdAgente | C22: =VLOOKUP(B6,TabEmpresas[#Data],4,FALSE) -> 404 | F22: Financeiro Desconcatenação Permissionárias | G22: 2026-03-24T09:06:05 | L22: 26 | M22: EAC | N22: Energisa Acre - Distribuidora de Energia S.A | O22: 146 | P22: 26 | Q22: NÃO SUPRIDA | T22: 3/2018 | U22: 42579 | V22: Rio Branco - AC | W22: 04.065.033/0001-70 | X22: N | Y22: 45273 | Z22: 5 | AA22: N
B23: ID Concessão | C23: =VLOOKUP(B6,TabEmpresas[#Data],3,FALSE) -> 151 | F23: Garantias Financeiras | G23: 2026-03-24T09:06:12 | L23: 6611 | M23: EBO | N23: Energisa Borborema - Distribuidora de Energia S.A | O23: 140 | P23: 6611 | Q23: NÃO SUPRIDA | T23: 8/2000 | V23: Campina Grande - PB | W23: 08.826.596/0001-95 | X23: A | Y23: 45897 | Z23: 4 | AA23: N
F24: Itens extraordinários REN1000/covid/escassez | G24: 2026-03-24T09:06:26 | L24: 380 | M24: EDP ES | N24: EDP Espírito Santo Distribuição de Energia S.A. | O24: 154 | P24: 380 | Q24: NÃO SUPRIDA | T24: 1/1995 | V24: Vitória - ES | W24: 28.152.650/0001-71 | X24: A | Y24: 45876 | Z24: 3 | AA24: S | AB24: RTP-2025
B25: Quadro para vínculos | F25: Energia (CCEAR, Bil., Itaipu) | G25: 2026-03-20T14:16:31 | L25: 391 | M25: EDP SP | N25: EDP São Paulo Distribuição de Energia S.A. | O25: 104 | P25: 391 | Q25: NÃO SUPRIDA | T25: 202/1998 | V25: São Paulo - SP | W25: 02.302.100/0001-06 | X25: A | Y25: 45222 | Z25: 4 | AA25: N
B26: Descrição | C26: valor | F26: CCEAR | G26: 2026-03-20T14:16:31 | L26: 86 | M26: EFLUL | N26: Empresa Força e Luz de Urussanga Ltda | O26: 144 | P26: 86 | Q26: SUPRIDA | T26: 25/1999 | U26: 42347 | V26: Urussanga - SC | W26: 86.531.175/0001-40 | X26: N | Y26: 46263 | Z26: 5 | AA26: S | AB26: RTP-2026
B27: Tipo de contrato | C27: =IF(VLOOKUP(B6,TabEmpresas[],12,FALSE)="A", "Antigo","Novo") -> Antigo | F27: GSF, PLD, Fator de Rateio de RH e MWm Repactuado | G27: 2026-03-20T14:16:31 | L27: 398 | M27: Eletrocar | N27: Centrais Elétricas de Carazinho S.A. | O27: 147 | P27: 398 | Q27: SUPRIDA | T27: 84/2000 | U27: 42347 | V27: Carazinho - RS | W27: 88.446.034/0001-55 | X27: N | Y27: 46590 | Z27: 5 | AA27: N
B28: Contrato de concessão | C28: =VLOOKUP(B6,TabEmpresas[],8,FALSE) -> 1/1997 | F28: Itaipu (Energia, Transporte, MUST) | G28: 2026-03-20T14:16:31 | L28: 6585 | M28: EMG | N28: Energisa Minas Gerais - Distribuidora de Energia S.A. | O28: 150 | P28: 6585 | Q28: NÃO SUPRIDA | T28: 40/1999 | U28: 42347 | V28: Cataguases - MG | W28: 19.527.639/0001-58 | X28: N | Y28: 46195 | Z28: 5 | AA28: S | AB28: RTP-2026 | AC28: Agrupada
B29: Número do Processo | C29: 48500.030641/2025-41 | F29: Cotas Lei/Angra | G29: 2026-03-20T14:16:31 | L29: 404 | M29: EMS | N29: Energisa Mato Grosso do Sul - Distribuidora de Energia S.A. | O29: 151 | P29: 404 | Q29: NÃO SUPRIDA | T29: 1/1997 | V29: Campo Grande - MS | W29: 15.413.826/0001-50 | X29: A | Y29: 45024 | Z29: 5 | AA29: N
B30: Período de Referencia | C30: =TEXT(C16,"mmmm/aaaa")& " a "&TEXT(C15,"mmmm/aaaa") -> abril/2025 a março/2026 | F30: Encargos DRP | G30: 2026-03-02T11:01:17 | L30: 405 | M30: EMT | N30: Energisa Mato Grosso - Distribuidora de Energia S.A. | O30: 117 | P30: 405 | Q30: NÃO SUPRIDA | T30: 3/1997 | V30: Cuibá - MT | W30: 03.467.321/0001-99 | X30: A | Y30: 45024 | Z30: 5 | AA30: N
B31: Início da vigênica por extenso | C31: =DAY(LnkTxtDRPData)&" de "&TEXT(LnkTxtDRPData,"mmmmmm")&" de "&YEAR(LnkTxtDRPData) -> 8 de abril de 2026 | F31: Indicadores Econômicos / Dólar | G31: 2026-03-30T15:23:49 | L31: 39 | M31: ENEL CE | N31: Companhia Energética do Ceará | O31: 130 | P31: 39 | Q31: NÃO SUPRIDA | T31: 1/1998 | V31: Fortaleza - CE | W31: 07.047.251/0001-70 | X31: A | Y31: 45038 | Z31: 4 | AA31: N
B32: CNPJ | C32: =VLOOKUP(B6,TabEmpresas[],11,FALSE) -> 15.413.826/0001-50 | F32: Tudo Mercado | G32: 2026-03-30T15:34:21 | L32: 6072 | M32: ENEL GO | N32: Enel Distribuição Goiás | O32: 112 | P32: 6072 | Q32: NÃO SUPRIDA | T32: 63/2000 | U32: 42367 | V32: Goiânia - GO | W32: 01.543.032/0001-04 | X32: N | Y32: 45221 | Z32: 5 | AA32: N
B33: Período de competência de previsão de subsídios | C33: =TEXT(EDATE(Aj.Subsidio!G19,12),"mmmmmm")&"/"&TEXT(EDATE(Aj.Subsidio!G19,12),"aaaa")&" a "&TEXT(EDATE(Aj.Subsidio!R19,12),"mmmmmm")&"/"&TEXT(EDATE(Aj.Subsidio!R19,12),"aaaa") -> abril/2026 a março/2027 | F33: SAMP_Fornecimento/Receita_Uso e Tab_EnergiaConsumidaMWh | G33: 2026-03-30T15:33:18 | L33: 383 | M33: ENEL RJ | N33: Ampla Energia e Serviços S.A. | O33: 103 | P33: 383 | Q33: NÃO SUPRIDA | T33: 5/1996 | U33: 42808 | V33: Rio de Janeiro - RJ | W33: 33.050.071/0001-58 | X33: N | Y33: 45000 | Z33: 5 | AA33: N
B34: Período de competência de ajuste de subsídios | C34: =TEXT(Aj.Subsidio!G19,"mmmmmm")&"/"&TEXT(Aj.Subsidio!G19,"aaaa")&" a "&TEXT(Aj.Subsidio!R19,"mmmmmm")&"/"&TEXT(Aj.Subsidio!R19,"aaaa") -> abril/2025 a março/2026 | F34: SAMP_balanco | G34: 2026-03-30T15:34:17 | L34: 390 | M34: ENEL SP | N34: Eletropaulo Metropolitana Eletricidade de São Paulo S.A. | O34: 148 | P34: 390 | Q34: NÃO SUPRIDA | T34: 162/1998 | V34: São Paulo - SP | W34: 61.695.227/0001-93 | X34: A | Y34: 45111 | Z34: 4 | AA34: N
B35: Cidade Sede | C35: =VLOOKUP(B6,TabEmpresas[],10,FALSE) -> Campo Grande - MS | F35: Subsídio concomitante Irrigante - Fonte incentivada | G35: 2026-03-30T15:34:21 | L35: 6612 | M35: ENF | N35: Energisa Nova Friburgo - Distribuidora de Energia S.A. | O35: 152 | P35: 6612 | Q35: SUPRIDA | T35: 42/1999 | U35: 42347 | V35: Nova Friburgo - RJ | W35: 33.249.046/0001-06 | X35: N | Y35: 46195 | Z35: 5 | AA35: S | AB35: RTP-2026 | AC35: Agrupada
B36: Receita | C36: =IF(Mercado!D24>2000000000,ROUND(Mercado!D24/1000000000,2)&" bilhões",IF(Mercado!D24>1000000000,ROUND(Mercado!D24/1000000000,2)&" bilhão",IF(Mercado!D24>100000000,ROUND(Mercado!D24/1000000,0)&" milhões",IF(Mercado!D24>10000000,ROUND(Mercado!D24/1000000,1)&" milhões",IF(Mercado!D24>2000000,ROUND(Mercado!D24/1000000,2)&" milhões",IF(Mercado!D24>1000000,ROUND(Mercado!D24/1000000,2)&" milhão",ROUND(Mercado!D24/1000,0)&" mil")))))) -> 4,33 bilhões | F36: Rede Básica e Conexão | G36: 2026-03-11T10:53:06 | L36: 6600 | M36: EPB | N36: Energisa Paraíba - Distribuidora de Energia S.A. | O36: 153 | P36: 6600 | Q36: NÃO SUPRIDA | T36: 19/2001 | V36: João Pessoa - PB | W36: 09.095.183/0001-40 | X36: A | Y36: 45897 | Z36: 4 | AA36: S | AB36: RTP-2025
B37: Unidades Consumidoras | C37: =IF(Mercado!E38>2000000,ROUND(Mercado!E38/1000000,2)&" milhões de",IF(Mercado!E38>1000000,ROUND(Mercado!E38/1000000,2)&" milhão de",IF(Mercado!E38>100000,ROUND(Mercado!E38/1000,0)&" mil",IF(Mercado!E38>10000,ROUND(Mercado!E38/1000,1)&" mil",IF(Mercado!E38>1000,ROUND(Mercado!E38/1000,2)&" mil",Mercado!E38))))) -> 1,17 milhão de | F37: Histórico de Tarifas B1 Residencial | L37: 44 | M37: Equatorial AL | N37: Equatorial Alagoas Distribuidora de Energia S.A. | O37: 108 | P37: 44 | Q37: NÃO SUPRIDA | T37: 2/2019 | U37: 42579 | V37: Maceió - AL | W37: 12.272.084/0001-00 | X37: N | Y37: 45415 | Z37: 5 | AA37: N
B38: Data SAMP | C38: =TEXT(_xlfn.MAXIFS(Mercado_Receita!K:K,Mercado_Receita!B:B,"regular"),"mmmmmm")&"/"&YEAR(_xlfn.MAXIFS(Mercado_Receita!K:K,Mercado_Receita!B:B,"regular")) -> fevereiro/2026 | F38: CVA | G38: 2026-03-20T14:24:22 | L38: 37 | M38: Equatorial MA | N38: Equatorial Maranhão Distribuidora de Energia S.A. | O38: 116 | P38: 37 | Q38: NÃO SUPRIDA | T38: 60/2000 | V38: São Luís - MA | W38: 06.272.793/0001-84 | X38: A | Y38: 45897 | Z38: 4 | AA38: S | AB38: RTP-2025
B39: Classificação mercado próprio | C39: >700 | F39: CUSD | G39: 2026-02-20T15:40:34 | L39: 371 | M39: Equatorial PA | N39: Equatorial Pará Distribuidora de Energia S.A. | O39: 113 | P39: 371 | Q39: NÃO SUPRIDA | T39: 182/1998 | V39: Belém - PA | W39: 04.895.728/0001-80 | X39: A | Y39: 45145 | Z39: 4 | AA39: N
B40: Data Reunião Pública - RPO | C40: =IF(MOD(LnkTxtDRPData,7)>0,ROUNDDOWN(LnkTxtDRPData/7,0)*7+3,ROUNDDOWN(LnkTxtDRPData/7,0)*7-4)-7 -> 46112 | F40: Suprimento: Financeiro de Ultrapassagem e Sobrecontratação | L40: 38 | M40: Equatorial PI | N40: Equatorial Piauí Distribuidora de Energia S.A. | O40: 119 | P40: 38 | Q40: NÃO SUPRIDA | T40: 1/2018 | U40: 42579 | V40: Teresina - PI | W40: 06.840.748/0001-89 | X40: N | Y40: 45262 | Z40: 5 | AA40: N
B41: Data limite Atualização Indicadores Econômicos (RPO-8) | C41: =C40-8 -> 46104 | F41: Uderor | G41: 2026-03-02T11:20:11 | L41: 369 | M41: ERO | N41: Energisa Rondônia - Distribuidora de Energia S.A. | O41: 120 | P41: 369 | Q41: NÃO SUPRIDA | T41: 2/2018 | U41: 42579 | V41: Porto Velho - RO | W41: 05.914.650/0001-66 | X41: N | Y41: 45273 | Z41: 5 | AA41: N
B42: Resolução Homologatória (processo anterior) | C42: REH nº 3.441, de 08 de abril de 2025 | F42: BMP/RIT | G42: 2026-03-02T11:22:11 | L42: 6587 | M42: ESE | N42: Energisa Sergipe - Distribuidora de Energia S.A. | O42: 155 | P42: 6587 | Q42: NÃO SUPRIDA | T42: 7/1997 | V42: Aracajú - SE | W42: 13.017.462/0001-63 | X42: A | Y42: 45038 | Z42: 5 | AA42: N
B43: Efeito médio do último processo tarifário | C43: 0.0133 | F43: Componente Q do Fator X | G43: 2026-03-27T14:22:12 | L43: 1000040 | M43: ESS | N43: Energisa Sul-Sudeste - Distribuidora de Energia S.A. | O43: 165 | P43: 1000040 | Q43: NÃO SUPRIDA | T43: 13/1999 | U43: 42347 | V43: Presidente Prudente - SP | W43: 07.282.377/0001-20 | X43: N | Y43: 46215 | Z43: 5 | AA43: S | AB43: RTP-2026
B44: Índice Inflacionário do contrato | C44: =IF(VLOOKUP(B6,TabEmpresas[#Data],12,FALSE)="N","IPCA","IGP-M") -> IGP-M | F44: GSF e PLD futuros (para previsão de efeito futuro) | G44: 2026-03-02T11:22:43 | L44: 32 | M44: ETO | N44: Energisa Tocantins Distribuidora de Energia S.A. | O44: 115 | P44: 32 | Q44: NÃO SUPRIDA | T44: 52/1999 | U44: 43805 | V44: Palmas - TO | W44: 25.086.034/0001-71 | X44: N | Y44: 45842 | Z44: 5 | AA44: S | AB44: RTP-2025
B45: Variação do Índice Inflacionário (12 meses) | C45: =IF(VLOOKUP(B6,TabEmpresas[#Data],12,FALSE)="N",LnkTxtIPCA,LnkTxtIGPM) -> -0.01978862805 | F45: DIC FIC | G45: 2026-03-02T11:23:01 | L45: 83 | M45: Forcel | N45: Força e Luz Coronel Vivida Ltda. | O45: 156 | P45: 83 | Q45: SUPRIDA | T45: 69/1999 | U45: 42347 | V45: Coronel Vivida - PR | W45: 79.850.574/0001-09 | X45: N | Y45: 46260 | Z45: 5 | AA45: S | AB45: RTP-2026
B46: Resoluções Homologatórias da RAP e TUST | C46: REH nº 3.481 e 3.482, ambas de 15 de julho de 2025 | L46: 399 | M46: Hidropan | N46: Hidropan Distribuição de Energia S.A. | O46: 157 | P46: 399 | Q46: SUPRIDA | T46: 86/2000 | U46: 42347 | V46: Panambi - RS | W46: 91.982.348/0001-87 | X46: N | Y46: 46590 | Z46: 5 | AA46: N
B47: Deslocar mercado | C47: Não | L47: 88 | M47: João Cesa | N47: Empresa Força e Luz João Cesa Ltda. | O47: 143 | P47: 88 | Q47: SUPRIDA | T47: 26/1999 | U47: 42347 | V47: Siderópolis - SC | W47: 86.301.124/0001-22 | X47: N | Y47: 46263 | Z47: 5 | AA47: S | AB47: RTP-2026
B48: Data de processamento em simulação | C48: 43811 | L48: 382 | M48: Light | N48: Light Serviços de Eletricidade S.A. | O48: 160 | P48: 382 | Q48: NÃO SUPRIDA | T48: 1/1996 | U48: 42803 | V48: Rio de Janeiro - RJ | W48: 60.444.437/0001-46 | X48: N | Y48: 46461 | Z48: 5 | AA48: N
L49: 401 | M49: Mux Energia | N49: Muxfeldt Marin E Cia Ltda | O49: 161 | P49: 401 | Q49: SUPRIDA | T49: 87/2000 | U49: 42347 | V49: Tapejara - RS | W49: 97.578.090/0001-34 | X49: N | Y49: 46590 | Z49: 5 | AA49: N
B50: Ano do Reajuste/Revisão em processamento | C50: =YEAR(C10) -> 2026 | L50: 5160 | M50: Neoenergia Brasília | N50: Neoenergia Distribuição Brasília S.A. | O50: 109 | P50: 5160 | Q50: NÃO SUPRIDA | T50: 66/1999 | U50: 42347 | V50: Brasília - DF | W50: 07.522.669/0001-92 | X50: N | Y50: 46317 | Z50: 5 | AA50: S | AB50: RTP-2026
L51: 47 | M51: Neoenergia Coelba | N51: Companhia de Eletricidade do Estado da Bahia | O51: 129 | P51: 47 | Q51: NÃO SUPRIDA | T51: 10/1997 | V51: Salvador - BA | W51: 15.139.629/0001-94 | X51: A | Y51: 45038 | Z51: 5 | AA51: N
L52: 40 | M52: Neoenergia Cosern | N52: Companhia Energetica do Rio Grande do Norte | O52: 133 | P52: 40 | Q52: NÃO SUPRIDA | T52: 8/1997 | V52: Natal - RN | W52: 08.324.196/0001-81 | X52: A | Y52: 45038 | Z52: 5 | AA52: N
L53: 385 | M53: Neoenergia Elektro | N53: Elektro Redes S.A. | O53: 145 | P53: 385 | Q53: NÃO SUPRIDA | T53: 187/1998 | V53: Campinas - SP | W53: 02.328.280/0001-97 | X53: A | Y53: 45165 | Z53: 4 | AA53: N
L54: 43 | M54: Neoenergia Pernambuco | N54: Companhia Energética de Pernambuco | O54: 114 | P54: 43 | Q54: NÃO SUPRIDA | T54: 26/2000 | V54: Recife - PE | W54: 10.835.932/0001-08 | X54: A | Y54: 45776 | Z54: 4 | AA54: S | AB54: RTP-2025
L55: 400 | M55: Nova Palma | N55: Nova Palma Energia Ltda. | O55: 164 | P55: 400 | Q55: SUPRIDA | T55: 107/2001 | U55: 42347 | V55: Faxinal do Soturno - RS | W55: 89.889.604/0001-44 | X55: N | Y55: 46590 | Z55: 5 | AA55: N
L56: 1000042 | M56: RGE | N56: RGE Sul Distribuidora de Energia S.A. | O56: 167 | P56: 1000042 | Q56: NÃO SUPRIDA | T56: 12/1997 | V56: São Leopoldo - RS | W56: 02.016.440/0001-62 | X56: A | Y56: 45096 | Z56: 5 | AA56: N
L57: 370 | M57: Roraima Energia | N57: Roraima Energia S.A. | O57: 105 | P57: 370 | Q57: NÃO SUPRIDA | T57: 4/2018 | U57: 42579 | V57: Boa Vista - RR | W57: 02.341.470/0001-44 | X57: N | Y57: 45316 | Z57: 5 | AA57: N
L58: 381 | M58: Santa Maria | N58: Empresa Luz e Força Santa Maria S/A | O58: 149 | P58: 381 | Q58: SUPRIDA | T58: 20/1999 | U58: 42347 | V58: Colatina - ES | W58: 27.485.069/0001-09 | X58: N | Y58: 46287 | Z58: 5 | AA58: S | AB58: RTP-2026
L59: 46 | M59: Sulgipe | N59: Companhia Sul Sergipana de Eletricidade | O59: 163 | P59: 46 | Q59: SUPRIDA | T59: 91/1999 | U59: 42347 | V59: Estância - SE | W59: 13.255.658/0001-96 | X59: N | Y59: 46529 | Z59: 5 | AA59: N

Sheet Multas Geradores
A1: Considerar | B1: Ato Legal | D1: Produto | E1: Valor nominal das multas | F1: Valor atualizado das multas | G1: Valor atualizado já revertido à modicidade | H1: Diferença a ser revertida
A2: S | B2: Desp. nº 4.863/2023 | C2: Goiânia II | D2: 2009-T15 | E2: =SUMIFS($Q:$Q,$T:$T,CAPA!$C$22,$K:$K,$C2,$P:$P,'Multas Geradores'!$D2) -> 7504.94 | F2: =SUMIFS($S:$S,$T:$T,CAPA!$C$22,$K:$K,$C2,$P:$P,'Multas Geradores'!$D2) -> 9925.629254 | G2: =SUMIFS($X:$X,$T:$T,CAPA!$C$22,$K:$K,$C2,$P:$P,'Multas Geradores'!$D2) -> -9586.364947 | H2: =IF(A2="S",F2+G2,0) -> 339.2643077
A3: S | B3: Desp. nº 2.495/2024 | C3: Termoceará | D3: 2009-T15 | E3: =SUMIFS($Q:$Q,$T:$T,CAPA!$C$22,$K:$K,$C3,$P:$P,'Multas Geradores'!$D3) -> 37268.41 | F3: =SUMIFS($S:$S,$T:$T,CAPA!$C$22,$K:$K,$C3,$P:$P,'Multas Geradores'!$D3) -> 49740.67392 | G3: =SUMIFS($X:$X,$T:$T,CAPA!$C$22,$K:$K,$C3,$P:$P,'Multas Geradores'!$D3) -> 0 | H3: =IF(A3="S",F3+G3,0) -> 49740.67392
A4: S | B4: Desp. nº 2.495/2024 | C4: Termoceará | D4: 2010-T15 | E4: =SUMIFS($Q:$Q,$T:$T,CAPA!$C$22,$K:$K,$C4,$P:$P,'Multas Geradores'!$D4) -> 296566.55 | F4: =SUMIFS($S:$S,$T:$T,CAPA!$C$22,$K:$K,$C4,$P:$P,'Multas Geradores'!$D4) -> 395815.6535 | G4: =SUMIFS($X:$X,$T:$T,CAPA!$C$22,$K:$K,$C4,$P:$P,'Multas Geradores'!$D4) -> 0 | H4: 395815.6535
B6: =LnkTxtNomeResumido -> EMS | J6: Ato legal | K6: Usina | L6: Perfil agente VENDEDOR | M6: Perfil agente COMPRADOR | N6: Código do Contrato CliqCCEE | O6: Leilão | P6: Produto | Q6: Valor da Multa | R6: Data Base Recisão | S6: Valor atualizado da multa | T6: Código Empresa | U6: Já revertida em processo anterior (S/N) | V6: Quanto foi revertido? | W6: Data reversão | X6: Valor já revertido atualizado
J7: Desp. nº 4.863/2023 | K7: Goiânia II | L7: BRENTECH 1LN | M7: AMPLA | N7: 17327 | O7: 1º LEN | P7: 2009-T15 | Q7: 15929.44 | R7: 45280 | S7: =Q7*VLOOKUP(CAPA!$C$15,Índices!$B$8:$F$1000,5)/VLOOKUP(EDATE('Multas Geradores'!R7,-1),Índices!$B$8:$F$1000,5) -> 21067.41902 | T7: =VLOOKUP(M7,$Z$7:$AD$64,2) -> 383 | U7: N | X7: =IFERROR(V7*VLOOKUP(CAPA!$C$15,Índices!$B$8:$F$1000,5)/VLOOKUP(EDATE('Multas Geradores'!W7,-1),Índices!$B$8:$F$1000,5),0) -> 0 | Z7: AMPLA | AA7: 383 | AB7: ENEL RJ | AC7: Ampla Energia e Serviços S.A.
J8: Desp. nº 4.863/2023 | K8: Goiânia II | L8: BRENTECH 1LN | M8: BANDEIRANTE | N8: 17329 | O8: 1º LEN | P8: 2009-T15 | Q8: 18568.15 | R8: 45280 | S8: =Q8*VLOOKUP(CAPA!$C$15,Índices!$B$8:$F$1000,5)/VLOOKUP(EDATE('Multas Geradores'!R8,-1),Índices!$B$8:$F$1000,5) -> 24557.23468 | T8: 391 | U8: N | X8: =IFERROR(V8*VLOOKUP(CAPA!$C$15,Índices!$B$8:$F$1000,5)/VLOOKUP(EDATE('Multas Geradores'!W8,-1),Índices!$B$8:$F$1000,5),0) -> 0 | Z8: BANDEIRANTE | AA8: 391 | AB8: EDP SP | AC8: EDP São Paulo Distribuição de Energia S.A.
J9: Desp. nº 4.863/2023 | K9: Goiânia II | L9: BRENTECH 1LN | M9: CEAL | N9: 17324 | O9: 1º LEN | P9: 2009-T15 | Q9: 3361.81 | R9: 45280 | S9: =Q9*VLOOKUP(CAPA!$C$15,Índices!$B$8:$F$1000,5)/VLOOKUP(EDATE('Multas Geradores'!R9,-1),Índices!$B$8:$F$1000,5) -> 4446.148761 | T9: 44 | U9: N | X9: =IFERROR(V9*VLOOKUP(CAPA!$C$15,Índices!$B$8:$F$1000,5)/VLOOKUP(EDATE('Multas Geradores'!W9,-1),Índices!$B$8:$F$1000,5),0) -> 0 | Z9: CEAL | AA9: 44 | AB9: Equatorial AL | AC9: Equatorial Alagoas Distribuidora de Energia S.A.
J10: Desp. nº 4.863/2023 | K10: Goiânia II | L10: BRENTECH 1LN | M10: CEB DISTRIBUIC | N10: 17325 | O10: 1º LEN | P10: 2009-T15 | Q10: 21286.28 | R10: 45280 | S10: =Q10*VLOOKUP(CAPA!$C$15,Índices!$B$8:$F$1000,5)/VLOOKUP(EDATE('Multas Geradores'!R10,-1),Índices!$B$8:$F$1000,5) -> 28152.08696 | T10: 5160 | U10: N | X10: =IFERROR(V10*VLOOKUP(CAPA!$C$15,Índices!$B$8:$F$1000,5)/VLOOKUP(EDATE('Multas Geradores'!W10,-1),Índices!$B$8:$F$1000,5),0) -> 0 | Z10: CEB DISTRIBUIC | AA10: 5160 | AB10: Neoenergia Brasília | AC10: Neoenergia Distribuição Brasília S.A.
J11: Desp. nº 4.863/2023 | K11: Goiânia II | L11: BRENTECH 1LN | M11: CEEE DISTRIB | N11: 17333 | O11: 1º LEN | P11: 2009-T15 | Q11: 13746.78 | R11: 45280 | S11: =Q11*VLOOKUP(CAPA!$C$15,Índices!$B$8:$F$1000,5)/VLOOKUP(EDATE('Multas Geradores'!R11,-1),Índices!$B$8:$F$1000,5) -> 18180.75051 | T11: 5707 | U11: N | X11: =IFERROR(V11*VLOOKUP(CAPA!$C$15,Índices!$B$8:$F$1000,5)/VLOOKUP(EDATE('Multas Geradores'!W11,-1),Índices!$B$8:$F$1000,5),0) -> 0 | Z11: CEEE DISTRIB | AA11: 5707 | AB11: CEEE-D | AC11: Companhia Estadual de Distribuição de Energia Elétrica
J12: Desp. nº 4.863/2023 | K12: Goiânia II | L12: BRENTECH 1LN | M12: CELESC DIST | N12: 17308 | O12: 1º LEN | P12: 2009-T15 | Q12: 58245.53 | R12: 45280 | S12: =Q12*VLOOKUP(CAPA!$C$15,Índices!$B$8:$F$1000,5)/VLOOKUP(EDATE('Multas Geradores'!R12,-1),Índices!$B$8:$F$1000,5) -> 77032.39953 | T12: 5697 | U12: N | X12: =IFERROR(V12*VLOOKUP(CAPA!$C$15,Índices!$B$8:$F$1000,5)/VLOOKUP(EDATE('Multas Geradores'!W12,-1),Índices!$B$8:$F$1000,5),0) -> 0 | Z12: CELESC DIST | AA12: 5697 | AB12: Celesc-Dis | AC12: Celesc Distribuição S.A.
J13: Desp. nº 4.863/2023 | K13: Goiânia II | L13: BRENTECH 1LN | M13: CELG | N13: 17332 | O13: 1º LEN | P13: 2009-T15 | Q13: 21717.13 | R13: 45280 | S13: =Q13*VLOOKUP(CAPA!$C$15,Índices!$B$8:$F$1000,5)/VLOOKUP(EDATE('Multas Geradores'!R13,-1),Índices!$B$8:$F$1000,5) -> 28721.90595 | T13: 6072 | U13: N | X13: =IFERROR(V13*VLOOKUP(CAPA!$C$15,Índices!$B$8:$F$1000,5)/VLOOKUP(EDATE('Multas Geradores'!W13,-1),Índices!$B$8:$F$1000,5),0) -> 0 | Z13: CELG | AA13: 6072 | AB13: ENEL GO | AC13: Enel Distribuição Goiás
J14: Desp. nº 4.863/2023 | K14: Goiânia II | L14: BRENTECH 1LN | M14: CELPA | N14: 17313 | O14: 1º LEN | P14: 2009-T15 | Q14: 19498.83 | R14: 45280 | S14: =Q14*VLOOKUP(CAPA!$C$15,Índices!$B$8:$F$1000,5)/VLOOKUP(EDATE('Multas Geradores'!R14,-1),Índices!$B$8:$F$1000,5) -> 25788.1019 | T14: 371 | U14: N | X14: =IFERROR(V14*VLOOKUP(CAPA!$C$15,Índices!$B$8:$F$1000,5)/VLOOKUP(EDATE('Multas Geradores'!W14,-1),Índices!$B$8:$F$1000,5),0) -> 0 | Z14: CELPA | AA14: 371 | AB14: Equatorial PA | AC14: Equatorial Pará Distribuidora de Energia S.A.
J15: Desp. nº 4.863/2023 | K15: Goiânia II | L15: BRENTECH 1LN | M15: CELPE | N15: 17306 | O15: 1º LEN | P15: 2009-T15 | Q15: 33171 | R15: 45280 | S15: =Q15*VLOOKUP(CAPA!$C$15,Índices!$B$8:$F$1000,5)/VLOOKUP(EDATE('Multas Geradores'!R15,-1),Índices!$B$8:$F$1000,5) -> 43870.17724 | T15: 43 | U15: N | X15: =IFERROR(V15*VLOOKUP(CAPA!$C$15,Índices!$B$8:$F$1000,5)/VLOOKUP(EDATE('Multas Geradores'!W15,-1),Índices!$B$8:$F$1000,5),0) -> 0 | Z15: CELPE | AA15: 43 | AB15: Neoenergia Pernambuco | AC15: Companhia Energética de Pernambuco
J16: Desp. nº 4.863/2023 | K16: Goiânia II | L16: BRENTECH 1LN | M16: CEMAR | N16: 17338 | O16: 1º LEN | P16: 2009-T15 | Q16: 11687.45 | R16: 45280 | S16: =Q16*VLOOKUP(CAPA!$C$15,Índices!$B$8:$F$1000,5)/VLOOKUP(EDATE('Multas Geradores'!R16,-1),Índices!$B$8:$F$1000,5) -> 15457.19161 | T16: 37 | U16: N | X16: =IFERROR(V16*VLOOKUP(CAPA!$C$15,Índices!$B$8:$F$1000,5)/VLOOKUP(EDATE('Multas Geradores'!W16,-1),Índices!$B$8:$F$1000,5),0) -> 0 | Z16: CEMAR | AA16: 37 | AB16: Equatorial MA | AC16: Equatorial Maranhão Distribuidora de Energia S.A.
J17: Desp. nº 4.863/2023 | K17: Goiânia II | L17: BRENTECH 1LN | M17: CEMIG DISTRIB | N17: 17321 | O17: 1º LEN | P17: 2009-T15 | Q17: 45542.57 | R17: 45280 | S17: =Q17*VLOOKUP(CAPA!$C$15,Índices!$B$8:$F$1000,5)/VLOOKUP(EDATE('Multas Geradores'!R17,-1),Índices!$B$8:$F$1000,5) -> 60232.14911 | T17: 4950 | U17: N | X17: =IFERROR(V17*VLOOKUP(CAPA!$C$15,Índices!$B$8:$F$1000,5)/VLOOKUP(EDATE('Multas Geradores'!W17,-1),Índices!$B$8:$F$1000,5),0) -> 0 | Z17: CEMIG DISTRIB | AA17: 4950 | AB17: Cemig-D | AC17: Cemig Distribuição S.A.
J18: Desp. nº 4.863/2023 | K18: Goiânia II | L18: BRENTECH 1LN | M18: CEPISA | N18: 17314 | O18: 1º LEN | P18: 2009-T15 | Q18: 9214.03 | R18: 45280 | S18: =Q18*VLOOKUP(CAPA!$C$15,Índices!$B$8:$F$1000,5)/VLOOKUP(EDATE('Multas Geradores'!R18,-1),Índices!$B$8:$F$1000,5) -> 12185.9796 | T18: 4950 | U18: N | X18: =IFERROR(V18*VLOOKUP(CAPA!$C$15,Índices!$B$8:$F$1000,5)/VLOOKUP(EDATE('Multas Geradores'!W18,-1),Índices!$B$8:$F$1000,5),0) -> 0 | Z18: COELBA | AA18: 47 | AB18: Neoenergia Coelba | AC18: Companhia de Eletricidadedo Estado da Bahia
J19: Desp. nº 4.863/2023 | K19: Goiânia II | L19: BRENTECH 1LN | M19: COELBA | N19: 17322 | O19: 1º LEN | P19: 2009-T15 | Q19: 37317.37 | R19: 45280 | S19: =Q19*VLOOKUP(CAPA!$C$15,Índices!$B$8:$F$1000,5)/VLOOKUP(EDATE('Multas Geradores'!R19,-1),Índices!$B$8:$F$1000,5) -> 49353.94279 | T19: 47 | U19: S | V19: -41525.5207 | W19: 45748 | X19: =IFERROR(V19*VLOOKUP(CAPA!$C$15,Índices!$B$8:$F$1000,5)/VLOOKUP(EDATE('Multas Geradores'!W19,-1),Índices!$B$8:$F$1000,5),0) -> -47666.9937 | Z19: COELCE | AA19: 39 | AB19: ENEL CE | AC19: Companhia Energética do Ceará
J20: Desp. nº 4.863/2023 | K20: Goiânia II | L20: BRENTECH 1LN | M20: COELCE | N20: 17309 | O20: 1º LEN | P20: 2009-T15 | Q20: 22642.66 | R20: 45280 | S20: =Q20*VLOOKUP(CAPA!$C$15,Índices!$B$8:$F$1000,5)/VLOOKUP(EDATE('Multas Geradores'!R20,-1),Índices!$B$8:$F$1000,5) -> 29945.96206 | T20: 39 | U20: N | X20: =IFERROR(V20*VLOOKUP(CAPA!$C$15,Índices!$B$8:$F$1000,5)/VLOOKUP(EDATE('Multas Geradores'!W20,-1),Índices!$B$8:$F$1000,5),0) -> 0 | Z20: COPEL DISTRIB | AA20: 2866 | AB20: Copel-Dis | AC20: Copel Distribuição S.A.
J21: Desp. nº 4.863/2023 | K21: Goiânia II | L21: BRENTECH 1LN | M21: COPEL DISTRIB | N21: 17330 | O21: 1º LEN | P21: 2009-T15 | Q21: 47040.61 | R21: 45280 | S21: =Q21*VLOOKUP(CAPA!$C$15,Índices!$B$8:$F$1000,5)/VLOOKUP(EDATE('Multas Geradores'!R21,-1),Índices!$B$8:$F$1000,5) -> 62213.37609 | T21: 2866 | U21: N | X21: =IFERROR(V21*VLOOKUP(CAPA!$C$15,Índices!$B$8:$F$1000,5)/VLOOKUP(EDATE('Multas Geradores'!W21,-1),Índices!$B$8:$F$1000,5),0) -> 0 | Z21: COSERN | AA21: 40 | AB21: Neoenergia Cosern | AC21: Companhia Energetica do Rio Grande do Norte
J22: Desp. nº 4.863/2023 | K22: Goiânia II | L22: BRENTECH 1LN | M22: COSERN | N22: 17311 | O22: 1º LEN | P22: 2009-T15 | Q22: 16239.97 | R22: 45280 | S22: =Q22*VLOOKUP(CAPA!$C$15,Índices!$B$8:$F$1000,5)/VLOOKUP(EDATE('Multas Geradores'!R22,-1),Índices!$B$8:$F$1000,5) -> 21478.10926 | T22: 40 | U22: N | X22: =IFERROR(V22*VLOOKUP(CAPA!$C$15,Índices!$B$8:$F$1000,5)/VLOOKUP(EDATE('Multas Geradores'!W22,-1),Índices!$B$8:$F$1000,5),0) -> 0 | Z22: CPFL LESTE PAULISTA | AA22: 1000041 | AB22: CPFL Santa Cruz | AC22: Companhia Jaguari de Energia
J23: Desp. nº 4.863/2023 | K23: Goiânia II | L23: BRENTECH 1LN | M23: CPFL PAULISTA | N23: 17307 | O23: 1º LEN | P23: 2009-T15 | Q23: 73736.37 | R23: 45280 | S23: =Q23*VLOOKUP(CAPA!$C$15,Índices!$B$8:$F$1000,5)/VLOOKUP(EDATE('Multas Geradores'!R23,-1),Índices!$B$8:$F$1000,5) -> 97519.74982 | T23: 63 | U23: S | V23: -99212.53901 | W23: 45748 | X23: =IFERROR(V23*VLOOKUP(CAPA!$C$15,Índices!$B$8:$F$1000,5)/VLOOKUP(EDATE('Multas Geradores'!W23,-1),Índices!$B$8:$F$1000,5),0) -> -113885.7115 | Z23: CPFL PAULISTA | AA23: 63 | AB23: CPFL Paulista | AC23: Companhia Paulista de Força e Luz
J24: Desp. nº 4.863/2023 | K24: Goiânia II | L24: BRENTECH 1LN | M24: CPFL SANTA CRUZ | N24: 17316 | O24: 1º LEN | P24: 2009-T15 | Q24: 1715.42 | R24: 45280 | S24: =Q24*VLOOKUP(CAPA!$C$15,Índices!$B$8:$F$1000,5)/VLOOKUP(EDATE('Multas Geradores'!R24,-1),Índices!$B$8:$F$1000,5) -> 2268.72206 | T24: 1000041 | U24: S | V24: -1890.64 | W24: 45717 | X24: =IFERROR(V24*VLOOKUP(CAPA!$C$15,Índices!$B$8:$F$1000,5)/VLOOKUP(EDATE('Multas Geradores'!W24,-1),Índices!$B$8:$F$1000,5),0) -> -2191.180693 | Z24: CPFL PIRATINGA | AA24: 2937 | AB24: CPFL Piratininga | AC24: Companhia Piratininga de Força e Luz
J25: Desp. nº 4.863/2023 | K25: Goiânia II | L25: BRENTECH 1LN | M25: ELEKTRO | N25: 17323 | O25: 1º LEN | P25: 2009-T15 | Q25: 27188.21 | R25: 45280 | S25: =Q25*VLOOKUP(CAPA!$C$15,Índices!$B$8:$F$1000,5)/VLOOKUP(EDATE('Multas Geradores'!R25,-1),Índices!$B$8:$F$1000,5) -> 35957.66156 | T25: 385 | U25: S | V25: -31659.78 | W25: 45870 | X25: =IFERROR(V25*VLOOKUP(CAPA!$C$15,Índices!$B$8:$F$1000,5)/VLOOKUP(EDATE('Multas Geradores'!W25,-1),Índices!$B$8:$F$1000,5),0) -> -34728.61047 | Z25: CPFL SANTA CRUZ | AA25: 1000041 | AB25: CPFL Santa Cruz | AC25: Companhia Jaguari de Energia
J26: Desp. nº 4.863/2023 | K26: Goiânia II | L26: BRENTECH 1LN | M26: ELETROPAULO | N26: 17326 | O26: 1º LEN | P26: 2009-T15 | Q26: 52745.37 | R26: 45280 | S26: =Q26*VLOOKUP(CAPA!$C$15,Índices!$B$8:$F$1000,5)/VLOOKUP(EDATE('Multas Geradores'!R26,-1),Índices!$B$8:$F$1000,5) -> 69758.18428 | T26: 390 | U26: N | X26: =IFERROR(V26*VLOOKUP(CAPA!$C$15,Índices!$B$8:$F$1000,5)/VLOOKUP(EDATE('Multas Geradores'!W26,-1),Índices!$B$8:$F$1000,5),0) -> 0 | Z26: ELEKTRO | AA26: 385 | AB26: Neoenergia Elektro | AC26: Elektro Redes S.A.
J27: Desp. nº 4.863/2023 | K27: Goiânia II | L27: BRENTECH 1LN | M27: ENERGISA BORBOREMA | N27: 17317 | O27: 1º LEN | P27: 2009-T15 | Q27: 1045.7 | R27: 45280 | S27: =Q27*VLOOKUP(CAPA!$C$15,Índices!$B$8:$F$1000,5)/VLOOKUP(EDATE('Multas Geradores'!R27,-1),Índices!$B$8:$F$1000,5) -> 1382.986474 | T27: 6600 | U27: N | X27: =IFERROR(V27*VLOOKUP(CAPA!$C$15,Índices!$B$8:$F$1000,5)/VLOOKUP(EDATE('Multas Geradores'!W27,-1),Índices!$B$8:$F$1000,5),0) -> 0 | Z27: ELETROPAULO | AA27: 390 | AB27: ENEL SP | AC27: Eletropaulo Metropolitana Eletricidade de São Paulo S.A.
J28: Desp. nº 4.863/2023 | K28: Goiânia II | L28: BRENTECH 1LN | M28: ENERGISA BR | N28: 17320 | O28: 1º LEN | P28: 2009-T15 | Q28: 1003.04 | R28: 45280 | S28: =Q28*VLOOKUP(CAPA!$C$15,Índices!$B$8:$F$1000,5)/VLOOKUP(EDATE('Multas Geradores'!R28,-1),Índices!$B$8:$F$1000,5) -> 1326.566657 | T28: 1000040 | U28: N | X28: =IFERROR(V28*VLOOKUP(CAPA!$C$15,Índices!$B$8:$F$1000,5)/VLOOKUP(EDATE('Multas Geradores'!W28,-1),Índices!$B$8:$F$1000,5),0) -> 0 | Z28: ENERGISA BORBOREMA | AA28: 6600 | AB28: EPB | AC28: Energisa Paraíba - Distribuidora de Energia S.A.
J29: Desp. nº 4.863/2023 | K29: Goiânia II | L29: BRENTECH 1LN | M29: ENERGISA MR | N29: 17337 | O29: 1º LEN | P29: 2009-T15 | Q29: 1742.24 | R29: 45280 | S29: =Q29*VLOOKUP(CAPA!$C$15,Índices!$B$8:$F$1000,5)/VLOOKUP(EDATE('Multas Geradores'!R29,-1),Índices!$B$8:$F$1000,5) -> 2304.192747 | T29: 6585 | U29: S | V29: -1787.073087 | W29: 45444 | X29: =IFERROR(V29*VLOOKUP(CAPA!$C$15,Índices!$B$8:$F$1000,5)/VLOOKUP(EDATE('Multas Geradores'!W29,-1),Índices!$B$8:$F$1000,5),0) -> -2243.942327 | Z29: ENERGISA BR | AA29: 1000040 | AB29: ESS | AC29: Energisa Sul-Sudeste - Distribuidora de Energia S.A.
J30: Desp. nº 4.863/2023 | K30: Goiânia II | L30: BRENTECH 1LN | M30: ENERGISA MS | N30: 17319 | O30: 1º LEN | P30: 2009-T15 | Q30: 7504.94 | R30: 45280 | S30: =Q30*VLOOKUP(CAPA!$C$15,Índices!$B$8:$F$1000,5)/VLOOKUP(EDATE('Multas Geradores'!R30,-1),Índices!$B$8:$F$1000,5) -> 9925.629254 | T30: 404 | U30: S | V30: -7504.94 | W30: 45383 | X30: =IFERROR(V30*VLOOKUP(CAPA!$C$15,Índices!$B$8:$F$1000,5)/VLOOKUP(EDATE('Multas Geradores'!W30,-1),Índices!$B$8:$F$1000,5),0) -> -9586.364947 | Z30: ENERGISA MR | AA30: 6585 | AB30: EMG | AC30: Energisa Minas Gerais - Distribuidora de Energia S.A.
J31: Desp. nº 4.863/2023 | K31: Goiânia II | L31: BRENTECH 1LN | M31: ENERGISA MT | N31: 17335 | O31: 1º LEN | P31: 2009-T15 | Q31: 13185.48 | R31: 45280 | S31: =Q31*VLOOKUP(CAPA!$C$15,Índices!$B$8:$F$1000,5)/VLOOKUP(EDATE('Multas Geradores'!R31,-1),Índices!$B$8:$F$1000,5) -> 17438.40537 | T31: 405 | U31: S | V31: -13185.48 | W31: 45383 | X31: =IFERROR(V31*VLOOKUP(CAPA!$C$15,Índices!$B$8:$F$1000,5)/VLOOKUP(EDATE('Multas Geradores'!W31,-1),Índices!$B$8:$F$1000,5),0) -> -16842.34961 | Z31: ENERGISA MS | AA31: 404 | AB31: EMS | AC31: Energisa Mato Grossodo Sul - Distribuidora de Energia S.A.
J32: Desp. nº 4.863/2023 | K32: Goiânia II | L32: BRENTECH 1LN | M32: ENERGISA PB | N32: 17328 | O32: 1º LEN | P32: 2009-T15 | Q32: 6622.77 | R32: 45280 | S32: =Q32*VLOOKUP(CAPA!$C$15,Índices!$B$8:$F$1000,5)/VLOOKUP(EDATE('Multas Geradores'!R32,-1),Índices!$B$8:$F$1000,5) -> 8758.918747 | T32: 6600 | U32: S | V32: -6851.87026 | W32: 45505 | X32: =IFERROR(V32*VLOOKUP(CAPA!$C$15,Índices!$B$8:$F$1000,5)/VLOOKUP(EDATE('Multas Geradores'!W32,-1),Índices!$B$8:$F$1000,5),0) -> -8459.533344 | Z32: ENERGISA MT | AA32: 405 | AB32: EMT | AC32: Energisa Mato Grosso - Distribuidora de Energia S.A.
J33: Desp. nº 4.863/2023 | K33: Goiânia II | L33: BRENTECH 1LN | M33: ENERGISA SE | N33: 17331 | O33: 1º LEN | P33: 2009-T15 | Q33: 5874.03 | R33: 45280 | S33: =Q33*VLOOKUP(CAPA!$C$15,Índices!$B$8:$F$1000,5)/VLOOKUP(EDATE('Multas Geradores'!R33,-1),Índices!$B$8:$F$1000,5) -> 7768.675567 | T33: 6587 | U33: N | X33: =IFERROR(V33*VLOOKUP(CAPA!$C$15,Índices!$B$8:$F$1000,5)/VLOOKUP(EDATE('Multas Geradores'!W33,-1),Índices!$B$8:$F$1000,5),0) -> 0 | Z33: ENERGISA NA | AA33: 1000040 | AB33: ESS | AC33: Energisa Sul-Sudeste - Distribuidora de Energia S.A.
J34: Desp. nº 4.863/2023 | K34: Goiânia II | L34: BRENTECH 1LN | M34: ENERGISA SS | N34: 17318 | O34: 1º LEN | P34: 2009-T15 | Q34: 2003.62 | R34: 45280 | S34: =Q34*VLOOKUP(CAPA!$C$15,Índices!$B$8:$F$1000,5)/VLOOKUP(EDATE('Multas Geradores'!R34,-1),Índices!$B$8:$F$1000,5) -> 2649.879851 | T34: 1000040 | U34: S | V34: -2003.62 | W34: 45474 | X34: =IFERROR(V34*VLOOKUP(CAPA!$C$15,Índices!$B$8:$F$1000,5)/VLOOKUP(EDATE('Multas Geradores'!W34,-1),Índices!$B$8:$F$1000,5),0) -> -2496.171699 | Z34: ENERGISA PB | AA34: 6600 | AB34: EPB | AC34: Energisa Paraíba - Distribuidora de Energia S.A.
J35: Desp. nº 4.863/2023 | K35: Goiânia II | L35: BRENTECH 1LN | M35: ENERGISA TO | N35: 17334 | O35: 1º LEN | P35: 2009-T15 | Q35: 2667.56 | R35: 45280 | S35: =Q35*VLOOKUP(CAPA!$C$15,Índices!$B$8:$F$1000,5)/VLOOKUP(EDATE('Multas Geradores'!R35,-1),Índices!$B$8:$F$1000,5) -> 3527.97112 | T35: 32 | U35: S | V35: -2757.774871 | W35: 45839 | X35: =IFERROR(V35*VLOOKUP(CAPA!$C$15,Índices!$B$8:$F$1000,5)/VLOOKUP(EDATE('Multas Geradores'!W35,-1),Índices!$B$8:$F$1000,5),0) -> -3063.682228 | Z35: ENERGISA SE | AA35: 6587 | AB35: ESE | AC35: Energisa Sergipe - Distribuidora de Energia S.A.
J36: Desp. nº 4.863/2023 | K36: Goiânia II | L36: BRENTECH 1LN | M36: ENERGISA VP | N36: 17336 | O36: 1º LEN | P36: 2009-T15 | Q36: 1257.19 | R36: 45280 | S36: =Q36*VLOOKUP(CAPA!$C$15,Índices!$B$8:$F$1000,5)/VLOOKUP(EDATE('Multas Geradores'!R36,-1),Índices!$B$8:$F$1000,5) -> 1662.691753 | T36: 1000040 | U36: N | X36: =IFERROR(V36*VLOOKUP(CAPA!$C$15,Índices!$B$8:$F$1000,5)/VLOOKUP(EDATE('Multas Geradores'!W36,-1),Índices!$B$8:$F$1000,5),0) -> 0 | Z36: ENERGISA SS | AA36: 1000040 | AB36: ESS | AC36: Energisa Sul-Sudeste - Distribuidora de Energia S.A.
J37: Desp. nº 4.863/2023 | K37: Goiânia II | L37: BRENTECH 1LN | M37: ESCELSA | N37: 17310 | O37: 1º LEN | P37: 2009-T15 | Q37: 15085.97 | R37: 45280 | S37: =Q37*VLOOKUP(CAPA!$C$15,Índices!$B$8:$F$1000,5)/VLOOKUP(EDATE('Multas Geradores'!R37,-1),Índices!$B$8:$F$1000,5) -> 19951.89104 | T37: 380 | U37: N | V37: 0 | X37: =IFERROR(V37*VLOOKUP(CAPA!$C$15,Índices!$B$8:$F$1000,5)/VLOOKUP(EDATE('Multas Geradores'!W37,-1),Índices!$B$8:$F$1000,5),0) -> 0 | Z37: ENERGISA TO | AA37: 32 | AB37: ETO | AC37: Energisa Tocantins Distribuidora de Energia S.A.
J38: Desp. nº 4.863/2023 | K38: Goiânia II | L38: BRENTECH 1LN | M38: LIGHT | N38: 17312 | O38: 1º LEN | P38: 2009-T15 | Q38: 34994.68 | R38: 45280 | S38: =Q38*VLOOKUP(CAPA!$C$15,Índices!$B$8:$F$1000,5)/VLOOKUP(EDATE('Multas Geradores'!R38,-1),Índices!$B$8:$F$1000,5) -> 46282.07815 | T38: 382 | U38: N | X38: =IFERROR(V38*VLOOKUP(CAPA!$C$15,Índices!$B$8:$F$1000,5)/VLOOKUP(EDATE('Multas Geradores'!W38,-1),Índices!$B$8:$F$1000,5),0) -> 0 | Z38: ENERGISA VP | AA38: 1000040 | AB38: ESS | AC38: Energisa Sul-Sudeste - Distribuidora de Energia S.A.
J39: Desp. nº 4.863/2023 | K39: Goiânia II | L39: BRENTECH 1LN | M39: RGE SUL | N39: 17315 | O39: 1º LEN | P39: 2009-T15 | Q39: 18189.04 | R39: 45280 | S39: =Q39*VLOOKUP(CAPA!$C$15,Índices!$B$8:$F$1000,5)/VLOOKUP(EDATE('Multas Geradores'!R39,-1),Índices!$B$8:$F$1000,5) -> 24055.84422 | T39: =VLOOKUP(M39,$Z$7:$AD$64,2) -> 1000042 | U39: S | V39: -20504.82 | W39: 45809 | X39: =IFERROR(V39*VLOOKUP(CAPA!$C$15,Índices!$B$8:$F$1000,5)/VLOOKUP(EDATE('Multas Geradores'!W39,-1),Índices!$B$8:$F$1000,5),0) -> -23029.22681 | Z39: ESCELSA | AA39: 380 | AB39: EDP ES | AC39: EDP Espírito Santo Distribuição de Energia S.A.
J40: Desp. nº 2.495/2024 | K40: Termoceará | L40: PETROB PIE 1LN | M40: AMPLA | N40: 16299 | O40: 1º LEN | P40: 2009-T15 | Q40: 79105.63 | R40: 45231 | S40: =Q40*VLOOKUP(CAPA!$C$15,Índices!$B$8:$F$1000,5)/VLOOKUP(EDATE('Multas Geradores'!R40,-1),Índices!$B$8:$F$1000,5) -> 105579.158 | T40: 383 | U40: N | X40: =IFERROR(V40*VLOOKUP(CAPA!$C$15,Índices!$B$8:$F$1000,5)/VLOOKUP(EDATE('Multas Geradores'!W40,-1),Índices!$B$8:$F$1000,5),0) -> 0 | Z40: LIGHT | AA40: 382 | AB40: Light | AC40: Light Serviços de Eletricidade S.A.
J41: Desp. nº 2.495/2024 | K41: Termoceará | L41: PETROB PIE 1LN | M41: BANDEIRANTE | N41: 16301 | O41: 1º LEN | P41: 2009-T15 | Q41: 88987.05 | R41: 45231 | S41: =Q41*VLOOKUP(CAPA!$C$15,Índices!$B$8:$F$1000,5)/VLOOKUP(EDATE('Multas Geradores'!R41,-1),Índices!$B$8:$F$1000,5) -> 118767.4987 | T41: 391 | U41: N | X41: =IFERROR(V41*VLOOKUP(CAPA!$C$15,Índices!$B$8:$F$1000,5)/VLOOKUP(EDATE('Multas Geradores'!W41,-1),Índices!$B$8:$F$1000,5),0) -> 0 | Z41: RGE SUL | AA41: 1000042 | AB41: RGE | AC41: RGE Sul Distribuidora de Energia S.A.
J42: Desp. nº 2.495/2024 | K42: Termoceará | L42: PETROB PIE 1LN | M42: CEAL | N42: 16296 | O42: 1º LEN | P42: 2009-T15 | Q42: 16693.61 | R42: 45231 | S42: =Q42*VLOOKUP(CAPA!$C$15,Índices!$B$8:$F$1000,5)/VLOOKUP(EDATE('Multas Geradores'!R42,-1),Índices!$B$8:$F$1000,5) -> 22280.30151 | T42: 44 | U42: N | X42: =IFERROR(V42*VLOOKUP(CAPA!$C$15,Índices!$B$8:$F$1000,5)/VLOOKUP(EDATE('Multas Geradores'!W42,-1),Índices!$B$8:$F$1000,5),0) -> 0 | AA42: 7019 | AB42: Amazonas Energia | AC42: Amazonas Energia S.A.
J43: Desp. nº 2.495/2024 | K43: Termoceará | L43: PETROB PIE 1LN | M43: CEB DISTRIBUIC | N43: 16297 | O43: 1º LEN | P43: 2009-T15 | Q43: 102183.96 | R43: 45231 | S43: =Q43*VLOOKUP(CAPA!$C$15,Índices!$B$8:$F$1000,5)/VLOOKUP(EDATE('Multas Geradores'!R43,-1),Índices!$B$8:$F$1000,5) -> 136380.8929 | T43: 5160 | U43: N | X43: =IFERROR(V43*VLOOKUP(CAPA!$C$15,Índices!$B$8:$F$1000,5)/VLOOKUP(EDATE('Multas Geradores'!W43,-1),Índices!$B$8:$F$1000,5),0) -> 0 | AA43: 31 | AB43: CEA | AC43: Companhia de Eletricidade do Amapá
J44: Desp. nº 2.495/2024 | K44: Termoceará | L44: PETROB PIE 1LN | M44: CEEE DISTRIB | N44: 16305 | O44: 1º LEN | P44: 2009-T15 | Q44: 65125.68 | R44: 45231 | S44: =Q44*VLOOKUP(CAPA!$C$15,Índices!$B$8:$F$1000,5)/VLOOKUP(EDATE('Multas Geradores'!R44,-1),Índices!$B$8:$F$1000,5) -> 86920.67122 | T44: 5707 | U44: N | X44: =IFERROR(V44*VLOOKUP(CAPA!$C$15,Índices!$B$8:$F$1000,5)/VLOOKUP(EDATE('Multas Geradores'!W44,-1),Índices!$B$8:$F$1000,5),0) -> 0 | AA44: 103 | AB44: CHESP | AC44: Companhia Hidroelétrica São Patrício
J45: Desp. nº 2.495/2024 | K45: Termoceará | L45: PETROB PIE 1LN | M45: CELESC DIST | N45: 16280 | O45: 1º LEN | P45: 2009-T15 | Q45: 289258.62 | R45: 45231 | S45: =Q45*VLOOKUP(CAPA!$C$15,Índices!$B$8:$F$1000,5)/VLOOKUP(EDATE('Multas Geradores'!R45,-1),Índices!$B$8:$F$1000,5) -> 386062.0481 | T45: 5697 | U45: N | X45: =IFERROR(V45*VLOOKUP(CAPA!$C$15,Índices!$B$8:$F$1000,5)/VLOOKUP(EDATE('Multas Geradores'!W45,-1),Índices!$B$8:$F$1000,5),0) -> 0 | AA45: 82 | AB45: Cocel | AC45: Companhia Campolarguense de Energia
J46: Desp. nº 2.495/2024 | K46: Termoceará | L46: PETROB PIE 1LN | M46: CELG | N46: 16304 | O46: 1º LEN | P46: 2009-T15 | Q46: 104252.17 | R46: 45231 | S46: =Q46*VLOOKUP(CAPA!$C$15,Índices!$B$8:$F$1000,5)/VLOOKUP(EDATE('Multas Geradores'!R46,-1),Índices!$B$8:$F$1000,5) -> 139141.2511 | T46: 6072 | U46: N | X46: =IFERROR(V46*VLOOKUP(CAPA!$C$15,Índices!$B$8:$F$1000,5)/VLOOKUP(EDATE('Multas Geradores'!W46,-1),Índices!$B$8:$F$1000,5),0) -> 0 | AA46: 2904 | AB46: Cooperaliança | AC46: Cooperativa Aliança
J47: Desp. nº 2.495/2024 | K47: Termoceará | L47: PETROB PIE 1LN | M47: CELPA | N47: 16285 | O47: 1º LEN | P47: 2009-T15 | Q47: 96834.97 | R47: 45231 | S47: =Q47*VLOOKUP(CAPA!$C$15,Índices!$B$8:$F$1000,5)/VLOOKUP(EDATE('Multas Geradores'!R47,-1),Índices!$B$8:$F$1000,5) -> 129241.8074 | T47: 371 | U47: N | X47: =IFERROR(V47*VLOOKUP(CAPA!$C$15,Índices!$B$8:$F$1000,5)/VLOOKUP(EDATE('Multas Geradores'!W47,-1),Índices!$B$8:$F$1000,5),0) -> 0 | AA47: 87 | AB47: DCELT | AC47: Distribuidora Catarinense de Energia Elétrica Ltda
J48: Desp. nº 2.495/2024 | K48: Termoceará | L48: PETROB PIE 1LN | M48: CELPE | N48: 16278 | O48: 1º LEN | P48: 2009-T15 | Q48: 164722.26 | R48: 45231 | S48: =Q48*VLOOKUP(CAPA!$C$15,Índices!$B$8:$F$1000,5)/VLOOKUP(EDATE('Multas Geradores'!R48,-1),Índices!$B$8:$F$1000,5) -> 219848.2903 | T48: 43 | U48: N | X48: =IFERROR(V48*VLOOKUP(CAPA!$C$15,Índices!$B$8:$F$1000,5)/VLOOKUP(EDATE('Multas Geradores'!W48,-1),Índices!$B$8:$F$1000,5),0) -> 0 | AA48: 95 | AB48: Demei | AC48: Departamento Municipal de Energia de Ijuí
J49: Desp. nº 2.495/2024 | K49: Termoceará | L49: PETROB PIE 1LN | M49: CEMAR | N49: 16310 | O49: 1º LEN | P49: 2009-T15 | Q49: 58042.11 | R49: 45231 | S49: =Q49*VLOOKUP(CAPA!$C$15,Índices!$B$8:$F$1000,5)/VLOOKUP(EDATE('Multas Geradores'!R49,-1),Índices!$B$8:$F$1000,5) -> 77466.51029 | T49: 37 | U49: N | X49: =IFERROR(V49*VLOOKUP(CAPA!$C$15,Índices!$B$8:$F$1000,5)/VLOOKUP(EDATE('Multas Geradores'!W49,-1),Índices!$B$8:$F$1000,5),0) -> 0 | AA49: 51 | AB49: DME-D | AC49: DME Distribuição S.A.
J50: Desp. nº 2.495/2024 | K50: Termoceará | L50: PETROB PIE 1LN | M50: CEMIG DISTRIB | N50: 16293 | O50: 1º LEN | P50: 2009-T15 | Q50: 226149.29 | R50: 45231 | S50: =Q50*VLOOKUP(CAPA!$C$15,Índices!$B$8:$F$1000,5)/VLOOKUP(EDATE('Multas Geradores'!R50,-1),Índices!$B$8:$F$1000,5) -> 301832.5196 | T50: 4950 | U50: N | X50: =IFERROR(V50*VLOOKUP(CAPA!$C$15,Índices!$B$8:$F$1000,5)/VLOOKUP(EDATE('Multas Geradores'!W50,-1),Índices!$B$8:$F$1000,5),0) -> 0 | AA50: 26 | AB50: EAC | AC50: Energisa Acre - Distribuidora de Energia S.A
J51: Desp. nº 2.495/2024 | K51: Termoceará | L51: PETROB PIE 1LN | M51: CEPISA | N51: 16286 | O51: 1º LEN | P51: 2009-T15 | Q51: 43811.33 | R51: 45231 | S51: =Q51*VLOOKUP(CAPA!$C$15,Índices!$B$8:$F$1000,5)/VLOOKUP(EDATE('Multas Geradores'!R51,-1),Índices!$B$8:$F$1000,5) -> 58473.25065 | T51: 4950 | U51: N | X51: =IFERROR(V51*VLOOKUP(CAPA!$C$15,Índices!$B$8:$F$1000,5)/VLOOKUP(EDATE('Multas Geradores'!W51,-1),Índices!$B$8:$F$1000,5),0) -> 0 | AA51: 6611 | AB51: EBO | AC51: Energisa Borborema - Distribuidora de Energia S.A
J52: Desp. nº 2.495/2024 | K52: Termoceará | L52: PETROB PIE 1LN | M52: COELBA | N52: 16294 | O52: 1º LEN | P52: 2009-T15 | Q52: 185312.57 | R52: 45231 | S52: =Q52*VLOOKUP(CAPA!$C$15,Índices!$B$8:$F$1000,5)/VLOOKUP(EDATE('Multas Geradores'!R52,-1),Índices!$B$8:$F$1000,5) -> 247329.3633 | T52: 47 | U52: S | V52: =-1801895.84088413*185312.57/(185312.57+1598898.52) -> -187149.3519 | W52: 45748 | X52: =IFERROR(V52*VLOOKUP(CAPA!$C$15,Índices!$B$8:$F$1000,5)/VLOOKUP(EDATE('Multas Geradores'!W52,-1),Índices!$B$8:$F$1000,5),0) -> -214828.0582 | AA52: 86 | AB52: EFLUL | AC52: Empresa Força e Luz de Urussanga Ltda
J53: Desp. nº 2.495/2024 | K53: Termoceará | L53: PETROB PIE 1LN | M53: COELCE | N53: 16281 | O53: 1º LEN | P53: 2009-T15 | Q53: 112440.14 | R53: 45231 | S53: =Q53*VLOOKUP(CAPA!$C$15,Índices!$B$8:$F$1000,5)/VLOOKUP(EDATE('Multas Geradores'!R53,-1),Índices!$B$8:$F$1000,5) -> 150069.411 | T53: 39 | U53: N | X53: =IFERROR(V53*VLOOKUP(CAPA!$C$15,Índices!$B$8:$F$1000,5)/VLOOKUP(EDATE('Multas Geradores'!W53,-1),Índices!$B$8:$F$1000,5),0) -> 0 | AA53: 398 | AB53: Eletrocar | AC53: Centrais Elétricas de Carazinho S.A.
J54: Desp. nº 2.495/2024 | K54: Termoceará | L54: PETROB PIE 1LN | M54: COPEL DISTRIB | N54: 16302 | O54: 1º LEN | P54: 2009-T15 | Q54: 233592.3 | R54: 45231 | S54: =Q54*VLOOKUP(CAPA!$C$15,Índices!$B$8:$F$1000,5)/VLOOKUP(EDATE('Multas Geradores'!R54,-1),Índices!$B$8:$F$1000,5) -> 311766.4108 | T54: 2866 | U54: N | X54: =IFERROR(V54*VLOOKUP(CAPA!$C$15,Índices!$B$8:$F$1000,5)/VLOOKUP(EDATE('Multas Geradores'!W54,-1),Índices!$B$8:$F$1000,5),0) -> 0 | AA54: 6612 | AB54: ENF | AC54: Energisa Nova Friburgo - Distribuidora de Energia S.A.
J55: Desp. nº 2.495/2024 | K55: Termoceará | L55: PETROB PIE 1LN | M55: COSERN | N55: 16283 | O55: 1º LEN | P55: 2009-T15 | Q55: 80645.27 | R55: 45231 | S55: =Q55*VLOOKUP(CAPA!$C$15,Índices!$B$8:$F$1000,5)/VLOOKUP(EDATE('Multas Geradores'!R55,-1),Índices!$B$8:$F$1000,5) -> 107634.0546 | T55: 40 | U55: N | X55: =IFERROR(V55*VLOOKUP(CAPA!$C$15,Índices!$B$8:$F$1000,5)/VLOOKUP(EDATE('Multas Geradores'!W55,-1),Índices!$B$8:$F$1000,5),0) -> 0 | AA55: 38 | AB55: Equatorial PI | AC55: Equatorial Piauí Distribuidora de Energia S.A.
J56: Desp. nº 2.495/2024 | K56: Termoceará | L56: PETROB PIE 1LN | M56: CPFL PAULISTA | N56: 16279 | O56: 1º LEN | P56: 2009-T15 | Q56: 366163.95 | R56: 45231 | S56: =Q56*VLOOKUP(CAPA!$C$15,Índices!$B$8:$F$1000,5)/VLOOKUP(EDATE('Multas Geradores'!R56,-1),Índices!$B$8:$F$1000,5) -> 488704.5526 | T56: 63 | U56: S | V56: -351995.5516 | W56: 45748 | X56: =IFERROR(V56*VLOOKUP(CAPA!$C$15,Índices!$B$8:$F$1000,5)/VLOOKUP(EDATE('Multas Geradores'!W56,-1),Índices!$B$8:$F$1000,5),0) -> -404054.4093 | AA56: 369 | AB56: ERO | AC56: Energisa Rondônia - Distribuidora de Energia S.A.
J57: Desp. nº 2.495/2024 | K57: Termoceará | L57: PETROB PIE 1LN | M57: CPFL SANTA CRUZ | N57: 16288 | O57: 1º LEN | P57: 2009-T15 | Q57: 8518.79 | R57: 45231 | S57: =Q57*VLOOKUP(CAPA!$C$15,Índices!$B$8:$F$1000,5)/VLOOKUP(EDATE('Multas Geradores'!R57,-1),Índices!$B$8:$F$1000,5) -> 11369.69234 | T57: 1000041 | U57: S | V57: =-82230.1*8518.79/(8518.79+72840.76+68.22) -> -8602.727959 | W57: 45717 | X57: =IFERROR(V57*VLOOKUP(CAPA!$C$15,Índices!$B$8:$F$1000,5)/VLOOKUP(EDATE('Multas Geradores'!W57,-1),Índices!$B$8:$F$1000,5),0) -> -9970.238339 | AA57: 83 | AB57: Forcel | AC57: Força e Luz Coronel Vivida Ltda.
J58: Desp. nº 2.495/2024 | K58: Termoceará | L58: PETROB PIE 1LN | M58: ELEKTRO | N58: 16295 | O58: 1º LEN | P58: 2009-T15 | Q58: 135021.97 | R58: 45231 | S58: =Q58*VLOOKUP(CAPA!$C$15,Índices!$B$8:$F$1000,5)/VLOOKUP(EDATE('Multas Geradores'!R58,-1),Índices!$B$8:$F$1000,5) -> 180208.4871 | T58: 385 | U58: S | V58: =-1153405.38*135021.97/(135021.97+935155.36) -> -145522.6739 | W58: 45870 | X58: =IFERROR(V58*VLOOKUP(CAPA!$C$15,Índices!$B$8:$F$1000,5)/VLOOKUP(EDATE('Multas Geradores'!W58,-1),Índices!$B$8:$F$1000,5),0) -> -159628.4073 | AA58: 399 | AB58: Hidropan | AC58: Hidropan Distribuição de Energia S.A.
J59: Desp. nº 2.495/2024 | K59: Termoceará | L59: PETROB PIE 1LN | M59: ELETROPAULO | N59: 16298 | O59: 1º LEN | P59: 2009-T15 | Q59: 261941.35 | R59: 45231 | S59: =Q59*VLOOKUP(CAPA!$C$15,Índices!$B$8:$F$1000,5)/VLOOKUP(EDATE('Multas Geradores'!R59,-1),Índices!$B$8:$F$1000,5) -> 349602.7675 | T59: 390 | U59: N | X59: =IFERROR(V59*VLOOKUP(CAPA!$C$15,Índices!$B$8:$F$1000,5)/VLOOKUP(EDATE('Multas Geradores'!W59,-1),Índices!$B$8:$F$1000,5),0) -> 0 | AA59: 88 | AB59: João Cesa | AC59: Empresa Força e Luz João Cesa Ltda.
J60: Desp. nº 2.495/2024 | K60: Termoceará | L60: PETROB PIE 1LN | M60: ENERGISA BORBOREMA | N60: 16289 | O60: 1º LEN | P60: 2009-T15 | Q60: 5193.13 | R60: 45231 | S60: =Q60*VLOOKUP(CAPA!$C$15,Índices!$B$8:$F$1000,5)/VLOOKUP(EDATE('Multas Geradores'!R60,-1),Índices!$B$8:$F$1000,5) -> 6931.06537 | T60: 6600 | U60: S | V60: =-439557.38*5193.13/(5193.13+32889.97+44113.25+279067.32) -> -6318.59444 | W60: 45809 | X60: =IFERROR(V60*VLOOKUP(CAPA!$C$15,Índices!$B$8:$F$1000,5)/VLOOKUP(EDATE('Multas Geradores'!W60,-1),Índices!$B$8:$F$1000,5),0) -> -7096.494606 | AA60: 401 | AB60: Mux Energia | AC60: Muxfeldt Marin E Cia Ltda
J61: Desp. nº 2.495/2024 | K61: Termoceara | L61: PETROB PIE 1LN | M61: ENERGISA BR | N61: 16292 | O61: 1º LEN | P61: 2009-T15 | Q61: 4981.23 | R61: 45231 | S61: =Q61*VLOOKUP(CAPA!$C$15,Índices!$B$8:$F$1000,5)/VLOOKUP(EDATE('Multas Geradores'!R61,-1),Índices!$B$8:$F$1000,5) -> 6648.250814 | T61: 1000040 | U61: S | V61: =-276681.523893658*4981.23/(4981.23+65963.88+292.48+9950.3+102128.5+6243.38+68032.54) -> -5350.370542 | W61: 45839 | X61: =IFERROR(V61*VLOOKUP(CAPA!$C$15,Índices!$B$8:$F$1000,5)/VLOOKUP(EDATE('Multas Geradores'!W61,-1),Índices!$B$8:$F$1000,5),0) -> -5943.862683 | AA61: 400 | AB61: Nova Palma | AC61: Nova Palma Energia Ltda.
J62: Desp. nº 2.495/2024 | K62: Termoceará | L62: PETROB PIE 1LN | M62: ENERGISA MR | N62: 16309 | O62: 1º LEN | P62: 2009-T15 | Q62: 8651.55 | R62: 45231 | S62: =Q62*VLOOKUP(CAPA!$C$15,Índices!$B$8:$F$1000,5)/VLOOKUP(EDATE('Multas Geradores'!R62,-1),Índices!$B$8:$F$1000,5) -> 11546.88186 | T62: 6585 | U62: S | V62: -9107.019526 | W62: 45809 | X62: =IFERROR(V62*VLOOKUP(CAPA!$C$15,Índices!$B$8:$F$1000,5)/VLOOKUP(EDATE('Multas Geradores'!W62,-1),Índices!$B$8:$F$1000,5),0) -> -10228.21065 | AA62: 370 | AB62: Roraima Energia | AC62: Roraima Energia S.A.
J63: Desp. nº 2.495/2024 | K63: Termoceará | L63: PETROB PIE 1LN | M63: ENERGISA MS | N63: 16291 | O63: 1º LEN | P63: 2009-T15 | Q63: 37268.41 | R63: 45231 | S63: =Q63*VLOOKUP(CAPA!$C$15,Índices!$B$8:$F$1000,5)/VLOOKUP(EDATE('Multas Geradores'!R63,-1),Índices!$B$8:$F$1000,5) -> 49740.67392 | T63: 404 | U63: N | X63: =IFERROR(V63*VLOOKUP(CAPA!$C$15,Índices!$B$8:$F$1000,5)/VLOOKUP(EDATE('Multas Geradores'!W63,-1),Índices!$B$8:$F$1000,5),0) -> 0 | AA63: 381 | AB63: Santa Maria | AC63: Empresa Luz e Força Santa Maria S/A
J64: Desp. nº 2.495/2024 | K64: Termoceará | L64: PETROB PIE 1LN | M64: ENERGISA MT | N64: 16307 | O64: 1º LEN | P64: 2009-T15 | Q64: 65477.12 | R64: 45231 | S64: =Q64*VLOOKUP(CAPA!$C$15,Índices!$B$8:$F$1000,5)/VLOOKUP(EDATE('Multas Geradores'!R64,-1),Índices!$B$8:$F$1000,5) -> 87389.7243 | T64: 405 | U64: N | X64: =IFERROR(V64*VLOOKUP(CAPA!$C$15,Índices!$B$8:$F$1000,5)/VLOOKUP(EDATE('Multas Geradores'!W64,-1),Índices!$B$8:$F$1000,5),0) -> 0 | AA64: 46 | AB64: Sulgipe | AC64: Companhia Sul Sergipana de Eletricidade
J65: Desp. nº 2.495/2024 | K65: Termoceará | L65: PETROB PIE 1LN | M65: ENERGISA PB | N65: 16300 | O65: 1º LEN | P65: 2009-T15 | Q65: 32889.97 | R65: 45231 | S65: =Q65*VLOOKUP(CAPA!$C$15,Índices!$B$8:$F$1000,5)/VLOOKUP(EDATE('Multas Geradores'!R65,-1),Índices!$B$8:$F$1000,5) -> 43896.94309 | T65: 6600 | U65: S | V65: =-439557.38*32889.97/(5193.13+32889.97+44113.25+279067.32) -> -40017.94324 | W65: 45809 | X65: =IFERROR(V65*VLOOKUP(CAPA!$C$15,Índices!$B$8:$F$1000,5)/VLOOKUP(EDATE('Multas Geradores'!W65,-1),Índices!$B$8:$F$1000,5),0) -> -44944.66626
J66: Desp. nº 2.495/2024 | K66: Termoceará | L66: PETROB PIE 1LN | M66: ENERGISA SE | N66: 16303 | O66: 1º LEN | P66: 2009-T15 | Q66: 29169.57 | R66: 45231 | S66: =Q66*VLOOKUP(CAPA!$C$15,Índices!$B$8:$F$1000,5)/VLOOKUP(EDATE('Multas Geradores'!R66,-1),Índices!$B$8:$F$1000,5) -> 38931.47225 | T66: 6587 | U66: N | X66: =IFERROR(V66*VLOOKUP(CAPA!$C$15,Índices!$B$8:$F$1000,5)/VLOOKUP(EDATE('Multas Geradores'!W66,-1),Índices!$B$8:$F$1000,5),0) -> 0
J67: Desp. nº 2.495/2024 | K67: Termoceará | L67: PETROB PIE 1LN | M67: ENERGISA SS | N67: 16290 | O67: 1º LEN | P67: 2009-T15 | Q67: 9950.3 | R67: 45231 | S67: =Q67*VLOOKUP(CAPA!$C$15,Índices!$B$8:$F$1000,5)/VLOOKUP(EDATE('Multas Geradores'!R67,-1),Índices!$B$8:$F$1000,5) -> 13280.27216 | T67: 1000040 | U67: S | V67: =-276681.523893658*9950.3/(4981.23+65963.88+292.48+9950.3+102128.5+6243.38+68032.54) -> -10687.67995 | W67: 45839 | X67: =IFERROR(V67*VLOOKUP(CAPA!$C$15,Índices!$B$8:$F$1000,5)/VLOOKUP(EDATE('Multas Geradores'!W67,-1),Índices!$B$8:$F$1000,5),0) -> -11873.21542
J68: Desp. nº 2.495/2024 | K68: Termoceará | L68: PETROB PIE 1LN | M68: ENERGISA TO | N68: 16306 | O68: 1º LEN | P68: 2009-T15 | Q68: 13247.46 | R68: 45231 | S68: =Q68*VLOOKUP(CAPA!$C$15,Índices!$B$8:$F$1000,5)/VLOOKUP(EDATE('Multas Geradores'!R68,-1),Índices!$B$8:$F$1000,5) -> 17680.8613 | T68: 32 | U68: S | V68: =-152142.474781536*13247.46/(13247.46+128398.18) -> -14229.18029 | W68: 45839 | X68: =IFERROR(V68*VLOOKUP(CAPA!$C$15,Índices!$B$8:$F$1000,5)/VLOOKUP(EDATE('Multas Geradores'!W68,-1),Índices!$B$8:$F$1000,5),0) -> -15807.5582
J69: Desp. nº 2.495/2024 | K69: Termoceará | L69: PETROB PIE 1LN | M69: ENERGISA VP | N69: 16308 | O69: 1º LEN | P69: 2009-T15 | Q69: 6243.38 | R69: 45231 | S69: =Q69*VLOOKUP(CAPA!$C$15,Índices!$B$8:$F$1000,5)/VLOOKUP(EDATE('Multas Geradores'!R69,-1),Índices!$B$8:$F$1000,5) -> 8332.792537 | T69: 1000040 | U69: S | V69: =-276681.523893658*6243.38/(4981.23+65963.88+292.48+9950.3+102128.5+6243.38+68032.54) -> -6706.053813 | W69: 45839 | X69: =IFERROR(V69*VLOOKUP(CAPA!$C$15,Índices!$B$8:$F$1000,5)/VLOOKUP(EDATE('Multas Geradores'!W69,-1),Índices!$B$8:$F$1000,5),0) -> -7449.925701
J70: Desp. nº 2.495/2024 | K70: Termoceará | L70: PETROB PIE 1LN | M70: ESCELSA | N70: 16282 | O70: 1º LEN | P70: 2009-T15 | Q70: 74919.9 | R70: 45231 | S70: =Q70*VLOOKUP(CAPA!$C$15,Índices!$B$8:$F$1000,5)/VLOOKUP(EDATE('Multas Geradores'!R70,-1),Índices!$B$8:$F$1000,5) -> 99992.62957 | T70: 380 | U70: S | V70: =-1385727.16615225*74919.9/(74919.9+1188922.8) -> -82145.1441 | W70: 01/082025 | X70: =IFERROR(V70*VLOOKUP(CAPA!$C$15,Índices!$B$8:$F$1000,5)/VLOOKUP(EDATE('Multas Geradores'!W70,-1),Índices!$B$8:$F$1000,5),0) -> 0
J71: Desp. nº 2.495/2024 | K71: Termoceará | L71: PETROB PIE 1LN | M71: LIGHT | N71: 16284 | O71: 1º LEN | P71: 2009-T15 | Q71: 173783.63 | R71: 45231 | S71: =Q71*VLOOKUP(CAPA!$C$15,Índices!$B$8:$F$1000,5)/VLOOKUP(EDATE('Multas Geradores'!R71,-1),Índices!$B$8:$F$1000,5) -> 231942.1427 | T71: =VLOOKUP(M71,$Z$7:$AD$64,2) -> 382 | U71: N | X71: =IFERROR(V71*VLOOKUP(CAPA!$C$15,Índices!$B$8:$F$1000,5)/VLOOKUP(EDATE('Multas Geradores'!W71,-1),Índices!$B$8:$F$1000,5),0) -> 0
J72: Desp. nº 2.495/2024 | K72: Termoceará | L72: PETROB PIE 1LN | M72: RGE SUL | N72: 16287 | O72: 1º LEN | P72: 2009-T15 | Q72: 90322.36 | R72: 45231 | S72: =Q72*VLOOKUP(CAPA!$C$15,Índices!$B$8:$F$1000,5)/VLOOKUP(EDATE('Multas Geradores'!R72,-1),Índices!$B$8:$F$1000,5) -> 120549.6842 | T72: 1000042 | U72: S | V72: =-928794.33*90322.36/(90322.36+797751.65+3208.42) -> -94123.80747 | W72: 45809 | X72: =IFERROR(V72*VLOOKUP(CAPA!$C$15,Índices!$B$8:$F$1000,5)/VLOOKUP(EDATE('Multas Geradores'!W72,-1),Índices!$B$8:$F$1000,5),0) -> -105711.6576
J73: Desp. nº 2.495/2024 | K73: Termoceará | L73: PETROB PIE 1LN | M73: AMPLA | N73: 16330 | O73: 1º LEN | P73: 2010-T15 | Q73: 882724.17 | R73: 45231 | S73: =Q73*VLOOKUP(CAPA!$C$15,Índices!$B$8:$F$1000,5)/VLOOKUP(EDATE('Multas Geradores'!R73,-1),Índices!$B$8:$F$1000,5) -> 1178137.063 | T73: 383 | U73: N | X73: =IFERROR(V73*VLOOKUP(CAPA!$C$15,Índices!$B$8:$F$1000,5)/VLOOKUP(EDATE('Multas Geradores'!W73,-1),Índices!$B$8:$F$1000,5),0) -> 0
J74: Desp. nº 2.495/2024 | K74: Termoceará | L74: PETROB PIE 1LN | M74: BANDEIRANTE | N74: 16332 | O74: 1º LEN | P74: 2010-T15 | Q74: 969538.33 | R74: 45231 | S74: =Q74*VLOOKUP(CAPA!$C$15,Índices!$B$8:$F$1000,5)/VLOOKUP(EDATE('Multas Geradores'!R74,-1),Índices!$B$8:$F$1000,5) -> 1294004.491 | T74: 391 | U74: N | X74: =IFERROR(V74*VLOOKUP(CAPA!$C$15,Índices!$B$8:$F$1000,5)/VLOOKUP(EDATE('Multas Geradores'!W74,-1),Índices!$B$8:$F$1000,5),0) -> 0
J75: Desp. nº 2.495/2024 | K75: Termoceará | L75: PETROB PIE 1LN | M75: CEAL | N75: 16328 | O75: 1º LEN | P75: 2010-T15 | Q75: 114293.77 | R75: 45231 | S75: =Q75*VLOOKUP(CAPA!$C$15,Índices!$B$8:$F$1000,5)/VLOOKUP(EDATE('Multas Geradores'!R75,-1),Índices!$B$8:$F$1000,5) -> 152543.3777 | T75: 44 | U75: N | X75: =IFERROR(V75*VLOOKUP(CAPA!$C$15,Índices!$B$8:$F$1000,5)/VLOOKUP(EDATE('Multas Geradores'!W75,-1),Índices!$B$8:$F$1000,5),0) -> 0
J76: Desp. nº 2.495/2024 | K76: Termoceará | L76: PETROB PIE 1LN | M76: CEEE DISTRIB | N76: 16336 | O76: 1º LEN | P76: 2010-T15 | Q76: 817139.55 | R76: 45231 | S76: =Q76*VLOOKUP(CAPA!$C$15,Índices!$B$8:$F$1000,5)/VLOOKUP(EDATE('Multas Geradores'!R76,-1),Índices!$B$8:$F$1000,5) -> 1090603.863 | T76: 5707 | U76: N | X76: =IFERROR(V76*VLOOKUP(CAPA!$C$15,Índices!$B$8:$F$1000,5)/VLOOKUP(EDATE('Multas Geradores'!W76,-1),Índices!$B$8:$F$1000,5),0) -> 0
J77: Desp. nº 2.495/2024 | K77: Termoceará | L77: PETROB PIE 1LN | M77: CELESC DIST | N77: 16312 | O77: 1º LEN | P77: 2010-T15 | Q77: 1717163.29 | R77: 45231 | S77: =Q77*VLOOKUP(CAPA!$C$15,Índices!$B$8:$F$1000,5)/VLOOKUP(EDATE('Multas Geradores'!R77,-1),Índices!$B$8:$F$1000,5) -> 2291829.978 | T77: 5697 | U77: N | X77: =IFERROR(V77*VLOOKUP(CAPA!$C$15,Índices!$B$8:$F$1000,5)/VLOOKUP(EDATE('Multas Geradores'!W77,-1),Índices!$B$8:$F$1000,5),0) -> 0
J78: Desp. nº 2.495/2024 | K78: Termoceará | L78: PETROB PIE 1LN | M78: CELG | N78: 16335 | O78: 1º LEN | P78: 2010-T15 | Q78: 885275.08 | R78: 45231 | S78: =Q78*VLOOKUP(CAPA!$C$15,Índices!$B$8:$F$1000,5)/VLOOKUP(EDATE('Multas Geradores'!R78,-1),Índices!$B$8:$F$1000,5) -> 1181541.662 | T78: 6072 | U78: N | X78: =IFERROR(V78*VLOOKUP(CAPA!$C$15,Índices!$B$8:$F$1000,5)/VLOOKUP(EDATE('Multas Geradores'!W78,-1),Índices!$B$8:$F$1000,5),0) -> 0
J79: Desp. nº 2.495/2024 | K79: Termoceará | L79: PETROB PIE 1LN | M79: CELPA | N79: 16317 | O79: 1º LEN | P79: 2010-T15 | Q79: 941775.92 | R79: 45231 | S79: =Q79*VLOOKUP(CAPA!$C$15,Índices!$B$8:$F$1000,5)/VLOOKUP(EDATE('Multas Geradores'!R79,-1),Índices!$B$8:$F$1000,5) -> 1256951.1 | T79: 371 | U79: N | X79: =IFERROR(V79*VLOOKUP(CAPA!$C$15,Índices!$B$8:$F$1000,5)/VLOOKUP(EDATE('Multas Geradores'!W79,-1),Índices!$B$8:$F$1000,5),0) -> 0
J80: Desp. nº 2.495/2024 | K80: Termoceará | L80: PETROB PIE 1LN | M80: CELPE | N80: 16311 | O80: 1º LEN | P80: 2010-T15 | Q80: 1119228.98 | R80: 45231 | S80: =Q80*VLOOKUP(CAPA!$C$15,Índices!$B$8:$F$1000,5)/VLOOKUP(EDATE('Multas Geradores'!R80,-1),Índices!$B$8:$F$1000,5) -> 1493790.686 | T80: 43 | U80: N | X80: =IFERROR(V80*VLOOKUP(CAPA!$C$15,Índices!$B$8:$F$1000,5)/VLOOKUP(EDATE('Multas Geradores'!W80,-1),Índices!$B$8:$F$1000,5),0) -> 0
J81: Desp. nº 2.495/2024 | K81: Termoceará | L81: PETROB PIE 1LN | M81: CEMAR | N81: 16341 | O81: 1º LEN | P81: 2010-T15 | Q81: 592386.96 | R81: 45231 | S81: =Q81*VLOOKUP(CAPA!$C$15,Índices!$B$8:$F$1000,5)/VLOOKUP(EDATE('Multas Geradores'!R81,-1),Índices!$B$8:$F$1000,5) -> 790635.4634 | T81: 37 | U81: N | X81: =IFERROR(V81*VLOOKUP(CAPA!$C$15,Índices!$B$8:$F$1000,5)/VLOOKUP(EDATE('Multas Geradores'!W81,-1),Índices!$B$8:$F$1000,5),0) -> 0
J82: Desp. nº 2.495/2024 | K82: Termoceará | L82: PETROB PIE 1LN | M82: CEMIG DISTRIB | N82: 16325 | O82: 1º LEN | P82: 2010-T15 | Q82: 2529782.66 | R82: 45231 | S82: =Q82*VLOOKUP(CAPA!$C$15,Índices!$B$8:$F$1000,5)/VLOOKUP(EDATE('Multas Geradores'!R82,-1),Índices!$B$8:$F$1000,5) -> 3376400.935 | T82: 4950 | U82: N | X82: =IFERROR(V82*VLOOKUP(CAPA!$C$15,Índices!$B$8:$F$1000,5)/VLOOKUP(EDATE('Multas Geradores'!W82,-1),Índices!$B$8:$F$1000,5),0) -> 0
J83: Desp. nº 2.495/2024 | K83: Termoceará | L83: PETROB PIE 1LN | M83: CEPISA | N83: 16318 | O83: 1º LEN | P83: 2010-T15 | Q83: 336873.28 | R83: 45231 | S83: =Q83*VLOOKUP(CAPA!$C$15,Índices!$B$8:$F$1000,5)/VLOOKUP(EDATE('Multas Geradores'!R83,-1),Índices!$B$8:$F$1000,5) -> 449611.453 | T83: 4950 | U83: N | X83: =IFERROR(V83*VLOOKUP(CAPA!$C$15,Índices!$B$8:$F$1000,5)/VLOOKUP(EDATE('Multas Geradores'!W83,-1),Índices!$B$8:$F$1000,5),0) -> 0
J84: Desp. nº 2.495/2024 | K84: Termoceará | L84: PETROB PIE 1LN | M84: COELBA | N84: 16326 | O84: 1º LEN | P84: 2010-T15 | Q84: 1598898.52 | R84: 45231 | S84: =Q84*VLOOKUP(CAPA!$C$15,Índices!$B$8:$F$1000,5)/VLOOKUP(EDATE('Multas Geradores'!R84,-1),Índices!$B$8:$F$1000,5) -> 2133986.663 | T84: 47 | U84: S | V84: =-1801895.84088413*1598898.52/(185312.57+1598898.52) -> -1614746.489 | W84: 45748 | X84: =IFERROR(V84*VLOOKUP(CAPA!$C$15,Índices!$B$8:$F$1000,5)/VLOOKUP(EDATE('Multas Geradores'!W84,-1),Índices!$B$8:$F$1000,5),0) -> -1853561.603
J85: Desp. nº 2.495/2024 | K85: Termoceará | L85: PETROB PIE 1LN | M85: COELCE | N85: 16313 | O85: 1º LEN | P85: 2010-T15 | Q85: 978924.04 | R85: 45231 | S85: =Q85*VLOOKUP(CAPA!$C$15,Índices!$B$8:$F$1000,5)/VLOOKUP(EDATE('Multas Geradores'!R85,-1),Índices!$B$8:$F$1000,5) -> 1306531.227 | T85: 39 | U85: N | X85: =IFERROR(V85*VLOOKUP(CAPA!$C$15,Índices!$B$8:$F$1000,5)/VLOOKUP(EDATE('Multas Geradores'!W85,-1),Índices!$B$8:$F$1000,5),0) -> 0
J86: Desp. nº 2.495/2024 | K86: Termoceará | L86: PETROB PIE 1LN | M86: COPEL DISTRIB | N86: 16333 | O86: 1º LEN | P86: 2010-T15 | Q86: 1852455.66 | R86: 45231 | S86: =Q86*VLOOKUP(CAPA!$C$15,Índices!$B$8:$F$1000,5)/VLOOKUP(EDATE('Multas Geradores'!R86,-1),Índices!$B$8:$F$1000,5) -> 2472399.357 | T86: 2866 | U86: N | X86: =IFERROR(V86*VLOOKUP(CAPA!$C$15,Índices!$B$8:$F$1000,5)/VLOOKUP(EDATE('Multas Geradores'!W86,-1),Índices!$B$8:$F$1000,5),0) -> 0
J87: Desp. nº 2.495/2024 | K87: Termoceará | L87: PETROB PIE 1LN | M87: COSERN | N87: 16315 | O87: 1º LEN | P87: 2010-T15 | Q87: 639559.39 | R87: 45231 | S87: =Q87*VLOOKUP(CAPA!$C$15,Índices!$B$8:$F$1000,5)/VLOOKUP(EDATE('Multas Geradores'!R87,-1),Índices!$B$8:$F$1000,5) -> 853594.6414 | T87: 40 | U87: N | X87: =IFERROR(V87*VLOOKUP(CAPA!$C$15,Índices!$B$8:$F$1000,5)/VLOOKUP(EDATE('Multas Geradores'!W87,-1),Índices!$B$8:$F$1000,5),0) -> 0
J88: Desp. nº 2.495/2024 | K88: Termoceará | L88: PETROB PIE 1LN | M88: CPFL LESTE PAULISTA | N88: 245806 | O88: 1º LEN | P88: 2010-T15 | Q88: 68.22 | R88: 45231 | S88: =Q88*VLOOKUP(CAPA!$C$15,Índices!$B$8:$F$1000,5)/VLOOKUP(EDATE('Multas Geradores'!R88,-1),Índices!$B$8:$F$1000,5) -> 91.05053783 | T88: 1000041 | U88: S | V88: =-82230.1*68.22/(8518.79+72840.76+68.22) -> -68.89219024 | W88: 45717 | X88: =IFERROR(V88*VLOOKUP(CAPA!$C$15,Índices!$B$8:$F$1000,5)/VLOOKUP(EDATE('Multas Geradores'!W88,-1),Índices!$B$8:$F$1000,5),0) -> -79.84345893
J89: Desp. nº 2.495/2024 | K89: Termoceará | L89: PETROB PIE 1LN | M89: CPFL PAULISTA | N89: 245945 | O89: 1º LEN | P89: 2010-T15 | Q89: 182.83 | R89: 45231 | S89: =Q89*VLOOKUP(CAPA!$C$15,Índices!$B$8:$F$1000,5)/VLOOKUP(EDATE('Multas Geradores'!R89,-1),Índices!$B$8:$F$1000,5) -> 244.0159752 | T89: 63 | U89: N | V89: 0 | W89: 45748 | X89: =IFERROR(V89*VLOOKUP(CAPA!$C$15,Índices!$B$8:$F$1000,5)/VLOOKUP(EDATE('Multas Geradores'!W89,-1),Índices!$B$8:$F$1000,5),0) -> 0
J90: Desp. nº 2.495/2024 | K90: Termoceará | L90: PETROB PIE 1LN | M90: CPFL PIRATINGA | N90: 246009 | O90: 1º LEN | P90: 2010-T15 | Q90: 1117.55 | R90: 45231 | S90: =Q90*VLOOKUP(CAPA!$C$15,Índices!$B$8:$F$1000,5)/VLOOKUP(EDATE('Multas Geradores'!R90,-1),Índices!$B$8:$F$1000,5) -> 1491.549818 | T90: 2937 | U90: N | X90: =IFERROR(V90*VLOOKUP(CAPA!$C$15,Índices!$B$8:$F$1000,5)/VLOOKUP(EDATE('Multas Geradores'!W90,-1),Índices!$B$8:$F$1000,5),0) -> 0
J91: Desp. nº 2.495/2024 | K91: Termoceará | L91: PETROB PIE 1LN | M91: CPFL SANTA CRUZ | N91: 16320 | O91: 1º LEN | P91: 2010-T15 | Q91: 72840.76 | R91: 45231 | S91: =Q91*VLOOKUP(CAPA!$C$15,Índices!$B$8:$F$1000,5)/VLOOKUP(EDATE('Multas Geradores'!R91,-1),Índices!$B$8:$F$1000,5) -> 97217.68358 | T91: 1000041 | U91: S | V91: =-82230.1*72840.76/(8518.79+72840.76+68.22) -> -73558.47985 | W91: 45717 | X91: =IFERROR(V91*VLOOKUP(CAPA!$C$15,Índices!$B$8:$F$1000,5)/VLOOKUP(EDATE('Multas Geradores'!W91,-1),Índices!$B$8:$F$1000,5),0) -> -85251.51319
J92: Desp. nº 2.495/2024 | K92: Termoceará | L92: PETROB PIE 1LN | M92: ELEKTRO | N92: 16327 | O92: 1º LEN | P92: 2010-T15 | Q92: 935155.36 | R92: 45231 | S92: =Q92*VLOOKUP(CAPA!$C$15,Índices!$B$8:$F$1000,5)/VLOOKUP(EDATE('Multas Geradores'!R92,-1),Índices!$B$8:$F$1000,5) -> 1248114.9 | T92: 385 | U92: S | V92: =-1153405.38*935155.36/(135021.97+935155.36) -> -1007882.706 | W92: 45870 | X92: =IFERROR(V92*VLOOKUP(CAPA!$C$15,Índices!$B$8:$F$1000,5)/VLOOKUP(EDATE('Multas Geradores'!W92,-1),Índices!$B$8:$F$1000,5),0) -> -1105578.305
J93: Desp. nº 2.495/2024 | K93: Termoceará | L93: PETROB PIE 1LN | M93: ELETROPAULO | N93: 16329 | O93: 1º LEN | P93: 2010-T15 | Q93: 2489755.81 | R93: 45231 | S93: =Q93*VLOOKUP(CAPA!$C$15,Índices!$B$8:$F$1000,5)/VLOOKUP(EDATE('Multas Geradores'!R93,-1),Índices!$B$8:$F$1000,5) -> 3322978.68 | T93: 390 | U93: N | X93: =IFERROR(V93*VLOOKUP(CAPA!$C$15,Índices!$B$8:$F$1000,5)/VLOOKUP(EDATE('Multas Geradores'!W93,-1),Índices!$B$8:$F$1000,5),0) -> 0
J94: Desp. nº 2.495/2024 | K94: Termoceará | L94: PETROB PIE 1LN | M94: ENERGISA BORBOREMA | N94: 16321 | O94: 1º LEN | P94: 2010-T15 | Q94: 44113.25 | R94: 45231 | S94: =Q94*VLOOKUP(CAPA!$C$15,Índices!$B$8:$F$1000,5)/VLOOKUP(EDATE('Multas Geradores'!R94,-1),Índices!$B$8:$F$1000,5) -> 58876.21134 | T94: 6600 | U94: S | V94: =-439557.38*44113.25/(5193.13+32889.97+44113.25+279067.32) -> -53673.5526 | W94: 45809 | X94: =IFERROR(V94*VLOOKUP(CAPA!$C$15,Índices!$B$8:$F$1000,5)/VLOOKUP(EDATE('Multas Geradores'!W94,-1),Índices!$B$8:$F$1000,5),0) -> -60281.45659
J95: Desp. nº 2.495/2024 | K95: 1 | L95: PETROB PIE 1LN | M95: ENERGISA BR | N95: 16324 | O95: 1º LEN | P95: 2010-T15 | Q95: 65963.88 | R95: 45231 | S95: =Q95*VLOOKUP(CAPA!$C$15,Índices!$B$8:$F$1000,5)/VLOOKUP(EDATE('Multas Geradores'!R95,-1),Índices!$B$8:$F$1000,5) -> 88039.38363 | T95: 1000040 | U95: S | V95: =-276681.523893658*65963.88/(4981.23+65963.88+292.48+9950.3+102128.5+6243.38+68032.54) -> -70852.21931 | W95: 45839 | X95: =IFERROR(V95*VLOOKUP(CAPA!$C$15,Índices!$B$8:$F$1000,5)/VLOOKUP(EDATE('Multas Geradores'!W95,-1),Índices!$B$8:$F$1000,5),0) -> -78711.53204
J96: Desp. nº 2.495/2024 | K96: Termoceará | L96: PETROB PIE 1LN | M96: ENERGISA MS | N96: 16323 | O96: 1º LEN | P96: 2010-T15 | Q96: 296566.55 | R96: 45231 | S96: =Q96*VLOOKUP(CAPA!$C$15,Índices!$B$8:$F$1000,5)/VLOOKUP(EDATE('Multas Geradores'!R96,-1),Índices!$B$8:$F$1000,5) -> 395815.6535 | T96: 404 | U96: N | X96: =IFERROR(V96*VLOOKUP(CAPA!$C$15,Índices!$B$8:$F$1000,5)/VLOOKUP(EDATE('Multas Geradores'!W96,-1),Índices!$B$8:$F$1000,5),0) -> 0
J97: Desp. nº 2.495/2024 | K97: Termoceará | L97: PETROB PIE 1LN | M97: ENERGISA MT | N97: 16338 | O97: 1º LEN | P97: 2010-T15 | Q97: 788678.48 | R97: 45231 | S97: =Q97*VLOOKUP(CAPA!$C$15,Índices!$B$8:$F$1000,5)/VLOOKUP(EDATE('Multas Geradores'!R97,-1),Índices!$B$8:$F$1000,5) -> 1052617.997 | T97: 405 | U97: N | X97: =IFERROR(V97*VLOOKUP(CAPA!$C$15,Índices!$B$8:$F$1000,5)/VLOOKUP(EDATE('Multas Geradores'!W97,-1),Índices!$B$8:$F$1000,5),0) -> 0
J98: Desp. nº 2.495/2024 | K98: Termoceará | L98: PETROB PIE 1LN | M98: ENERGISA NA | N98: 245908 | O98: 1º LEN | P98: 2010-T15 | Q98: 292.48 | R98: 45231 | S98: =Q98*VLOOKUP(CAPA!$C$15,Índices!$B$8:$F$1000,5)/VLOOKUP(EDATE('Multas Geradores'!R98,-1),Índices!$B$8:$F$1000,5) -> 390.3614967 | T98: 1000040 | U98: S | V98: =-276681.523893658*292.48/(4981.23+65963.88+292.48+9950.3+102128.5+6243.38+68032.54) -> -314.1546116 | W98: 45839 | X98: =IFERROR(V98*VLOOKUP(CAPA!$C$15,Índices!$B$8:$F$1000,5)/VLOOKUP(EDATE('Multas Geradores'!W98,-1),Índices!$B$8:$F$1000,5),0) -> -349.0023463
J99: Desp. nº 2.495/2024 | K99: Termoceará | L99: PETROB PIE 1LN | M99: ENERGISA PB | N99: 16331 | O99: 1º LEN | P99: 2010-T15 | Q99: 279067.32 | R99: 45231 | S99: =Q99*VLOOKUP(CAPA!$C$15,Índices!$B$8:$F$1000,5)/VLOOKUP(EDATE('Multas Geradores'!R99,-1),Índices!$B$8:$F$1000,5) -> 372460.1228 | T99: 6600 | U99: S | V99: =-439557.38*279067.32/(5193.13+32889.97+44113.25+279067.32) -> -339547.2897 | W99: 45809 | X99: =IFERROR(V99*VLOOKUP(CAPA!$C$15,Índices!$B$8:$F$1000,5)/VLOOKUP(EDATE('Multas Geradores'!W99,-1),Índices!$B$8:$F$1000,5),0) -> -381349.924
J100: Desp. nº 2.495/2024 | K100: Termoceará | L100: PETROB PIE 1LN | M100: ENERGISA SE | N100: 16334 | O100: 1º LEN | P100: 2010-T15 | Q100: 174425.31 | R100: 45231 | S100: =Q100*VLOOKUP(CAPA!$C$15,Índices!$B$8:$F$1000,5)/VLOOKUP(EDATE('Multas Geradores'!R100,-1),Índices!$B$8:$F$1000,5) -> 232798.5677 | T100: 6587 | U100: N | X100: =IFERROR(V100*VLOOKUP(CAPA!$C$15,Índices!$B$8:$F$1000,5)/VLOOKUP(EDATE('Multas Geradores'!W100,-1),Índices!$B$8:$F$1000,5),0) -> 0
J101: Desp. nº 2.495/2024 | K101: Termoceará | L101: PETROB PIE 1LN | M101: ENERGISA SS | N101: 16322 | O101: 1º LEN | P101: 2010-T15 | Q101: 102128.5 | R101: 45231 | S101: =Q101*VLOOKUP(CAPA!$C$15,Índices!$B$8:$F$1000,5)/VLOOKUP(EDATE('Multas Geradores'!R101,-1),Índices!$B$8:$F$1000,5) -> 136306.8727 | T101: 1000040 | U101: S | V101: =-276681.523893658*102128.5/(4981.23+65963.88+292.48+9950.3+102128.5+6243.38+68032.54) -> -109696.8656 | W101: 45839 | X101: =IFERROR(V101*VLOOKUP(CAPA!$C$15,Índices!$B$8:$F$1000,5)/VLOOKUP(EDATE('Multas Geradores'!W101,-1),Índices!$B$8:$F$1000,5),0) -> -121865.0374
J102: Desp. nº 2.495/2024 | K102: Termoceará | L102: PETROB PIE 1LN | M102: ENERGISA TO | N102: 16337 | O102: 1º LEN | P102: 2010-T15 | Q102: 128398.18 | R102: 45231 | S102: =Q102*VLOOKUP(CAPA!$C$15,Índices!$B$8:$F$1000,5)/VLOOKUP(EDATE('Multas Geradores'!R102,-1),Índices!$B$8:$F$1000,5) -> 171367.9763 | T102: 32 | U102: S | V102: =-152142.474781536*128398.18/(13247.46+128398.18) -> -137913.2945 | W102: 45839 | X102: =IFERROR(V102*VLOOKUP(CAPA!$C$15,Índices!$B$8:$F$1000,5)/VLOOKUP(EDATE('Multas Geradores'!W102,-1),Índices!$B$8:$F$1000,5),0) -> -153211.3857
J103: Desp. nº 2.495/2024 | K103: Termoceará | L103: PETROB PIE 1LN | M103: ENERGISA VP | N103: 16339 | O103: 1º LEN | P103: 2010-T15 | Q103: 68032.54 | R103: 45231 | S103: =Q103*VLOOKUP(CAPA!$C$15,Índices!$B$8:$F$1000,5)/VLOOKUP(EDATE('Multas Geradores'!R103,-1),Índices!$B$8:$F$1000,5) -> 90800.34238 | T103: 1000040 | U103: S | V103: =-276681.523893658*68032.54/(4981.23+65963.88+292.48+9950.3+102128.5+6243.38+68032.54) -> -73074.18005 | W103: 45839 | X103: =IFERROR(V103*VLOOKUP(CAPA!$C$15,Índices!$B$8:$F$1000,5)/VLOOKUP(EDATE('Multas Geradores'!W103,-1),Índices!$B$8:$F$1000,5),0) -> -81179.96474
J104: Desp. nº 2.495/2024 | K104: Termoceará | L104: PETROB PIE 1LN | M104: ESCELSA | N104: 16314 | O104: 1º LEN | P104: 2010-T15 | Q104: 1188927.8 | R104: 45231 | S104: =Q104*VLOOKUP(CAPA!$C$15,Índices!$B$8:$F$1000,5)/VLOOKUP(EDATE('Multas Geradores'!R104,-1),Índices!$B$8:$F$1000,5) -> 1586814.946 | T104: 380 | U104: S | V104: =-1385727.16615225*1188922.8/(74919.9+1188922.8) -> -1303582.022 | W104: 45870 | X104: =IFERROR(V104*VLOOKUP(CAPA!$C$15,Índices!$B$8:$F$1000,5)/VLOOKUP(EDATE('Multas Geradores'!W104,-1),Índices!$B$8:$F$1000,5),0) -> -1429940.203
J105: Desp. nº 2.495/2024 | K105: Termoceará | L105: PETROB PIE 1LN | M105: LIGHT | N105: 16316 | O105: 1º LEN | P105: 2010-T15 | Q105: 966965.63 | R105: 45231 | S105: =Q105*VLOOKUP(CAPA!$C$15,Índices!$B$8:$F$1000,5)/VLOOKUP(EDATE('Multas Geradores'!R105,-1),Índices!$B$8:$F$1000,5) -> 1290570.81 | T105: 382 | U105: N | X105: =IFERROR(V105*VLOOKUP(CAPA!$C$15,Índices!$B$8:$F$1000,5)/VLOOKUP(EDATE('Multas Geradores'!W105,-1),Índices!$B$8:$F$1000,5),0) -> 0
J106: Desp. nº 2.495/2024 | K106: Termoceará | L106: PETROB PIE 1LN | M106: RGE DIST | N106: 245979 | O106: 1º LEN | P106: 2010-T15 | Q106: 3208.42 | R106: 45231 | S106: =Q106*VLOOKUP(CAPA!$C$15,Índices!$B$8:$F$1000,5)/VLOOKUP(EDATE('Multas Geradores'!R106,-1),Índices!$B$8:$F$1000,5) -> 4282.151372 | T106: 382 | U106: S | V106: =-928794.33*3208.42/(90322.36+797751.65+3208.42) -> -3343.454559 | W106: 45809 | X106: =IFERROR(V106*VLOOKUP(CAPA!$C$15,Índices!$B$8:$F$1000,5)/VLOOKUP(EDATE('Multas Geradores'!W106,-1),Índices!$B$8:$F$1000,5),0) -> -3755.076777
J107: Desp. nº 2.495/2024 | K107: Termoceará | L107: PETROB PIE 1LN | M107: RGE SUL | N107: 16319 | O107: 1º LEN | P107: 2010-T15 | Q107: 797751.65 | R107: 45231 | S107: =Q107*VLOOKUP(CAPA!$C$15,Índices!$B$8:$F$1000,5)/VLOOKUP(EDATE('Multas Geradores'!R107,-1),Índices!$B$8:$F$1000,5) -> 1064727.599 | T107: 1000042 | U107: S | V107: =-928794.33*797751.65/(90322.36+797751.65+3208.42) -> -831327.068 | W107: 45809 | X107: =IFERROR(V107*VLOOKUP(CAPA!$C$15,Índices!$B$8:$F$1000,5)/VLOOKUP(EDATE('Multas Geradores'!W107,-1),Índices!$B$8:$F$1000,5),0) -> -933674.112

Sheet BD
B1: Banco de Dados | M1: Anexo II | N1: =Resultado!$D$6 -> 0.01622201504
B2: =CAPA!B6 -> EMS | M2: Anexo I | N2: =Resultado!$D$8 -> 0.07978611764
B5: Informações do ano anterior | G5: Dados de abertura (Neutralidade e CVA saldo a compensar) | L5: Dados de Energia | S5: Dados para Revisão | AA5: BMP_RIT | AK5: Avaliação Parcela B | AQ5: Compensação DIC FIC | BF5: Financeiro Desconcatenação Permissionárias
P6: 101151 | Q6: NT 5/2026 - REH 3.567/26
B7: Encargos | G7: Encargo | H7: Valor | I7: Norma | L7: Cotas | M7: Valor da "Cota" | N7: Ano | O7: Custo Médio da Cota | P7: Energia MWh | S7: item | T7: Descrição | U7: Detalhe | V7: Valor | AA7: IDAGENTE | AB7: ANO | AC7: SIGLA | AD7: ContaPrincipal | AE7: ContaDetalhada | AF7: CONTA | AG7: SALDO | AK7: Ano | AL7: DataRevREa | AM7: item | AN7: valor | AQ7: Competência | AR7: IdSariAcessado | AS7: IdSariAcessante | AT7: IdcTipoPontoConexao | AU7: VlrCompensacao | AV7: VlrDIC | AW7: VlrDMICMensal | AX7: VrlCompensasao_compensado | AY7: VlrDIC_compensado | AZ7: VlrDMICMensal_compensado | BA7: VlrCompensacao_a_Compensar | BB7: VlrDIC_a_compensar | BC7: VlrDMICMensal_a_compensar | BD7: Vlr_a_Compensar | BF7: IdAg_acessado | BG7: Sigla_acessada | BH7: IdAg_acessante | BI7: Sigla_acessante | BJ7: Competência | BK7: AnoRef | BL7: NomSubgrupo | BM7: DetalheTarifario | BN7: Posto | BO7: Vlr_Mercado | BP7: Tarifa | BQ7: Tarifa_ant | BR7: Vig_ini_acessada | BS7: Vig_fin_acessada | BT7: Competencia_seg | BU7: Vig_ini_acessante | BV7: Desconto | BW7: Desconto_ant | BX7: Financeiro
B8: CDE Covid TE | C8: 0 | G8: CDE Eletrobras | H8: -3078664.45 | I8: DSP 1.536/2025 | N8: 2026 | O8: 361.56 | AA8: 404 | AB8: 2023 | AC8: EMS | AD8: Pessoal | AE8: Remuneração | AF8: 610530501 | AG8: 5030308.89 | AK8: 2025 | AL8: 23839 | AM8: ANEXO II | AN8: 0.03630198072 | AQ8: 45689 | AR8: 5216 | AS8: 404 | AT8: D | AU8: 0 | AV8: 1.46 | AW8: 0 | AX8: 0 | AY8: 0 | AZ8: 0 | BA8: 0 | BB8: -1.46 | BC8: 0 | BD8: -1.46
B9: CDE Covid TUSD | C9: 0 | G9: CDE | H9: 605808745 | I9: REH 3.564/2025 | AA9: 404 | AB9: 2023 | AC9: EMS | AD9: Pessoal | AE9: Encargos | AF9: 610530502 | AG9: 28016431.07 | AK9: 2025 | AL9: 23839 | AM9: CONSUMIDOR DISTRIBUIÇÃO | AN9: 27799.268 | AQ9: 45627 | AR9: 405 | AS9: 404 | AT9: D | AU9: 261207.33 | AV9: 49.95 | AW9: 16.27 | AX9: 0 | AY9: 0 | AZ9: 0 | BA9: -261207.33 | BB9: -49.95 | BC9: -16.27 | BD9: -261257.28
B10: TFSEE | C10: 8497644.193 | G10: CFURH | AA10: 404 | AB10: 2023 | AC10: EMS | AD10: Pessoal | AE10: Previdência Privada - Corrente | AF10: 610530503 | AG10: -2982176.78 | AK10: 2025 | AL10: 23839 | AM10: CONSUMIDOR LIVRE | AN10: 2053542.739 | AQ10: 45627 | AR10: 5216 | AS10: 404 | AT10: D | AU10: 0 | AV10: 0.73 | AW10: 0.73 | AX10: 0 | AY10: 0 | AZ10: 0 | BA10: 0 | BB10: -0.73 | BC10: -0.73 | BD10: -0.73
B11: CDE | C11: 511870799.3 | G11: PROINFA | H11: 58327938.51 | I11: REH 3.558/2025 | L11: Ano | M11: Cota Itaipu | AA11: 404 | AB11: 2023 | AC11: EMS | AD11: Pessoal | AE11: Despesas Rescisórias | AF11: 610530506 | AG11: 0 | AK11: 2025 | AL11: 23839 | AM11: ENCARGO | AN11: 840108946.4 | AQ11: 45323 | AR11: 5216 | AS11: 404 | AT11: D | AU11: 0 | AV11: 0.37 | AW11: 0 | AX11: 0 | AY11: 0 | AZ11: 0 | BA11: 0 | BB11: -0.37 | BC11: 0 | BD11: -0.37
B12: ESS/ERR | C12: 99619921.57 | G12: ONS | H12: 136380.36 | I12: Contribuição 2025 | L12: 2024 | M12: 0.01891362148 | AA12: 404 | AB12: 2023 | AC12: EMS | AD12: Pessoal | AE12: Participação nos Lucros e Resultados - PLR | AF12: 610530507 | AG12: 16544762.19 | AK12: 2025 | AL12: 23839 | AM12: ENERGIA | AN12: 1353502591 | AQ12: 45261 | AR12: 405 | AS12: 404 | AT12: D | AU12: 0 | AV12: 1.38 | AW12: 0.33 | AX12: 0 | AY12: 0 | AZ12: 0 | BA12: 0 | BB12: -1.38 | BC12: -0.33 | BD12: -1.38
B13: PROINFA | C13: 73921606.78 | G13: ERCAP | H13: 21586034.9 | I13: DSP 3.880/2025 | L13: 2025 | M13: 0.01890966 | AA13: 404 | AB13: 2023 | AC13: EMS | AD13: Pessoal | AE13: Outros Benefícios - Corrente | AF13: 610530508 | AG13: 50837596.97 | AK13: 2025 | AL13: 23839 | AM13: FATOR X | AN13: 0.01647608243
B14: P&D | C14: 38747027.32 | G14: EER | H14: 71274674.17 | I14: DSP 3.880/2025 | L14: 2026 | M14: 0.01891521 | AA14: 404 | AB14: 2023 | AC14: EMS | AD14: Pessoal | AE14: (-) Créditos de Tributos Recuperáveis | AF14: 610530510 | AG14: 0 | AK14: 2025 | AL14: 23839 | AM14: Fornecimento | AN14: 4435531.171
B15: ONS | C15: 136380.36 | G15: ESS | H15: 1768210.44 | I15: DSP 3.880/2025 | L15: 2027 | M15: 0.01897273 | AA15: 404 | AB15: 2023 | AC15: EMS | AD15: Pessoal | AE15: Estagiários e Programas de Iniciação ao Trabalho | AF15: 610530511 | AG15: 503093.65 | AK15: 2025 | AL15: 23839 | AM15: IGPM | AN15: 0.09293819473
B16: CDE Eletrobras | C16: 0.001 | G16: TFSEE Fator de Carga | H16: 0.74 | AA16: 404 | AB16: 2023 | AC16: EMS | AD16: Pessoal | AE16: Outros | AF16: 610530599 | AG16: 0 | AK16: 2025 | AL16: 23839 | AM16: IPCA | AN16: 0.0547797832
B17: CDE GD | C17: 28205892.22 | G17: CDE Covid | H17: 0 | I17: Quitação | AA17: 404 | AB17: 2023 | AC17: EMS | AD17: Pessoal | AE17: Honorários e Encargos (Diretoria e Conselho) | AF17: 610530601 | AG17: 0 | AK17: 2025 | AL17: 23839 | AM17: Parcela B | AN17: 1895681472
B18: CDE Conta - Escassez Hídrica TUSD | C18: 11261115.25 | G18: CDE Covid TE% | H18: 0.542231977 | AA18: 404 | AB18: 2023 | AC18: EMS | AD18: Pessoal | AE18: Benefícios dos Administradores | AF18: 610530602 | AG18: 0 | AK18: 2025 | AL18: 23839 | AM18: Revisão ou Reajuste (1-REVI,0-Reaj) | AN18: 0
B19: CDE Conta - Escassez Hídrica TE | C19: 67848559.38 | G19: CDE Covid TUSD% | H19: 0.457768023 | AA19: 404 | AB19: 2023 | AC19: EMS | AD19: Materiais | AE19: Materiais | AF19: 610530701 | AG19: 19993656.49 | AK19: 2025 | AL19: 23839 | AM19: SUPRIMENTO (Mercado TUSD) | AN19: 0
G20: CDE Escassez Hidrica | H20: 79109674.63 | I20: DSP 510/2023 | AA20: 404 | AB20: 2023 | AC20: EMS | AD20: Materiais | AE20: (-) Créditos de Tributos Recuperáveis | AF20: 610530710 | AG20: -91417.61 | AK20: 2025 | AL20: 23839 | AM20: SUPRIMENTO (via Rede Básica) | AN20: 0
B21: Pmix | C21: 273.7985676 | G21: CDE Escassez Hidr TE% | H21: 0.8576518573 | AA21: 404 | AB21: 2023 | AC21: EMS | AD21: Materiais | AE21: Outros | AF21: 610530799 | AG21: 831388.86 | AK21: 2025 | AL21: 23839 | AM21: TRANSPORTE TERCEIROS | AN21: 401487888.5
B22: PN2025 | C22: 0.06810888025 | G22: CDE Escassez Hidr TUSD% | H22: 0.1423481427 | L22: Mês | M22: Potência | N22: Tarifa | O22: Perdas | P22: Energia | AA22: 404 | AB22: 2023 | AC22: EMS | AD22: Serviços | AE22: Serviços de Terceiros | AF22: 610530801 | AG22: 148711530.2
B23: PN2026 | C23: 0.06717324022 | G23: CDE GD | H23: 0.001 | I23: Art. 23, Lei 15.269/2025 | L23: 46113 | M23: 177.5192458 | N23: 17.66 | O23: 0.05390602441 | P23: 77971.80847 | AA23: 404 | AB23: 2023 | AC23: EMS | AD23: Serviços | AE23: (-) Créditos de Tributos Recuperáveis | AF23: 610530810 | AG23: -7376505.82
B24: PT2023 | C24: 0.099495 | L24: 46143 | M24: 181.3022878 | N24: 17.66 | O24: 0.05390602441 | P24: 80570.86876 | AA24: 404 | AB24: 2023 | AC24: EMS | AD24: Seguros | AE24: Seguros | AF24: 610531001 | AG24: 0
B25: Perda RB total | C25: 0.01366516586 | G25: Informações de Postergação | L25: 46174 | M25: 182.2480483 | N25: 17.66 | O25: 0.05390602441 | P25: 77971.80847 | AA25: 404 | AB25: 2023 | AC25: EMS | AD25: Seguros | AE25: (-) Créditos de Tributos Recuperáveis | AF25: 610531010 | AG25: 0
L26: 46204 | M26: 182.1723875 | N26: 17.66 | O26: 0.05390602441 | P26: 80570.86876 | AA26: 404 | AB26: 2023 | AC26: EMS | AD26: Seguros | AE26: Outros | AF26: 610531099 | AG26: 0
B27: CVA RB | C27: 28629030.08 | G27: Tipo | H27: Valor | I27: Coluna1 | L27: 46235 | M27: 178.4650063 | N27: 17.66 | O27: 0.05390602441 | P27: 80570.86876 | AA27: 404 | AB27: 2023 | AC27: EMS | AD27: Condenação Trabalhista | AE27: (-) Pagamento de Condenações de Litígios Trabalhistas | AF27: 610531212 | AG27: 0
B28: CVA CDE Covid TUSD | C28: -20475637.98 | G28: Data Postergada | H28: DtAniversario | I28: 46120 | L28: 46266 | M28: 175.6277248 | N28: 17.66 | O28: 0.05390602441 | P28: 77971.80847 | AA28: 404 | AB28: 2023 | AC28: EMS | AD28: Tributos | AE28: Tributos | AF28: 610531601 | AG28: 63264.23
B29: CVA CCC | C29: 0 | G29: Data Anterior | I29: 46120 | L29: 46296 | M29: 171.8446828 | N29: 17.66 | O29: 0.05390602441 | P29: 80570.86876 | AA29: 404 | AB29: 2023 | AC29: EMS | AD29: Outros | AE29: Indenização por Perdas e Danos | AF29: 610531901 | AG29: 491168.68
B30: CVA CDE | C30: 16529513.11 | G30: Diferença de Dias | I30: 0 | L30: 46327 | M30: 170.8989223 | N30: 17.66 | O30: 0.05390602441 | P30: 77971.80847 | AA30: 404 | AB30: 2023 | AC30: EMS | AD30: Outros | AE30: Consumo Próprio de Energia | AF30: 610531902 | AG30: 9353065.37
B31: CVA CFURH | G31: MesesAdin | I31: 0 | L31: 46357 | M31: 170.8989223 | N31: 17.66 | O31: 0.05390602441 | P31: 80570.86876 | AA31: 404 | AB31: 2023 | AC31: EMS | AD31: Outros | AE31: Taxa de Arrecadação | AF31: 610531903 | AG31: 0
B32: CVA ESS\ERR | C32: 14256998.71 | G32: Reversão Subvenção CDE | L32: 46388 | M32: 171.4186155 | N32: 17.66 | O32: 0.05390602441 | P32: 80815.87985 | AA32: 404 | AB32: 2023 | AC32: EMS | AD32: Outros | AE32: Taxas Bancárias | AF32: 610531904 | AG32: 0
B33: CVA PROINFA | C33: 4121090.734 | G33: Data 4CRT | I33: 45024 | L33: 46419 | M33: 171.4186155 | N33: 17.66 | O33: 0.05390602441 | P33: 72994.98826 | AA33: 404 | AB33: 2023 | AC33: EMS | AD33: Outros | AE33: Despesas com Conselho de Consumidores | AF33: 610531905 | AG33: 0
B34: CVA TRANS. ITAIPU | C34: -816595.6737 | L34: 46447 | M34: 171.4186155 | N34: 17.66 | O34: 0.05390602441 | P34: 80815.87985 | AA34: 404 | AB34: 2023 | AC34: EMS | AD34: Outros | AE34: Comunicação e Reprografia | AF34: 610531907 | AG34: 1477400.16
B35: CVA ENERGIA | C35: 62144939.7 | G35: Nome | H35: Valor | AA35: 404 | AB35: 2023 | AC35: EMS | AD35: Outros | AE35: Contribuição Associativa - CCEE | AF35: 610531908 | AG35: 529271.45
B36: CVA CDE Covid TE | C36: -24253650.55 | G36: TUSDg Export DRP | H36: 0 | L36: Mês | M36: Potência | N36: Tarifa DRA | O36: Tarifa DRP | P36: Colunas1 | AA36: 404 | AB36: 2023 | AC36: EMS | AD36: Outros | AE36: Contribuição Associativa - ONS | AF36: 610531909 | AG36: 125791.88
G37: TUSDg ONS DRP | H37: 3285402.57 | L37: 45748 | M37: 186.3546993 | N37: 12001.87 | O37: 14961.37 | AA37: 404 | AB37: 2023 | AC37: EMS | AD37: Outros | AE37: (-) Créditos de Tributos Recuperáveis | AF37: 610531910 | AG37: 0
G38: TUSDg ONS DRA | H38: 1838581.03 | L38: 45778 | M38: 190.1366313 | N38: 12001.87 | O38: 14961.37 | AA38: 404 | AB38: 2023 | AC38: EMS | AD38: Pessoal | AE38: Remuneração | AF38: 610532501 | AG38: 15529546.76
B39: Transporte | G39: TUSDg Export DRA | H39: 0 | L39: 45809 | M39: 192.5948871 | N39: 12001.87 | O39: 14961.37 | AA39: 404 | AB39: 2023 | AC39: EMS | AD39: Pessoal | AE39: Encargos | AF39: 610532502 | AG39: 6331952.53
B40: Conexao | C40: 42905655.08 | L40: 45839 | M40: 192.7461644 | N40: 12001.87 | O40: 14961.37 | AA40: 404 | AB40: 2023 | AC40: EMS | AD40: Pessoal | AE40: Previdência Privada - Corrente | AF40: 610532503 | AG40: 996704.54
L41: 45870 | M41: 185.2201197 | N41: 12001.87 | O41: 14961.37 | AA41: 404 | AB41: 2023 | AC41: EMS | AD41: Pessoal | AE41: Despesas Rescisórias | AF41: 610532506 | AG41: 0
G42: Fator X | H42: Valor | L42: 45901 | M42: 181.4381877 | N42: 12001.87 | O42: 14961.37 | AA42: 404 | AB42: 2023 | AC42: EMS | AD42: Pessoal | AE42: Participação nos Lucros e Resultados - PLR | AF42: 610532507 | AG42: 6005794.32
G43: fatorx_t | H43: 0.01389 | L43: 45931 | M43: 171.9833577 | N43: 12001.87 | O43: 14961.37 | AA43: 404 | AB43: 2023 | AC43: EMS | AD43: Pessoal | AE43: Outros Benefícios - Corrente | AF43: 610532508 | AG43: 13942678.01
B44: Mercado | G44: fatorx_pd | H44: 0.00425 | L44: 45962 | M44: 170.0923917 | N44: 12001.87 | O44: 14961.37 | AA44: 404 | AB44: 2023 | AC44: EMS | AD44: Pessoal | AE44: (-) Créditos de Tributos Recuperáveis | AF44: 610532510 | AG44: 0
B45: RA0_MWh_Tusd | C45: 6516873.178 | L45: 45992 | M45: 167.0668461 | N45: 12001.87 | O45: 14961.37 | AA45: 404 | AB45: 2023 | AC45: EMS | AD45: Pessoal | AE45: Estagiários e programa de iniciação ao trabalho | AF45: 610532511 | AG45: 259297.9
B46: RA1_R$ | C46: 4490780898 | G46: DecFec Processo Anterior | H46: Valor | L46: 46023 | M46: 170.8989223 | N46: 12001.87 | O46: 14961.37 | AA46: 404 | AB46: 2023 | AC46: EMS | AD46: Pessoal | AE46: Outros | AF46: 610532599 | AG46: 0
B47: Proinfa | L47: 46054 | M47: 170.8989223 | N47: 12001.87 | O47: 14961.37 | AA47: 404 | AB47: 2023 | AC47: EMS | AD47: Pessoal | AE47: Honorários e Encargos (Diretoria e Conselho) | AF47: 610532601 | AG47: 5056080.23
B48: 2026 | C48: 85510.48858 | L48: 46082 | M48: 170.8989223 | N48: 12001.87 | O48: 14961.37 | AA48: 404 | AB48: 2023 | AC48: EMS | AD48: Pessoal | AE48: Benefícios dos Administradores | AF48: 610532602 | AG48: 707702.7
B49: Detalhamento de Encargos ESS e CDE | AA49: 404 | AB49: 2023 | AC49: EMS | AD49: Pessoal | AE49: (-) Créditos de Tributos Recuperáveis | AF49: 610532610 | AG49: 0
L50: Dado | M50: Valor | N50: Início | O50: Fim | AA50: 404 | AB50: 2023 | AC50: EMS | AD50: Materiais | AE50: Materiais | AF50: 610532701 | AG50: 16346848.3
L51: MUST | M51: 6963 | N51: 45474 | O51: 45838 | AA51: 404 | AB51: 2023 | AC51: EMS | AD51: Materiais | AE51: (-) Créditos de Tributos Recuperáveis | AF51: 610532710 | AG51: 0
G52: Dados de dólar | H52: Valor | L52: MUST | M52: 7170 | N52: 45839 | O52: 46203 | AA52: 404 | AB52: 2023 | AC52: EMS | AD52: Materiais | AE52: Outros | AF52: 610532799 | AG52: 0
G53: Dólar médio | H53: 5.204052632 | L53: Potência Max | M53: 10193 | N53: 45658 | O53: 46022 | AA53: 404 | AB53: 2023 | AC53: EMS | AD53: Serviços | AE53: Serviços de Terceiros | AF53: 610532801 | AG53: 102424550.2
G54: Data Inicial | H54: 46066 | L54: Potência Max | M54: 9635 | N54: 46023 | O54: 46387 | AA54: 404 | AB54: 2023 | AC54: EMS | AD54: Serviços | AE54: (-) Créditos de Tributos Recuperáveis | AF54: 610532810 | AG54: 0
G55: Data Final | H55: 46094 | AA55: 404 | AB55: 2023 | AC55: EMS | AD55: Seguros | AE55: Seguros | AF55: 610533001 | AG55: 2267572.61
L56: Dados de perda | M56: Valor | O56: Agente | P56: Ressarcimento P&D | AA56: 404 | AB56: 2023 | AC56: EMS | AD56: Seguros | AE56: (-) Créditos de Tributos Recuperáveis | AF56: 610533010 | AG56: 0
B57: Subsídios Concedidos (sem ajuste) | L57: Perdas RB | M57: 58471.94428 | AA57: 404 | AB57: 2023 | AC57: EMS | AD57: Seguros | AE57: Outros | AF57: 610533099 | AG57: 0
B58: Mês de Início | C58: Carga Fonte | D58: Geração | E58: Distribuição | F58: Água, Esgoto e Saneamento | G58: Rural | H58: Irrigante/Aquicultor | I58: SCEE | J58: Lei 14299/20222 | L58: Perdas DITs | M58: 2096.369634 | AA58: 404 | AB58: 2023 | AC58: EMS | AD58: Condenação Trabalhista | AE58: (-) Pagamento de Condenações de Litígios Trabalhistas | AF58: 610533212 | AG58: -5956490.13
B59: 2025-04-01 | C59: 20893241.96 | D59: 2166167.087 | E59: 0 | F59: 0 | G59: 0 | H59: 1594757.49 | I59: 11375455.12 | J59: 0 | AA59: 404 | AB59: 2023 | AC59: EMS | AD59: Tributos | AE59: Tributos | AF59: 610533601 | AG59: 3158102.67
AA60: 404 | AB60: 2023 | AC60: EMS | AD60: Outros | AE60: Indenização por Perdas e Danos | AF60: 610533901 | AG60: 1588.18
AA61: 404 | AB61: 2023 | AC61: EMS | AD61: Outros | AE61: Consumo Próprio de Energia | AF61: 610533902 | AG61: 0
AA62: 404 | AB62: 2023 | AC62: EMS | AD62: Outros | AE62: Taxa de Arrecadação | AF62: 610533903 | AG62: 0
AA63: 404 | AB63: 2023 | AC63: EMS | AD63: Outros | AE63: Taxas Bancárias | AF63: 610533904 | AG63: 0
AA64: 404 | AB64: 2023 | AC64: EMS | AD64: Outros | AE64: Comunicação e Reprografia | AF64: 610533907 | AG64: 6164230.64
B65: Data | C65: Tipo | D65: Valor | E65: Valor IGPM | F65: Valor IPCA | G65: EixoRef | AA65: 404 | AB65: 2023 | AC65: EMS | AD65: Outros | AE65: Contribuição Associativa - CCEE | AF65: 610533908 | AG65: 0
B66: =DATE(YEAR(CAPA!C10),MONTH(CAPA!C10),1) -> 2026-04-01 | C66: =IF(CAPA!C7="Revisão",1,0) -> 0 | D66: =Resultado!L11 -> 986.5995098 | E66: =IFERROR(VLOOKUP(EDATE($B66,-1),Índices!$B$6:$F$500,2,FALSE)/VLOOKUP(EDATE(MIN($B$67:$B$81),-1),Índices!$B$6:$F$500,2,FALSE)*VLOOKUP(MIN($B$67:$B$81),$B$67:$D$81,3,FALSE),0) -> 0 | F66: =IFERROR(VLOOKUP(EDATE($B66,-1),Índices!$B$6:$F$500,3,FALSE)/VLOOKUP(EDATE(MIN($B$67:$B$81),-1),Índices!$B$6:$F$500,3,FALSE)*VLOOKUP(MIN($B$67:$B$81),$B$67:$D$81,3,FALSE),0) -> 0 | G66: =IF(B66<>"",150+1,"") -> 151 | O66: Data | P66: Fat Bandeiras | AA66: 404 | AB66: 2023 | AC66: EMS | AD66: Outros | AE66: Contribuição Associativa - ONS | AF66: 610533909 | AG66: 0
O67: 45748 | P67: 19233.6 | AA67: 404 | AB67: 2023 | AC67: EMS | AD67: Outros | AE67: (-) Créditos de Tributos Recuperáveis | AF67: 610533910 | AG67: 0
O68: 45778 | P68: 2439265.51 | AA68: 404 | AB68: 2023 | AC68: EMS | AD68: Alienação | AE68: Ganhos na Alienação de Bens Reversíveis | AF68: 611112203 | AG68: 0
O69: 45809 | P69: 7618201.88 | AA69: 404 | AB69: 2023 | AC69: EMS | AD69: Desativação | AE69: Ganhos na Desativação de Bens Reversíveis | AF69: 611112403 | AG69: 0
O70: 45839 | P70: 10271510.63 | AA70: 404 | AB70: 2023 | AC70: EMS | AD70: Desativação | AE70: Perdas na Desativação de Bens Reversíveis | AF70: 611512003 | AG70: 46233974.65
O71: 45870 | P71: 13898837.97 | AA71: 404 | AB71: 2023 | AC71: EMS | AD71: Alienação | AE71: Perdas na Alienação de Bens Reversíveis | AF71: 611512203 | AG71: 4844539.9
O72: 45901 | P72: 21279208.87 | AA72: 404 | AB72: 2024 | AC72: EMS | AD72: Pessoal | AE72: Remuneração | AF72: 610530501 | AG72: 743957.58
O73: 45931 | P73: 17886461.62 | AA73: 404 | AB73: 2024 | AC73: EMS | AD73: Pessoal | AE73: Encargos | AF73: 610530502 | AG73: 32888954.82
O74: 45962 | P74: 12618956.88 | AA74: 404 | AB74: 2024 | AC74: EMS | AD74: Pessoal | AE74: Previdência Privada - Corrente | AF74: 610530503 | AG74: 3199013.09
O75: 45992 | P75: 9651277.51 | AA75: 404 | AB75: 2024 | AC75: EMS | AD75: Pessoal | AE75: Despesas Rescisórias | AF75: 610530506 | AG75: 0
O76: 46023 | P76: 9651277.51 | AA76: 404 | AB76: 2024 | AC76: EMS | AD76: Pessoal | AE76: Participação nos Lucros e Resultados - PLR | AF76: 610530507 | AG76: 26338784.61
O77: 46054 | P77: 9651277.51 | AA77: 404 | AB77: 2024 | AC77: EMS | AD77: Pessoal | AE77: Outros Benefícios - Corrente | AF77: 610530508 | AG77: 55559069.13
O78: 46082 | P78: 9651277.51 | AA78: 404 | AB78: 2024 | AC78: EMS | AD78: Pessoal | AE78: (-) Créditos de Tributos Recuperáveis | AF78: 610530510 | AG78: 0
AA79: 404 | AB79: 2024 | AC79: EMS | AD79: Pessoal | AE79: Estagiários e Programas de Iniciação ao Trabalho | AF79: 610530511 | AG79: 532424.11
AA80: 404 | AB80: 2024 | AC80: EMS | AD80: Pessoal | AE80: Outros | AF80: 610530599 | AG80: 0
AA81: 404 | AB81: 2024 | AC81: EMS | AD81: Pessoal | AE81: Honorários e Encargos (Diretoria e Conselho) | AF81: 610530601 | AG81: 0
AA82: 404 | AB82: 2024 | AC82: EMS | AD82: Pessoal | AE82: Benefícios dos Administradores | AF82: 610530602 | AG82: 49.6
AA83: 404 | AB83: 2024 | AC83: EMS | AD83: Materiais | AE83: Materiais | AF83: 610530701 | AG83: 18252923.95
B84: Tabela de Resumo de Montante DRP ano anterior/ Montante Apurado pelo Mercado | AA84: 404 | AB84: 2024 | AC84: EMS | AD84: Materiais | AE84: (-) Créditos de Tributos Recuperáveis | AF84: 610530710 | AG84: -129256.27
B85: detalhe_grupo | C85: GrupoTarifa | D85: tipoBase | E85: tipofatura | F85: ValorCTAnterior_Sum | G85: ValorAnt_Sum | L85: Prcesso Anterior | N85: RTE | AA85: 404 | AB85: 2024 | AC85: EMS | AD85: Materiais | AE85: Outros | AF85: 610530799 | AG85: 1400992.65
L86: MWh | M86: R$ | N86: MWh | O86: R$ | S86: DthEfetivaPagamento | T86: VlrGarantiaFinanceira | V86: Conta Escassez | W86: Valor | X86: Legislacao | AA86: 404 | AB86: 2024 | AC86: EMS | AD86: Serviços | AE86: Serviços de Terceiros | AF86: 610530801 | AG86: 141200263.1
I87: BILATERAL | K87: valor | L87: 193245.6 | M87: 71351032.94 | S87: 45689 | T87: 45137.62 | AA87: 404 | AB87: 2024 | AC87: EMS | AD87: Serviços | AE87: (-) Créditos de Tributos Recuperáveis | AF87: 610530810 | AG87: -6842714.54
I88: CCEAR-DISP | J88: Alternativa | K88: valor | L88: 110942.5816 | M88: 35583348.84 | S88: 45717 | T88: 45137.62 | AA88: 404 | AB88: 2024 | AC88: EMS | AD88: Seguros | AE88: Seguros | AF88: 610531001 | AG88: 0
I89: CCEAR-DISP | J89: Nova | K89: valor | L89: 2065548.996 | M89: 683455692.8 | S89: 45748 | T89: 45233.62 | AA89: 404 | AB89: 2024 | AC89: EMS | AD89: Seguros | AE89: (-) Créditos de Tributos Recuperáveis | AF89: 610531010 | AG89: 0
I90: CCEAR-QTD | J90: Alternativa | K90: valor | L90: 7302.642 | M90: 2498835.447 | S90: 45778 | T90: 45233.62 | AA90: 404 | AB90: 2024 | AC90: EMS | AD90: Seguros | AE90: Outros | AF90: 610531099 | AG90: 0
I91: CCEAR-QTD | J91: Belo Monte | K91: valor | L91: 102715.836 | M91: 18777183.67 | S91: 45809 | T91: 45233.62 | AA91: 404 | AB91: 2024 | AC91: EMS | AD91: Condenação Trabalhista | AE91: (-) Pagamento de Condenações de Litígios Trabalhistas | AF91: 610531212 | AG91: 0
I92: CCEAR-QTD | J92: Madeira | K92: valor | L92: 248737.87 | M92: 50280715.49 | S92: 45839 | T92: 47574.29 | AA92: 404 | AB92: 2024 | AC92: EMS | AD92: Tributos | AE92: Tributos | AF92: 610531601 | AG92: 1491552.42
I93: CCEAR-QTD | J93: Nova | K93: valor | L93: 739041.788 | M93: 195249064.2 | S93: 45870 | T93: 47574.29 | AA93: 404 | AB93: 2024 | AC93: EMS | AD93: Outros | AE93: Indenização por Perdas e Danos | AF93: 610531901 | AG93: 466943.75
I94: CCEN | K94: valor | L94: 187410.5018 | M94: 57861118.33 | S94: 45901 | T94: 47574.29 | AA94: 404 | AB94: 2024 | AC94: EMS | AD94: Outros | AE94: Consumo Próprio de Energia | AF94: 610531902 | AG94: 10035509.77
I95: CCGF | K95: valor | L95: 708753.9896 | M95: 143180587.6 | S95: 45931 | T95: 47574.29 | AA95: 404 | AB95: 2024 | AC95: EMS | AD95: Outros | AE95: Taxa de Arrecadação | AF95: 610531903 | AG95: 0
I96: ITAIPU | K96: valor | L96: 928473.6685 | M96: 220138448.2 | S96: 45962 | T96: 47574.29 | AA96: 404 | AB96: 2024 | AC96: EMS | AD96: Outros | AE96: Taxas Bancárias | AF96: 610531904 | AG96: 0
I97: PROINFA | K97: valor | L97: 98263.22916 | S97: 45992 | T97: 47574.29 | AA97: 404 | AB97: 2024 | AC97: EMS | AD97: Outros | AE97: Despesas com Conselho de Consumidores | AF97: 610531905 | AG97: 0
I98: SOBRA/EXPOSIÇÃO | K98: valor | L98: -447012.0433 | M98: -124873436.6 | S98: 46023 | T98: 47574.29 | AA98: 404 | AB98: 2024 | AC98: EMS | AD98: Outros | AE98: Comunicação e Reprografia | AF98: 610531907 | AG98: 949976.27
S99: 46054 | T99: 47574.28 | AA99: 404 | AB99: 2024 | AC99: EMS | AD99: Outros | AE99: Contribuição Associativa - CCEE | AF99: 610531908 | AG99: 619369.84
AA100: 404 | AB100: 2024 | AC100: EMS | AD100: Outros | AE100: Contribuição Associativa - ONS | AF100: 610531909 | AG100: 130566.47
AA101: 404 | AB101: 2024 | AC101: EMS | AD101: Outros | AE101: (-) Créditos de Tributos Recuperáveis | AF101: 610531910 | AG101: 0
AA102: 404 | AB102: 2024 | AC102: EMS | AD102: Pessoal | AE102: Remuneração | AF102: 610532501 | AG102: 16490057.2
AA103: 404 | AB103: 2024 | AC103: EMS | AD103: Pessoal | AE103: Encargos | AF103: 610532502 | AG103: 8744257.84
AA104: 404 | AB104: 2024 | AC104: EMS | AD104: Pessoal | AE104: Previdência Privada - Corrente | AF104: 610532503 | AG104: 987461.99
V105: Empresa | W105: AT | X105: MT | Y105: BT | AA105: 404 | AB105: 2024 | AC105: EMS | AD105: Pessoal | AE105: Despesas Rescisórias | AF105: 610532506 | AG105: 0
V106: 167 | W106: 0.02134 | X106: 0.35825 | Y106: 0.62041 | AA106: 404 | AB106: 2024 | AC106: EMS | AD106: Pessoal | AE106: Participação nos Lucros e Resultados - PLR | AF106: 610532507 | AG106: 9293530.24
V107: 102 | W107: 0.064 | X107: 0.32003 | Y107: 0.61596 | AA107: 404 | AB107: 2024 | AC107: EMS | AD107: Pessoal | AE107: Outros Benefícios - Corrente | AF107: 610532508 | AG107: 12268706.92
V108: 103 | W108: 0.02996 | X108: 0.27106 | Y108: 0.69898 | AA108: 404 | AB108: 2024 | AC108: EMS | AD108: Pessoal | AE108: (-) Créditos de Tributos Recuperáveis | AF108: 610532510 | AG108: 0
V109: 104 | W109: 0.07171 | X109: 0.2909 | Y109: 0.63739 | AA109: 404 | AB109: 2024 | AC109: EMS | AD109: Pessoal | AE109: Estagiários e programa de iniciação ao trabalho | AF109: 610532511 | AG109: 165535.26
V110: 105 | W110: 0.00823 | X110: 0.24677 | Y110: 0.745 | AA110: 404 | AB110: 2024 | AC110: EMS | AD110: Pessoal | AE110: Outros | AF110: 610532599 | AG110: 0
I111: Agente | J111: idagente | K111: indexador | L111: database | M111: RAP do ciclo | N111: Colunas1 | O111: RAP atualizada | V111: 165 | W111: 0.00795 | X111: 0.22554 | Y111: 0.76651 | AA111: 404 | AB111: 2024 | AC111: EMS | AD111: Pessoal | AE111: Honorários e Encargos (Diretoria e Conselho) | AF111: 610532601 | AG111: 6261236.84
O112: =M112*VLOOKUP(CAPA!C15,Índices!$B$6:$F$626,IF(BD!K112="IPCA",3,2),FALSE)/VLOOKUP(L112,Índices!$B$6:$F$626,IF(BD!K112="IPCA",3,2),FALSE) ->  | V112: 108 | W112: 0.06098 | X112: 0.1711 | Y112: 0.76792 | AA112: 404 | AB112: 2024 | AC112: EMS | AD112: Pessoal | AE112: Benefícios dos Administradores | AF112: 610532602 | AG112: 696165.6
O113: =M113*VLOOKUP(CAPA!C16,Índices!$B$6:$F$626,IF(BD!K113="IPCA",3,2),FALSE)/VLOOKUP(L113,Índices!$B$6:$F$626,IF(BD!K113="IPCA",3,2),FALSE) ->  | V113: 109 | W113: 0.01034 | X113: 0.24366 | Y113: 0.746 | AA113: 404 | AB113: 2024 | AC113: EMS | AD113: Pessoal | AE113: (-) Créditos de Tributos Recuperáveis | AF113: 610532610 | AG113: 0
O114: =M114*VLOOKUP(CAPA!C17,Índices!$B$6:$F$626,IF(BD!K114="IPCA",3,2),FALSE)/VLOOKUP(L114,Índices!$B$6:$F$626,IF(BD!K114="IPCA",3,2),FALSE) ->  | V114: 110 | W114: 0.01165 | X114: 0.24322 | Y114: 0.74513 | AA114: 404 | AB114: 2024 | AC114: EMS | AD114: Materiais | AE114: Materiais | AF114: 610532701 | AG114: 15550858.59
O115: =M115*VLOOKUP(CAPA!C18,Índices!$B$6:$F$626,IF(BD!K115="IPCA",3,2),FALSE)/VLOOKUP(L115,Índices!$B$6:$F$626,IF(BD!K115="IPCA",3,2),FALSE) ->  | V115: 111 | W115: 0.03791 | X115: 0.37961 | Y115: 0.58248 | AA115: 404 | AB115: 2024 | AC115: EMS | AD115: Materiais | AE115: (-) Créditos de Tributos Recuperáveis | AF115: 610532710 | AG115: 0
O116: =M116*VLOOKUP(CAPA!C19,Índices!$B$6:$F$626,IF(BD!K116="IPCA",3,2),FALSE)/VLOOKUP(L116,Índices!$B$6:$F$626,IF(BD!K116="IPCA",3,2),FALSE) ->  | V116: 112 | W116: 0.02273 | X116: 0.26361 | Y116: 0.71367 | AA116: 404 | AB116: 2024 | AC116: EMS | AD116: Materiais | AE116: Outros | AF116: 610532799 | AG116: 0
O117: =M117*VLOOKUP(CAPA!C20,Índices!$B$6:$F$626,IF(BD!K117="IPCA",3,2),FALSE)/VLOOKUP(L117,Índices!$B$6:$F$626,IF(BD!K117="IPCA",3,2),FALSE) ->  | V117: 113 | W117: 0.01263 | X117: 0.23345 | Y117: 0.75392 | AA117: 404 | AB117: 2024 | AC117: EMS | AD117: Serviços | AE117: Serviços de Terceiros | AF117: 610532801 | AG117: 105209738.7
O118: =M118*VLOOKUP(CAPA!C21,Índices!$B$6:$F$626,IF(BD!K118="IPCA",3,2),FALSE)/VLOOKUP(L118,Índices!$B$6:$F$626,IF(BD!K118="IPCA",3,2),FALSE) ->  | V118: 114 | W118: 0.01726 | X118: 0.23794 | Y118: 0.7448 | AA118: 404 | AB118: 2024 | AC118: EMS | AD118: Serviços | AE118: (-) Créditos de Tributos Recuperáveis | AF118: 610532810 | AG118: 0
O119: =M119*VLOOKUP(CAPA!C22,Índices!$B$6:$F$626,IF(BD!K119="IPCA",3,2),FALSE)/VLOOKUP(L119,Índices!$B$6:$F$626,IF(BD!K119="IPCA",3,2),FALSE) ->  | V119: 115 | W119: 0.00993 | X119: 0.23087 | Y119: 0.7592 | AA119: 404 | AB119: 2024 | AC119: EMS | AD119: Seguros | AE119: Seguros | AF119: 610533001 | AG119: 2683008.64
O120: =M120*VLOOKUP(CAPA!C23,Índices!$B$6:$F$626,IF(BD!K120="IPCA",3,2),FALSE)/VLOOKUP(L120,Índices!$B$6:$F$626,IF(BD!K120="IPCA",3,2),FALSE) ->  | S120: iddet1 | T120: valor | V120: 116 | W120: 0.00806 | X120: 0.16835 | Y120: 0.82359 | AA120: 404 | AB120: 2024 | AC120: EMS | AD120: Seguros | AE120: (-) Créditos de Tributos Recuperáveis | AF120: 610533010 | AG120: 0
O121: =M121*VLOOKUP(CAPA!C24,Índices!$B$6:$F$626,IF(BD!K121="IPCA",3,2),FALSE)/VLOOKUP(L121,Índices!$B$6:$F$626,IF(BD!K121="IPCA",3,2),FALSE) ->  | S121: 56-Datalimite_D-25 | T121: 46097 | V121: 117 | W121: 0.03028 | X121: 0.29131 | Y121: 0.67841 | AA121: 404 | AB121: 2024 | AC121: EMS | AD121: Seguros | AE121: Outros | AF121: 610533099 | AG121: 0
O122: =M122*VLOOKUP(CAPA!C25,Índices!$B$6:$F$626,IF(BD!K122="IPCA",3,2),FALSE)/VLOOKUP(L122,Índices!$B$6:$F$626,IF(BD!K122="IPCA",3,2),FALSE) ->  | S122: 57-DthEfetivaPagamento | T122: 46071 | V122: 118 | W122: 0.04215 | X122: 0.2081 | Y122: 0.74975 | AA122: 404 | AB122: 2024 | AC122: EMS | AD122: Condenação Trabalhista | AE122: (-) Pagamento de Condenações de Litígios Trabalhistas | AF122: 610533212 | AG122: -7651602.79
O123: =M123*VLOOKUP(CAPA!C26,Índices!$B$6:$F$626,IF(BD!K123="IPCA",3,2),FALSE)/VLOOKUP(L123,Índices!$B$6:$F$626,IF(BD!K123="IPCA",3,2),FALSE) ->  | S123: 58-DthCompetenciaPagamento | T123: 46023 | V123: 119 | W123: 0.01807 | X123: 0.11713 | Y123: 0.8648 | AA123: 404 | AB123: 2024 | AC123: EMS | AD123: Tributos | AE123: Tributos | AF123: 610533601 | AG123: 2716435.96
O124: =M124*VLOOKUP(CAPA!C27,Índices!$B$6:$F$626,IF(BD!K124="IPCA",3,2),FALSE)/VLOOKUP(L124,Índices!$B$6:$F$626,IF(BD!K124="IPCA",3,2),FALSE) ->  | V124: 120 | W124: - | X124: 0.17688 | Y124: 0.82312 | AA124: 404 | AB124: 2024 | AC124: EMS | AD124: Outros | AE124: Indenização por Perdas e Danos | AF124: 610533901 | AG124: 0
O125: =M125*VLOOKUP(CAPA!C28,Índices!$B$6:$F$626,IF(BD!K125="IPCA",3,2),FALSE)/VLOOKUP(L125,Índices!$B$6:$F$626,IF(BD!K125="IPCA",3,2),FALSE) ->  | V125: 123 | W125: - | X125: 0.13612 | Y125: 0.86388 | AA125: 404 | AB125: 2024 | AC125: EMS | AD125: Outros | AE125: Consumo Próprio de Energia | AF125: 610533902 | AG125: 0
O126: =M126*VLOOKUP(CAPA!C29,Índices!$B$6:$F$626,IF(BD!K126="IPCA",3,2),FALSE)/VLOOKUP(L126,Índices!$B$6:$F$626,IF(BD!K126="IPCA",3,2),FALSE) ->  | V126: 166 | W126: 0.04257 | X126: 0.29652 | Y126: 0.66092 | AA126: 404 | AB126: 2024 | AC126: EMS | AD126: Outros | AE126: Taxa de Arrecadação | AF126: 610533903 | AG126: 0
O127: =M127*VLOOKUP(CAPA!C30,Índices!$B$6:$F$626,IF(BD!K127="IPCA",3,2),FALSE)/VLOOKUP(L127,Índices!$B$6:$F$626,IF(BD!K127="IPCA",3,2),FALSE) ->  | V127: 128 | W127: - | X127: 0.40427 | Y127: 0.59573 | AA127: 404 | AB127: 2024 | AC127: EMS | AD127: Outros | AE127: Taxas Bancárias | AF127: 610533904 | AG127: 0
O128: =M128*VLOOKUP(CAPA!C31,Índices!$B$6:$F$626,IF(BD!K128="IPCA",3,2),FALSE)/VLOOKUP(L128,Índices!$B$6:$F$626,IF(BD!K128="IPCA",3,2),FALSE) ->  | V128: 129 | W128: 0.02905 | X128: 0.24895 | Y128: 0.722 | AA128: 404 | AB128: 2024 | AC128: EMS | AD128: Outros | AE128: Comunicação e Reprografia | AF128: 610533907 | AG128: 4900372.33
O129: =M129*VLOOKUP(CAPA!C32,Índices!$B$6:$F$626,IF(BD!K129="IPCA",3,2),FALSE)/VLOOKUP(L129,Índices!$B$6:$F$626,IF(BD!K129="IPCA",3,2),FALSE) ->  | V129: 130 | W129: 0.0175 | X129: 0.14397 | Y129: 0.83853 | AA129: 404 | AB129: 2024 | AC129: EMS | AD129: Outros | AE129: Contribuição Associativa - CCEE | AF129: 610533908 | AG129: 0
O130: =M130*VLOOKUP(CAPA!C33,Índices!$B$6:$F$626,IF(BD!K130="IPCA",3,2),FALSE)/VLOOKUP(L130,Índices!$B$6:$F$626,IF(BD!K130="IPCA",3,2),FALSE) ->  | S130: Nível | T130: Mercado Faturado A-6 | V130: 131 | W130: - | X130: 0.30099 | Y130: 0.69901 | AA130: 404 | AB130: 2024 | AC130: EMS | AD130: Outros | AE130: Contribuição Associativa - ONS | AF130: 610533909 | AG130: 0
O131: =M131*VLOOKUP(CAPA!C34,Índices!$B$6:$F$626,IF(BD!K131="IPCA",3,2),FALSE)/VLOOKUP(L131,Índices!$B$6:$F$626,IF(BD!K131="IPCA",3,2),FALSE) ->  | S131: AT | T131: 678962.372 | V131: 132 | W131: 0.02757 | X131: 0.26424 | Y131: 0.70819 | AA131: 404 | AB131: 2024 | AC131: EMS | AD131: Outros | AE131: (-) Créditos de Tributos Recuperáveis | AF131: 610533910 | AG131: 0
O132: =M132*VLOOKUP(CAPA!C35,Índices!$B$6:$F$626,IF(BD!K132="IPCA",3,2),FALSE)/VLOOKUP(L132,Índices!$B$6:$F$626,IF(BD!K132="IPCA",3,2),FALSE) ->  | S132: BT | T132: 3481657.921 | V132: 133 | W132: 0.01856 | X132: 0.19536 | Y132: 0.78608 | AA132: 404 | AB132: 2024 | AC132: EMS | AD132: Alienação | AE132: Ganhos na Alienação de Bens Reversíveis | AF132: 611112203 | AG132: 0
S133: MT | T133: 1580945.103 | V133: 135 | W133: 0.04788 | X133: 0.27054 | Y133: 0.68158 | AA133: 404 | AB133: 2024 | AC133: EMS | AD133: Desativação | AE133: Ganhos na Desativação de Bens Reversíveis | AF133: 611112403 | AG133: 0
V134: 136 | W134: 0.06732 | X134: 0.35547 | Y134: 0.57721 | AA134: 404 | AB134: 2024 | AC134: EMS | AD134: Desativação | AE134: Perdas na Desativação de Bens Reversíveis | AF134: 611512003 | AG134: 24949939.12
V135: 138 | W135: - | X135: 0.07651 | Y135: 0.92349 | AA135: 404 | AB135: 2024 | AC135: EMS | AD135: Alienação | AE135: Perdas na Alienação de Bens Reversíveis | AF135: 611512203 | AG135: 5091960.34
V136: 139 | W136: - | X136: 0.35483 | Y136: 0.64517 | AA136: 404 | AB136: 2025 | AC136: EMS | AD136: Pessoal | AE136: Remuneração | AF136: 610530501 | AG136: 0
V137: 140 | W137: 0.01004 | X137: 0.21058 | Y137: 0.77938 | AA137: 404 | AB137: 2025 | AC137: EMS | AD137: Pessoal | AE137: Encargos | AF137: 610530502 | AG137: 0
V138: 143 | W138: - | X138: 0.20409 | Y138: 0.79591 | AA138: 404 | AB138: 2025 | AC138: EMS | AD138: Pessoal | AE138: Previdência Privada - Corrente | AF138: 610530503 | AG138: 0
V139: 144 | W139: - | X139: 0.48131 | Y139: 0.51869 | AA139: 404 | AB139: 2025 | AC139: EMS | AD139: Pessoal | AE139: Despesas Rescisórias | AF139: 610530506 | AG139: 0
A140: NumBar | B140: Nome Conexão | C140: Tensão | D140: Posto Tarifário | E140: Tarifas RB- DRA | F140: Tarifas RB - DRP | G140: Tarifas FR- DRA | H140: Tarifas FR - DRP | I140: M01 | J140: M02 | K140: M03 | L140: M04 | M140: M05 | N140: M06 | O140: M07 | P140: M08 | Q140: M09 | R140: M10 | S140: M11 | T140: M12 | V140: 145 | W140: 0.03725 | X140: 0.29306 | Y140: 0.66969 | AA140: 404 | AB140: 2025 | AC140: EMS | AD140: Pessoal | AE140: Participação nos Lucros e Resultados - PLR | AF140: 610530507 | AG140: 0
A141: 1079 | B141: ANASTACIO - 138 kV (A) | C141: 138.0 | D141: Ponta | E141: 6815 | F141: 6980 | G141: 852 | H141: 1460 | I141: 104 | J141: 104 | K141: 104 | L141: 94 | M141: 94 | N141: 94 | O141: 94 | P141: 94 | Q141: 94 | R141: 97.2 | S141: 97.2 | T141: 97.2 | V141: 146 | W141: - | X141: 0.14124 | Y141: 0.85876 | AA141: 404 | AB141: 2025 | AC141: EMS | AD141: Pessoal | AE141: Outros Benefícios - Corrente | AF141: 610530508 | AG141: 0
A142: 1890 | B142: C.G.IMBIRUSSU - 138 kV (A) | C142: 138.0 | D142: Ponta | E142: 6344 | F142: 6540 | G142: 1518 | H142: 1380 | I142: 245 | J142: 245 | K142: 245 | L142: 245 | M142: 245 | N142: 245 | O142: 245 | P142: 245 | Q142: 245 | R142: 254 | S142: 254 | T142: 254 | V142: 147 | W142: - | X142: 0.20977 | Y142: 0.79023 | AA142: 404 | AB142: 2025 | AC142: EMS | AD142: Pessoal | AE142: (-) Créditos de Tributos Recuperáveis | AF142: 610530510 | AG142: 0
A143: 1026 | B143: CAMPO GRANDE2 - 138 kV (A) | C143: 138.0 | D143: Ponta | E143: 6320 | F143: 6520 | G143: 1623 | H143: 1350 | I143: 250 | J143: 250 | K143: 250 | L143: 250 | M143: 250 | N143: 250 | O143: 250 | P143: 250 | Q143: 250 | R143: 258 | S143: 258 | T143: 258 | V143: 148 | W143: 0.03455 | X143: 0.23757 | Y143: 0.72788 | AA143: 404 | AB143: 2025 | AC143: EMS | AD143: Pessoal | AE143: Estagiários e Programas de Iniciação ao Trabalho | AF143: 610530511 | AG143: 0
A144: 1857 | B144: CHAPADAO - 138 kV (C) | C144: 138.0 | D144: Ponta | F144: 6340 | H144: 420 | I144: 0 | J144: 0 | K144: 0 | L144: 60 | M144: 60 | N144: 60 | O144: 60 | P144: 60 | Q144: 60 | R144: 62 | S144: 62 | T144: 62 | V144: 149 | W144: - | X144: 0.17399 | Y144: 0.82601 | AA144: 404 | AB144: 2025 | AC144: EMS | AD144: Pessoal | AE144: Outros | AF144: 610530599 | AG144: 0
A145: 1019 | B145: CORUMBA - 138 kV (A) | C145: 138.0 | D145: Ponta | E145: 6866 | F145: 7030 | G145: 1220 | H145: 1270 | I145: 67 | J145: 67 | K145: 67 | L145: 65 | M145: 65 | N145: 65 | O145: 65 | P145: 65 | Q145: 65 | R145: 70 | S145: 70 | T145: 70 | V145: 150 | W145: 0.03635 | X145: 0.17413 | Y145: 0.78952 | AA145: 404 | AB145: 2025 | AC145: EMS | AD145: Pessoal | AE145: Honorários e Encargos (Diretoria e Conselho) | AF145: 610530601 | AG145: 0
A146: 1142 | B146: DOURADOS - 138 kV (A) | C146: 138.0 | D146: Ponta | E146: 6578 | F146: 6660 | G146: 769 | H146: 1220 | I146: 180 | J146: 180 | K146: 180 | L146: 180 | M146: 180 | N146: 180 | O146: 180 | P146: 180 | Q146: 180 | R146: 186 | S146: 186 | T146: 186 | V146: 151 | W146: 0.02735 | X146: 0.28351 | Y146: 0.68915 | AA146: 404 | AB146: 2025 | AC146: EMS | AD146: Pessoal | AE146: Benefícios dos Administradores | AF146: 610530602 | AG146: 0
A147: 10102 | B147: DOURADOS 2138kVA | C147: 138.0 | D147: Ponta | E147: 6561 | F147: 6650 | G147: 1638 | H147: 1190 | I147: 198 | J147: 198 | K147: 198 | L147: 198 | M147: 198 | N147: 198 | O147: 198 | P147: 198 | Q147: 198 | R147: 210 | S147: 210 | T147: 210 | V147: 152 | W147: 0.00215 | X147: 0.1412 | Y147: 0.85665 | AA147: 404 | AB147: 2025 | AC147: EMS | AD147: Materiais | AE147: Materiais | AF147: 610530701 | AG147: 0
A148: 847 | B148: GUAIRA - 138 kV (A) | C148: 138.0 | D148: Ponta | E148: 7220 | F148: 7390 | G148: 1782 | H148: 1530 | I148: 107 | J148: 107 | K148: 107 | L148: 107 | M148: 107 | N148: 107 | O148: 107 | P148: 107 | Q148: 107 | R148: 111 | S148: 111 | T148: 111 | V148: 153 | W148: 0.03606 | X148: 0.17601 | Y148: 0.78793 | AA148: 404 | AB148: 2025 | AC148: EMS | AD148: Materiais | AE148: (-) Créditos de Tributos Recuperáveis | AF148: 610530710 | AG148: 0
A149: 1093 | B149: IVINHEMA 2 - 138 kV (A) | C149: 138.0 | D149: Ponta | E149: 6391 | F149: 6500 | G149: 1182 | H149: 1250 | I149: 99 | J149: 99 | K149: 99 | L149: 95 | M149: 95 | N149: 95 | O149: 95 | P149: 95 | Q149: 95 | R149: 98 | S149: 98 | T149: 98 | V149: 154 | W149: 0.12913 | X149: 0.26626 | Y149: 0.60462 | AA149: 404 | AB149: 2025 | AC149: EMS | AD149: Materiais | AE149: Outros | AF149: 610530799 | AG149: 0
A150: 541 | B150: JUPIA - 138 kV (A) | C150: 138.0 | D150: Ponta | E150: 6072 | F150: 6380 | G150: 8 | H150: 10 | I150: 170 | J150: 170 | K150: 170 | L150: 170 | M150: 170 | N150: 170 | O150: 170 | P150: 170 | Q150: 170 | R150: 175 | S150: 175 | T150: 175 | V150: 155 | W150: 0.04008 | X150: 0.23225 | Y150: 0.72768 | AA150: 404 | AB150: 2025 | AC150: EMS | AD150: Serviços | AE150: Serviços de Terceiros | AF150: 610530801 | AG150: 0
A151: 658 | B151: P. PRIMAVERA - 138 kV (A) | C151: 138.0 | D151: Ponta | E151: 6297 | F151: 6640 | G151: 5769 | H151: 6560 | I151: 40 | J151: 40 | K151: 40 | L151: 40 | M151: 40 | N151: 40 | O151: 40 | P151: 40 | Q151: 40 | R151: 41 | S151: 41 | T151: 41 | V151: 156 | W151: - | X151: 0.35985 | Y151: 0.64015 | AA151: 404 | AB151: 2025 | AC151: EMS | AD151: Serviços | AE151: (-) Créditos de Tributos Recuperáveis | AF151: 610530810 | AG151: 0
A152: 1899 | B152: PARAISO 2138kVA | C152: 138.0 | D152: Ponta | E152: 6111 | F152: 6380 | G152: 8513 | H152: 11550 | I152: 25 | J152: 25 | K152: 25 | L152: 25 | M152: 25 | N152: 25 | O152: 25 | P152: 25 | Q152: 25 | R152: 26 | S152: 26 | T152: 26 | V152: 157 | W152: - | X152: 0.15963 | Y152: 0.84037 | AA152: 404 | AB152: 2025 | AC152: EMS | AD152: Seguros | AE152: Seguros | AF152: 610531001 | AG152: 0
A153: 1882 | B153: RIO BRILHANTE138kVA | C153: 138.0 | D153: Ponta | F153: 6650 | H153: 1360 | I153: 0 | J153: 0 | K153: 0 | L153: 19 | M153: 19 | N153: 19 | O153: 19 | P153: 19 | Q153: 19 | R153: 19 | S153: 19 | T153: 19 | V153: 158 | W153: - | X153: 0.33049 | Y153: 0.66951 | AA153: 404 | AB153: 2025 | AC153: EMS | AD153: Seguros | AE153: (-) Créditos de Tributos Recuperáveis | AF153: 610531010 | AG153: 0
A154: 1853 | B154: SELVIRIA - 138 kV (A) | C154: 138.0 | D154: Ponta | E154: 6069 | F154: 6370 | G154: 5769 | H154: 6560 | I154: 60 | J154: 60 | K154: 60 | L154: 60 | M154: 60 | N154: 60 | O154: 60 | P154: 60 | Q154: 60 | R154: 62 | S154: 62 | T154: 62 | V154: 160 | W154: 0.1013 | X154: 0.22818 | Y154: 0.67051 | AA154: 404 | AB154: 2025 | AC154: EMS | AD154: Seguros | AE154: Outros | AF154: 610531099 | AG154: 0
A155: 1075 | B155: SIDROLANDIA - 138 kV (A) | C155: 138.0 | D155: Ponta | E155: 6549 | F155: 6700 | G155: 2294 | H155: 2110 | I155: 85 | J155: 85 | K155: 85 | L155: 85 | M155: 85 | N155: 85 | O155: 85 | P155: 85 | Q155: 85 | R155: 88 | S155: 88 | T155: 88 | V155: 161 | W155: - | X155: 0.28355 | Y155: 0.71645 | AA155: 404 | AB155: 2025 | AC155: EMS | AD155: Condenação Trabalhista | AE155: (-) Pagamento de Condenações de Litígios Trabalhistas | AF155: 610531212 | AG155: 0
A156: 1089 | B156: CHAPADAO - 230 kV (C) | C156: 230.0 | D156: Ponta | E156: 6034 | F156: 6320 | H156: 0 | I156: 60 | J156: 60 | K156: 60 | L156: 0 | M156: 0 | N156: 0 | O156: 0 | P156: 0 | Q156: 0 | R156: 0 | S156: 0 | T156: 0 | V156: 163 | W156: 0.03507 | X156: 0.1664 | Y156: 0.79853 | AA156: 404 | AB156: 2025 | AC156: EMS | AD156: Tributos | AE156: Tributos | AF156: 610531601 | AG156: 0
A157: 1087 | B157: RIO BRILHANTE230kVA | C157: 230.0 | D157: Ponta | E157: 6366 | F157: 6430 | H157: 0 | I157: 10 | J157: 10 | K157: 10 | L157: 0 | M157: 0 | N157: 0 | O157: 0 | P157: 0 | Q157: 0 | R157: 0 | S157: 0 | T157: 0 | V157: 164 | W157: - | X157: 0.12897 | Y157: 0.87103 | AA157: 404 | AB157: 2025 | AC157: EMS | AD157: Outros | AE157: Indenização por Perdas e Danos | AF157: 610531901 | AG157: 0
A158: 1079 | B158: ANASTACIO - 138 kV (A) | C158: 138.0 | D158: Fora Ponta | E158: 6950 | F158: 7120 | G158: 852 | H158: 1460 | I158: 114 | J158: 114 | K158: 114 | L158: 103 | M158: 103 | N158: 103 | O158: 103 | P158: 103 | Q158: 103 | R158: 106.2 | S158: 106.2 | T158: 106.2 | AA158: 404 | AB158: 2025 | AC158: EMS | AD158: Outros | AE158: Consumo Próprio de Energia | AF158: 610531902 | AG158: 0
A159: 1890 | B159: C.G.IMBIRUSSU - 138 kV (A) | C159: 138.0 | D159: Fora Ponta | E159: 6349 | F159: 6570 | G159: 1518 | H159: 1380 | I159: 262 | J159: 262 | K159: 262 | L159: 262 | M159: 262 | N159: 262 | O159: 262 | P159: 262 | Q159: 262 | R159: 271 | S159: 271 | T159: 271 | AA159: 404 | AB159: 2025 | AC159: EMS | AD159: Outros | AE159: Taxa de Arrecadação | AF159: 610531903 | AG159: 0
A160: 1026 | B160: CAMPO GRANDE2 - 138 kV (A) | C160: 138.0 | D160: Fora Ponta | E160: 6318 | F160: 6550 | G160: 1623 | H160: 1350 | I160: 270 | J160: 270 | K160: 270 | L160: 270 | M160: 270 | N160: 270 | O160: 270 | P160: 270 | Q160: 270 | R160: 279 | S160: 279 | T160: 279 | AA160: 404 | AB160: 2025 | AC160: EMS | AD160: Outros | AE160: Taxas Bancárias | AF160: 610531904 | AG160: 0
A161: 1857 | B161: CHAPADAO - 138 kV (C) | C161: 138.0 | D161: Fora Ponta | F161: 6360 | H161: 420 | I161: 0 | J161: 0 | K161: 0 | L161: 70 | M161: 70 | N161: 70 | O161: 70 | P161: 70 | Q161: 70 | R161: 72 | S161: 72 | T161: 72 | AA161: 404 | AB161: 2025 | AC161: EMS | AD161: Outros | AE161: Despesas com Conselho de Consumidores | AF161: 610531905 | AG161: 0
A162: 1019 | B162: CORUMBA - 138 kV (A) | C162: 138.0 | D162: Fora Ponta | E162: 7018 | F162: 7190 | G162: 1220 | H162: 1270 | I162: 87 | J162: 87 | K162: 87 | L162: 85 | M162: 85 | N162: 85 | O162: 85 | P162: 85 | Q162: 85 | R162: 88 | S162: 88 | T162: 88 | AA162: 404 | AB162: 2025 | AC162: EMS | AD162: Outros | AE162: Comunicação e Reprografia | AF162: 610531907 | AG162: 0
A163: 1142 | B163: DOURADOS - 138 kV (A) | C163: 138.0 | D163: Fora Ponta | E163: 6562 | F163: 6680 | G163: 769 | H163: 1220 | I163: 200 | J163: 200 | K163: 200 | L163: 200 | M163: 200 | N163: 200 | O163: 200 | P163: 200 | Q163: 200 | R163: 207 | S163: 207 | T163: 207 | V163: Tab_EnergiaConsumidaMWh | AA163: 404 | AB163: 2025 | AC163: EMS | AD163: Outros | AE163: Contribuição Associativa - CCEE | AF163: 610531908 | AG163: 0
A164: 10102 | B164: DOURADOS 2138kVA | C164: 138.0 | D164: Fora Ponta | E164: 6546 | F164: 6660 | G164: 1638 | H164: 1190 | I164: 213 | J164: 213 | K164: 213 | L164: 213 | M164: 213 | N164: 213 | O164: 213 | P164: 213 | Q164: 213 | R164: 222 | S164: 222 | T164: 222 | V164: Competencia | W164: EnergiaConsumidaMWh | X164: EnergiaFaturadaMWh | Y164: Dif_Consumida_FaturadaMWh | AA164: 404 | AB164: 2025 | AC164: EMS | AD164: Outros | AE164: Contribuição Associativa - ONS | AF164: 610531909 | AG164: 0
A165: 847 | B165: GUAIRA - 138 kV (A) | C165: 138.0 | D165: Fora Ponta | E165: 7257 | F165: 7390 | G165: 1782 | H165: 1530 | I165: 110 | J165: 110 | K165: 110 | L165: 110 | M165: 110 | N165: 110 | O165: 110 | P165: 110 | Q165: 110 | R165: 114 | S165: 114 | T165: 114 | V165: 45748 | W165: 171512.724 | X165: 58382.216 | Y165: 113130.508 | AA165: 404 | AB165: 2025 | AC165: EMS | AD165: Outros | AE165: (-) Créditos de Tributos Recuperáveis | AF165: 610531910 | AG165: 0
A166: 1093 | B166: IVINHEMA 2 - 138 kV (A) | C166: 138.0 | D166: Fora Ponta | E166: 6360 | F166: 6490 | G166: 1182 | H166: 1250 | I166: 99 | J166: 99 | K166: 99 | L166: 95 | M166: 95 | N166: 95 | O166: 95 | P166: 95 | Q166: 95 | R166: 98 | S166: 98 | T166: 98 | V166: 45778 | W166: 156796.957 | X166: 52161.719 | Y166: 104635.238 | AA166: 404 | AB166: 2025 | AC166: EMS | AD166: Pessoal | AE166: Remuneração | AF166: 610532501 | AG166: 0
A167: 541 | B167: JUPIA - 138 kV (A) | C167: 138.0 | D167: Fora Ponta | E167: 6011 | F167: 6330 | G167: 8 | H167: 10 | I167: 186 | J167: 186 | K167: 186 | L167: 186 | M167: 186 | N167: 186 | O167: 186 | P167: 186 | Q167: 186 | R167: 192 | S167: 192 | T167: 192 | V167: 45809 | W167: 140765.768 | X167: 43780.988 | Y167: 96984.78 | AA167: 404 | AB167: 2025 | AC167: EMS | AD167: Pessoal | AE167: Encargos | AF167: 610532502 | AG167: 0
A168: 658 | B168: P. PRIMAVERA - 138 kV (A) | C168: 138.0 | D168: Fora Ponta | E168: 6248 | F168: 6600 | G168: 5769 | H168: 6560 | I168: 43 | J168: 43 | K168: 43 | L168: 43 | M168: 43 | N168: 43 | O168: 43 | P168: 43 | Q168: 43 | R168: 44 | S168: 44 | T168: 44 | V168: 45839 | W168: 132900.853 | X168: 41831.494 | Y168: 91069.359 | AA168: 404 | AB168: 2025 | AC168: EMS | AD168: Pessoal | AE168: Previdência Privada - Corrente | AF168: 610532503 | AG168: 0
A169: 1899 | B169: PARAISO 2138kVA | C169: 138.0 | D169: Fora Ponta | E169: 6075 | F169: 6400 | G169: 8513 | H169: 11550 | I169: 26 | J169: 26 | K169: 26 | L169: 25 | M169: 25 | N169: 25 | O169: 25 | P169: 25 | Q169: 25 | R169: 26 | S169: 26 | T169: 26 | V169: 45870 | W169: 142822.58 | X169: 42559.097 | Y169: 100263.483 | AA169: 404 | AB169: 2025 | AC169: EMS | AD169: Pessoal | AE169: Despesas Rescisórias | AF169: 610532506 | AG169: 0
A170: 1882 | B170: RIO BRILHANTE138kVA | C170: 138.0 | D170: Fora Ponta | F170: 6660 | H170: 1360 | I170: 0 | J170: 0 | K170: 0 | L170: 20 | M170: 20 | N170: 20 | O170: 20 | P170: 20 | Q170: 20 | R170: 20 | S170: 20 | T170: 20 | V170: 45901 | W170: 168537.155 | X170: 46096.177 | Y170: 122440.978 | AA170: 404 | AB170: 2025 | AC170: EMS | AD170: Pessoal | AE170: Participação nos Lucros e Resultados - PLR | AF170: 610532507 | AG170: 0
A171: 1853 | B171: SELVIRIA - 138 kV (A) | C171: 138.0 | D171: Fora Ponta | E171: 6004 | F171: 6310 | G171: 5769 | H171: 6560 | I171: 60 | J171: 60 | K171: 60 | L171: 60 | M171: 60 | N171: 60 | O171: 60 | P171: 60 | Q171: 60 | R171: 62 | S171: 62 | T171: 62 | V171: 45931 | W171: 180903.319 | X171: 48051.594 | Y171: 132851.725 | AA171: 404 | AB171: 2025 | AC171: EMS | AD171: Pessoal | AE171: Outros Benefícios - Corrente | AF171: 610532508 | AG171: 0
A172: 1075 | B172: SIDROLANDIA - 138 kV (A) | C172: 138.0 | D172: Fora Ponta | E172: 6587 | F172: 6770 | G172: 2294 | H172: 2110 | I172: 90 | J172: 90 | K172: 90 | L172: 90 | M172: 90 | N172: 90 | O172: 90 | P172: 90 | Q172: 90 | R172: 93 | S172: 93 | T172: 93 | V172: 45962 | W172: 181922.155 | X172: 50087.874 | Y172: 131834.281 | AA172: 404 | AB172: 2025 | AC172: EMS | AD172: Pessoal | AE172: (-) Créditos de Tributos Recuperáveis | AF172: 610532510 | AG172: 0
A173: 1089 | B173: CHAPADAO - 230 kV (C) | C173: 230.0 | D173: Fora Ponta | E173: 5985 | F173: 6340 | H173: 0 | I173: 70 | J173: 70 | K173: 70 | L173: 0 | M173: 0 | N173: 0 | O173: 0 | P173: 0 | Q173: 0 | R173: 0 | S173: 0 | T173: 0 | V173: 45992 | W173: 196148.267 | X173: 51337.285 | Y173: 144810.982 | AA173: 404 | AB173: 2025 | AC173: EMS | AD173: Pessoal | AE173: Estagiários e programa de iniciação ao trabalho | AF173: 610532511 | AG173: 0
A174: 1087 | B174: RIO BRILHANTE230kVA | C174: 230.0 | D174: Fora Ponta | E174: 6347 | F174: 6430 | H174: 0 | I174: 10 | J174: 10 | K174: 10 | L174: 0 | M174: 0 | N174: 0 | O174: 0 | P174: 0 | Q174: 0 | R174: 0 | S174: 0 | T174: 0 | V174: 46023 | W174: 203560.304 | X174: 54238.664 | Y174: 149321.64 | AA174: 404 | AB174: 2025 | AC174: EMS | AD174: Pessoal | AE174: Outros | AF174: 610532599 | AG174: 0
V175: 46054 | W175: 204595.159 | X175: 55181.862 | Y175: 149413.297 | AA175: 404 | AB175: 2025 | AC175: EMS | AD175: Pessoal | AE175: Honorários e Encargos (Diretoria e Conselho) | AF175: 610532601 | AG175: 0
V176: 46082 | W176: 204595.159 | X176: 55181.862 | Y176: 149413.297 | AA176: 404 | AB176: 2025 | AC176: EMS | AD176: Pessoal | AE176: Benefícios dos Administradores | AF176: 610532602 | AG176: 0
AA177: 404 | AB177: 2025 | AC177: EMS | AD177: Pessoal | AE177: (-) Créditos de Tributos Recuperáveis | AF177: 610532610 | AG177: 0
AA178: 404 | AB178: 2025 | AC178: EMS | AD178: Materiais | AE178: Materiais | AF178: 610532701 | AG178: 0
AA179: 404 | AB179: 2025 | AC179: EMS | AD179: Materiais | AE179: (-) Créditos de Tributos Recuperáveis | AF179: 610532710 | AG179: 0
AA180: 404 | AB180: 2025 | AC180: EMS | AD180: Materiais | AE180: Outros | AF180: 610532799 | AG180: 0
AA181: 404 | AB181: 2025 | AC181: EMS | AD181: Serviços | AE181: Serviços de Terceiros | AF181: 610532801 | AG181: 0
AA182: 404 | AB182: 2025 | AC182: EMS | AD182: Serviços | AE182: (-) Créditos de Tributos Recuperáveis | AF182: 610532810 | AG182: 0
AA183: 404 | AB183: 2025 | AC183: EMS | AD183: Seguros | AE183: Seguros | AF183: 610533001 | AG183: 0
AA184: 404 | AB184: 2025 | AC184: EMS | AD184: Seguros | AE184: (-) Créditos de Tributos Recuperáveis | AF184: 610533010 | AG184: 0
AA185: 404 | AB185: 2025 | AC185: EMS | AD185: Seguros | AE185: Outros | AF185: 610533099 | AG185: 0
AA186: 404 | AB186: 2025 | AC186: EMS | AD186: Condenação Trabalhista | AE186: (-) Pagamento de Condenações de Litígios Trabalhistas | AF186: 610533212 | AG186: 0
AA187: 404 | AB187: 2025 | AC187: EMS | AD187: Tributos | AE187: Tributos | AF187: 610533601 | AG187: 0
AA188: 404 | AB188: 2025 | AC188: EMS | AD188: Outros | AE188: Indenização por Perdas e Danos | AF188: 610533901 | AG188: 0
AA189: 404 | AB189: 2025 | AC189: EMS | AD189: Outros | AE189: Consumo Próprio de Energia | AF189: 610533902 | AG189: 0
AA190: 404 | AB190: 2025 | AC190: EMS | AD190: Outros | AE190: Taxa de Arrecadação | AF190: 610533903 | AG190: 0
AA191: 404 | AB191: 2025 | AC191: EMS | AD191: Outros | AE191: Taxas Bancárias | AF191: 610533904 | AG191: 0
AA192: 404 | AB192: 2025 | AC192: EMS | AD192: Outros | AE192: Comunicação e Reprografia | AF192: 610533907 | AG192: 0
AA193: 404 | AB193: 2025 | AC193: EMS | AD193: Outros | AE193: Contribuição Associativa - CCEE | AF193: 610533908 | AG193: 0
AA194: 404 | AB194: 2025 | AC194: EMS | AD194: Outros | AE194: Contribuição Associativa - ONS | AF194: 610533909 | AG194: 0
AA195: 404 | AB195: 2025 | AC195: EMS | AD195: Outros | AE195: (-) Créditos de Tributos Recuperáveis | AF195: 610533910 | AG195: 0
AA196: 404 | AB196: 2025 | AC196: EMS | AD196: Alienação | AE196: Ganhos na Alienação de Bens Reversíveis | AF196: 611112203 | AG196: 0
AA197: 404 | AB197: 2025 | AC197: EMS | AD197: Desativação | AE197: Ganhos na Desativação de Bens Reversíveis | AF197: 611112403 | AG197: 0
AA198: 404 | AB198: 2025 | AC198: EMS | AD198: Desativação | AE198: Perdas na Desativação de Bens Reversíveis | AF198: 611512003 | AG198: 0
AA199: 404 | AB199: 2025 | AC199: EMS | AD199: Alienação | AE199: Perdas na Alienação de Bens Reversíveis | AF199: 611512203 | AG199: 0
B469: Transmissora | C469: Indice de atualização | D469: ENCARGO DE CONEXÃO repassável | E469: Instalações com Estabelecimento de RAP que entraram em operação | F469: PA para repasse a tarifa | G469: PA Qualidade DIT | H469: ENCARGO DE CONEXÃO ou PA não rapassável a tarifa (REN 67/2004 ou 68/2004) | I469: PA Empreendimento Autorizado sem estabelecimento prévio de RAP | J469: Contrato | K469: Razão Social Transmissora
B470: LTC | C470: IPCA | D470: 1384973.23 | E470: 0 | F470: 0 | G470: 0 | H470: 0 | I470: 0 | J470: 005/2011 | K470: LINHA DE TRANSMISSAO CORUMBA SA - LTC (Contrato nº 005/2011 )
B471: ITATIM | C471: IPCA | D471: 1490391.96 | E471: 0 | F471: 0 | G471: 0 | H471: 0 | I471: 0 | J471: 007/2009 | K471: LINHAS DE TRANSMISSAO DO ITATIM S.A. - ITATIM (Contrato nº 007/2009 )
... 37 more rows

Sheet BD_Uderor
K1: Número de lançamentos por item e por competência
A2: Dados SAMP Opção:Cativo Classe:Industrial | K2: Descrição | L2: =EDATE(M2,1) -> 1900-06-28 | M2: 1900-05-28 | N2: 1900-04-28 | O2: 1900-03-28 | P2: 1900-02-28 | Q2: =EDATE(R2,1) -> 1900-01-31 | R2: =Entrada!R5 -> 00:00:00 | S2: =EDATE(R2,-1) ->  | AA2: =EDATE(Z2,-1) ->  | BA2: =EDATE(AZ2,-1) ->  | BG2: =EDATE(BF2,-1) -> 
A3: Competencia | B3: COFINS (R$) | C3: ICMS (R$) | D3: PIS/PASEP (R$) | E3: Receita Bandeiras (R$) | F3: Receita Demanda (R$) | G3: Receita Energia (R$) | H3: PIS_Cofins_% | I3: ICMS_% | K3: =Entrada!P8 -> Serviços Cobráveis | L3: =IF(COUNTIFS($C$82:$C$200000,$K3,$H$82:$H$200000,L$2)=0,"",COUNTIFS($C$82:$C$200000,$K3,$H$82:$H$200000,L$2)) ->  | V3: =IF(COUNTIFS($C$82:$C$200000,$K3,$H$82:$H$200000,V$2)=0,"",COUNTIFS($C$82:$C$200000,$K3,$H$82:$H$200000,V$2)) ->  | AF3: =IF(COUNTIFS($C$82:$C$200000,$K3,$H$82:$H$200000,AF$2)=0,"",COUNTIFS($C$82:$C$200000,$K3,$H$82:$H$200000,AF$2)) ->  | AP3: =IF(COUNTIFS($C$82:$C$200000,$K3,$H$82:$H$200000,AP$2)=0,"",COUNTIFS($C$82:$C$200000,$K3,$H$82:$H$200000,AP$2)) ->  | AZ3: =IF(COUNTIFS($C$82:$C$200000,$K3,$H$82:$H$200000,AZ$2)=0,"",COUNTIFS($C$82:$C$200000,$K3,$H$82:$H$200000,AZ$2)) ->  | BJ3: =IF(COUNTIFS($C$82:$C$200000,$K3,$H$82:$H$200000,BJ$2)=0,"",COUNTIFS($C$82:$C$200000,$K3,$H$82:$H$200000,BJ$2)) -> 
A4: 43952 | B4: 749076.92 | C4: 2549242.13 | D4: 162588.12 | E4: 9.81 | F4: 2159139.66 | G4: 9252672.41 | H4: 0.06129780474 | I4: 0.1714039033 | K4: =Entrada!P9 -> Arrecadação de convênios ou valores pela fatura
A5: 43983 | B5: 687010.17 | C5: 2630023.93 | D5: 149131.88 | F5: 2206842.44 | G5: 9585589.3 | H5: 0.05479809255 | I5: 0.1723634097 | K5: =Entrada!P10 -> Arrecadação de faturas de terceiros por estrutura própria
A6: 44013 | B6: 519006.12 | C6: 2830736.76 | D6: 112643.47 | E6: 0.04 | F6: 2425645.6 | G6: 10578639.64 | H6: 0.03835927537 | I6: 0.1719070393 | K6: =Entrada!P11 -> Veiculação de publicidade
A7: 44044 | B7: 539252.6 | C7: 2983035.07 | D7: 117041.87 | E7: 50.77 | F7: 2428313.64 | G7: 11302404.58 | H7: 0.03778311258 | I7: 0.1717344196 | K7: =Entrada!P12 -> Aluguel ou cessão onerosa de imóveis e espaços físicos
A8: 44075 | B8: 911800.04 | C8: 3143021.21 | D8: 197933.14 | F8: 2507636.89 | G8: 11507502.49 | H8: 0.06074773556 | I8: 0.172051647 | K8: =Entrada!P13 -> Compartilhamento de infraestrutura
A9: 44105 | B9: 919911.46 | C9: 3130733.18 | D9: 199676.75 | E9: -246.77 | F9: 2590755.23 | G9: 11362380.87 | H9: 0.06150415165 | I9: 0.1719856341 | K9: =Entrada!P14 -> Serviços de avaliação técnica e aferição de medidores.
A10: 44136 | B10: 782915.23 | C10: 2953751.44 | D10: 169954.86 | F10: 2573724.71 | G10: 10704349.62 | H10: 0.05544876079 | I10: 0.1718826719 | K10: =Entrada!P15 -> Operacionalização de serviço de créditos tributários
A11: 44166 | B11: 802134.54 | C11: 3227657.13 | D11: 174114.54 | E11: 735779.58 | F11: 2516664.84 | G11: 12079632.47 | H11: 0.05192758041 | I11: 0.1716820313 | K11: =Entrada!P16 -> Elaboração de projeto, construção, operação, manutenção ou reforma de:
A12: 44197 | B12: 503545.92 | C12: 2766478.37 | D12: 109288.06 | E12: 856184.74 | F12: 2440697.23 | G12: 10311105.24 | H12: 0.03799080143 | I12: 0.1714995151 | K12: =Entrada!P17 -> (1) redes de distribuição de energia elétrica destinadas à regularização fundiária de interesse específico e ao atendimento dos empreendimentos de múltiplas unidades consumidoras; | L12: =IF(COUNTIFS($C$82:$C$200000,$K12,$H$82:$H$200000,L$2)=0,"",COUNTIFS($C$82:$C$200000,$K12,$H$82:$H$200000,L$2)) ->  | V12: =IF(COUNTIFS($C$82:$C$200000,$K12,$H$82:$H$200000,V$2)=0,"",COUNTIFS($C$82:$C$200000,$K12,$H$82:$H$200000,V$2)) ->  | AF12: =IF(COUNTIFS($C$82:$C$200000,$K12,$H$82:$H$200000,AF$2)=0,"",COUNTIFS($C$82:$C$200000,$K12,$H$82:$H$200000,AF$2)) ->  | AP12: =IF(COUNTIFS($C$82:$C$200000,$K12,$H$82:$H$200000,AP$2)=0,"",COUNTIFS($C$82:$C$200000,$K12,$H$82:$H$200000,AP$2)) ->  | AZ12: =IF(COUNTIFS($C$82:$C$200000,$K12,$H$82:$H$200000,AZ$2)=0,"",COUNTIFS($C$82:$C$200000,$K12,$H$82:$H$200000,AZ$2)) ->  | BJ12: =IF(COUNTIFS($C$82:$C$200000,$K12,$H$82:$H$200000,BJ$2)=0,"",COUNTIFS($C$82:$C$200000,$K12,$H$82:$H$200000,BJ$2)) -> 
A13: 44228 | B13: 639185.91 | C13: 2731234.41 | D13: 138736.06 | E13: 290478.46 | F13: 2334350.98 | G13: 10106715.13 | H13: 0.04877185697 | I13: 0.1712348785 | K13: =Entrada!P18 -> (2) redes de energia elétrica destinadas ao acesso dos sistemas de distribuição ou transmissão;
A14: 44256 | B14: 769210.88 | C14: 2816097.96 | D14: 166976.97 | E14: 307733.99 | F14: 2088056.13 | G14: 10582936.06 | H14: 0.05700371448 | I14: 0.1714699075 | K14: =Entrada!P19 -> (3) subestações de energia;
A15: 44287 | B15: 729602.22 | C15: 3058500.1 | D15: 158369.53 | E15: 332842.65 | F15: 2404277.32 | G15: 11474433.49 | H15: 0.04981557648 | I15: 0.1715831001 | K15: =Entrada!P20 -> (4) instalações elétricas internas de unidades consumidoras;
A16: 44317 | B16: 681306.16 | C16: 2936731.82 | D16: 147879.79 | E16: 561388.34 | F16: 2830336.8 | G16: 10758336.74 | H16: 0.04777905369 | I16: 0.1692193015 | K16: =Entrada!P21 -> (5) banco de capacitores;
A17: 44348 | B17: 728290.93 | C17: 3064921.21 | D17: 158082.19 | E17: 1088904.2 | F17: 2829720.62 | G17: 11020667.9 | H17: 0.0497915353 | I17: 0.1721703075 | K17: =Entrada!P22 -> (6) padrões de entrada de unidades consumidoras atendidas em baixa tensão;
A18: 44378 | B18: 757318.09 | C18: 3188396.61 | D18: 164389.58 | E18: 1642032.18 | F18: 2848692.98 | G18: 11373134.16 | H18: 0.05027880854 | I18: 0.1739258421 | K18: =Entrada!P23 -> (7) sistemas de medição de energia elétrica;
A19: 44409 | B19: 623392.09 | C19: 3256349.7 | D19: 135314.35 | E19: 2015762.18 | F19: 3111296.9 | G19: 11773288.13 | H19: 0.04014396005 | I19: 0.1722969061 | K19: =Entrada!P24 -> (8) geradores, incluindo-se unidades de microgeração e minigeração distribuída;
A20: 44440 | B20: 518127.54 | C20: 3453842.31 | D20: 112454.07 | E20: 2587598.54 | F20: 2914204.79 | G20: 12993636.19 | H20: 0.03154127925 | I20: 0.1727589309 | K20: =Entrada!P25 -> (9) sistemas de iluminação pública.
A21: 44470 | B21: 536697.07 | C21: 3194236.78 | D21: 116479.4 | E21: 3188566.93 | F21: 2893208.52 | G21: 13687172.72 | H21: 0.03197488942 | I21: 0.1563671879 | K21: =Entrada!P26 -> (10) estações de recarga de veículos elétricos, incluindo a prestação de serviços aos usuários
A22: 44501 | B22: 627009.87 | C22: 2773542.63 | D22: 136086.25 | E22: 3110829.11 | F22: 2800339.03 | G22: 13272768.86 | H22: 0.03891412439 | I22: 0.1414369436 | K22: =Entrada!P27 -> Eficientização do consumo de energia elétrica e instalação de cogeração qualificada, desde que não enquadráveis nos projetos de Pesquisa e Desenvolvimento (P&D) ou de Eficiência Energética estabelecidos em lei
A23: 44531 | B23: 777691.09 | C23: 2795938.17 | D23: 168818.81 | E23: 3076831.56 | F23: 2860626.26 | G23: 13191417.03 | H23: 0.04781683362 | I23: 0.1412482958 | K23: =Entrada!P28 -> Serviços de comunicação de dados
A24: 44562 | B24: 652539.23 | C24: 2692621.34 | D24: 141635.67 | E24: 2869242.72 | F24: 2859763.15 | G24: 12606436.66 | H24: 0.04190234082 | I24: 0.1420683745 | K24: =Entrada!P29 -> Serviços de consultoria
A25: 44593 | B25: 540690.86 | C25: 2682767.38 | D25: 117354.83 | E25: 2992399.12 | F25: 2788611.54 | G25: 12925707.63 | H25: 0.03453377713 | I25: 0.140789754 | K25: =Entrada!P30 -> Receita proveniente da comercialização de resultados de projetos de P&D COM comprovação
A26: 44621 | B26: 737168 | C26: 2813733.23 | D26: 160011.5 | E26: 3086344.62 | F26: 2805433.43 | G26: 13413806.02 | H26: 0.04501618913 | I26: 0.1411797163 | K26: =Entrada!P31 -> Receita proveniente da comercialização de resultados de projetos de P&D SEM comprovação
A27: 44652 | B27: 789697.31 | C27: 3096429.04 | D27: 171417.93 | E27: 2641186.97 | F27: 2928123.97 | G27: 13315378.39 | H27: 0.04734313738 | I27: 0.1525255862
A28: 44682 | B28: 583702.49 | C28: 3132461.77 | D28: 126708.03 | E28: 787285.65 | F28: 3558893.06 | G28: 11041592.04 | H28: 0.03851850317 | I28: 0.1698422746 | K28: Descrição | L28: =L2 -> 1900-06-28 | M28: =M2 -> 1900-05-28 | N28: 1900-04-28 | O28: 1900-03-28 | P28: 1900-02-28 | Q28: 1900-01-31 | R28: 00:00:00 | AA28: =AA2 ->  | BA28: =BA2 ->  | BG28: =BG2 -> 
A29: 44713 | B29: 544839.65 | C29: 2973475.75 | D29: 118260.36 | E29: 7682.02 | F29: 3610928.15 | G29: 10004016.52 | H29: 0.0384371924 | I29: 0.1723602138 | K29: =Entrada!P36 -> Ultrapassagem de Demanda | L29: =IF(COUNTIFS($C$82:$C$200000,$K29,$H$82:$H$200000,L$2)=0,"",COUNTIFS($C$82:$C$200000,$K29,$H$82:$H$200000,L$2)) ->  | V29: =IF(COUNTIFS($C$82:$C$200000,$K29,$H$82:$H$200000,V$2)=0,"",COUNTIFS($C$82:$C$200000,$K29,$H$82:$H$200000,V$2)) ->  | AF29: =IF(COUNTIFS($C$82:$C$200000,$K29,$H$82:$H$200000,AF$2)=0,"",COUNTIFS($C$82:$C$200000,$K29,$H$82:$H$200000,AF$2)) ->  | AP29: =IF(COUNTIFS($C$82:$C$200000,$K29,$H$82:$H$200000,AP$2)=0,"",COUNTIFS($C$82:$C$200000,$K29,$H$82:$H$200000,AP$2)) ->  | AZ29: =IF(COUNTIFS($C$82:$C$200000,$K29,$H$82:$H$200000,AZ$2)=0,"",COUNTIFS($C$82:$C$200000,$K29,$H$82:$H$200000,AZ$2)) ->  | BJ29: =IF(COUNTIFS($C$82:$C$200000,$K29,$H$82:$H$200000,BJ$2)=0,"",COUNTIFS($C$82:$C$200000,$K29,$H$82:$H$200000,BJ$2)) -> 
A30: 44743 | B30: 544801.68 | C30: 3238409.49 | D30: 118256.1 | E30: 2328.96 | F30: 4140747.31 | G30: 10704648.56 | H30: 0.03536899881 | I30: 0.1727440727 | K30: =Entrada!P37 -> Excedente Reativo
A31: 44774 | B31: 607812.44 | C31: 3187288.63 | D31: 131928.5 | E31: 247.97 | F31: 3603565.25 | G31: 10828170.05 | H31: 0.04029361154 | I31: 0.1736112779
A32: 44805 | B32: 765692.76 | C32: 3101930.73 | D32: 166205.37 | E32: 274.04 | F32: 3595464.83 | G32: 10475069.25 | H32: 0.05147367699 | I32: 0.1713360884
A33: 44835 | B33: 717526.8 | C33: 2906177.26 | D33: 155749.59 | E33: 2666.4 | F33: 3609073.94 | G33: 9632369.82 | H33: 0.05130613087 | I33: 0.1707417177
A34: 44866 | B34: 714166.4 | C34: 2887663.93 | D34: 155021.77 | F34: 3653988.79 | G34: 9543486.46 | H34: 0.05126644968 | I34: 0.1703201708 | K34: Data do último Lançamento por item e competência
A35: 44896 | B35: 600527.45 | C35: 2802783.11 | D35: 130356.96 | F35: 3733052.02 | G35: 9204134.91 | H35: 0.04437440767 | I35: 0.1701662241 | K35: Descrição | L35: =L2 -> 1900-06-28 | M35: =M2 -> 1900-05-28 | N35: 1900-04-28 | O35: 1900-03-28 | P35: 1900-02-28 | Q35: 1900-01-31 | R35: 00:00:00 | BG35: =BG2 -> 
A36: 44927 | B36: 592092.33 | C36: 2906244 | D36: 128531.6 | E36: 620.72 | F36: 3694681.62 | G36: 9708975.3 | H36: 0.04231366539 | I36: 0.1706491154 | K36: =Entrada!P8 -> Serviços Cobráveis | L36: =IF(_xlfn.MAXIFS($G$82:$G$200000,$C$82:$C$200000,$K36,$H$82:$H$200000,L$2)=0,"",_xlfn.MAXIFS($G$82:$G$200000,$C$82:$C$200000,$K36,$H$82:$H$200000,L$2)) ->  | V36: =IF(_xlfn.MAXIFS($G$82:$G$200000,$C$82:$C$200000,$K36,$H$82:$H$200000,V$2)=0,"",_xlfn.MAXIFS($G$82:$G$200000,$C$82:$C$200000,$K36,$H$82:$H$200000,V$2)) ->  | AF36: =IF(_xlfn.MAXIFS($G$82:$G$200000,$C$82:$C$200000,$K36,$H$82:$H$200000,AF$2)=0,"",_xlfn.MAXIFS($G$82:$G$200000,$C$82:$C$200000,$K36,$H$82:$H$200000,AF$2)) ->  | AP36: =IF(_xlfn.MAXIFS($G$82:$G$200000,$C$82:$C$200000,$K36,$H$82:$H$200000,AP$2)=0,"",_xlfn.MAXIFS($G$82:$G$200000,$C$82:$C$200000,$K36,$H$82:$H$200000,AP$2)) ->  | AZ36: =IF(_xlfn.MAXIFS($G$82:$G$200000,$C$82:$C$200000,$K36,$H$82:$H$200000,AZ$2)=0,"",_xlfn.MAXIFS($G$82:$G$200000,$C$82:$C$200000,$K36,$H$82:$H$200000,AZ$2)) ->  | BJ36: =IF(_xlfn.MAXIFS($G$82:$G$200000,$C$82:$C$200000,$K36,$H$82:$H$200000,BJ$2)=0,"",_xlfn.MAXIFS($G$82:$G$200000,$C$82:$C$200000,$K36,$H$82:$H$200000,BJ$2)) -> 
A37: 44958 | B37: 709925.27 | C37: 2928448.45 | D37: 154107.15 | E37: 5586.37 | F37: 3869627.22 | G37: 9394495.42 | H37: 0.05065676877 | I37: 0.1716900113 | K37: =Entrada!P9 -> Arrecadação de convênios ou valores pela fatura
A38: 44986 | B38: 810816.82 | C38: 3294960.93 | D38: 176006.11 | E38: -361.17 | F38: 4269720.14 | G38: 10546384.35 | H38: 0.0516718347 | I38: 0.172530118 | K38: =Entrada!P10 -> Arrecadação de faturas de terceiros por estrutura própria
A39: 45017 | B39: 867692.13 | C39: 3528162.69 | D39: 188353.95 | F39: 5008509.43 | G39: 10816765.55 | H39: 0.05174290996 | I39: 0.1728687866 | K39: =Entrada!P11 -> Veiculação de publicidade
A40: 45047 | B40: 863115.42 | C40: 3505994.08 | D40: 187360.03 | F40: 5288050.19 | G40: 10485554.85 | H40: 0.05167100821 | I40: 0.172453577 | K40: =Entrada!P12 -> Aluguel ou cessão onerosa de imóveis e espaços físicos
A41: 45078 | B41: 789054.59 | C41: 3193952.94 | D41: 171281.52 | F41: 3941074.21 | G41: 10559823.62 | H41: 0.05147823585 | I41: 0.1712099139 | K41: =Entrada!P13 -> Compartilhamento de infraestrutura
A42: 45108 | B42: 833623.75 | C42: 3400668.86 | D42: 180958.16 | E42: 605.17 | F42: 4169785.63 | G42: 11068953.16 | H42: 0.05162218627 | I42: 0.1730268987 | K42: =Entrada!P14 -> Serviços de avaliação técnica e aferição de medidores.
A43: 45139 | B43: 883632.94 | C43: 3594157.76 | D43: 191814.94 | F43: 4114831.4 | G43: 11931462.15 | H43: 0.05191412983 | I43: 0.1734975502 | K43: =Entrada!P15 -> Operacionalização de serviço de créditos tributários
A44: 45170 | B44: 875326.77 | C44: 3534361.79 | D44: 190011.68 | E44: 1460.24 | F44: 4140245.41 | G44: 11713716.38 | H44: 0.05208546266 | I44: 0.1727984839 | K44: =Entrada!P16 -> Elaboração de projeto, construção, operação, manutenção ou reforma de:
A45: 45200 | B45: 828411.75 | C45: 3066659.84 | D45: 179828.56 | F45: 4013003.73 | G45: 10866599.32 | H45: 0.05319265292 | I45: 0.1617905681 | K45: =Entrada!P17 -> (1) redes de distribuição de energia elétrica destinadas à regularização fundiária de interesse específico e ao atendimento dos empreendimentos de múltiplas unidades consumidoras; | L45: =IF(_xlfn.MAXIFS($G$82:$G$200000,$C$82:$C$200000,$K45,$H$82:$H$200000,L$2)=0,"",_xlfn.MAXIFS($G$82:$G$200000,$C$82:$C$200000,$K45,$H$82:$H$200000,L$2)) ->  | V45: =IF(_xlfn.MAXIFS($G$82:$G$200000,$C$82:$C$200000,$K45,$H$82:$H$200000,V$2)=0,"",_xlfn.MAXIFS($G$82:$G$200000,$C$82:$C$200000,$K45,$H$82:$H$200000,V$2)) ->  | AF45: =IF(_xlfn.MAXIFS($G$82:$G$200000,$C$82:$C$200000,$K45,$H$82:$H$200000,AF$2)=0,"",_xlfn.MAXIFS($G$82:$G$200000,$C$82:$C$200000,$K45,$H$82:$H$200000,AF$2)) ->  | AP45: =IF(_xlfn.MAXIFS($G$82:$G$200000,$C$82:$C$200000,$K45,$H$82:$H$200000,AP$2)=0,"",_xlfn.MAXIFS($G$82:$G$200000,$C$82:$C$200000,$K45,$H$82:$H$200000,AP$2)) ->  | AZ45: =IF(_xlfn.MAXIFS($G$82:$G$200000,$C$82:$C$200000,$K45,$H$82:$H$200000,AZ$2)=0,"",_xlfn.MAXIFS($G$82:$G$200000,$C$82:$C$200000,$K45,$H$82:$H$200000,AZ$2)) ->  | BJ45: =IF(_xlfn.MAXIFS($G$82:$G$200000,$C$82:$C$200000,$K45,$H$82:$H$200000,BJ$2)=0,"",_xlfn.MAXIFS($G$82:$G$200000,$C$82:$C$200000,$K45,$H$82:$H$200000,BJ$2)) -> 
A46: 45231 | B46: 806681.58 | C46: 2932888.87 | D46: 175110.52 | E46: 62 | F46: 4270069.87 | G46: 10256141.02 | H46: 0.05323994671 | I46: 0.1590426804 | K46: =Entrada!P18 -> (2) redes de energia elétrica destinadas ao acesso dos sistemas de distribuição ou transmissão;
A47: 45261 | B47: 797150.34 | C47: 2882215.35 | D47: 173042.29 | F47: 4261907.88 | G47: 10067282.28 | H47: 0.05336124044 | I47: 0.1585237628 | K47: =Entrada!P19 -> (3) subestações de energia;
A48: 45292 | B48: 820081.41 | C48: 2715872.62 | D48: 178019.96 | F48: 4150334.4 | G48: 9536161.53 | H48: 0.05736059857 | I48: 0.1560804181 | K48: =Entrada!P20 -> (4) instalações elétricas internas de unidades consumidoras;
A49: 45323 | B49: 860953.3 | C49: 2846943.89 | D49: 186894.13 | F49: 4311057.53 | G49: 10134097.89 | H49: 0.05713470409 | I49: 0.1552318516 | K49: =Entrada!P21 -> (5) banco de capacitores;
A50: 45352 | B50: 820506.59 | C50: 2663779.68 | D50: 178113.65 | F50: 4266972.89 | G50: 9262012.76 | H50: 0.05808840922 | I50: 0.1549485159 | K50: =Entrada!P22 -> (6) padrões de entrada de unidades consumidoras atendidas em baixa tensão;
A51: 45383 | B51: 832904.73 | C51: 2715033.28 | D51: 180805.91 | F51: 4407347.2 | G51: 9377804.75 | H51: 0.0578803624 | I51: 0.1550216639 | K51: =Entrada!P23 -> (7) sistemas de medição de energia elétrica;
A52: 45413 | B52: 774967.24 | C52: 2394710.61 | D52: 168226.19 | E52: 74.22 | F52: 4583732.75 | G52: 8253557.57 | H52: 0.05831110335 | I52: 0.148048336 | K52: =Entrada!P24 -> (8) geradores, incluindo-se unidades de microgeração e minigeração distribuída;
A53: 45444 | B53: 751511.28 | C53: 2309403.16 | D53: 163133.62 | E53: 223.25 | F53: 4527682.26 | G53: 7755758.67 | H53: 0.05898085116 | I53: 0.1489217991 | K53: =Entrada!P25 -> (9) sistemas de iluminação pública.
A54: 45474 | B54: 784382.85 | C54: 2359311.35 | D54: 170270.3 | E54: 88508.63 | F54: 4839584.28 | G54: 8002763.52 | H54: 0.05908855513 | I54: 0.1460303135 | K54: =Entrada!P26 -> (10) estações de recarga de veículos elétricos, incluindo a prestação de serviços aos usuários
A55: 45505 | B55: 670817.86 | C55: 2333853.76 | D55: 145611.65 | E55: 176957.66 | F55: 4114446.05 | G55: 8224416.35 | H55: 0.05270978319 | I55: 0.1506767261 | K55: =Entrada!P27 -> Eficientização do consumo de energia elétrica e instalação de cogeração qualificada, desde que não enquadráveis nos projetos de Pesquisa e Desenvolvimento (P&D) ou de Eficiência Energética estabelecidos em lei
A56: 45536 | B56: 471061.99 | C56: 2030611.28 | D56: 102251.88 | E56: 128232.53 | F56: 3502416.98 | G56: 6936312.08 | H56: 0.04395684044 | I56: 0.1556900342 | K56: =Entrada!P28 -> Serviços de comunicação de dados
A57: 45566 | B57: 586998.26 | C57: 2271069.7 | D57: 127425.67 | E57: 676953.9 | F57: 3751386.52 | G57: 7835002.27 | H57: 0.0490275662 | I57: 0.1558528702 | K57: =Entrada!P29 -> Serviços de consultoria
A58: 45597 | B58: 554415.59 | C58: 2281697.26 | D58: 120344.17 | E58: 756319.74 | F58: 3615505.58 | G58: 7889289.95 | H58: 0.04665984206 | I58: 0.1577800576 | K58: =Entrada!P30 -> Receita proveniente da comercialização de resultados de projetos de P&D COM comprovação
A59: 45627 | B59: 735245.19 | C59: 2120740.52 | D59: 159603.5 | E59: 155810.37 | F59: 3493134.1 | G59: 7063657.33 | H59: 0.065931594 | I59: 0.1562541293 | K59: =Entrada!P31 -> Receita proveniente da comercialização de resultados de projetos de P&D SEM comprovação
A60: 45658 | B60: 686480.81 | C60: 1818905.38 | D60: 149017.49 | E60: -593.21 | F60: 3720950.19 | G60: 5837599.9 | H60: 0.06841082966 | I60: 0.1489324707
A61: 45689 | B61: 742298.18 | C61: 2054280.22 | D61: 161136.08 | E61: 1080.2 | F61: 3644247.5 | G61: 6497561.18 | H61: 0.06896695773 | I61: 0.1568209923 | K61: Descrição | L61: =L35 -> 1900-06-28 | M61: =M35 -> 1900-05-28 | N61: 1900-04-28 | O61: 1900-03-28 | P61: 1900-02-28 | Q61: 1900-01-31 | R61: 00:00:00 | AA61: =AA35 ->  | BA61: =BA35 ->  | BG61: =BG35 -> 
A62: 45717 | B62: 738065.58 | C62: 2084417.83 | D62: 160217.62 | E62: -905.08 | F62: 3139243.98 | G62: 6794208 | H62: 0.06954727149 | I62: 0.1613807012 | K62: =Entrada!P36 -> Ultrapassagem de Demanda | L62: =IF(COUNTIFS($C$82:$C$200000,$K62,$H$82:$H$200000,L$2)=0,"",COUNTIFS($C$82:$C$200000,$K62,$H$82:$H$200000,L$2)) ->  | V62: =IF(COUNTIFS($C$82:$C$200000,$K62,$H$82:$H$200000,V$2)=0,"",COUNTIFS($C$82:$C$200000,$K62,$H$82:$H$200000,V$2)) ->  | AF62: =IF(COUNTIFS($C$82:$C$200000,$K62,$H$82:$H$200000,AF$2)=0,"",COUNTIFS($C$82:$C$200000,$K62,$H$82:$H$200000,AF$2)) ->  | AP62: =IF(COUNTIFS($C$82:$C$200000,$K62,$H$82:$H$200000,AP$2)=0,"",COUNTIFS($C$82:$C$200000,$K62,$H$82:$H$200000,AP$2)) ->  | AZ62: =IF(COUNTIFS($C$82:$C$200000,$K62,$H$82:$H$200000,AZ$2)=0,"",COUNTIFS($C$82:$C$200000,$K62,$H$82:$H$200000,AZ$2)) ->  | BJ62: =IF(COUNTIFS($C$82:$C$200000,$K62,$H$82:$H$200000,BJ$2)=0,"",COUNTIFS($C$82:$C$200000,$K62,$H$82:$H$200000,BJ$2)) -> 
A63: 45748 | B63: 738497.12 | C63: 2055758.7 | D63: 160310.86 | E63: 368.42 | F63: 3164752.08 | G63: 6686976.2 | H63: 0.07018485696 | I63: 0.1605272022 | K63: =Entrada!P37 -> Excedente Reativo
A64: 45778 | B64: 698717.88 | C64: 1867960.53 | D64: 151679.74 | E64: 48148.7 | F64: 3407428.78 | G64: 5993678.65 | H64: 0.07016791412 | I64: 0.1541289521
A65: 45809 | B65: 689141.57 | C65: 1896433.2 | D65: 149605.77 | E65: 260519.25 | F65: 3324544.13 | G65: 6166022.9 | H65: 0.06860499411 | I65: 0.1551179745
A66: 45839 | B66: 683051.42 | C66: 1853264.42 | D66: 145219.06 | E66: 455296.99 | F66: 3174566.32 | G66: 6052341.13 | H66: 0.06955321743 | I66: 0.1556260983
A67: 45870 | B67: 534249.92 | C67: 2044358.17 | D67: 115974.38 | E67: 606058.56 | F67: 3085667.66 | G67: 6815665.08 | H67: 0.05162183844 | I67: 0.1623032655
A68: 45901 | B68: 469053.47 | C68: 1872019.57 | D68: 101824.16 | E68: 772832.1 | F68: 2989518.59 | G68: 6319571.22 | H68: 0.04857711547 | I68: 0.1592938767
A69: 45931 | B69: 594874.42 | C69: 1846071.31 | D69: 129139.39 | E69: 653059.38 | F69: 2694201.97 | G69: 5938822.89 | H69: 0.064626145 | I69: 0.1647820394
A70: 45962 | B70: 840786.56 | C70: 1825242.13 | D70: 661062.56 | E70: 410607.72 | F70: 2294891.82 | G70: 5767548.12 | H70: 0.1318622422 | I70: 0.1602561246
A71: 45992 | B71: 949974.76 | C71: 1603271.93 | D71: 206232.1 | E71: 307140.77 | F71: 2675601.06 | G71: 5054429.86 | H71: 0.1102250622 | I71: 0.1528452687
A72: 46023 | B72: 954721.51 | C72: 1512072.61 | D72: 207261.75 | E72: 98722.53 | F72: 2254789.35 | G72: 4505322.13 | H72: 0.123167548 | I72: 0.1602762124
A73: 46054 | B73: 954721.51 | C73: 1512072.61 | D73: 207261.75 | E73: 98722.53 | F73: 2254789.35 | G73: 4505322.13 | H73: 0.123167548 | I73: 0.1602762124
A74: 46082 | B74: 954721.51 | C74: 1512072.61 | D74: 207261.75 | E74: 98722.53 | F74: 2254789.35 | G74: 4505322.13 | H74: 0.123167548 | I74: 0.1602762124
A80: Tab_Uderor
A81: IdeTipoReceita | B81: TipoReceitaArquivo | C81: TipoReceita | D81: CompetenciaArquivo | E81: Data_envio_arquivo | F81: NomeArquivo | G81: Data_Lancamento | H81: Competencia | I81: R$
A82: 1 | B82: Serviços Cobráveis | C82: Serviços Cobráveis | D82: 202011 | E82: 44893 | F82: APLCVA00404_FLXPAGAMENTOS_112020_S007.XML | G82: 44136 | H82: 44136 | I82: 155406.59
A83: 1 | B83: Serviços Cobráveis | C83: Serviços Cobráveis | D83: 202012 | E83: 44893 | F83: APLCVA00404_FLXPAGAMENTOS_122020_S004.XML | G83: 44166 | H83: 44166 | I83: 282389.44
A84: 1 | B84: Serviços Cobráveis | C84: Serviços Cobráveis | D84: 202101 | E84: 44893 | F84: APLCVA00404_FLXPAGAMENTOS_012021_S005.XML | G84: 44197 | H84: 44197 | I84: 100261.71
A85: 1 | B85: Serviços Cobráveis | C85: Serviços Cobráveis | D85: 202102 | E85: 44893 | F85: APLCVA00404_FLXPAGAMENTOS_022021_S006.XML | G85: 44228 | H85: 44228 | I85: 157033.22
A86: 1 | B86: Serviços Cobráveis | C86: Serviços Cobráveis | D86: 202103 | E86: 44893 | F86: APLCVA00404_FLXPAGAMENTOS_032021_S006.XML | G86: 44256 | H86: 44256 | I86: 175996.1
A87: 1 | B87: Serviços Cobráveis | C87: Serviços Cobráveis | D87: 202104 | E87: 44893 | F87: APLCVA00404_FLXPAGAMENTOS_042021_S004.XML | G87: 44287 | H87: 44287 | I87: 167856.18
A88: 1 | B88: Serviços Cobráveis | C88: Serviços Cobráveis | D88: 202105 | E88: 44893 | F88: APLCVA00404_FLXPAGAMENTOS_052021_S005.XML | G88: 44317 | H88: 44317 | I88: 220060.56
A89: 1 | B89: Serviços Cobráveis | C89: Serviços Cobráveis | D89: 202106 | E89: 44893 | F89: APLCVA00404_FLXPAGAMENTOS_062021_S005.XML | G89: 44348 | H89: 44348 | I89: 199027.32
A90: 1 | B90: Serviços Cobráveis | C90: Serviços Cobráveis | D90: 202107 | E90: 44893 | F90: APLCVA00404_FLXPAGAMENTOS_072021_S007.XML | G90: 44378 | H90: 44378 | I90: 238140.99
A91: 1 | B91: Serviços Cobráveis | C91: Serviços Cobráveis | D91: 202108 | E91: 44893 | F91: APLCVA00404_FLXPAGAMENTOS_082021_S007.XML | G91: 44409 | H91: 44409 | I91: 224208.88
A92: 1 | B92: Serviços Cobráveis | C92: Serviços Cobráveis | D92: 202109 | E92: 44893 | F92: APLCVA00404_FLXPAGAMENTOS_092021_S006.XML | G92: 44440 | H92: 44440 | I92: 156048.36
A93: 1 | B93: Serviços Cobráveis | C93: Serviços Cobráveis | D93: 202110 | E93: 44893 | F93: APLCVA00404_FLXPAGAMENTOS_102021_S005.XML | G93: 44470 | H93: 44470 | I93: 137871.53
A94: 1 | B94: Serviços Cobráveis | C94: Serviços Cobráveis | D94: 202111 | E94: 44893 | F94: APLCVA00404_FLXPAGAMENTOS_112021_S005.XML | G94: 44501 | H94: 44501 | I94: 142651.09
A95: 1 | B95: Serviços Cobráveis | C95: Serviços Cobráveis | D95: 202112 | E95: 44872 | F95: APLCVA00404_FLXPAGAMENTOS_122021_S004.XML | G95: 44531 | H95: 44531 | I95: 203239.91
A96: 1 | B96: Serviços Cobráveis | C96: Serviços Cobráveis | D96: 202201 | E96: 44872 | F96: APLCVA00404_FLXPAGAMENTOS_012022_S003.XML | G96: 44562 | H96: 44562 | I96: 147143.46
A97: 1 | B97: Serviços Cobráveis | C97: Serviços Cobráveis | D97: 202202 | E97: 44872 | F97: APLCVA00404_FLXPAGAMENTOS_022022_S006.XML | G97: 44593 | H97: 44593 | I97: 125803.86
A98: 1 | B98: Serviços Cobráveis | C98: Serviços Cobráveis | D98: 202203 | E98: 44978 | F98: APLCVA00404_FLXPAGAMENTOS_032022_S006.XML | G98: 44621 | H98: 44621 | I98: 155275.79
A99: 1 | B99: Serviços Cobráveis | C99: Serviços Cobráveis | D99: 202204 | E99: 44950 | F99: APLCVA00404_FLXPAGAMENTOS_042022_S004.XML | G99: 44652 | H99: 44652 | I99: 178702.02
A100: 1 | B100: Serviços Cobráveis | C100: Serviços Cobráveis | D100: 202205 | E100: 44994 | F100: APLCVA00404_FLXPAGAMENTOS_052022_S004.XML | G100: 44682 | H100: 44682 | I100: 223463.07
A101: 1 | B101: Serviços Cobráveis | C101: Serviços Cobráveis | D101: 202206 | E101: 44968 | F101: APLCVA00404_FLXPAGAMENTOS_062022_S003.XML | G101: 44713 | H101: 44713 | I101: 208406.9
A102: 1 | B102: Serviços Cobráveis | C102: Serviços Cobráveis | D102: 202207 | E102: 44988 | F102: APLCVA00404_FLXPAGAMENTOS_072022_S005.XML | G102: 44743 | H102: 44743 | I102: 244473.41
A103: 1 | B103: Serviços Cobráveis | C103: Serviços Cobráveis | D103: 202208 | E103: 44994 | F103: APLCVA00404_FLXPAGAMENTOS_082022_S007.XML | G103: 44774 | H103: 44774 | I103: 265277.36
A104: 1 | B104: Serviços Cobráveis | C104: Serviços Cobráveis | D104: 202209 | E104: 44994 | F104: APLCVA00404_FLXPAGAMENTOS_092022_S007.XML | G104: 44805 | H104: 44805 | I104: 225938.32
A105: 1 | B105: Serviços Cobráveis | C105: Serviços Cobráveis | D105: 202210 | E105: 44998 | F105: APLCVA00404_FLXPAGAMENTOS_102022_S005.XML | G105: 44835 | H105: 44835 | I105: 128386.57
A106: 1 | B106: Serviços Cobráveis | C106: Serviços Cobráveis | D106: 202211 | E106: 44991 | F106: APLCVA00404_FLXPAGAMENTOS_112022_S005.XML | G106: 44866 | H106: 44866 | I106: 115602.78
A107: 1 | B107: Serviços Cobráveis | C107: Serviços Cobráveis | D107: 202212 | E107: 44995 | F107: APLCVA00404_FLXPAGAMENTOS_122022_S004.XML | G107: 44896 | H107: 44896 | I107: 100896.58
A108: 1 | B108: Serviços Cobráveis | C108: Serviços Cobráveis | D108: 202301 | E108: 45356 | F108: APLCVA00404_FLXPAGAMENTOS_012023_S004.XML | G108: 44927 | H108: 44927 | I108: 120064.92
A109: 1 | B109: Serviços Cobráveis | C109: Serviços Cobráveis | D109: 202302 | E109: 45358 | F109: APLCVA00404_FLXPAGAMENTOS_022023_S005.XML | G109: 44958 | H109: 44958 | I109: 106670.76
A110: 1 | B110: Serviços Cobráveis | C110: Serviços Cobráveis | D110: 202303 | E110: 45358 | F110: APLCVA00404_FLXPAGAMENTOS_032023_S005.XML | G110: 44986 | H110: 44986 | I110: 109890.12
A111: 1 | B111: Serviços Cobráveis | C111: Serviços Cobráveis | D111: 202304 | E111: 45314 | F111: APLCVA00404_FLXPAGAMENTOS_042023_S005.XML | G111: 45017 | H111: 45017 | I111: 158582.45
A112: 1 | B112: Serviços Cobráveis | C112: Serviços Cobráveis | D112: 202305 | E112: 45314 | F112: APLCVA00404_FLXPAGAMENTOS_052023_S005.XML | G112: 45047 | H112: 45047 | I112: 186715.66
A113: 1 | B113: Serviços Cobráveis | C113: Serviços Cobráveis | D113: 202306 | E113: 45332 | F113: APLCVA00404_FLXPAGAMENTOS_062023_S005.XML | G113: 45078 | H113: 45078 | I113: 202070.63
A114: 1 | B114: Serviços Cobráveis | C114: Serviços Cobráveis | D114: 202307 | E114: 45314 | F114: APLCVA00404_FLXPAGAMENTOS_072023_S003.XML | G114: 45108 | H114: 45108 | I114: 206633.98
A115: 1 | B115: Serviços Cobráveis | C115: Serviços Cobráveis | D115: 202308 | E115: 45314 | F115: APLCVA00404_FLXPAGAMENTOS_082023_S003.XML | G115: 45139 | H115: 45139 | I115: 204828.07
A116: 1 | B116: Serviços Cobráveis | C116: Serviços Cobráveis | D116: 202309 | E116: 45314 | F116: APLCVA00404_FLXPAGAMENTOS_092023_S003.XML | G116: 45170 | H116: 45170 | I116: 138446.19
A117: 1 | B117: Serviços Cobráveis | C117: Serviços Cobráveis | D117: 202310 | E117: 45314 | F117: APLCVA00404_FLXPAGAMENTOS_102023_S003.XML | G117: 45200 | H117: 45200 | I117: 164154.23
A118: 1 | B118: Serviços Cobráveis | C118: Serviços Cobráveis | D118: 202311 | E118: 45332 | F118: APLCVA00404_FLXPAGAMENTOS_112023_S003.XML | G118: 45231 | H118: 45231 | I118: 151416.2
A119: 1 | B119: Serviços Cobráveis | C119: Serviços Cobráveis | D119: 202312 | E119: 45356 | F119: APLCVA00404_FLXPAGAMENTOS_122023_S003.XML | G119: 45261 | H119: 45261 | I119: 167176.26
A120: 1 | B120: Serviços Cobráveis | C120: Serviços Cobráveis | D120: 202401 | E120: 45365 | F120: APLCVA00404_FLXPAGAMENTOS_012024_S004.XML | G120: 45292 | H120: 45292 | I120: 143954.05
A121: 1 | B121: Serviços Cobráveis | C121: Serviços Cobráveis | D121: 202402 | E121: 45723 | F121: APLCVA00404_FLXPAGAMENTOS_022024_S002.XML | G121: 45323 | H121: 45323 | I121: 192037.41
A122: 1 | B122: Serviços Cobráveis | C122: Serviços Cobráveis | D122: 202403 | E122: 45723 | F122: APLCVA00404_FLXPAGAMENTOS_032024_S005.XML | G122: 45352 | H122: 45352 | I122: 190537.45
A123: 1 | B123: Serviços Cobráveis | C123: Serviços Cobráveis | D123: 202404 | E123: 45723 | F123: APLCVA00404_FLXPAGAMENTOS_042024_S001.XML | G123: 45383 | H123: 45383 | I123: 214706.53
A124: 1 | B124: Serviços Cobráveis | C124: Serviços Cobráveis | D124: 202405 | E124: 45723 | F124: APLCVA00404_FLXPAGAMENTOS_052024_S003.XML | G124: 45413 | H124: 45413 | I124: 249636.61
A125: 1 | B125: Serviços Cobráveis | C125: Serviços Cobráveis | D125: 202406 | E125: 45723 | F125: APLCVA00404_FLXPAGAMENTOS_062024_S004.XML | G125: 45444 | H125: 45444 | I125: 272806.87
A126: 1 | B126: Serviços Cobráveis | C126: Serviços Cobráveis | D126: 202407 | E126: 45723 | F126: APLCVA00404_FLXPAGAMENTOS_072024_S003.XML | G126: 45474 | H126: 45474 | I126: 306898.93
A127: 1 | B127: Serviços Cobráveis | C127: Serviços Cobráveis | D127: 202408 | E127: 45723 | F127: APLCVA00404_FLXPAGAMENTOS_082024_S003.XML | G127: 45505 | H127: 45505 | I127: 298642.32
A128: 1 | B128: Serviços Cobráveis | C128: Serviços Cobráveis | D128: 202409 | E128: 45723 | F128: APLCVA00404_FLXPAGAMENTOS_092024_S003.XML | G128: 45536 | H128: 45536 | I128: 271345.17
A129: 1 | B129: Serviços Cobráveis | C129: Serviços Cobráveis | D129: 202410 | E129: 45723 | F129: APLCVA00404_FLXPAGAMENTOS_102024_S004.XML | G129: 45566 | H129: 45566 | I129: 222064.74
A130: 1 | B130: Serviços Cobráveis | C130: Serviços Cobráveis | D130: 202411 | E130: 45723 | F130: APLCVA00404_FLXPAGAMENTOS_112024_S003.XML | G130: 45597 | H130: 45597 | I130: 191131.66
A131: 1 | B131: Serviços Cobráveis | C131: Serviços Cobráveis | D131: 202412 | E131: 45723 | F131: APLCVA00404_FLXPAGAMENTOS_122024_S002.XML | G131: 45627 | H131: 45627 | I131: 279615.24
A132: 1 | B132: Serviços Cobráveis | C132: Serviços Cobráveis | D132: 202501 | E132: 45726 | F132: APLCVA00404_FLXPAGAMENTOS_012025_S002.XML | G132: 45658 | H132: 45658 | I132: 306167.74
A133: 1 | B133: Serviços Cobráveis | C133: Serviços Cobráveis | D133: 202502 | E133: 45820 | F133: APLCVA00404_FLXPAGAMENTOS_022025_S001.XML | G133: 45689 | H133: 45689 | I133: 240765.83
A134: 1 | B134: Serviços Cobráveis | C134: Serviços Cobráveis | D134: 202503 | E134: 46064 | F134: APLCVA00404_FLXPAGAMENTOS_032025_S002.XML | G134: 45717 | H134: 45717 | I134: 196002.96
A135: 1 | B135: Serviços Cobráveis | C135: Serviços Cobráveis | D135: 202504 | E135: 46064 | F135: APLCVA00404_FLXPAGAMENTOS_042025_S001.XML | G135: 45748 | H135: 45748 | I135: 200038.91
A136: 1 | B136: Serviços Cobráveis | C136: Serviços Cobráveis | D136: 202505 | E136: 46064 | F136: APLCVA00404_FLXPAGAMENTOS_052025_S002.XML | G136: 45778 | H136: 45778 | I136: 246562.79
A137: 1 | B137: Serviços Cobráveis | C137: Serviços Cobráveis | D137: 202506 | E137: 46064 | F137: APLCVA00404_FLXPAGAMENTOS_062025_S002.XML | G137: 45809 | H137: 45809 | I137: 300593.18
A138: 1 | B138: Serviços Cobráveis | C138: Serviços Cobráveis | D138: 202507 | E138: 46064 | F138: APLCVA00404_FLXPAGAMENTOS_072025_S003.XML | G138: 45839 | H138: 45839 | I138: 382717.72
A139: 1 | B139: Serviços Cobráveis | C139: Serviços Cobráveis | D139: 202508 | E139: 46064 | F139: APLCVA00404_FLXPAGAMENTOS_082025_S003.XML | G139: 45870 | H139: 45870 | I139: 363668.64
A140: 1 | B140: Serviços Cobráveis | C140: Serviços Cobráveis | D140: 202509 | E140: 46064 | F140: APLCVA00404_FLXPAGAMENTOS_092025_S002.XML | G140: 45901 | H140: 45901 | I140: 329733.36
A141: 1 | B141: Serviços Cobráveis | C141: Serviços Cobráveis | D141: 202510 | E141: 46064 | F141: APLCVA00404_FLXPAGAMENTOS_102025_S002.XML | G141: 45931 | H141: 45931 | I141: 0
A142: 1 | B142: Serviços Cobráveis | C142: Serviços Cobráveis | D142: 202511 | E142: 46064 | F142: APLCVA00404_FLXPAGAMENTOS_112025_S002.XML | G142: 45962 | H142: 45962 | I142: 0
A143: 1 | B143: Serviços Cobráveis | C143: Serviços Cobráveis | D143: 202512 | E143: 46064 | F143: APLCVA00404_FLXPAGAMENTOS_122025_S001.XML | G143: 45992 | H143: 45992 | I143: 497031.24
A144: 1 | B144: Serviços Cobráveis | C144: Serviços Cobráveis | D144: 202601 | E144: 46064 | F144: APLCVA00404_FLXPAGAMENTOS_012026_S000.XML | G144: 46023 | H144: 46023 | I144: 0
A145: 2 | B145: Arrecadação de convênios ou valores pela fatura | C145: Arrecadação de convênios ou valores pela fatura | D145: 202011 | E145: 44893 | F145: APLCVA00404_FLXPAGAMENTOS_112020_S007.XML | G145: 44136 | H145: 44136 | I145: 147062
A146: 2 | B146: Arrecadação de convênios ou valores pela fatura | C146: Arrecadação de convênios ou valores pela fatura | D146: 202012 | E146: 44893 | F146: APLCVA00404_FLXPAGAMENTOS_122020_S004.XML | G146: 44166 | H146: 44166 | I146: 155066.68
A147: 2 | B147: Arrecadação de convênios ou valores pela fatura | C147: Arrecadação de convênios ou valores pela fatura | D147: 202101 | E147: 44893 | F147: APLCVA00404_FLXPAGAMENTOS_012021_S005.XML | G147: 44197 | H147: 44197 | I147: 149792.37
A148: 2 | B148: Arrecadação de convênios ou valores pela fatura | C148: Arrecadação de convênios ou valores pela fatura | D148: 202102 | E148: 44893 | F148: APLCVA00404_FLXPAGAMENTOS_022021_S006.XML | G148: 44228 | H148: 44228 | I148: 153657.35
A149: 2 | B149: Arrecadação de convênios ou valores pela fatura | C149: Arrecadação de convênios ou valores pela fatura | D149: 202103 | E149: 44893 | F149: APLCVA00404_FLXPAGAMENTOS_032021_S006.XML | G149: 44256 | H149: 44256 | I149: 153458.4
A150: 2 | B150: Arrecadação de convênios ou valores pela fatura | C150: Arrecadação de convênios ou valores pela fatura | D150: 202104 | E150: 44893 | F150: APLCVA00404_FLXPAGAMENTOS_042021_S004.XML | G150: 44287 | H150: 44287 | I150: 149339.06
A151: 2 | B151: Arrecadação de convênios ou valores pela fatura | C151: Arrecadação de convênios ou valores pela fatura | D151: 202105 | E151: 44893 | F151: APLCVA00404_FLXPAGAMENTOS_052021_S005.XML | G151: 44317 | H151: 44317 | I151: 154399.24
A152: 2 | B152: Arrecadação de convênios ou valores pela fatura | C152: Arrecadação de convênios ou valores pela fatura | D152: 202106 | E152: 44893 | F152: APLCVA00404_FLXPAGAMENTOS_062021_S005.XML | G152: 44348 | H152: 44348 | I152: 152406.52
A153: 2 | B153: Arrecadação de convênios ou valores pela fatura | C153: Arrecadação de convênios ou valores pela fatura | D153: 202107 | E153: 44893 | F153: APLCVA00404_FLXPAGAMENTOS_072021_S007.XML | G153: 44378 | H153: 44378 | I153: 154708.7
A154: 2 | B154: Arrecadação de convênios ou valores pela fatura | C154: Arrecadação de convênios ou valores pela fatura | D154: 202108 | E154: 44893 | F154: APLCVA00404_FLXPAGAMENTOS_082021_S007.XML | G154: 44409 | H154: 44409 | I154: 144872.41
A155: 2 | B155: Arrecadação de convênios ou valores pela fatura | C155: Arrecadação de convênios ou valores pela fatura | D155: 202109 | E155: 44893 | F155: APLCVA00404_FLXPAGAMENTOS_092021_S006.XML | G155: 44440 | H155: 44440 | I155: 138406
A156: 2 | B156: Arrecadação de convênios ou valores pela fatura | C156: Arrecadação de convênios ou valores pela fatura | D156: 202110 | E156: 44893 | F156: APLCVA00404_FLXPAGAMENTOS_102021_S005.XML | G156: 44470 | H156: 44470 | I156: 16874.84
A157: 2 | B157: Arrecadação de convênios ou valores pela fatura | C157: Arrecadação de convênios ou valores pela fatura | D157: 202111 | E157: 44893 | F157: APLCVA00404_FLXPAGAMENTOS_112021_S005.XML | G157: 44501 | H157: 44501 | I157: 11928.26
A158: 2 | B158: Arrecadação de convênios ou valores pela fatura | C158: Arrecadação de convênios ou valores pela fatura | D158: 202112 | E158: 44872 | F158: APLCVA00404_FLXPAGAMENTOS_122021_S004.XML | G158: 44531 | H158: 44531 | I158: 301341.9
A159: 2 | B159: Arrecadação de convênios ou valores pela fatura | C159: Arrecadação de convênios ou valores pela fatura | D159: 202201 | E159: 44872 | F159: APLCVA00404_FLXPAGAMENTOS_012022_S003.XML | G159: 44562 | H159: 44562 | I159: 160653.19
A160: 2 | B160: Arrecadação de convênios ou valores pela fatura | C160: Arrecadação de convênios ou valores pela fatura | D160: 202202 | E160: 44872 | F160: APLCVA00404_FLXPAGAMENTOS_022022_S006.XML | G160: 44593 | H160: 44593 | I160: 156840.05
A161: 2 | B161: Arrecadação de convênios ou valores pela fatura | C161: Arrecadação de convênios ou valores pela fatura | D161: 202203 | E161: 44978 | F161: APLCVA00404_FLXPAGAMENTOS_032022_S006.XML | G161: 44621 | H161: 44621 | I161: 155070.06
A162: 2 | B162: Arrecadação de convênios ou valores pela fatura | C162: Arrecadação de convênios ou valores pela fatura | D162: 202204 | E162: 44950 | F162: APLCVA00404_FLXPAGAMENTOS_042022_S004.XML | G162: 44652 | H162: 44652 | I162: 167635.12
A163: 2 | B163: Arrecadação de convênios ou valores pela fatura | C163: Arrecadação de convênios ou valores pela fatura | D163: 202205 | E163: 44994 | F163: APLCVA00404_FLXPAGAMENTOS_052022_S004.XML | G163: 44682 | H163: 44682 | I163: 153264.76
A164: 2 | B164: Arrecadação de convênios ou valores pela fatura | C164: Arrecadação de convênios ou valores pela fatura | D164: 202206 | E164: 44968 | F164: APLCVA00404_FLXPAGAMENTOS_062022_S003.XML | G164: 44713 | H164: 44713 | I164: 138830.46
A165: 2 | B165: Arrecadação de convênios ou valores pela fatura | C165: Arrecadação de convênios ou valores pela fatura | D165: 202207 | E165: 44988 | F165: APLCVA00404_FLXPAGAMENTOS_072022_S005.XML | G165: 44743 | H165: 44743 | I165: 144653.72
A166: 2 | B166: Arrecadação de convênios ou valores pela fatura | C166: Arrecadação de convênios ou valores pela fatura | D166: 202208 | E166: 44994 | F166: APLCVA00404_FLXPAGAMENTOS_082022_S007.XML | G166: 44774 | H166: 44774 | I166: 149592.43
A167: 2 | B167: Arrecadação de convênios ou valores pela fatura | C167: Arrecadação de convênios ou valores pela fatura | D167: 202209 | E167: 44994 | F167: APLCVA00404_FLXPAGAMENTOS_092022_S007.XML | G167: 44805 | H167: 44805 | I167: 150645.18
A168: 2 | B168: Arrecadação de convênios ou valores pela fatura | C168: Arrecadação de convênios ou valores pela fatura | D168: 202210 | E168: 44998 | F168: APLCVA00404_FLXPAGAMENTOS_102022_S005.XML | G168: 44835 | H168: 44835 | I168: 150808.85
A169: 2 | B169: Arrecadação de convênios ou valores pela fatura | C169: Arrecadação de convênios ou valores pela fatura | D169: 202211 | E169: 44991 | F169: APLCVA00404_FLXPAGAMENTOS_112022_S005.XML | G169: 44866 | H169: 44866 | I169: 153522.99
A170: 2 | B170: Arrecadação de convênios ou valores pela fatura | C170: Arrecadação de convênios ou valores pela fatura | D170: 202212 | E170: 44995 | F170: APLCVA00404_FLXPAGAMENTOS_122022_S004.XML | G170: 44896 | H170: 44896 | I170: 161023.19
A171: 2 | B171: Arrecadação de convênios ou valores pela fatura | C171: Arrecadação de convênios ou valores pela fatura | D171: 202301 | E171: 45356 | F171: APLCVA00404_FLXPAGAMENTOS_012023_S004.XML | G171: 44927 | H171: 44927 | I171: 160951.17
A172: 2 | B172: Arrecadação de convênios ou valores pela fatura | C172: Arrecadação de convênios ou valores pela fatura | D172: 202302 | E172: 45358 | F172: APLCVA00404_FLXPAGAMENTOS_022023_S005.XML | G172: 44958 | H172: 44958 | I172: 159965.48
A173: 2 | B173: Arrecadação de convênios ou valores pela fatura | C173: Arrecadação de convênios ou valores pela fatura | D173: 202303 | E173: 45358 | F173: APLCVA00404_FLXPAGAMENTOS_032023_S005.XML | G173: 44986 | H173: 44986 | I173: 162153.83
A174: 2 | B174: Arrecadação de convênios ou valores pela fatura | C174: Arrecadação de convênios ou valores pela fatura | D174: 202304 | E174: 45314 | F174: APLCVA00404_FLXPAGAMENTOS_042023_S005.XML | G174: 45017 | H174: 45017 | I174: 163244.03
A175: 2 | B175: Arrecadação de convênios ou valores pela fatura | C175: Arrecadação de convênios ou valores pela fatura | D175: 202305 | E175: 45314 | F175: APLCVA00404_FLXPAGAMENTOS_052023_S005.XML | G175: 45047 | H175: 45047 | I175: 162512.13
A176: 2 | B176: Arrecadação de convênios ou valores pela fatura | C176: Arrecadação de convênios ou valores pela fatura | D176: 202306 | E176: 45332 | F176: APLCVA00404_FLXPAGAMENTOS_062023_S005.XML | G176: 45078 | H176: 45078 | I176: 153108.13
A177: 2 | B177: Arrecadação de convênios ou valores pela fatura | C177: Arrecadação de convênios ou valores pela fatura | D177: 202307 | E177: 45314 | F177: APLCVA00404_FLXPAGAMENTOS_072023_S003.XML | G177: 45108 | H177: 45108 | I177: 149572.92
A178: 2 | B178: Arrecadação de convênios ou valores pela fatura | C178: Arrecadação de convênios ou valores pela fatura | D178: 202308 | E178: 45314 | F178: APLCVA00404_FLXPAGAMENTOS_082023_S003.XML | G178: 45139 | H178: 45139 | I178: 158846.43
A179: 2 | B179: Arrecadação de convênios ou valores pela fatura | C179: Arrecadação de convênios ou valores pela fatura | D179: 202309 | E179: 45314 | F179: APLCVA00404_FLXPAGAMENTOS_092023_S003.XML | G179: 45170 | H179: 45170 | I179: 161858.77
A180: 2 | B180: Arrecadação de convênios ou valores pela fatura | C180: Arrecadação de convênios ou valores pela fatura | D180: 202310 | E180: 45314 | F180: APLCVA00404_FLXPAGAMENTOS_102023_S003.XML | G180: 45200 | H180: 45200 | I180: 174797.32
A181: 2 | B181: Arrecadação de convênios ou valores pela fatura | C181: Arrecadação de convênios ou valores pela fatura | D181: 202311 | E181: 45332 | F181: APLCVA00404_FLXPAGAMENTOS_112023_S003.XML | G181: 45231 | H181: 45231 | I181: 173706.45
A182: 2 | B182: Arrecadação de convênios ou valores pela fatura | C182: Arrecadação de convênios ou valores pela fatura | D182: 202312 | E182: 45356 | F182: APLCVA00404_FLXPAGAMENTOS_122023_S003.XML | G182: 45261 | H182: 45261 | I182: 174897.48
A183: 2 | B183: Arrecadação de convênios ou valores pela fatura | C183: Arrecadação de convênios ou valores pela fatura | D183: 202401 | E183: 45365 | F183: APLCVA00404_FLXPAGAMENTOS_012024_S004.XML | G183: 45292 | H183: 45292 | I183: 176847.1
A184: 2 | B184: Arrecadação de convênios ou valores pela fatura | C184: Arrecadação de convênios ou valores pela fatura | D184: 202402 | E184: 45723 | F184: APLCVA00404_FLXPAGAMENTOS_022024_S002.XML | G184: 45323 | H184: 45323 | I184: 174507.02
A185: 2 | B185: Arrecadação de convênios ou valores pela fatura | C185: Arrecadação de convênios ou valores pela fatura | D185: 202403 | E185: 45723 | F185: APLCVA00404_FLXPAGAMENTOS_032024_S005.XML | G185: 45352 | H185: 45352 | I185: 177202.42
A186: 2 | B186: Arrecadação de convênios ou valores pela fatura | C186: Arrecadação de convênios ou valores pela fatura | D186: 202404 | E186: 45723 | F186: APLCVA00404_FLXPAGAMENTOS_042024_S001.XML | G186: 45383 | H186: 45383 | I186: 178925.1
A187: 2 | B187: Arrecadação de convênios ou valores pela fatura | C187: Arrecadação de convênios ou valores pela fatura | D187: 202405 | E187: 45723 | F187: APLCVA00404_FLXPAGAMENTOS_052024_S003.XML | G187: 45413 | H187: 45413 | I187: 173520.74
A188: 2 | B188: Arrecadação de convênios ou valores pela fatura | C188: Arrecadação de convênios ou valores pela fatura | D188: 202406 | E188: 45723 | F188: APLCVA00404_FLXPAGAMENTOS_062024_S004.XML | G188: 45444 | H188: 45444 | I188: 157640.3
A189: 2 | B189: Arrecadação de convênios ou valores pela fatura | C189: Arrecadação de convênios ou valores pela fatura | D189: 202407 | E189: 45723 | F189: APLCVA00404_FLXPAGAMENTOS_072024_S003.XML | G189: 45474 | H189: 45474 | I189: 152033.66
A190: 2 | B190: Arrecadação de convênios ou valores pela fatura | C190: Arrecadação de convênios ou valores pela fatura | D190: 202408 | E190: 45723 | F190: APLCVA00404_FLXPAGAMENTOS_082024_S003.XML | G190: 45505 | H190: 45505 | I190: 153625.02
A191: 2 | B191: Arrecadação de convênios ou valores pela fatura | C191: Arrecadação de convênios ou valores pela fatura | D191: 202409 | E191: 45723 | F191: APLCVA00404_FLXPAGAMENTOS_092024_S003.XML | G191: 45536 | H191: 45536 | I191: 157042.86
A192: 2 | B192: Arrecadação de convênios ou valores pela fatura | C192: Arrecadação de convênios ou valores pela fatura | D192: 202410 | E192: 45723 | F192: APLCVA00404_FLXPAGAMENTOS_102024_S004.XML | G192: 45566 | H192: 45566 | I192: 167409.78
A193: 2 | B193: Arrecadação de convênios ou valores pela fatura | C193: Arrecadação de convênios ou valores pela fatura | D193: 202411 | E193: 45723 | F193: APLCVA00404_FLXPAGAMENTOS_112024_S003.XML | G193: 45597 | H193: 45597 | I193: 166189.26
A194: 2 | B194: Arrecadação de convênios ou valores pela fatura | C194: Arrecadação de convênios ou valores pela fatura | D194: 202412 | E194: 45723 | F194: APLCVA00404_FLXPAGAMENTOS_122024_S002.XML | G194: 45627 | H194: 45627 | I194: 171816.52
A195: 2 | B195: Arrecadação de convênios ou valores pela fatura | C195: Arrecadação de convênios ou valores pela fatura | D195: 202501 | E195: 45726 | F195: APLCVA00404_FLXPAGAMENTOS_012025_S002.XML | G195: 45658 | H195: 45658 | I195: 169000.2
A196: 2 | B196: Arrecadação de convênios ou valores pela fatura | C196: Arrecadação de convênios ou valores pela fatura | D196: 202502 | E196: 45820 | F196: APLCVA00404_FLXPAGAMENTOS_022025_S001.XML | G196: 45689 | H196: 45689 | I196: 169363.01
A197: 2 | B197: Arrecadação de convênios ou valores pela fatura | C197: Arrecadação de convênios ou valores pela fatura | D197: 202503 | E197: 46064 | F197: APLCVA00404_FLXPAGAMENTOS_032025_S002.XML | G197: 45717 | H197: 45717 | I197: 172042.08
A198: 2 | B198: Arrecadação de convênios ou valores pela fatura | C198: Arrecadação de convênios ou valores pela fatura | D198: 202504 | E198: 46064 | F198: APLCVA00404_FLXPAGAMENTOS_042025_S001.XML | G198: 45748 | H198: 45748 | I198: 166006.47
A199: 2 | B199: Arrecadação de convênios ou valores pela fatura | C199: Arrecadação de convênios ou valores pela fatura | D199: 202505 | E199: 46064 | F199: APLCVA00404_FLXPAGAMENTOS_052025_S002.XML | G199: 45778 | H199: 45778 | I199: 162400.57
A200: 2 | B200: Arrecadação de convênios ou valores pela fatura | C200: Arrecadação de convênios ou valores pela fatura | D200: 202506 | E200: 46064 | F200: APLCVA00404_FLXPAGAMENTOS_062025_S002.XML | G200: 45809 | H200: 45809 | I200: 152967.67
A201: 2 | B201: Arrecadação de convênios ou valores pela fatura | C201: Arrecadação de convênios ou valores pela fatura | D201: 202507 | E201: 46064 | F201: APLCVA00404_FLXPAGAMENTOS_072025_S003.XML | G201: 45839 | H201: 45839 | I201: 145964.6
A202: 2 | B202: Arrecadação de convênios ou valores pela fatura | C202: Arrecadação de convênios ou valores pela fatura | D202: 202508 | E202: 46064 | F202: APLCVA00404_FLXPAGAMENTOS_082025_S003.XML | G202: 45870 | H202: 45870 | I202: 147214.65
A203: 2 | B203: Arrecadação de convênios ou valores pela fatura | C203: Arrecadação de convênios ou valores pela fatura | D203: 202509 | E203: 46064 | F203: APLCVA00404_FLXPAGAMENTOS_092025_S002.XML | G203: 45901 | H203: 45901 | I203: 161239.38
A204: 2 | B204: Arrecadação de convênios ou valores pela fatura | C204: Arrecadação de convênios ou valores pela fatura | D204: 202510 | E204: 46064 | F204: APLCVA00404_FLXPAGAMENTOS_102025_S002.XML | G204: 45931 | H204: 45931 | I204: 0
A205: 2 | B205: Arrecadação de convênios ou valores pela fatura | C205: Arrecadação de convênios ou valores pela fatura | D205: 202511 | E205: 46064 | F205: APLCVA00404_FLXPAGAMENTOS_112025_S002.XML | G205: 45962 | H205: 45962 | I205: 0
... 191 more rows

Sheet Entrada
A1: Entrada de parâmetros para cálculo tarifário
B4: Energia | D4: Últ. Atulização | F4: Parâmetros para Revisão | P4: ="Caso de OR para a empresa é: " &IF(BD!C53=4,"caso 1","caso 3") -> Caso de OR para a empresa é: caso 3
Q5: Competência Final OR | R5: =IF(CAPA!C7="Revisão",(DATE(YEAR('VPB e Fator X'!C10),MONTH('VPB e Fator X'!C10)-1,1)),0) -> 0
D6: 45931 | F6: CAPEX - Ativos de Distribuição | J6: Custo Operacional Real do(s) último(s) ano(s) | P6: Outras Receitas
B7: Montante de Geração Própria | D7: 45931 | F7: (1) Ativo Imobilizado em Serviço (Valor Novo de Reposição) | G7: =G73*VLOOKUP(DATE(YEAR(CAPA!$C$10),MONTH(CAPA!$C$10)-1,1),Índices!$B$135:$D$638,3,0)/VLOOKUP(DATE(YEAR($G$72),MONTH($G$72)-1,1),Índices!$B$135:$D$638,3,0) ->  | J7: Ano do Custo Operacional | L7: =MAX(Tab_RIT_BMP[ANO])-1 -> 2024 | M7: =MAX(Tab_RIT_BMP[ANO]) -> 2025 | P7: Tipo de Receita | Q7: =$R$5 -> 00:00:00 | R7: =DATE(YEAR(Q7),MONTH(Q7)-1,1) ->  | S7: =DATE(YEAR(R7),MONTH(R7)-1,1) -> 
B8: Custo médio da Geração Própria | D8: 45931 | F8: (2) Índice de Aproveitamento Integral | G8: =G74*VLOOKUP(DATE(YEAR(CAPA!$C$10),MONTH(CAPA!$C$10)-1,1),Índices!$B$135:$D$638,3,0)/VLOOKUP(DATE(YEAR($G$72),MONTH($G$72)-1,1),Índices!$B$135:$D$638,3,0) ->  | J8: CONTA PESSOAL | P8: Serviços Cobráveis | Q8: =SUMIFS(Tab_Uderor[R$],Tab_Uderor[Competencia],Entrada!Q$7,Tab_Uderor[TipoReceita],Entrada!$P8) -> 0 | R8: =SUMIFS(Tab_Uderor[R$],Tab_Uderor[Competencia],Entrada!R$7,Tab_Uderor[TipoReceita],Entrada!$P8) -> 0 | S8: =SUMIFS(Tab_Uderor[R$],Tab_Uderor[Competencia],Entrada!S$7,Tab_Uderor[TipoReceita],Entrada!$P8) -> 0 | T8: =SUMIFS(Tab_Uderor[R$],Tab_Uderor[Competencia],Entrada!T$7,Tab_Uderor[TipoReceita],Entrada!$P8) -> 0 | U8: =SUMIFS(Tab_Uderor[R$],Tab_Uderor[Competencia],Entrada!U$7,Tab_Uderor[TipoReceita],Entrada!$P8) -> 0 | V8: =SUMIFS(Tab_Uderor[R$],Tab_Uderor[Competencia],Entrada!V$7,Tab_Uderor[TipoReceita],Entrada!$P8) -> 0 | W8: =SUMIFS(Tab_Uderor[R$],Tab_Uderor[Competencia],Entrada!W$7,Tab_Uderor[TipoReceita],Entrada!$P8) -> 0 | X8: =SUMIFS(Tab_Uderor[R$],Tab_Uderor[Competencia],Entrada!X$7,Tab_Uderor[TipoReceita],Entrada!$P8) -> 0 | Y8: =SUMIFS(Tab_Uderor[R$],Tab_Uderor[Competencia],Entrada!Y$7,Tab_Uderor[TipoReceita],Entrada!$P8) -> 0 | Z8: =SUMIFS(Tab_Uderor[R$],Tab_Uderor[Competencia],Entrada!Z$7,Tab_Uderor[TipoReceita],Entrada!$P8) -> 0 | AA8: =SUMIFS(Tab_Uderor[R$],Tab_Uderor[Competencia],Entrada!AA$7,Tab_Uderor[TipoReceita],Entrada!$P8) -> 0 | AB8: =SUMIFS(Tab_Uderor[R$],Tab_Uderor[Competencia],Entrada!AB$7,Tab_Uderor[TipoReceita],Entrada!$P8) -> 0 | AC8: =SUMIFS(Tab_Uderor[R$],Tab_Uderor[Competencia],Entrada!AC$7,Tab_Uderor[TipoReceita],Entrada!$P8) -> 0 | AD8: =SUMIFS(Tab_Uderor[R$],Tab_Uderor[Competencia],Entrada!AD$7,Tab_Uderor[TipoReceita],Entrada!$P8) -> 0 | AE8: =SUMIFS(Tab_Uderor[R$],Tab_Uderor[Competencia],Entrada!AE$7,Tab_Uderor[TipoReceita],Entrada!$P8) -> 0 | AF8: =SUMIFS(Tab_Uderor[R$],Tab_Uderor[Competencia],Entrada!AF$7,Tab_Uderor[TipoReceita],Entrada!$P8) -> 0 | AG8: =SUMIFS(Tab_Uderor[R$],Tab_Uderor[Competencia],Entrada!AG$7,Tab_Uderor[TipoReceita],Entrada!$P8) -> 0 | AH8: =SUMIFS(Tab_Uderor[R$],Tab_Uderor[Competencia],Entrada!AH$7,Tab_Uderor[TipoReceita],Entrada!$P8) -> 0 | AI8: =SUMIFS(Tab_Uderor[R$],Tab_Uderor[Competencia],Entrada!AI$7,Tab_Uderor[TipoReceita],Entrada!$P8) -> 0 | AJ8: =SUMIFS(Tab_Uderor[R$],Tab_Uderor[Competencia],Entrada!AJ$7,Tab_Uderor[TipoReceita],Entrada!$P8) -> 0 | AK8: =SUMIFS(Tab_Uderor[R$],Tab_Uderor[Competencia],Entrada!AK$7,Tab_Uderor[TipoReceita],Entrada!$P8) -> 0 | AL8: =SUMIFS(Tab_Uderor[R$],Tab_Uderor[Competencia],Entrada!AL$7,Tab_Uderor[TipoReceita],Entrada!$P8) -> 0 | AM8: =SUMIFS(Tab_Uderor[R$],Tab_Uderor[Competencia],Entrada!AM$7,Tab_Uderor[TipoReceita],Entrada!$P8) -> 0 | AN8: =SUMIFS(Tab_Uderor[R$],Tab_Uderor[Competencia],Entrada!AN$7,Tab_Uderor[TipoReceita],Entrada!$P8) -> 0 | AO8: =SUMIFS(Tab_Uderor[R$],Tab_Uderor[Competencia],Entrada!AO$7,Tab_Uderor[TipoReceita],Entrada!$P8) -> 0 | AP8: =SUMIFS(Tab_Uderor[R$],Tab_Uderor[Competencia],Entrada!AP$7,Tab_Uderor[TipoReceita],Entrada!$P8) -> 0 | AQ8: =SUMIFS(Tab_Uderor[R$],Tab_Uderor[Competencia],Entrada!AQ$7,Tab_Uderor[TipoReceita],Entrada!$P8) -> 0 | AR8: =SUMIFS(Tab_Uderor[R$],Tab_Uderor[Competencia],Entrada!AR$7,Tab_Uderor[TipoReceita],Entrada!$P8) -> 0 | AS8: =SUMIFS(Tab_Uderor[R$],Tab_Uderor[Competencia],Entrada!AS$7,Tab_Uderor[TipoReceita],Entrada!$P8) -> 0 | AT8: =SUMIFS(Tab_Uderor[R$],Tab_Uderor[Competencia],Entrada!AT$7,Tab_Uderor[TipoReceita],Entrada!$P8) -> 0 | AU8: =SUMIFS(Tab_Uderor[R$],Tab_Uderor[Competencia],Entrada!AU$7,Tab_Uderor[TipoReceita],Entrada!$P8) -> 0 | AV8: =SUMIFS(Tab_Uderor[R$],Tab_Uderor[Competencia],Entrada!AV$7,Tab_Uderor[TipoReceita],Entrada!$P8) -> 0 | AW8: =SUMIFS(Tab_Uderor[R$],Tab_Uderor[Competencia],Entrada!AW$7,Tab_Uderor[TipoReceita],Entrada!$P8) -> 0 | AX8: =SUMIFS(Tab_Uderor[R$],Tab_Uderor[Competencia],Entrada!AX$7,Tab_Uderor[TipoReceita],Entrada!$P8) -> 0 | AY8: =SUMIFS(Tab_Uderor[R$],Tab_Uderor[Competencia],Entrada!AY$7,Tab_Uderor[TipoReceita],Entrada!$P8) -> 0 | AZ8: =SUMIFS(Tab_Uderor[R$],Tab_Uderor[Competencia],Entrada!AZ$7,Tab_Uderor[TipoReceita],Entrada!$P8) -> 0
D9: 45931 | F9: (3) Obrigações Especiais Bruta | G9: =G75*VLOOKUP(DATE(YEAR(CAPA!$C$10),MONTH(CAPA!$C$10)-1,1),Índices!$B$135:$D$638,3,0)/VLOOKUP(DATE(YEAR($G$72),MONTH($G$72)-1,1),Índices!$B$135:$D$638,3,0) ->  | J9: BMP - 610530501; 610550501; 610532501; 610552501; 610530511; 610532511 | K9: Remuneração | L9: =SUMIFS(Tab_RIT_BMP[SALDO],Tab_RIT_BMP[CONTA],610530501,Tab_RIT_BMP[ANO],$L$7)+SUMIFS(Tab_RIT_BMP[SALDO],Tab_RIT_BMP[CONTA],610550501,Tab_RIT_BMP[ANO],$L$7)+ SUMIFS(Tab_RIT_BMP[SALDO],Tab_RIT_BMP[CONTA],610532501,Tab_RIT_BMP[ANO],$L$7)+SUMIFS(Tab_RIT_BMP[SALDO],Tab_RIT_BMP[CONTA],610552501,Tab_RIT_BMP[ANO],$L$7)+ SUMIFS(Tab_RIT_BMP[SALDO],Tab_RIT_BMP[CONTA],610530511,Tab_RIT_BMP[ANO],$L$7)+SUMIFS(Tab_RIT_BMP[SALDO],Tab_RIT_BMP[CONTA],610532511,Tab_RIT_BMP[ANO],$L$7) -> 17931974.15 | M9: =SUMIFS(Tab_RIT_BMP[SALDO],Tab_RIT_BMP[CONTA],610530501,Tab_RIT_BMP[ANO],$M$7)+SUMIFS(Tab_RIT_BMP[SALDO],Tab_RIT_BMP[CONTA],610550501,Tab_RIT_BMP[ANO],$M$7)+ SUMIFS(Tab_RIT_BMP[SALDO],Tab_RIT_BMP[CONTA],610532501,Tab_RIT_BMP[ANO],$M$7)+SUMIFS(Tab_RIT_BMP[SALDO],Tab_RIT_BMP[CONTA],610552501,Tab_RIT_BMP[ANO],$M$7)+ SUMIFS(Tab_RIT_BMP[SALDO],Tab_RIT_BMP[CONTA],610530511,Tab_RIT_BMP[ANO],$M$7)+SUMIFS(Tab_RIT_BMP[SALDO],Tab_RIT_BMP[CONTA],610532511,Tab_RIT_BMP[ANO],$M$7) -> 0 | P9: Arrecadação de convênios ou valores pela fatura | Q9: =SUMIFS(Tab_Uderor[R$],Tab_Uderor[Competencia],Entrada!Q$7,Tab_Uderor[TipoReceita],Entrada!$P9) -> 0 | R9: =SUMIFS(Tab_Uderor[R$],Tab_Uderor[Competencia],Entrada!R$7,Tab_Uderor[TipoReceita],Entrada!$P9) -> 0 | S9: =SUMIFS(Tab_Uderor[R$],Tab_Uderor[Competencia],Entrada!S$7,Tab_Uderor[TipoReceita],Entrada!$P9) -> 0 | T9: =SUMIFS(Tab_Uderor[R$],Tab_Uderor[Competencia],Entrada!T$7,Tab_Uderor[TipoReceita],Entrada!$P9) -> 0 | U9: =SUMIFS(Tab_Uderor[R$],Tab_Uderor[Competencia],Entrada!U$7,Tab_Uderor[TipoReceita],Entrada!$P9) -> 0 | V9: =SUMIFS(Tab_Uderor[R$],Tab_Uderor[Competencia],Entrada!V$7,Tab_Uderor[TipoReceita],Entrada!$P9) -> 0 | W9: =SUMIFS(Tab_Uderor[R$],Tab_Uderor[Competencia],Entrada!W$7,Tab_Uderor[TipoReceita],Entrada!$P9) -> 0 | X9: =SUMIFS(Tab_Uderor[R$],Tab_Uderor[Competencia],Entrada!X$7,Tab_Uderor[TipoReceita],Entrada!$P9) -> 0 | Y9: =SUMIFS(Tab_Uderor[R$],Tab_Uderor[Competencia],Entrada!Y$7,Tab_Uderor[TipoReceita],Entrada!$P9) -> 0 | Z9: =SUMIFS(Tab_Uderor[R$],Tab_Uderor[Competencia],Entrada!Z$7,Tab_Uderor[TipoReceita],Entrada!$P9) -> 0 | AA9: =SUMIFS(Tab_Uderor[R$],Tab_Uderor[Competencia],Entrada!AA$7,Tab_Uderor[TipoReceita],Entrada!$P9) -> 0 | AB9: =SUMIFS(Tab_Uderor[R$],Tab_Uderor[Competencia],Entrada!AB$7,Tab_Uderor[TipoReceita],Entrada!$P9) -> 0 | AC9: =SUMIFS(Tab_Uderor[R$],Tab_Uderor[Competencia],Entrada!AC$7,Tab_Uderor[TipoReceita],Entrada!$P9) -> 0 | AD9: =SUMIFS(Tab_Uderor[R$],Tab_Uderor[Competencia],Entrada!AD$7,Tab_Uderor[TipoReceita],Entrada!$P9) -> 0 | AE9: =SUMIFS(Tab_Uderor[R$],Tab_Uderor[Competencia],Entrada!AE$7,Tab_Uderor[TipoReceita],Entrada!$P9) -> 0 | AF9: =SUMIFS(Tab_Uderor[R$],Tab_Uderor[Competencia],Entrada!AF$7,Tab_Uderor[TipoReceita],Entrada!$P9) -> 0 | AG9: =SUMIFS(Tab_Uderor[R$],Tab_Uderor[Competencia],Entrada!AG$7,Tab_Uderor[TipoReceita],Entrada!$P9) -> 0 | AH9: =SUMIFS(Tab_Uderor[R$],Tab_Uderor[Competencia],Entrada!AH$7,Tab_Uderor[TipoReceita],Entrada!$P9) -> 0 | AI9: =SUMIFS(Tab_Uderor[R$],Tab_Uderor[Competencia],Entrada!AI$7,Tab_Uderor[TipoReceita],Entrada!$P9) -> 0 | AJ9: =SUMIFS(Tab_Uderor[R$],Tab_Uderor[Competencia],Entrada!AJ$7,Tab_Uderor[TipoReceita],Entrada!$P9) -> 0 | AK9: =SUMIFS(Tab_Uderor[R$],Tab_Uderor[Competencia],Entrada!AK$7,Tab_Uderor[TipoReceita],Entrada!$P9) -> 0 | AL9: =SUMIFS(Tab_Uderor[R$],Tab_Uderor[Competencia],Entrada!AL$7,Tab_Uderor[TipoReceita],Entrada!$P9) -> 0 | AM9: =SUMIFS(Tab_Uderor[R$],Tab_Uderor[Competencia],Entrada!AM$7,Tab_Uderor[TipoReceita],Entrada!$P9) -> 0 | AN9: =SUMIFS(Tab_Uderor[R$],Tab_Uderor[Competencia],Entrada!AN$7,Tab_Uderor[TipoReceita],Entrada!$P9) -> 0 | AO9: =SUMIFS(Tab_Uderor[R$],Tab_Uderor[Competencia],Entrada!AO$7,Tab_Uderor[TipoReceita],Entrada!$P9) -> 0 | AP9: =SUMIFS(Tab_Uderor[R$],Tab_Uderor[Competencia],Entrada!AP$7,Tab_Uderor[TipoReceita],Entrada!$P9) -> 0 | AQ9: =SUMIFS(Tab_Uderor[R$],Tab_Uderor[Competencia],Entrada!AQ$7,Tab_Uderor[TipoReceita],Entrada!$P9) -> 0 | AR9: =SUMIFS(Tab_Uderor[R$],Tab_Uderor[Competencia],Entrada!AR$7,Tab_Uderor[TipoReceita],Entrada!$P9) -> 0 | AS9: =SUMIFS(Tab_Uderor[R$],Tab_Uderor[Competencia],Entrada!AS$7,Tab_Uderor[TipoReceita],Entrada!$P9) -> 0 | AT9: =SUMIFS(Tab_Uderor[R$],Tab_Uderor[Competencia],Entrada!AT$7,Tab_Uderor[TipoReceita],Entrada!$P9) -> 0 | AU9: =SUMIFS(Tab_Uderor[R$],Tab_Uderor[Competencia],Entrada!AU$7,Tab_Uderor[TipoReceita],Entrada!$P9) -> 0 | AV9: =SUMIFS(Tab_Uderor[R$],Tab_Uderor[Competencia],Entrada!AV$7,Tab_Uderor[TipoReceita],Entrada!$P9) -> 0 | AW9: =SUMIFS(Tab_Uderor[R$],Tab_Uderor[Competencia],Entrada!AW$7,Tab_Uderor[TipoReceita],Entrada!$P9) -> 0 | AX9: =SUMIFS(Tab_Uderor[R$],Tab_Uderor[Competencia],Entrada!AX$7,Tab_Uderor[TipoReceita],Entrada!$P9) -> 0 | AY9: =SUMIFS(Tab_Uderor[R$],Tab_Uderor[Competencia],Entrada!AY$7,Tab_Uderor[TipoReceita],Entrada!$P9) -> 0 | AZ9: =SUMIFS(Tab_Uderor[R$],Tab_Uderor[Competencia],Entrada!AZ$7,Tab_Uderor[TipoReceita],Entrada!$P9) -> 0
D10: 45931 | F10: (4) Bens Totalmente Depreciados | G10: =G76*VLOOKUP(DATE(YEAR(CAPA!$C$10),MONTH(CAPA!$C$10)-1,1),Índices!$B$135:$D$638,3,0)/VLOOKUP(DATE(YEAR($G$72),MONTH($G$72)-1,1),Índices!$B$135:$D$638,3,0) ->  | J10: BMP - 610530502; 610550502; 610532502; 610552502 | K10: Encargos | L10: =SUMIFS(Tab_RIT_BMP[SALDO],Tab_RIT_BMP[CONTA],610530502,Tab_RIT_BMP[ANO],$L$7)+SUMIFS(Tab_RIT_BMP[SALDO],Tab_RIT_BMP[CONTA],610550502,Tab_RIT_BMP[ANO],$L$7)+ SUMIFS(Tab_RIT_BMP[SALDO],Tab_RIT_BMP[CONTA],610532502,Tab_RIT_BMP[ANO],$L$7)+SUMIFS(Tab_RIT_BMP[SALDO],Tab_RIT_BMP[CONTA],610552502,Tab_RIT_BMP[ANO],$L$7) -> 41633212.66 | M10: =SUMIFS(Tab_RIT_BMP[SALDO],Tab_RIT_BMP[CONTA],610530502,Tab_RIT_BMP[ANO],$M$7)+SUMIFS(Tab_RIT_BMP[SALDO],Tab_RIT_BMP[CONTA],610550502,Tab_RIT_BMP[ANO],$M$7)+ SUMIFS(Tab_RIT_BMP[SALDO],Tab_RIT_BMP[CONTA],610532502,Tab_RIT_BMP[ANO],$M$7)+SUMIFS(Tab_RIT_BMP[SALDO],Tab_RIT_BMP[CONTA],610552502,Tab_RIT_BMP[ANO],$M$7) -> 0 | P10: Arrecadação de faturas de terceiros por estrutura própria | Q10: =SUMIFS(Tab_Uderor[R$],Tab_Uderor[Competencia],Entrada!Q$7,Tab_Uderor[TipoReceita],Entrada!$P10) -> 0 | R10: =SUMIFS(Tab_Uderor[R$],Tab_Uderor[Competencia],Entrada!R$7,Tab_Uderor[TipoReceita],Entrada!$P10) -> 0 | S10: =SUMIFS(Tab_Uderor[R$],Tab_Uderor[Competencia],Entrada!S$7,Tab_Uderor[TipoReceita],Entrada!$P10) -> 0 | T10: =SUMIFS(Tab_Uderor[R$],Tab_Uderor[Competencia],Entrada!T$7,Tab_Uderor[TipoReceita],Entrada!$P10) -> 0 | U10: =SUMIFS(Tab_Uderor[R$],Tab_Uderor[Competencia],Entrada!U$7,Tab_Uderor[TipoReceita],Entrada!$P10) -> 0 | V10: =SUMIFS(Tab_Uderor[R$],Tab_Uderor[Competencia],Entrada!V$7,Tab_Uderor[TipoReceita],Entrada!$P10) -> 0 | W10: =SUMIFS(Tab_Uderor[R$],Tab_Uderor[Competencia],Entrada!W$7,Tab_Uderor[TipoReceita],Entrada!$P10) -> 0 | X10: =SUMIFS(Tab_Uderor[R$],Tab_Uderor[Competencia],Entrada!X$7,Tab_Uderor[TipoReceita],Entrada!$P10) -> 0 | Y10: =SUMIFS(Tab_Uderor[R$],Tab_Uderor[Competencia],Entrada!Y$7,Tab_Uderor[TipoReceita],Entrada!$P10) -> 0 | Z10: =SUMIFS(Tab_Uderor[R$],Tab_Uderor[Competencia],Entrada!Z$7,Tab_Uderor[TipoReceita],Entrada!$P10) -> 0 | AA10: =SUMIFS(Tab_Uderor[R$],Tab_Uderor[Competencia],Entrada!AA$7,Tab_Uderor[TipoReceita],Entrada!$P10) -> 0 | AB10: =SUMIFS(Tab_Uderor[R$],Tab_Uderor[Competencia],Entrada!AB$7,Tab_Uderor[TipoReceita],Entrada!$P10) -> 0 | AC10: =SUMIFS(Tab_Uderor[R$],Tab_Uderor[Competencia],Entrada!AC$7,Tab_Uderor[TipoReceita],Entrada!$P10) -> 0 | AD10: =SUMIFS(Tab_Uderor[R$],Tab_Uderor[Competencia],Entrada!AD$7,Tab_Uderor[TipoReceita],Entrada!$P10) -> 0 | AE10: =SUMIFS(Tab_Uderor[R$],Tab_Uderor[Competencia],Entrada!AE$7,Tab_Uderor[TipoReceita],Entrada!$P10) -> 0 | AF10: =SUMIFS(Tab_Uderor[R$],Tab_Uderor[Competencia],Entrada!AF$7,Tab_Uderor[TipoReceita],Entrada!$P10) -> 0 | AG10: =SUMIFS(Tab_Uderor[R$],Tab_Uderor[Competencia],Entrada!AG$7,Tab_Uderor[TipoReceita],Entrada!$P10) -> 0 | AH10: =SUMIFS(Tab_Uderor[R$],Tab_Uderor[Competencia],Entrada!AH$7,Tab_Uderor[TipoReceita],Entrada!$P10) -> 0 | AI10: =SUMIFS(Tab_Uderor[R$],Tab_Uderor[Competencia],Entrada!AI$7,Tab_Uderor[TipoReceita],Entrada!$P10) -> 0 | AJ10: =SUMIFS(Tab_Uderor[R$],Tab_Uderor[Competencia],Entrada!AJ$7,Tab_Uderor[TipoReceita],Entrada!$P10) -> 0 | AK10: =SUMIFS(Tab_Uderor[R$],Tab_Uderor[Competencia],Entrada!AK$7,Tab_Uderor[TipoReceita],Entrada!$P10) -> 0 | AL10: =SUMIFS(Tab_Uderor[R$],Tab_Uderor[Competencia],Entrada!AL$7,Tab_Uderor[TipoReceita],Entrada!$P10) -> 0 | AM10: =SUMIFS(Tab_Uderor[R$],Tab_Uderor[Competencia],Entrada!AM$7,Tab_Uderor[TipoReceita],Entrada!$P10) -> 0 | AN10: =SUMIFS(Tab_Uderor[R$],Tab_Uderor[Competencia],Entrada!AN$7,Tab_Uderor[TipoReceita],Entrada!$P10) -> 0 | AO10: =SUMIFS(Tab_Uderor[R$],Tab_Uderor[Competencia],Entrada!AO$7,Tab_Uderor[TipoReceita],Entrada!$P10) -> 0 | AP10: =SUMIFS(Tab_Uderor[R$],Tab_Uderor[Competencia],Entrada!AP$7,Tab_Uderor[TipoReceita],Entrada!$P10) -> 0 | AQ10: =SUMIFS(Tab_Uderor[R$],Tab_Uderor[Competencia],Entrada!AQ$7,Tab_Uderor[TipoReceita],Entrada!$P10) -> 0 | AR10: =SUMIFS(Tab_Uderor[R$],Tab_Uderor[Competencia],Entrada!AR$7,Tab_Uderor[TipoReceita],Entrada!$P10) -> 0 | AS10: =SUMIFS(Tab_Uderor[R$],Tab_Uderor[Competencia],Entrada!AS$7,Tab_Uderor[TipoReceita],Entrada!$P10) -> 0 | AT10: =SUMIFS(Tab_Uderor[R$],Tab_Uderor[Competencia],Entrada!AT$7,Tab_Uderor[TipoReceita],Entrada!$P10) -> 0 | AU10: =SUMIFS(Tab_Uderor[R$],Tab_Uderor[Competencia],Entrada!AU$7,Tab_Uderor[TipoReceita],Entrada!$P10) -> 0 | AV10: =SUMIFS(Tab_Uderor[R$],Tab_Uderor[Competencia],Entrada!AV$7,Tab_Uderor[TipoReceita],Entrada!$P10) -> 0 | AW10: =SUMIFS(Tab_Uderor[R$],Tab_Uderor[Competencia],Entrada!AW$7,Tab_Uderor[TipoReceita],Entrada!$P10) -> 0 | AX10: =SUMIFS(Tab_Uderor[R$],Tab_Uderor[Competencia],Entrada!AX$7,Tab_Uderor[TipoReceita],Entrada!$P10) -> 0 | AY10: =SUMIFS(Tab_Uderor[R$],Tab_Uderor[Competencia],Entrada!AY$7,Tab_Uderor[TipoReceita],Entrada!$P10) -> 0 | AZ10: =SUMIFS(Tab_Uderor[R$],Tab_Uderor[Competencia],Entrada!AZ$7,Tab_Uderor[TipoReceita],Entrada!$P10) -> 0
F11: (5) Base de Remuneração Bruta = (1)-(2)-(3)-(4) | G11: =G7-G8-G9-G10 ->  | J11: BMP - 610530503; 610550503; 610532503; 610552503 | K11: Previdência Privada - Corrente | L11: =SUMIFS(Tab_RIT_BMP[SALDO],Tab_RIT_BMP[CONTA],610530503,Tab_RIT_BMP[ANO],$L$7)+SUMIFS(Tab_RIT_BMP[SALDO],Tab_RIT_BMP[CONTA],610550503,Tab_RIT_BMP[ANO],$L$7)+ SUMIFS(Tab_RIT_BMP[SALDO],Tab_RIT_BMP[CONTA],610532503,Tab_RIT_BMP[ANO],$L$7)+SUMIFS(Tab_RIT_BMP[SALDO],Tab_RIT_BMP[CONTA],610552503,Tab_RIT_BMP[ANO],$L$7) -> 4186475.08 | M11: =SUMIFS(Tab_RIT_BMP[SALDO],Tab_RIT_BMP[CONTA],610530503,Tab_RIT_BMP[ANO],$M$7)+SUMIFS(Tab_RIT_BMP[SALDO],Tab_RIT_BMP[CONTA],610550503,Tab_RIT_BMP[ANO],$M$7)+ SUMIFS(Tab_RIT_BMP[SALDO],Tab_RIT_BMP[CONTA],610532503,Tab_RIT_BMP[ANO],$M$7)+SUMIFS(Tab_RIT_BMP[SALDO],Tab_RIT_BMP[CONTA],610552503,Tab_RIT_BMP[ANO],$M$7) -> 0 | P11: Veiculação de publicidade | Q11: =SUMIFS(Tab_Uderor[R$],Tab_Uderor[Competencia],Entrada!Q$7,Tab_Uderor[TipoReceita],Entrada!$P11) -> 0 | R11: =SUMIFS(Tab_Uderor[R$],Tab_Uderor[Competencia],Entrada!R$7,Tab_Uderor[TipoReceita],Entrada!$P11) -> 0 | S11: =SUMIFS(Tab_Uderor[R$],Tab_Uderor[Competencia],Entrada!S$7,Tab_Uderor[TipoReceita],Entrada!$P11) -> 0 | T11: =SUMIFS(Tab_Uderor[R$],Tab_Uderor[Competencia],Entrada!T$7,Tab_Uderor[TipoReceita],Entrada!$P11) -> 0 | U11: =SUMIFS(Tab_Uderor[R$],Tab_Uderor[Competencia],Entrada!U$7,Tab_Uderor[TipoReceita],Entrada!$P11) -> 0 | V11: =SUMIFS(Tab_Uderor[R$],Tab_Uderor[Competencia],Entrada!V$7,Tab_Uderor[TipoReceita],Entrada!$P11) -> 0 | W11: =SUMIFS(Tab_Uderor[R$],Tab_Uderor[Competencia],Entrada!W$7,Tab_Uderor[TipoReceita],Entrada!$P11) -> 0 | X11: =SUMIFS(Tab_Uderor[R$],Tab_Uderor[Competencia],Entrada!X$7,Tab_Uderor[TipoReceita],Entrada!$P11) -> 0 | Y11: =SUMIFS(Tab_Uderor[R$],Tab_Uderor[Competencia],Entrada!Y$7,Tab_Uderor[TipoReceita],Entrada!$P11) -> 0 | Z11: =SUMIFS(Tab_Uderor[R$],Tab_Uderor[Competencia],Entrada!Z$7,Tab_Uderor[TipoReceita],Entrada!$P11) -> 0 | AA11: =SUMIFS(Tab_Uderor[R$],Tab_Uderor[Competencia],Entrada!AA$7,Tab_Uderor[TipoReceita],Entrada!$P11) -> 0 | AB11: =SUMIFS(Tab_Uderor[R$],Tab_Uderor[Competencia],Entrada!AB$7,Tab_Uderor[TipoReceita],Entrada!$P11) -> 0 | AC11: =SUMIFS(Tab_Uderor[R$],Tab_Uderor[Competencia],Entrada!AC$7,Tab_Uderor[TipoReceita],Entrada!$P11) -> 0 | AD11: =SUMIFS(Tab_Uderor[R$],Tab_Uderor[Competencia],Entrada!AD$7,Tab_Uderor[TipoReceita],Entrada!$P11) -> 0 | AE11: =SUMIFS(Tab_Uderor[R$],Tab_Uderor[Competencia],Entrada!AE$7,Tab_Uderor[TipoReceita],Entrada!$P11) -> 0 | AF11: =SUMIFS(Tab_Uderor[R$],Tab_Uderor[Competencia],Entrada!AF$7,Tab_Uderor[TipoReceita],Entrada!$P11) -> 0 | AG11: =SUMIFS(Tab_Uderor[R$],Tab_Uderor[Competencia],Entrada!AG$7,Tab_Uderor[TipoReceita],Entrada!$P11) -> 0 | AH11: =SUMIFS(Tab_Uderor[R$],Tab_Uderor[Competencia],Entrada!AH$7,Tab_Uderor[TipoReceita],Entrada!$P11) -> 0 | AI11: =SUMIFS(Tab_Uderor[R$],Tab_Uderor[Competencia],Entrada!AI$7,Tab_Uderor[TipoReceita],Entrada!$P11) -> 0 | AJ11: =SUMIFS(Tab_Uderor[R$],Tab_Uderor[Competencia],Entrada!AJ$7,Tab_Uderor[TipoReceita],Entrada!$P11) -> 0 | AK11: =SUMIFS(Tab_Uderor[R$],Tab_Uderor[Competencia],Entrada!AK$7,Tab_Uderor[TipoReceita],Entrada!$P11) -> 0 | AL11: =SUMIFS(Tab_Uderor[R$],Tab_Uderor[Competencia],Entrada!AL$7,Tab_Uderor[TipoReceita],Entrada!$P11) -> 0 | AM11: =SUMIFS(Tab_Uderor[R$],Tab_Uderor[Competencia],Entrada!AM$7,Tab_Uderor[TipoReceita],Entrada!$P11) -> 0 | AN11: =SUMIFS(Tab_Uderor[R$],Tab_Uderor[Competencia],Entrada!AN$7,Tab_Uderor[TipoReceita],Entrada!$P11) -> 0 | AO11: =SUMIFS(Tab_Uderor[R$],Tab_Uderor[Competencia],Entrada!AO$7,Tab_Uderor[TipoReceita],Entrada!$P11) -> 0 | AP11: =SUMIFS(Tab_Uderor[R$],Tab_Uderor[Competencia],Entrada!AP$7,Tab_Uderor[TipoReceita],Entrada!$P11) -> 0 | AQ11: =SUMIFS(Tab_Uderor[R$],Tab_Uderor[Competencia],Entrada!AQ$7,Tab_Uderor[TipoReceita],Entrada!$P11) -> 0 | AR11: =SUMIFS(Tab_Uderor[R$],Tab_Uderor[Competencia],Entrada!AR$7,Tab_Uderor[TipoReceita],Entrada!$P11) -> 0 | AS11: =SUMIFS(Tab_Uderor[R$],Tab_Uderor[Competencia],Entrada!AS$7,Tab_Uderor[TipoReceita],Entrada!$P11) -> 0 | AT11: =SUMIFS(Tab_Uderor[R$],Tab_Uderor[Competencia],Entrada!AT$7,Tab_Uderor[TipoReceita],Entrada!$P11) -> 0 | AU11: =SUMIFS(Tab_Uderor[R$],Tab_Uderor[Competencia],Entrada!AU$7,Tab_Uderor[TipoReceita],Entrada!$P11) -> 0 | AV11: =SUMIFS(Tab_Uderor[R$],Tab_Uderor[Competencia],Entrada!AV$7,Tab_Uderor[TipoReceita],Entrada!$P11) -> 0 | AW11: =SUMIFS(Tab_Uderor[R$],Tab_Uderor[Competencia],Entrada!AW$7,Tab_Uderor[TipoReceita],Entrada!$P11) -> 0 | AX11: =SUMIFS(Tab_Uderor[R$],Tab_Uderor[Competencia],Entrada!AX$7,Tab_Uderor[TipoReceita],Entrada!$P11) -> 0 | AY11: =SUMIFS(Tab_Uderor[R$],Tab_Uderor[Competencia],Entrada!AY$7,Tab_Uderor[TipoReceita],Entrada!$P11) -> 0 | AZ11: =SUMIFS(Tab_Uderor[R$],Tab_Uderor[Competencia],Entrada!AZ$7,Tab_Uderor[TipoReceita],Entrada!$P11) -> 0
F12: (6) Depreciação Acumulada | G12: =G78*VLOOKUP(DATE(YEAR(CAPA!$C$10),MONTH(CAPA!$C$10)-1,1),Índices!$B$135:$D$638,3,0)/VLOOKUP(DATE(YEAR($G$72),MONTH($G$72)-1,1),Índices!$B$135:$D$638,3,0) ->  | J12: BMP - 610530508; 610550508; 610532508; 610552508 | K12: Outros Benefícios | L12: =SUMIFS(Tab_RIT_BMP[SALDO],Tab_RIT_BMP[CONTA],610530508,Tab_RIT_BMP[ANO],$L$7)+SUMIFS(Tab_RIT_BMP[SALDO],Tab_RIT_BMP[CONTA],610550508,Tab_RIT_BMP[ANO],$L$7)+ SUMIFS(Tab_RIT_BMP[SALDO],Tab_RIT_BMP[CONTA],610532508,Tab_RIT_BMP[ANO],$L$7)+SUMIFS(Tab_RIT_BMP[SALDO],Tab_RIT_BMP[CONTA],610552508,Tab_RIT_BMP[ANO],$L$7) -> 67827776.05 | M12: =SUMIFS(Tab_RIT_BMP[SALDO],Tab_RIT_BMP[CONTA],610530508,Tab_RIT_BMP[ANO],$M$7)+SUMIFS(Tab_RIT_BMP[SALDO],Tab_RIT_BMP[CONTA],610550508,Tab_RIT_BMP[ANO],$M$7)+ SUMIFS(Tab_RIT_BMP[SALDO],Tab_RIT_BMP[CONTA],610532508,Tab_RIT_BMP[ANO],$M$7)+SUMIFS(Tab_RIT_BMP[SALDO],Tab_RIT_BMP[CONTA],610552508,Tab_RIT_BMP[ANO],$M$7) -> 0 | P12: Aluguel ou cessão onerosa de imóveis e espaços físicos | Q12: =SUMIFS(Tab_Uderor[R$],Tab_Uderor[Competencia],Entrada!Q$7,Tab_Uderor[TipoReceita],Entrada!$P12) -> 0 | R12: =SUMIFS(Tab_Uderor[R$],Tab_Uderor[Competencia],Entrada!R$7,Tab_Uderor[TipoReceita],Entrada!$P12) -> 0 | S12: =SUMIFS(Tab_Uderor[R$],Tab_Uderor[Competencia],Entrada!S$7,Tab_Uderor[TipoReceita],Entrada!$P12) -> 0 | T12: =SUMIFS(Tab_Uderor[R$],Tab_Uderor[Competencia],Entrada!T$7,Tab_Uderor[TipoReceita],Entrada!$P12) -> 0 | U12: =SUMIFS(Tab_Uderor[R$],Tab_Uderor[Competencia],Entrada!U$7,Tab_Uderor[TipoReceita],Entrada!$P12) -> 0 | V12: =SUMIFS(Tab_Uderor[R$],Tab_Uderor[Competencia],Entrada!V$7,Tab_Uderor[TipoReceita],Entrada!$P12) -> 0 | W12: =SUMIFS(Tab_Uderor[R$],Tab_Uderor[Competencia],Entrada!W$7,Tab_Uderor[TipoReceita],Entrada!$P12) -> 0 | X12: =SUMIFS(Tab_Uderor[R$],Tab_Uderor[Competencia],Entrada!X$7,Tab_Uderor[TipoReceita],Entrada!$P12) -> 0 | Y12: =SUMIFS(Tab_Uderor[R$],Tab_Uderor[Competencia],Entrada!Y$7,Tab_Uderor[TipoReceita],Entrada!$P12) -> 0 | Z12: =SUMIFS(Tab_Uderor[R$],Tab_Uderor[Competencia],Entrada!Z$7,Tab_Uderor[TipoReceita],Entrada!$P12) -> 0 | AA12: =SUMIFS(Tab_Uderor[R$],Tab_Uderor[Competencia],Entrada!AA$7,Tab_Uderor[TipoReceita],Entrada!$P12) -> 0 | AB12: =SUMIFS(Tab_Uderor[R$],Tab_Uderor[Competencia],Entrada!AB$7,Tab_Uderor[TipoReceita],Entrada!$P12) -> 0 | AC12: =SUMIFS(Tab_Uderor[R$],Tab_Uderor[Competencia],Entrada!AC$7,Tab_Uderor[TipoReceita],Entrada!$P12) -> 0 | AD12: =SUMIFS(Tab_Uderor[R$],Tab_Uderor[Competencia],Entrada!AD$7,Tab_Uderor[TipoReceita],Entrada!$P12) -> 0 | AE12: =SUMIFS(Tab_Uderor[R$],Tab_Uderor[Competencia],Entrada!AE$7,Tab_Uderor[TipoReceita],Entrada!$P12) -> 0 | AF12: =SUMIFS(Tab_Uderor[R$],Tab_Uderor[Competencia],Entrada!AF$7,Tab_Uderor[TipoReceita],Entrada!$P12) -> 0 | AG12: =SUMIFS(Tab_Uderor[R$],Tab_Uderor[Competencia],Entrada!AG$7,Tab_Uderor[TipoReceita],Entrada!$P12) -> 0 | AH12: =SUMIFS(Tab_Uderor[R$],Tab_Uderor[Competencia],Entrada!AH$7,Tab_Uderor[TipoReceita],Entrada!$P12) -> 0 | AI12: =SUMIFS(Tab_Uderor[R$],Tab_Uderor[Competencia],Entrada!AI$7,Tab_Uderor[TipoReceita],Entrada!$P12) -> 0 | AJ12: =SUMIFS(Tab_Uderor[R$],Tab_Uderor[Competencia],Entrada!AJ$7,Tab_Uderor[TipoReceita],Entrada!$P12) -> 0 | AK12: =SUMIFS(Tab_Uderor[R$],Tab_Uderor[Competencia],Entrada!AK$7,Tab_Uderor[TipoReceita],Entrada!$P12) -> 0 | AL12: =SUMIFS(Tab_Uderor[R$],Tab_Uderor[Competencia],Entrada!AL$7,Tab_Uderor[TipoReceita],Entrada!$P12) -> 0 | AM12: =SUMIFS(Tab_Uderor[R$],Tab_Uderor[Competencia],Entrada!AM$7,Tab_Uderor[TipoReceita],Entrada!$P12) -> 0 | AN12: =SUMIFS(Tab_Uderor[R$],Tab_Uderor[Competencia],Entrada!AN$7,Tab_Uderor[TipoReceita],Entrada!$P12) -> 0 | AO12: =SUMIFS(Tab_Uderor[R$],Tab_Uderor[Competencia],Entrada!AO$7,Tab_Uderor[TipoReceita],Entrada!$P12) -> 0 | AP12: =SUMIFS(Tab_Uderor[R$],Tab_Uderor[Competencia],Entrada!AP$7,Tab_Uderor[TipoReceita],Entrada!$P12) -> 0 | AQ12: =SUMIFS(Tab_Uderor[R$],Tab_Uderor[Competencia],Entrada!AQ$7,Tab_Uderor[TipoReceita],Entrada!$P12) -> 0 | AR12: =SUMIFS(Tab_Uderor[R$],Tab_Uderor[Competencia],Entrada!AR$7,Tab_Uderor[TipoReceita],Entrada!$P12) -> 0 | AS12: =SUMIFS(Tab_Uderor[R$],Tab_Uderor[Competencia],Entrada!AS$7,Tab_Uderor[TipoReceita],Entrada!$P12) -> 0 | AT12: =SUMIFS(Tab_Uderor[R$],Tab_Uderor[Competencia],Entrada!AT$7,Tab_Uderor[TipoReceita],Entrada!$P12) -> 0 | AU12: =SUMIFS(Tab_Uderor[R$],Tab_Uderor[Competencia],Entrada!AU$7,Tab_Uderor[TipoReceita],Entrada!$P12) -> 0 | AV12: =SUMIFS(Tab_Uderor[R$],Tab_Uderor[Competencia],Entrada!AV$7,Tab_Uderor[TipoReceita],Entrada!$P12) -> 0 | AW12: =SUMIFS(Tab_Uderor[R$],Tab_Uderor[Competencia],Entrada!AW$7,Tab_Uderor[TipoReceita],Entrada!$P12) -> 0 | AX12: =SUMIFS(Tab_Uderor[R$],Tab_Uderor[Competencia],Entrada!AX$7,Tab_Uderor[TipoReceita],Entrada!$P12) -> 0 | AY12: =SUMIFS(Tab_Uderor[R$],Tab_Uderor[Competencia],Entrada!AY$7,Tab_Uderor[TipoReceita],Entrada!$P12) -> 0 | AZ12: =SUMIFS(Tab_Uderor[R$],Tab_Uderor[Competencia],Entrada!AZ$7,Tab_Uderor[TipoReceita],Entrada!$P12) -> 0
F13: (7) AIS Líquido (Valor de Mercado em Uso) | G13: =G7-G12 ->  | J13: BMP - 610530506; 610550506; 610532506; 610552506 | K13: Despesas Rescisórias | L13: =SUMIFS(Tab_RIT_BMP[SALDO],Tab_RIT_BMP[CONTA],610530506,Tab_RIT_BMP[ANO],$L$7)+SUMIFS(Tab_RIT_BMP[SALDO],Tab_RIT_BMP[CONTA],610550506,Tab_RIT_BMP[ANO],$L$7)+ SUMIFS(Tab_RIT_BMP[SALDO],Tab_RIT_BMP[CONTA],610532506,Tab_RIT_BMP[ANO],$L$7)+SUMIFS(Tab_RIT_BMP[SALDO],Tab_RIT_BMP[CONTA],610552506,Tab_RIT_BMP[ANO],$L$7) -> 0 | M13: =SUMIFS(Tab_RIT_BMP[SALDO],Tab_RIT_BMP[CONTA],610530506,Tab_RIT_BMP[ANO],$M$7)+SUMIFS(Tab_RIT_BMP[SALDO],Tab_RIT_BMP[CONTA],610550506,Tab_RIT_BMP[ANO],$M$7)+ SUMIFS(Tab_RIT_BMP[SALDO],Tab_RIT_BMP[CONTA],610532506,Tab_RIT_BMP[ANO],$M$7)+SUMIFS(Tab_RIT_BMP[SALDO],Tab_RIT_BMP[CONTA],610552506,Tab_RIT_BMP[ANO],$M$7) -> 0 | P13: Compartilhamento de infraestrutura | Q13: =SUMIFS(Tab_Uderor[R$],Tab_Uderor[Competencia],Entrada!Q$7,Tab_Uderor[TipoReceita],Entrada!$P13) -> 0 | R13: =SUMIFS(Tab_Uderor[R$],Tab_Uderor[Competencia],Entrada!R$7,Tab_Uderor[TipoReceita],Entrada!$P13) -> 0 | S13: =SUMIFS(Tab_Uderor[R$],Tab_Uderor[Competencia],Entrada!S$7,Tab_Uderor[TipoReceita],Entrada!$P13) -> 0 | T13: =SUMIFS(Tab_Uderor[R$],Tab_Uderor[Competencia],Entrada!T$7,Tab_Uderor[TipoReceita],Entrada!$P13) -> 0 | U13: =SUMIFS(Tab_Uderor[R$],Tab_Uderor[Competencia],Entrada!U$7,Tab_Uderor[TipoReceita],Entrada!$P13) -> 0 | V13: =SUMIFS(Tab_Uderor[R$],Tab_Uderor[Competencia],Entrada!V$7,Tab_Uderor[TipoReceita],Entrada!$P13) -> 0 | W13: =SUMIFS(Tab_Uderor[R$],Tab_Uderor[Competencia],Entrada!W$7,Tab_Uderor[TipoReceita],Entrada!$P13) -> 0 | X13: =SUMIFS(Tab_Uderor[R$],Tab_Uderor[Competencia],Entrada!X$7,Tab_Uderor[TipoReceita],Entrada!$P13) -> 0 | Y13: =SUMIFS(Tab_Uderor[R$],Tab_Uderor[Competencia],Entrada!Y$7,Tab_Uderor[TipoReceita],Entrada!$P13) -> 0 | Z13: =SUMIFS(Tab_Uderor[R$],Tab_Uderor[Competencia],Entrada!Z$7,Tab_Uderor[TipoReceita],Entrada!$P13) -> 0 | AA13: =SUMIFS(Tab_Uderor[R$],Tab_Uderor[Competencia],Entrada!AA$7,Tab_Uderor[TipoReceita],Entrada!$P13) -> 0 | AB13: =SUMIFS(Tab_Uderor[R$],Tab_Uderor[Competencia],Entrada!AB$7,Tab_Uderor[TipoReceita],Entrada!$P13) -> 0 | AC13: =SUMIFS(Tab_Uderor[R$],Tab_Uderor[Competencia],Entrada!AC$7,Tab_Uderor[TipoReceita],Entrada!$P13) -> 0 | AD13: =SUMIFS(Tab_Uderor[R$],Tab_Uderor[Competencia],Entrada!AD$7,Tab_Uderor[TipoReceita],Entrada!$P13) -> 0 | AE13: =SUMIFS(Tab_Uderor[R$],Tab_Uderor[Competencia],Entrada!AE$7,Tab_Uderor[TipoReceita],Entrada!$P13) -> 0 | AF13: =SUMIFS(Tab_Uderor[R$],Tab_Uderor[Competencia],Entrada!AF$7,Tab_Uderor[TipoReceita],Entrada!$P13) -> 0 | AG13: =SUMIFS(Tab_Uderor[R$],Tab_Uderor[Competencia],Entrada!AG$7,Tab_Uderor[TipoReceita],Entrada!$P13) -> 0 | AH13: =SUMIFS(Tab_Uderor[R$],Tab_Uderor[Competencia],Entrada!AH$7,Tab_Uderor[TipoReceita],Entrada!$P13) -> 0 | AI13: =SUMIFS(Tab_Uderor[R$],Tab_Uderor[Competencia],Entrada!AI$7,Tab_Uderor[TipoReceita],Entrada!$P13) -> 0 | AJ13: =SUMIFS(Tab_Uderor[R$],Tab_Uderor[Competencia],Entrada!AJ$7,Tab_Uderor[TipoReceita],Entrada!$P13) -> 0 | AK13: =SUMIFS(Tab_Uderor[R$],Tab_Uderor[Competencia],Entrada!AK$7,Tab_Uderor[TipoReceita],Entrada!$P13) -> 0 | AL13: =SUMIFS(Tab_Uderor[R$],Tab_Uderor[Competencia],Entrada!AL$7,Tab_Uderor[TipoReceita],Entrada!$P13) -> 0 | AM13: =SUMIFS(Tab_Uderor[R$],Tab_Uderor[Competencia],Entrada!AM$7,Tab_Uderor[TipoReceita],Entrada!$P13) -> 0 | AN13: =SUMIFS(Tab_Uderor[R$],Tab_Uderor[Competencia],Entrada!AN$7,Tab_Uderor[TipoReceita],Entrada!$P13) -> 0 | AO13: =SUMIFS(Tab_Uderor[R$],Tab_Uderor[Competencia],Entrada!AO$7,Tab_Uderor[TipoReceita],Entrada!$P13) -> 0 | AP13: =SUMIFS(Tab_Uderor[R$],Tab_Uderor[Competencia],Entrada!AP$7,Tab_Uderor[TipoReceita],Entrada!$P13) -> 0 | AQ13: =SUMIFS(Tab_Uderor[R$],Tab_Uderor[Competencia],Entrada!AQ$7,Tab_Uderor[TipoReceita],Entrada!$P13) -> 0 | AR13: =SUMIFS(Tab_Uderor[R$],Tab_Uderor[Competencia],Entrada!AR$7,Tab_Uderor[TipoReceita],Entrada!$P13) -> 0 | AS13: =SUMIFS(Tab_Uderor[R$],Tab_Uderor[Competencia],Entrada!AS$7,Tab_Uderor[TipoReceita],Entrada!$P13) -> 0 | AT13: =SUMIFS(Tab_Uderor[R$],Tab_Uderor[Competencia],Entrada!AT$7,Tab_Uderor[TipoReceita],Entrada!$P13) -> 0 | AU13: =SUMIFS(Tab_Uderor[R$],Tab_Uderor[Competencia],Entrada!AU$7,Tab_Uderor[TipoReceita],Entrada!$P13) -> 0 | AV13: =SUMIFS(Tab_Uderor[R$],Tab_Uderor[Competencia],Entrada!AV$7,Tab_Uderor[TipoReceita],Entrada!$P13) -> 0 | AW13: =SUMIFS(Tab_Uderor[R$],Tab_Uderor[Competencia],Entrada!AW$7,Tab_Uderor[TipoReceita],Entrada!$P13) -> 0 | AX13: =SUMIFS(Tab_Uderor[R$],Tab_Uderor[Competencia],Entrada!AX$7,Tab_Uderor[TipoReceita],Entrada!$P13) -> 0 | AY13: =SUMIFS(Tab_Uderor[R$],Tab_Uderor[Competencia],Entrada!AY$7,Tab_Uderor[TipoReceita],Entrada!$P13) -> 0 | AZ13: =SUMIFS(Tab_Uderor[R$],Tab_Uderor[Competencia],Entrada!AZ$7,Tab_Uderor[TipoReceita],Entrada!$P13) -> 0
F14: (8) Índice de Aproveitamento Depreciado | G14: =G80*VLOOKUP(DATE(YEAR(CAPA!$C$10),MONTH(CAPA!$C$10)-1,1),Índices!$B$135:$D$638,3,0)/VLOOKUP(DATE(YEAR($G$72),MONTH($G$72)-1,1),Índices!$B$135:$D$638,3,0) ->  | J14: BMP - 610530507; 610550507; 610532507; 610552507 | K14: Participação nos Lucros e Resultados - PLR | L14: =SUMIFS(Tab_RIT_BMP[SALDO],Tab_RIT_BMP[CONTA],610530507,Tab_RIT_BMP[ANO],$L$7)+SUMIFS(Tab_RIT_BMP[SALDO],Tab_RIT_BMP[CONTA],610550507,Tab_RIT_BMP[ANO],$L$7)+SUMIFS(Tab_RIT_BMP[SALDO],Tab_RIT_BMP[CONTA],610532507,Tab_RIT_BMP[ANO],$L$7)+SUMIFS(Tab_RIT_BMP[SALDO],Tab_RIT_BMP[CONTA],610552507,Tab_RIT_BMP[ANO],$L$7) -> 35632314.85 | M14: =SUMIFS(Tab_RIT_BMP[SALDO],Tab_RIT_BMP[CONTA],610530507,Tab_RIT_BMP[ANO],$M$7)+SUMIFS(Tab_RIT_BMP[SALDO],Tab_RIT_BMP[CONTA],610550507,Tab_RIT_BMP[ANO],$M$7)+ SUMIFS(Tab_RIT_BMP[SALDO],Tab_RIT_BMP[CONTA],610532507,Tab_RIT_BMP[ANO],$M$7)+SUMIFS(Tab_RIT_BMP[SALDO],Tab_RIT_BMP[CONTA],610552507,Tab_RIT_BMP[ANO],$M$7) -> 0 | P14: Serviços de avaliação técnica e aferição de medidores. | Q14: =SUMIFS(Tab_Uderor[R$],Tab_Uderor[Competencia],Entrada!Q$7,Tab_Uderor[TipoReceita],Entrada!$P14) -> 0 | R14: =SUMIFS(Tab_Uderor[R$],Tab_Uderor[Competencia],Entrada!R$7,Tab_Uderor[TipoReceita],Entrada!$P14) -> 0 | S14: =SUMIFS(Tab_Uderor[R$],Tab_Uderor[Competencia],Entrada!S$7,Tab_Uderor[TipoReceita],Entrada!$P14) -> 0 | T14: =SUMIFS(Tab_Uderor[R$],Tab_Uderor[Competencia],Entrada!T$7,Tab_Uderor[TipoReceita],Entrada!$P14) -> 0 | U14: =SUMIFS(Tab_Uderor[R$],Tab_Uderor[Competencia],Entrada!U$7,Tab_Uderor[TipoReceita],Entrada!$P14) -> 0 | V14: =SUMIFS(Tab_Uderor[R$],Tab_Uderor[Competencia],Entrada!V$7,Tab_Uderor[TipoReceita],Entrada!$P14) -> 0 | W14: =SUMIFS(Tab_Uderor[R$],Tab_Uderor[Competencia],Entrada!W$7,Tab_Uderor[TipoReceita],Entrada!$P14) -> 0 | X14: =SUMIFS(Tab_Uderor[R$],Tab_Uderor[Competencia],Entrada!X$7,Tab_Uderor[TipoReceita],Entrada!$P14) -> 0 | Y14: =SUMIFS(Tab_Uderor[R$],Tab_Uderor[Competencia],Entrada!Y$7,Tab_Uderor[TipoReceita],Entrada!$P14) -> 0 | Z14: =SUMIFS(Tab_Uderor[R$],Tab_Uderor[Competencia],Entrada!Z$7,Tab_Uderor[TipoReceita],Entrada!$P14) -> 0 | AA14: =SUMIFS(Tab_Uderor[R$],Tab_Uderor[Competencia],Entrada!AA$7,Tab_Uderor[TipoReceita],Entrada!$P14) -> 0 | AB14: =SUMIFS(Tab_Uderor[R$],Tab_Uderor[Competencia],Entrada!AB$7,Tab_Uderor[TipoReceita],Entrada!$P14) -> 0 | AC14: =SUMIFS(Tab_Uderor[R$],Tab_Uderor[Competencia],Entrada!AC$7,Tab_Uderor[TipoReceita],Entrada!$P14) -> 0 | AD14: =SUMIFS(Tab_Uderor[R$],Tab_Uderor[Competencia],Entrada!AD$7,Tab_Uderor[TipoReceita],Entrada!$P14) -> 0 | AE14: =SUMIFS(Tab_Uderor[R$],Tab_Uderor[Competencia],Entrada!AE$7,Tab_Uderor[TipoReceita],Entrada!$P14) -> 0 | AF14: =SUMIFS(Tab_Uderor[R$],Tab_Uderor[Competencia],Entrada!AF$7,Tab_Uderor[TipoReceita],Entrada!$P14) -> 0 | AG14: =SUMIFS(Tab_Uderor[R$],Tab_Uderor[Competencia],Entrada!AG$7,Tab_Uderor[TipoReceita],Entrada!$P14) -> 0 | AH14: =SUMIFS(Tab_Uderor[R$],Tab_Uderor[Competencia],Entrada!AH$7,Tab_Uderor[TipoReceita],Entrada!$P14) -> 0 | AI14: =SUMIFS(Tab_Uderor[R$],Tab_Uderor[Competencia],Entrada!AI$7,Tab_Uderor[TipoReceita],Entrada!$P14) -> 0 | AJ14: =SUMIFS(Tab_Uderor[R$],Tab_Uderor[Competencia],Entrada!AJ$7,Tab_Uderor[TipoReceita],Entrada!$P14) -> 0 | AK14: =SUMIFS(Tab_Uderor[R$],Tab_Uderor[Competencia],Entrada!AK$7,Tab_Uderor[TipoReceita],Entrada!$P14) -> 0 | AL14: =SUMIFS(Tab_Uderor[R$],Tab_Uderor[Competencia],Entrada!AL$7,Tab_Uderor[TipoReceita],Entrada!$P14) -> 0 | AM14: =SUMIFS(Tab_Uderor[R$],Tab_Uderor[Competencia],Entrada!AM$7,Tab_Uderor[TipoReceita],Entrada!$P14) -> 0 | AN14: =SUMIFS(Tab_Uderor[R$],Tab_Uderor[Competencia],Entrada!AN$7,Tab_Uderor[TipoReceita],Entrada!$P14) -> 0 | AO14: =SUMIFS(Tab_Uderor[R$],Tab_Uderor[Competencia],Entrada!AO$7,Tab_Uderor[TipoReceita],Entrada!$P14) -> 0 | AP14: =SUMIFS(Tab_Uderor[R$],Tab_Uderor[Competencia],Entrada!AP$7,Tab_Uderor[TipoReceita],Entrada!$P14) -> 0 | AQ14: =SUMIFS(Tab_Uderor[R$],Tab_Uderor[Competencia],Entrada!AQ$7,Tab_Uderor[TipoReceita],Entrada!$P14) -> 0 | AR14: =SUMIFS(Tab_Uderor[R$],Tab_Uderor[Competencia],Entrada!AR$7,Tab_Uderor[TipoReceita],Entrada!$P14) -> 0 | AS14: =SUMIFS(Tab_Uderor[R$],Tab_Uderor[Competencia],Entrada!AS$7,Tab_Uderor[TipoReceita],Entrada!$P14) -> 0 | AT14: =SUMIFS(Tab_Uderor[R$],Tab_Uderor[Competencia],Entrada!AT$7,Tab_Uderor[TipoReceita],Entrada!$P14) -> 0 | AU14: =SUMIFS(Tab_Uderor[R$],Tab_Uderor[Competencia],Entrada!AU$7,Tab_Uderor[TipoReceita],Entrada!$P14) -> 0 | AV14: =SUMIFS(Tab_Uderor[R$],Tab_Uderor[Competencia],Entrada!AV$7,Tab_Uderor[TipoReceita],Entrada!$P14) -> 0 | AW14: =SUMIFS(Tab_Uderor[R$],Tab_Uderor[Competencia],Entrada!AW$7,Tab_Uderor[TipoReceita],Entrada!$P14) -> 0 | AX14: =SUMIFS(Tab_Uderor[R$],Tab_Uderor[Competencia],Entrada!AX$7,Tab_Uderor[TipoReceita],Entrada!$P14) -> 0 | AY14: =SUMIFS(Tab_Uderor[R$],Tab_Uderor[Competencia],Entrada!AY$7,Tab_Uderor[TipoReceita],Entrada!$P14) -> 0 | AZ14: =SUMIFS(Tab_Uderor[R$],Tab_Uderor[Competencia],Entrada!AZ$7,Tab_Uderor[TipoReceita],Entrada!$P14) -> 0
F15: (9) Valor da Base de Remuneração (VBR) | G15: =G13-G14 ->  | J15: BMP - 610530599; 610550599; 610532599; 610552599 | K15: Outros | L15: =SUMIFS(Tab_RIT_BMP[SALDO],Tab_RIT_BMP[CONTA],610530599,Tab_RIT_BMP[ANO],$L$7)+SUMIFS(Tab_RIT_BMP[SALDO],Tab_RIT_BMP[CONTA],610550599,Tab_RIT_BMP[ANO],$L$7)+ SUMIFS(Tab_RIT_BMP[SALDO],Tab_RIT_BMP[CONTA],610532599,Tab_RIT_BMP[ANO],$L$7)+SUMIFS(Tab_RIT_BMP[SALDO],Tab_RIT_BMP[CONTA],610552599,Tab_RIT_BMP[ANO],$L$7) -> 0 | M15: =SUMIFS(Tab_RIT_BMP[SALDO],Tab_RIT_BMP[CONTA],610530599,Tab_RIT_BMP[ANO],$M$7)+SUMIFS(Tab_RIT_BMP[SALDO],Tab_RIT_BMP[CONTA],610550599,Tab_RIT_BMP[ANO],$M$7)+ SUMIFS(Tab_RIT_BMP[SALDO],Tab_RIT_BMP[CONTA],610532599,Tab_RIT_BMP[ANO],$M$7)+SUMIFS(Tab_RIT_BMP[SALDO],Tab_RIT_BMP[CONTA],610552599,Tab_RIT_BMP[ANO],$M$7) -> 0 | P15: Operacionalização de serviço de créditos tributários | Q15: =SUMIFS(Tab_Uderor[R$],Tab_Uderor[Competencia],Entrada!Q$7,Tab_Uderor[TipoReceita],Entrada!$P15) -> 0 | R15: =SUMIFS(Tab_Uderor[R$],Tab_Uderor[Competencia],Entrada!R$7,Tab_Uderor[TipoReceita],Entrada!$P15) -> 0 | S15: =SUMIFS(Tab_Uderor[R$],Tab_Uderor[Competencia],Entrada!S$7,Tab_Uderor[TipoReceita],Entrada!$P15) -> 0 | T15: =SUMIFS(Tab_Uderor[R$],Tab_Uderor[Competencia],Entrada!T$7,Tab_Uderor[TipoReceita],Entrada!$P15) -> 0 | U15: =SUMIFS(Tab_Uderor[R$],Tab_Uderor[Competencia],Entrada!U$7,Tab_Uderor[TipoReceita],Entrada!$P15) -> 0 | V15: =SUMIFS(Tab_Uderor[R$],Tab_Uderor[Competencia],Entrada!V$7,Tab_Uderor[TipoReceita],Entrada!$P15) -> 0 | W15: =SUMIFS(Tab_Uderor[R$],Tab_Uderor[Competencia],Entrada!W$7,Tab_Uderor[TipoReceita],Entrada!$P15) -> 0 | X15: =SUMIFS(Tab_Uderor[R$],Tab_Uderor[Competencia],Entrada!X$7,Tab_Uderor[TipoReceita],Entrada!$P15) -> 0 | Y15: =SUMIFS(Tab_Uderor[R$],Tab_Uderor[Competencia],Entrada!Y$7,Tab_Uderor[TipoReceita],Entrada!$P15) -> 0 | Z15: =SUMIFS(Tab_Uderor[R$],Tab_Uderor[Competencia],Entrada!Z$7,Tab_Uderor[TipoReceita],Entrada!$P15) -> 0 | AA15: =SUMIFS(Tab_Uderor[R$],Tab_Uderor[Competencia],Entrada!AA$7,Tab_Uderor[TipoReceita],Entrada!$P15) -> 0 | AB15: =SUMIFS(Tab_Uderor[R$],Tab_Uderor[Competencia],Entrada!AB$7,Tab_Uderor[TipoReceita],Entrada!$P15) -> 0 | AC15: =SUMIFS(Tab_Uderor[R$],Tab_Uderor[Competencia],Entrada!AC$7,Tab_Uderor[TipoReceita],Entrada!$P15) -> 0 | AD15: =SUMIFS(Tab_Uderor[R$],Tab_Uderor[Competencia],Entrada!AD$7,Tab_Uderor[TipoReceita],Entrada!$P15) -> 0 | AE15: =SUMIFS(Tab_Uderor[R$],Tab_Uderor[Competencia],Entrada!AE$7,Tab_Uderor[TipoReceita],Entrada!$P15) -> 0 | AF15: =SUMIFS(Tab_Uderor[R$],Tab_Uderor[Competencia],Entrada!AF$7,Tab_Uderor[TipoReceita],Entrada!$P15) -> 0 | AG15: =SUMIFS(Tab_Uderor[R$],Tab_Uderor[Competencia],Entrada!AG$7,Tab_Uderor[TipoReceita],Entrada!$P15) -> 0 | AH15: =SUMIFS(Tab_Uderor[R$],Tab_Uderor[Competencia],Entrada!AH$7,Tab_Uderor[TipoReceita],Entrada!$P15) -> 0 | AI15: =SUMIFS(Tab_Uderor[R$],Tab_Uderor[Competencia],Entrada!AI$7,Tab_Uderor[TipoReceita],Entrada!$P15) -> 0 | AJ15: =SUMIFS(Tab_Uderor[R$],Tab_Uderor[Competencia],Entrada!AJ$7,Tab_Uderor[TipoReceita],Entrada!$P15) -> 0 | AK15: =SUMIFS(Tab_Uderor[R$],Tab_Uderor[Competencia],Entrada!AK$7,Tab_Uderor[TipoReceita],Entrada!$P15) -> 0 | AL15: =SUMIFS(Tab_Uderor[R$],Tab_Uderor[Competencia],Entrada!AL$7,Tab_Uderor[TipoReceita],Entrada!$P15) -> 0 | AM15: =SUMIFS(Tab_Uderor[R$],Tab_Uderor[Competencia],Entrada!AM$7,Tab_Uderor[TipoReceita],Entrada!$P15) -> 0 | AN15: =SUMIFS(Tab_Uderor[R$],Tab_Uderor[Competencia],Entrada!AN$7,Tab_Uderor[TipoReceita],Entrada!$P15) -> 0 | AO15: =SUMIFS(Tab_Uderor[R$],Tab_Uderor[Competencia],Entrada!AO$7,Tab_Uderor[TipoReceita],Entrada!$P15) -> 0 | AP15: =SUMIFS(Tab_Uderor[R$],Tab_Uderor[Competencia],Entrada!AP$7,Tab_Uderor[TipoReceita],Entrada!$P15) -> 0 | AQ15: =SUMIFS(Tab_Uderor[R$],Tab_Uderor[Competencia],Entrada!AQ$7,Tab_Uderor[TipoReceita],Entrada!$P15) -> 0 | AR15: =SUMIFS(Tab_Uderor[R$],Tab_Uderor[Competencia],Entrada!AR$7,Tab_Uderor[TipoReceita],Entrada!$P15) -> 0 | AS15: =SUMIFS(Tab_Uderor[R$],Tab_Uderor[Competencia],Entrada!AS$7,Tab_Uderor[TipoReceita],Entrada!$P15) -> 0 | AT15: =SUMIFS(Tab_Uderor[R$],Tab_Uderor[Competencia],Entrada!AT$7,Tab_Uderor[TipoReceita],Entrada!$P15) -> 0 | AU15: =SUMIFS(Tab_Uderor[R$],Tab_Uderor[Competencia],Entrada!AU$7,Tab_Uderor[TipoReceita],Entrada!$P15) -> 0 | AV15: =SUMIFS(Tab_Uderor[R$],Tab_Uderor[Competencia],Entrada!AV$7,Tab_Uderor[TipoReceita],Entrada!$P15) -> 0 | AW15: =SUMIFS(Tab_Uderor[R$],Tab_Uderor[Competencia],Entrada!AW$7,Tab_Uderor[TipoReceita],Entrada!$P15) -> 0 | AX15: =SUMIFS(Tab_Uderor[R$],Tab_Uderor[Competencia],Entrada!AX$7,Tab_Uderor[TipoReceita],Entrada!$P15) -> 0 | AY15: =SUMIFS(Tab_Uderor[R$],Tab_Uderor[Competencia],Entrada!AY$7,Tab_Uderor[TipoReceita],Entrada!$P15) -> 0 | AZ15: =SUMIFS(Tab_Uderor[R$],Tab_Uderor[Competencia],Entrada!AZ$7,Tab_Uderor[TipoReceita],Entrada!$P15) -> 0
F16: (10) Almoxarifado em Operação | G16: =G82*VLOOKUP(DATE(YEAR(CAPA!$C$10),MONTH(CAPA!$C$10)-1,1),Índices!$B$135:$D$638,3,0)/VLOOKUP(DATE(YEAR($G$72),MONTH($G$72)-1,1),Índices!$B$135:$D$638,3,0) ->  | J16: BMP - 610530510; 610550510; 610532510; 610552510 | K16: (-) Créditos de Tributos Recuperáveis | L16: =SUMIFS(Tab_RIT_BMP[SALDO],Tab_RIT_BMP[CONTA],610530510,Tab_RIT_BMP[ANO],$L$7)+SUMIFS(Tab_RIT_BMP[SALDO],Tab_RIT_BMP[CONTA],610550510,Tab_RIT_BMP[ANO],$L$7)+ SUMIFS(Tab_RIT_BMP[SALDO],Tab_RIT_BMP[CONTA],610532510,Tab_RIT_BMP[ANO],$L$7)+SUMIFS(Tab_RIT_BMP[SALDO],Tab_RIT_BMP[CONTA],610552510,Tab_RIT_BMP[ANO],$L$7) -> 0 | M16: =SUMIFS(Tab_RIT_BMP[SALDO],Tab_RIT_BMP[CONTA],610530510,Tab_RIT_BMP[ANO],$M$7)+SUMIFS(Tab_RIT_BMP[SALDO],Tab_RIT_BMP[CONTA],610550510,Tab_RIT_BMP[ANO],$M$7)+ SUMIFS(Tab_RIT_BMP[SALDO],Tab_RIT_BMP[CONTA],610532510,Tab_RIT_BMP[ANO],$M$7)+SUMIFS(Tab_RIT_BMP[SALDO],Tab_RIT_BMP[CONTA],610552510,Tab_RIT_BMP[ANO],$M$7) -> 0 | P16: Elaboração de projeto, construção, operação, manutenção ou reforma de:
F17: (11) Ativo Diferido | G17: =G83*VLOOKUP(DATE(YEAR(CAPA!$C$10),MONTH(CAPA!$C$10)-1,1),Índices!$B$135:$D$638,3,0)/VLOOKUP(DATE(YEAR($G$72),MONTH($G$72)-1,1),Índices!$B$135:$D$638,3,0) ->  | J17: BMP - 6105306; 6105506; 6105326; 6105526 | K17: Administradores | L17: =SUMIFS(Tab_RIT_BMP[SALDO],Tab_RIT_BMP[CONTA],6105306,Tab_RIT_BMP[ANO],$L$7)+SUMIFS(Tab_RIT_BMP[SALDO],Tab_RIT_BMP[CONTA],6105506,Tab_RIT_BMP[ANO],$L$7)+ SUMIFS(Tab_RIT_BMP[SALDO],Tab_RIT_BMP[CONTA],6105326,Tab_RIT_BMP[ANO],$L$7)+SUMIFS(Tab_RIT_BMP[SALDO],Tab_RIT_BMP[CONTA],6105526,Tab_RIT_BMP[ANO],$L$7) -> 0 | M17: =SUMIFS(Tab_RIT_BMP[SALDO],Tab_RIT_BMP[CONTA],6105306,Tab_RIT_BMP[ANO],$M$7)+SUMIFS(Tab_RIT_BMP[SALDO],Tab_RIT_BMP[CONTA],6105506,Tab_RIT_BMP[ANO],$M$7)+ SUMIFS(Tab_RIT_BMP[SALDO],Tab_RIT_BMP[CONTA],6105326,Tab_RIT_BMP[ANO],$M$7)+SUMIFS(Tab_RIT_BMP[SALDO],Tab_RIT_BMP[CONTA],6105526,Tab_RIT_BMP[ANO],$M$7) -> 0 | P17: (1) redes de distribuição de energia elétrica destinadas à regularização fundiária de interesse específico e ao atendimento dos empreendimentos de múltiplas unidades consumidoras; | Q17: =SUMIFS(Tab_Uderor[R$],Tab_Uderor[Competencia],Entrada!Q$7,Tab_Uderor[TipoReceita],Entrada!$P17) -> 0 | R17: =SUMIFS(Tab_Uderor[R$],Tab_Uderor[Competencia],Entrada!R$7,Tab_Uderor[TipoReceita],Entrada!$P17) -> 0 | S17: =SUMIFS(Tab_Uderor[R$],Tab_Uderor[Competencia],Entrada!S$7,Tab_Uderor[TipoReceita],Entrada!$P17) -> 0 | T17: =SUMIFS(Tab_Uderor[R$],Tab_Uderor[Competencia],Entrada!T$7,Tab_Uderor[TipoReceita],Entrada!$P17) -> 0 | U17: =SUMIFS(Tab_Uderor[R$],Tab_Uderor[Competencia],Entrada!U$7,Tab_Uderor[TipoReceita],Entrada!$P17) -> 0 | V17: =SUMIFS(Tab_Uderor[R$],Tab_Uderor[Competencia],Entrada!V$7,Tab_Uderor[TipoReceita],Entrada!$P17) -> 0 | W17: =SUMIFS(Tab_Uderor[R$],Tab_Uderor[Competencia],Entrada!W$7,Tab_Uderor[TipoReceita],Entrada!$P17) -> 0 | X17: =SUMIFS(Tab_Uderor[R$],Tab_Uderor[Competencia],Entrada!X$7,Tab_Uderor[TipoReceita],Entrada!$P17) -> 0 | Y17: =SUMIFS(Tab_Uderor[R$],Tab_Uderor[Competencia],Entrada!Y$7,Tab_Uderor[TipoReceita],Entrada!$P17) -> 0 | Z17: =SUMIFS(Tab_Uderor[R$],Tab_Uderor[Competencia],Entrada!Z$7,Tab_Uderor[TipoReceita],Entrada!$P17) -> 0 | AA17: =SUMIFS(Tab_Uderor[R$],Tab_Uderor[Competencia],Entrada!AA$7,Tab_Uderor[TipoReceita],Entrada!$P17) -> 0 | AB17: =SUMIFS(Tab_Uderor[R$],Tab_Uderor[Competencia],Entrada!AB$7,Tab_Uderor[TipoReceita],Entrada!$P17) -> 0 | AC17: =SUMIFS(Tab_Uderor[R$],Tab_Uderor[Competencia],Entrada!AC$7,Tab_Uderor[TipoReceita],Entrada!$P17) -> 0 | AD17: =SUMIFS(Tab_Uderor[R$],Tab_Uderor[Competencia],Entrada!AD$7,Tab_Uderor[TipoReceita],Entrada!$P17) -> 0 | AE17: =SUMIFS(Tab_Uderor[R$],Tab_Uderor[Competencia],Entrada!AE$7,Tab_Uderor[TipoReceita],Entrada!$P17) -> 0 | AF17: =SUMIFS(Tab_Uderor[R$],Tab_Uderor[Competencia],Entrada!AF$7,Tab_Uderor[TipoReceita],Entrada!$P17) -> 0 | AG17: =SUMIFS(Tab_Uderor[R$],Tab_Uderor[Competencia],Entrada!AG$7,Tab_Uderor[TipoReceita],Entrada!$P17) -> 0 | AH17: =SUMIFS(Tab_Uderor[R$],Tab_Uderor[Competencia],Entrada!AH$7,Tab_Uderor[TipoReceita],Entrada!$P17) -> 0 | AI17: =SUMIFS(Tab_Uderor[R$],Tab_Uderor[Competencia],Entrada!AI$7,Tab_Uderor[TipoReceita],Entrada!$P17) -> 0 | AJ17: =SUMIFS(Tab_Uderor[R$],Tab_Uderor[Competencia],Entrada!AJ$7,Tab_Uderor[TipoReceita],Entrada!$P17) -> 0 | AK17: =SUMIFS(Tab_Uderor[R$],Tab_Uderor[Competencia],Entrada!AK$7,Tab_Uderor[TipoReceita],Entrada!$P17) -> 0 | AL17: =SUMIFS(Tab_Uderor[R$],Tab_Uderor[Competencia],Entrada!AL$7,Tab_Uderor[TipoReceita],Entrada!$P17) -> 0 | AM17: =SUMIFS(Tab_Uderor[R$],Tab_Uderor[Competencia],Entrada!AM$7,Tab_Uderor[TipoReceita],Entrada!$P17) -> 0 | AN17: =SUMIFS(Tab_Uderor[R$],Tab_Uderor[Competencia],Entrada!AN$7,Tab_Uderor[TipoReceita],Entrada!$P17) -> 0 | AO17: =SUMIFS(Tab_Uderor[R$],Tab_Uderor[Competencia],Entrada!AO$7,Tab_Uderor[TipoReceita],Entrada!$P17) -> 0 | AP17: =SUMIFS(Tab_Uderor[R$],Tab_Uderor[Competencia],Entrada!AP$7,Tab_Uderor[TipoReceita],Entrada!$P17) -> 0 | AQ17: =SUMIFS(Tab_Uderor[R$],Tab_Uderor[Competencia],Entrada!AQ$7,Tab_Uderor[TipoReceita],Entrada!$P17) -> 0 | AR17: =SUMIFS(Tab_Uderor[R$],Tab_Uderor[Competencia],Entrada!AR$7,Tab_Uderor[TipoReceita],Entrada!$P17) -> 0 | AS17: =SUMIFS(Tab_Uderor[R$],Tab_Uderor[Competencia],Entrada!AS$7,Tab_Uderor[TipoReceita],Entrada!$P17) -> 0 | AT17: =SUMIFS(Tab_Uderor[R$],Tab_Uderor[Competencia],Entrada!AT$7,Tab_Uderor[TipoReceita],Entrada!$P17) -> 0 | AU17: =SUMIFS(Tab_Uderor[R$],Tab_Uderor[Competencia],Entrada!AU$7,Tab_Uderor[TipoReceita],Entrada!$P17) -> 0 | AV17: =SUMIFS(Tab_Uderor[R$],Tab_Uderor[Competencia],Entrada!AV$7,Tab_Uderor[TipoReceita],Entrada!$P17) -> 0 | AW17: =SUMIFS(Tab_Uderor[R$],Tab_Uderor[Competencia],Entrada!AW$7,Tab_Uderor[TipoReceita],Entrada!$P17) -> 0 | AX17: =SUMIFS(Tab_Uderor[R$],Tab_Uderor[Competencia],Entrada!AX$7,Tab_Uderor[TipoReceita],Entrada!$P17) -> 0 | AY17: =SUMIFS(Tab_Uderor[R$],Tab_Uderor[Competencia],Entrada!AY$7,Tab_Uderor[TipoReceita],Entrada!$P17) -> 0 | AZ17: =SUMIFS(Tab_Uderor[R$],Tab_Uderor[Competencia],Entrada!AZ$7,Tab_Uderor[TipoReceita],Entrada!$P17) -> 0
F18: (12) Obrigações Especiais Líquida | G18: =G84*VLOOKUP(DATE(YEAR(CAPA!$C$10),MONTH(CAPA!$C$10)-1,1),Índices!$B$135:$D$638,3,0)/VLOOKUP(DATE(YEAR($G$72),MONTH($G$72)-1,1),Índices!$B$135:$D$638,3,0) ->  | K18: Subtotal | L18: =SUM(L9:L17) -> 167211752.8 | M18: =SUM(M9:M17) -> 0 | P18: (2) redes de energia elétrica destinadas ao acesso dos sistemas de distribuição ou transmissão; | Q18: =SUMIFS(Tab_Uderor[R$],Tab_Uderor[Competencia],Entrada!Q$7,Tab_Uderor[TipoReceita],Entrada!$P18) -> 0 | R18: =SUMIFS(Tab_Uderor[R$],Tab_Uderor[Competencia],Entrada!R$7,Tab_Uderor[TipoReceita],Entrada!$P18) -> 0 | S18: =SUMIFS(Tab_Uderor[R$],Tab_Uderor[Competencia],Entrada!S$7,Tab_Uderor[TipoReceita],Entrada!$P18) -> 0 | T18: =SUMIFS(Tab_Uderor[R$],Tab_Uderor[Competencia],Entrada!T$7,Tab_Uderor[TipoReceita],Entrada!$P18) -> 0 | U18: =SUMIFS(Tab_Uderor[R$],Tab_Uderor[Competencia],Entrada!U$7,Tab_Uderor[TipoReceita],Entrada!$P18) -> 0 | V18: =SUMIFS(Tab_Uderor[R$],Tab_Uderor[Competencia],Entrada!V$7,Tab_Uderor[TipoReceita],Entrada!$P18) -> 0 | W18: =SUMIFS(Tab_Uderor[R$],Tab_Uderor[Competencia],Entrada!W$7,Tab_Uderor[TipoReceita],Entrada!$P18) -> 0 | X18: =SUMIFS(Tab_Uderor[R$],Tab_Uderor[Competencia],Entrada!X$7,Tab_Uderor[TipoReceita],Entrada!$P18) -> 0 | Y18: =SUMIFS(Tab_Uderor[R$],Tab_Uderor[Competencia],Entrada!Y$7,Tab_Uderor[TipoReceita],Entrada!$P18) -> 0 | Z18: =SUMIFS(Tab_Uderor[R$],Tab_Uderor[Competencia],Entrada!Z$7,Tab_Uderor[TipoReceita],Entrada!$P18) -> 0 | AA18: =SUMIFS(Tab_Uderor[R$],Tab_Uderor[Competencia],Entrada!AA$7,Tab_Uderor[TipoReceita],Entrada!$P18) -> 0 | AB18: =SUMIFS(Tab_Uderor[R$],Tab_Uderor[Competencia],Entrada!AB$7,Tab_Uderor[TipoReceita],Entrada!$P18) -> 0 | AC18: =SUMIFS(Tab_Uderor[R$],Tab_Uderor[Competencia],Entrada!AC$7,Tab_Uderor[TipoReceita],Entrada!$P18) -> 0 | AD18: =SUMIFS(Tab_Uderor[R$],Tab_Uderor[Competencia],Entrada!AD$7,Tab_Uderor[TipoReceita],Entrada!$P18) -> 0 | AE18: =SUMIFS(Tab_Uderor[R$],Tab_Uderor[Competencia],Entrada!AE$7,Tab_Uderor[TipoReceita],Entrada!$P18) -> 0 | AF18: =SUMIFS(Tab_Uderor[R$],Tab_Uderor[Competencia],Entrada!AF$7,Tab_Uderor[TipoReceita],Entrada!$P18) -> 0 | AG18: =SUMIFS(Tab_Uderor[R$],Tab_Uderor[Competencia],Entrada!AG$7,Tab_Uderor[TipoReceita],Entrada!$P18) -> 0 | AH18: =SUMIFS(Tab_Uderor[R$],Tab_Uderor[Competencia],Entrada!AH$7,Tab_Uderor[TipoReceita],Entrada!$P18) -> 0 | AI18: =SUMIFS(Tab_Uderor[R$],Tab_Uderor[Competencia],Entrada!AI$7,Tab_Uderor[TipoReceita],Entrada!$P18) -> 0 | AJ18: =SUMIFS(Tab_Uderor[R$],Tab_Uderor[Competencia],Entrada!AJ$7,Tab_Uderor[TipoReceita],Entrada!$P18) -> 0 | AK18: =SUMIFS(Tab_Uderor[R$],Tab_Uderor[Competencia],Entrada!AK$7,Tab_Uderor[TipoReceita],Entrada!$P18) -> 0 | AL18: =SUMIFS(Tab_Uderor[R$],Tab_Uderor[Competencia],Entrada!AL$7,Tab_Uderor[TipoReceita],Entrada!$P18) -> 0 | AM18: =SUMIFS(Tab_Uderor[R$],Tab_Uderor[Competencia],Entrada!AM$7,Tab_Uderor[TipoReceita],Entrada!$P18) -> 0 | AN18: =SUMIFS(Tab_Uderor[R$],Tab_Uderor[Competencia],Entrada!AN$7,Tab_Uderor[TipoReceita],Entrada!$P18) -> 0 | AO18: =SUMIFS(Tab_Uderor[R$],Tab_Uderor[Competencia],Entrada!AO$7,Tab_Uderor[TipoReceita],Entrada!$P18) -> 0 | AP18: =SUMIFS(Tab_Uderor[R$],Tab_Uderor[Competencia],Entrada!AP$7,Tab_Uderor[TipoReceita],Entrada!$P18) -> 0 | AQ18: =SUMIFS(Tab_Uderor[R$],Tab_Uderor[Competencia],Entrada!AQ$7,Tab_Uderor[TipoReceita],Entrada!$P18) -> 0 | AR18: =SUMIFS(Tab_Uderor[R$],Tab_Uderor[Competencia],Entrada!AR$7,Tab_Uderor[TipoReceita],Entrada!$P18) -> 0 | AS18: =SUMIFS(Tab_Uderor[R$],Tab_Uderor[Competencia],Entrada!AS$7,Tab_Uderor[TipoReceita],Entrada!$P18) -> 0 | AT18: =SUMIFS(Tab_Uderor[R$],Tab_Uderor[Competencia],Entrada!AT$7,Tab_Uderor[TipoReceita],Entrada!$P18) -> 0 | AU18: =SUMIFS(Tab_Uderor[R$],Tab_Uderor[Competencia],Entrada!AU$7,Tab_Uderor[TipoReceita],Entrada!$P18) -> 0 | AV18: =SUMIFS(Tab_Uderor[R$],Tab_Uderor[Competencia],Entrada!AV$7,Tab_Uderor[TipoReceita],Entrada!$P18) -> 0 | AW18: =SUMIFS(Tab_Uderor[R$],Tab_Uderor[Competencia],Entrada!AW$7,Tab_Uderor[TipoReceita],Entrada!$P18) -> 0 | AX18: =SUMIFS(Tab_Uderor[R$],Tab_Uderor[Competencia],Entrada!AX$7,Tab_Uderor[TipoReceita],Entrada!$P18) -> 0 | AY18: =SUMIFS(Tab_Uderor[R$],Tab_Uderor[Competencia],Entrada!AY$7,Tab_Uderor[TipoReceita],Entrada!$P18) -> 0 | AZ18: =SUMIFS(Tab_Uderor[R$],Tab_Uderor[Competencia],Entrada!AZ$7,Tab_Uderor[TipoReceita],Entrada!$P18) -> 0
F19: (13) Terrenos e Servidões | G19: =G85*VLOOKUP(DATE(YEAR(CAPA!$C$10),MONTH(CAPA!$C$10)-1,1),Índices!$B$135:$D$638,3,0)/VLOOKUP(DATE(YEAR($G$72),MONTH($G$72)-1,1),Índices!$B$135:$D$638,3,0) ->  | J19: CONTA MATERIAIS | P19: (3) subestações de energia; | Q19: =SUMIFS(Tab_Uderor[R$],Tab_Uderor[Competencia],Entrada!Q$7,Tab_Uderor[TipoReceita],Entrada!$P19) -> 0 | R19: =SUMIFS(Tab_Uderor[R$],Tab_Uderor[Competencia],Entrada!R$7,Tab_Uderor[TipoReceita],Entrada!$P19) -> 0 | S19: =SUMIFS(Tab_Uderor[R$],Tab_Uderor[Competencia],Entrada!S$7,Tab_Uderor[TipoReceita],Entrada!$P19) -> 0 | T19: =SUMIFS(Tab_Uderor[R$],Tab_Uderor[Competencia],Entrada!T$7,Tab_Uderor[TipoReceita],Entrada!$P19) -> 0 | U19: =SUMIFS(Tab_Uderor[R$],Tab_Uderor[Competencia],Entrada!U$7,Tab_Uderor[TipoReceita],Entrada!$P19) -> 0 | V19: =SUMIFS(Tab_Uderor[R$],Tab_Uderor[Competencia],Entrada!V$7,Tab_Uderor[TipoReceita],Entrada!$P19) -> 0 | W19: =SUMIFS(Tab_Uderor[R$],Tab_Uderor[Competencia],Entrada!W$7,Tab_Uderor[TipoReceita],Entrada!$P19) -> 0 | X19: =SUMIFS(Tab_Uderor[R$],Tab_Uderor[Competencia],Entrada!X$7,Tab_Uderor[TipoReceita],Entrada!$P19) -> 0 | Y19: =SUMIFS(Tab_Uderor[R$],Tab_Uderor[Competencia],Entrada!Y$7,Tab_Uderor[TipoReceita],Entrada!$P19) -> 0 | Z19: =SUMIFS(Tab_Uderor[R$],Tab_Uderor[Competencia],Entrada!Z$7,Tab_Uderor[TipoReceita],Entrada!$P19) -> 0 | AA19: =SUMIFS(Tab_Uderor[R$],Tab_Uderor[Competencia],Entrada!AA$7,Tab_Uderor[TipoReceita],Entrada!$P19) -> 0 | AB19: =SUMIFS(Tab_Uderor[R$],Tab_Uderor[Competencia],Entrada!AB$7,Tab_Uderor[TipoReceita],Entrada!$P19) -> 0 | AC19: =SUMIFS(Tab_Uderor[R$],Tab_Uderor[Competencia],Entrada!AC$7,Tab_Uderor[TipoReceita],Entrada!$P19) -> 0 | AD19: =SUMIFS(Tab_Uderor[R$],Tab_Uderor[Competencia],Entrada!AD$7,Tab_Uderor[TipoReceita],Entrada!$P19) -> 0 | AE19: =SUMIFS(Tab_Uderor[R$],Tab_Uderor[Competencia],Entrada!AE$7,Tab_Uderor[TipoReceita],Entrada!$P19) -> 0 | AF19: =SUMIFS(Tab_Uderor[R$],Tab_Uderor[Competencia],Entrada!AF$7,Tab_Uderor[TipoReceita],Entrada!$P19) -> 0 | AG19: =SUMIFS(Tab_Uderor[R$],Tab_Uderor[Competencia],Entrada!AG$7,Tab_Uderor[TipoReceita],Entrada!$P19) -> 0 | AH19: =SUMIFS(Tab_Uderor[R$],Tab_Uderor[Competencia],Entrada!AH$7,Tab_Uderor[TipoReceita],Entrada!$P19) -> 0 | AI19: =SUMIFS(Tab_Uderor[R$],Tab_Uderor[Competencia],Entrada!AI$7,Tab_Uderor[TipoReceita],Entrada!$P19) -> 0 | AJ19: =SUMIFS(Tab_Uderor[R$],Tab_Uderor[Competencia],Entrada!AJ$7,Tab_Uderor[TipoReceita],Entrada!$P19) -> 0 | AK19: =SUMIFS(Tab_Uderor[R$],Tab_Uderor[Competencia],Entrada!AK$7,Tab_Uderor[TipoReceita],Entrada!$P19) -> 0 | AL19: =SUMIFS(Tab_Uderor[R$],Tab_Uderor[Competencia],Entrada!AL$7,Tab_Uderor[TipoReceita],Entrada!$P19) -> 0 | AM19: =SUMIFS(Tab_Uderor[R$],Tab_Uderor[Competencia],Entrada!AM$7,Tab_Uderor[TipoReceita],Entrada!$P19) -> 0 | AN19: =SUMIFS(Tab_Uderor[R$],Tab_Uderor[Competencia],Entrada!AN$7,Tab_Uderor[TipoReceita],Entrada!$P19) -> 0 | AO19: =SUMIFS(Tab_Uderor[R$],Tab_Uderor[Competencia],Entrada!AO$7,Tab_Uderor[TipoReceita],Entrada!$P19) -> 0 | AP19: =SUMIFS(Tab_Uderor[R$],Tab_Uderor[Competencia],Entrada!AP$7,Tab_Uderor[TipoReceita],Entrada!$P19) -> 0 | AQ19: =SUMIFS(Tab_Uderor[R$],Tab_Uderor[Competencia],Entrada!AQ$7,Tab_Uderor[TipoReceita],Entrada!$P19) -> 0 | AR19: =SUMIFS(Tab_Uderor[R$],Tab_Uderor[Competencia],Entrada!AR$7,Tab_Uderor[TipoReceita],Entrada!$P19) -> 0 | AS19: =SUMIFS(Tab_Uderor[R$],Tab_Uderor[Competencia],Entrada!AS$7,Tab_Uderor[TipoReceita],Entrada!$P19) -> 0 | AT19: =SUMIFS(Tab_Uderor[R$],Tab_Uderor[Competencia],Entrada!AT$7,Tab_Uderor[TipoReceita],Entrada!$P19) -> 0 | AU19: =SUMIFS(Tab_Uderor[R$],Tab_Uderor[Competencia],Entrada!AU$7,Tab_Uderor[TipoReceita],Entrada!$P19) -> 0 | AV19: =SUMIFS(Tab_Uderor[R$],Tab_Uderor[Competencia],Entrada!AV$7,Tab_Uderor[TipoReceita],Entrada!$P19) -> 0 | AW19: =SUMIFS(Tab_Uderor[R$],Tab_Uderor[Competencia],Entrada!AW$7,Tab_Uderor[TipoReceita],Entrada!$P19) -> 0 | AX19: =SUMIFS(Tab_Uderor[R$],Tab_Uderor[Competencia],Entrada!AX$7,Tab_Uderor[TipoReceita],Entrada!$P19) -> 0 | AY19: =SUMIFS(Tab_Uderor[R$],Tab_Uderor[Competencia],Entrada!AY$7,Tab_Uderor[TipoReceita],Entrada!$P19) -> 0 | AZ19: =SUMIFS(Tab_Uderor[R$],Tab_Uderor[Competencia],Entrada!AZ$7,Tab_Uderor[TipoReceita],Entrada!$P19) -> 0
F20: (14) Base de Rem. Líquida Total = (1)-(6)-(8)+(10)+(11)-(12)+(13) | G20: =G15+G16+G17-G18+G19 ->  | J20: BMP - 610530701; 610550701; 610532701; 610552701 | K20: Materiais | L20: =SUMIFS(Tab_RIT_BMP[SALDO],Tab_RIT_BMP[CONTA],610530701,Tab_RIT_BMP[ANO],$L$7)+SUMIFS(Tab_RIT_BMP[SALDO],Tab_RIT_BMP[CONTA],610550701,Tab_RIT_BMP[ANO],$L$7)+ SUMIFS(Tab_RIT_BMP[SALDO],Tab_RIT_BMP[CONTA],610532701,Tab_RIT_BMP[ANO],$L$7)+SUMIFS(Tab_RIT_BMP[SALDO],Tab_RIT_BMP[CONTA],610552701,Tab_RIT_BMP[ANO],$L$7) -> 33803782.54 | M20: =SUMIFS(Tab_RIT_BMP[SALDO],Tab_RIT_BMP[CONTA],610530701,Tab_RIT_BMP[ANO],$M$7)+SUMIFS(Tab_RIT_BMP[SALDO],Tab_RIT_BMP[CONTA],610550701,Tab_RIT_BMP[ANO],$M$7)+ SUMIFS(Tab_RIT_BMP[SALDO],Tab_RIT_BMP[CONTA],610532701,Tab_RIT_BMP[ANO],$M$7)+SUMIFS(Tab_RIT_BMP[SALDO],Tab_RIT_BMP[CONTA],610552701,Tab_RIT_BMP[ANO],$M$7) -> 0 | P20: (4) instalações elétricas internas de unidades consumidoras; | Q20: =SUMIFS(Tab_Uderor[R$],Tab_Uderor[Competencia],Entrada!Q$7,Tab_Uderor[TipoReceita],Entrada!$P20) -> 0 | R20: =SUMIFS(Tab_Uderor[R$],Tab_Uderor[Competencia],Entrada!R$7,Tab_Uderor[TipoReceita],Entrada!$P20) -> 0 | S20: =SUMIFS(Tab_Uderor[R$],Tab_Uderor[Competencia],Entrada!S$7,Tab_Uderor[TipoReceita],Entrada!$P20) -> 0 | T20: =SUMIFS(Tab_Uderor[R$],Tab_Uderor[Competencia],Entrada!T$7,Tab_Uderor[TipoReceita],Entrada!$P20) -> 0 | U20: =SUMIFS(Tab_Uderor[R$],Tab_Uderor[Competencia],Entrada!U$7,Tab_Uderor[TipoReceita],Entrada!$P20) -> 0 | V20: =SUMIFS(Tab_Uderor[R$],Tab_Uderor[Competencia],Entrada!V$7,Tab_Uderor[TipoReceita],Entrada!$P20) -> 0 | W20: =SUMIFS(Tab_Uderor[R$],Tab_Uderor[Competencia],Entrada!W$7,Tab_Uderor[TipoReceita],Entrada!$P20) -> 0 | X20: =SUMIFS(Tab_Uderor[R$],Tab_Uderor[Competencia],Entrada!X$7,Tab_Uderor[TipoReceita],Entrada!$P20) -> 0 | Y20: =SUMIFS(Tab_Uderor[R$],Tab_Uderor[Competencia],Entrada!Y$7,Tab_Uderor[TipoReceita],Entrada!$P20) -> 0 | Z20: =SUMIFS(Tab_Uderor[R$],Tab_Uderor[Competencia],Entrada!Z$7,Tab_Uderor[TipoReceita],Entrada!$P20) -> 0 | AA20: =SUMIFS(Tab_Uderor[R$],Tab_Uderor[Competencia],Entrada!AA$7,Tab_Uderor[TipoReceita],Entrada!$P20) -> 0 | AB20: =SUMIFS(Tab_Uderor[R$],Tab_Uderor[Competencia],Entrada!AB$7,Tab_Uderor[TipoReceita],Entrada!$P20) -> 0 | AC20: =SUMIFS(Tab_Uderor[R$],Tab_Uderor[Competencia],Entrada!AC$7,Tab_Uderor[TipoReceita],Entrada!$P20) -> 0 | AD20: =SUMIFS(Tab_Uderor[R$],Tab_Uderor[Competencia],Entrada!AD$7,Tab_Uderor[TipoReceita],Entrada!$P20) -> 0 | AE20: =SUMIFS(Tab_Uderor[R$],Tab_Uderor[Competencia],Entrada!AE$7,Tab_Uderor[TipoReceita],Entrada!$P20) -> 0 | AF20: =SUMIFS(Tab_Uderor[R$],Tab_Uderor[Competencia],Entrada!AF$7,Tab_Uderor[TipoReceita],Entrada!$P20) -> 0 | AG20: =SUMIFS(Tab_Uderor[R$],Tab_Uderor[Competencia],Entrada!AG$7,Tab_Uderor[TipoReceita],Entrada!$P20) -> 0 | AH20: =SUMIFS(Tab_Uderor[R$],Tab_Uderor[Competencia],Entrada!AH$7,Tab_Uderor[TipoReceita],Entrada!$P20) -> 0 | AI20: =SUMIFS(Tab_Uderor[R$],Tab_Uderor[Competencia],Entrada!AI$7,Tab_Uderor[TipoReceita],Entrada!$P20) -> 0 | AJ20: =SUMIFS(Tab_Uderor[R$],Tab_Uderor[Competencia],Entrada!AJ$7,Tab_Uderor[TipoReceita],Entrada!$P20) -> 0 | AK20: =SUMIFS(Tab_Uderor[R$],Tab_Uderor[Competencia],Entrada!AK$7,Tab_Uderor[TipoReceita],Entrada!$P20) -> 0 | AL20: =SUMIFS(Tab_Uderor[R$],Tab_Uderor[Competencia],Entrada!AL$7,Tab_Uderor[TipoReceita],Entrada!$P20) -> 0 | AM20: =SUMIFS(Tab_Uderor[R$],Tab_Uderor[Competencia],Entrada!AM$7,Tab_Uderor[TipoReceita],Entrada!$P20) -> 0 | AN20: =SUMIFS(Tab_Uderor[R$],Tab_Uderor[Competencia],Entrada!AN$7,Tab_Uderor[TipoReceita],Entrada!$P20) -> 0 | AO20: =SUMIFS(Tab_Uderor[R$],Tab_Uderor[Competencia],Entrada!AO$7,Tab_Uderor[TipoReceita],Entrada!$P20) -> 0 | AP20: =SUMIFS(Tab_Uderor[R$],Tab_Uderor[Competencia],Entrada!AP$7,Tab_Uderor[TipoReceita],Entrada!$P20) -> 0 | AQ20: =SUMIFS(Tab_Uderor[R$],Tab_Uderor[Competencia],Entrada!AQ$7,Tab_Uderor[TipoReceita],Entrada!$P20) -> 0 | AR20: =SUMIFS(Tab_Uderor[R$],Tab_Uderor[Competencia],Entrada!AR$7,Tab_Uderor[TipoReceita],Entrada!$P20) -> 0 | AS20: =SUMIFS(Tab_Uderor[R$],Tab_Uderor[Competencia],Entrada!AS$7,Tab_Uderor[TipoReceita],Entrada!$P20) -> 0 | AT20: =SUMIFS(Tab_Uderor[R$],Tab_Uderor[Competencia],Entrada!AT$7,Tab_Uderor[TipoReceita],Entrada!$P20) -> 0 | AU20: =SUMIFS(Tab_Uderor[R$],Tab_Uderor[Competencia],Entrada!AU$7,Tab_Uderor[TipoReceita],Entrada!$P20) -> 0 | AV20: =SUMIFS(Tab_Uderor[R$],Tab_Uderor[Competencia],Entrada!AV$7,Tab_Uderor[TipoReceita],Entrada!$P20) -> 0 | AW20: =SUMIFS(Tab_Uderor[R$],Tab_Uderor[Competencia],Entrada!AW$7,Tab_Uderor[TipoReceita],Entrada!$P20) -> 0 | AX20: =SUMIFS(Tab_Uderor[R$],Tab_Uderor[Competencia],Entrada!AX$7,Tab_Uderor[TipoReceita],Entrada!$P20) -> 0 | AY20: =SUMIFS(Tab_Uderor[R$],Tab_Uderor[Competencia],Entrada!AY$7,Tab_Uderor[TipoReceita],Entrada!$P20) -> 0 | AZ20: =SUMIFS(Tab_Uderor[R$],Tab_Uderor[Competencia],Entrada!AZ$7,Tab_Uderor[TipoReceita],Entrada!$P20) -> 0
F21: (15) Saldo RGR PLPT | G21: =G87*VLOOKUP(DATE(YEAR(CAPA!$C$10),MONTH(CAPA!$C$10)-1,1),Índices!$B$135:$D$638,3,0)/VLOOKUP(DATE(YEAR($G$72),MONTH($G$72)-1,1),Índices!$B$135:$D$638,3,0) ->  | J21: BMP - 610530799; 610550799; 610532799; 610552799 | K21: Outros | L21: =SUMIFS(Tab_RIT_BMP[SALDO],Tab_RIT_BMP[CONTA],610530799,Tab_RIT_BMP[ANO],$L$7)+SUMIFS(Tab_RIT_BMP[SALDO],Tab_RIT_BMP[CONTA],610550799,Tab_RIT_BMP[ANO],$L$7)+ SUMIFS(Tab_RIT_BMP[SALDO],Tab_RIT_BMP[CONTA],610532799,Tab_RIT_BMP[ANO],$L$7)+SUMIFS(Tab_RIT_BMP[SALDO],Tab_RIT_BMP[CONTA],610552799,Tab_RIT_BMP[ANO],$L$7) -> 1400992.65 | M21: =SUMIFS(Tab_RIT_BMP[SALDO],Tab_RIT_BMP[CONTA],610530799,Tab_RIT_BMP[ANO],$M$7)+SUMIFS(Tab_RIT_BMP[SALDO],Tab_RIT_BMP[CONTA],610550799,Tab_RIT_BMP[ANO],$M$7)+ SUMIFS(Tab_RIT_BMP[SALDO],Tab_RIT_BMP[CONTA],610532799,Tab_RIT_BMP[ANO],$M$7)+SUMIFS(Tab_RIT_BMP[SALDO],Tab_RIT_BMP[CONTA],610552799,Tab_RIT_BMP[ANO],$M$7) -> 0 | P21: (5) banco de capacitores; | Q21: =SUMIFS(Tab_Uderor[R$],Tab_Uderor[Competencia],Entrada!Q$7,Tab_Uderor[TipoReceita],Entrada!$P21) -> 0 | R21: =SUMIFS(Tab_Uderor[R$],Tab_Uderor[Competencia],Entrada!R$7,Tab_Uderor[TipoReceita],Entrada!$P21) -> 0 | S21: =SUMIFS(Tab_Uderor[R$],Tab_Uderor[Competencia],Entrada!S$7,Tab_Uderor[TipoReceita],Entrada!$P21) -> 0 | T21: =SUMIFS(Tab_Uderor[R$],Tab_Uderor[Competencia],Entrada!T$7,Tab_Uderor[TipoReceita],Entrada!$P21) -> 0 | U21: =SUMIFS(Tab_Uderor[R$],Tab_Uderor[Competencia],Entrada!U$7,Tab_Uderor[TipoReceita],Entrada!$P21) -> 0 | V21: =SUMIFS(Tab_Uderor[R$],Tab_Uderor[Competencia],Entrada!V$7,Tab_Uderor[TipoReceita],Entrada!$P21) -> 0 | W21: =SUMIFS(Tab_Uderor[R$],Tab_Uderor[Competencia],Entrada!W$7,Tab_Uderor[TipoReceita],Entrada!$P21) -> 0 | X21: =SUMIFS(Tab_Uderor[R$],Tab_Uderor[Competencia],Entrada!X$7,Tab_Uderor[TipoReceita],Entrada!$P21) -> 0 | Y21: =SUMIFS(Tab_Uderor[R$],Tab_Uderor[Competencia],Entrada!Y$7,Tab_Uderor[TipoReceita],Entrada!$P21) -> 0 | Z21: =SUMIFS(Tab_Uderor[R$],Tab_Uderor[Competencia],Entrada!Z$7,Tab_Uderor[TipoReceita],Entrada!$P21) -> 0 | AA21: =SUMIFS(Tab_Uderor[R$],Tab_Uderor[Competencia],Entrada!AA$7,Tab_Uderor[TipoReceita],Entrada!$P21) -> 0 | AB21: =SUMIFS(Tab_Uderor[R$],Tab_Uderor[Competencia],Entrada!AB$7,Tab_Uderor[TipoReceita],Entrada!$P21) -> 0 | AC21: =SUMIFS(Tab_Uderor[R$],Tab_Uderor[Competencia],Entrada!AC$7,Tab_Uderor[TipoReceita],Entrada!$P21) -> 0 | AD21: =SUMIFS(Tab_Uderor[R$],Tab_Uderor[Competencia],Entrada!AD$7,Tab_Uderor[TipoReceita],Entrada!$P21) -> 0 | AE21: =SUMIFS(Tab_Uderor[R$],Tab_Uderor[Competencia],Entrada!AE$7,Tab_Uderor[TipoReceita],Entrada!$P21) -> 0 | AF21: =SUMIFS(Tab_Uderor[R$],Tab_Uderor[Competencia],Entrada!AF$7,Tab_Uderor[TipoReceita],Entrada!$P21) -> 0 | AG21: =SUMIFS(Tab_Uderor[R$],Tab_Uderor[Competencia],Entrada!AG$7,Tab_Uderor[TipoReceita],Entrada!$P21) -> 0 | AH21: =SUMIFS(Tab_Uderor[R$],Tab_Uderor[Competencia],Entrada!AH$7,Tab_Uderor[TipoReceita],Entrada!$P21) -> 0 | AI21: =SUMIFS(Tab_Uderor[R$],Tab_Uderor[Competencia],Entrada!AI$7,Tab_Uderor[TipoReceita],Entrada!$P21) -> 0 | AJ21: =SUMIFS(Tab_Uderor[R$],Tab_Uderor[Competencia],Entrada!AJ$7,Tab_Uderor[TipoReceita],Entrada!$P21) -> 0 | AK21: =SUMIFS(Tab_Uderor[R$],Tab_Uderor[Competencia],Entrada!AK$7,Tab_Uderor[TipoReceita],Entrada!$P21) -> 0 | AL21: =SUMIFS(Tab_Uderor[R$],Tab_Uderor[Competencia],Entrada!AL$7,Tab_Uderor[TipoReceita],Entrada!$P21) -> 0 | AM21: =SUMIFS(Tab_Uderor[R$],Tab_Uderor[Competencia],Entrada!AM$7,Tab_Uderor[TipoReceita],Entrada!$P21) -> 0 | AN21: =SUMIFS(Tab_Uderor[R$],Tab_Uderor[Competencia],Entrada!AN$7,Tab_Uderor[TipoReceita],Entrada!$P21) -> 0 | AO21: =SUMIFS(Tab_Uderor[R$],Tab_Uderor[Competencia],Entrada!AO$7,Tab_Uderor[TipoReceita],Entrada!$P21) -> 0 | AP21: =SUMIFS(Tab_Uderor[R$],Tab_Uderor[Competencia],Entrada!AP$7,Tab_Uderor[TipoReceita],Entrada!$P21) -> 0 | AQ21: =SUMIFS(Tab_Uderor[R$],Tab_Uderor[Competencia],Entrada!AQ$7,Tab_Uderor[TipoReceita],Entrada!$P21) -> 0 | AR21: =SUMIFS(Tab_Uderor[R$],Tab_Uderor[Competencia],Entrada!AR$7,Tab_Uderor[TipoReceita],Entrada!$P21) -> 0 | AS21: =SUMIFS(Tab_Uderor[R$],Tab_Uderor[Competencia],Entrada!AS$7,Tab_Uderor[TipoReceita],Entrada!$P21) -> 0 | AT21: =SUMIFS(Tab_Uderor[R$],Tab_Uderor[Competencia],Entrada!AT$7,Tab_Uderor[TipoReceita],Entrada!$P21) -> 0 | AU21: =SUMIFS(Tab_Uderor[R$],Tab_Uderor[Competencia],Entrada!AU$7,Tab_Uderor[TipoReceita],Entrada!$P21) -> 0 | AV21: =SUMIFS(Tab_Uderor[R$],Tab_Uderor[Competencia],Entrada!AV$7,Tab_Uderor[TipoReceita],Entrada!$P21) -> 0 | AW21: =SUMIFS(Tab_Uderor[R$],Tab_Uderor[Competencia],Entrada!AW$7,Tab_Uderor[TipoReceita],Entrada!$P21) -> 0 | AX21: =SUMIFS(Tab_Uderor[R$],Tab_Uderor[Competencia],Entrada!AX$7,Tab_Uderor[TipoReceita],Entrada!$P21) -> 0 | AY21: =SUMIFS(Tab_Uderor[R$],Tab_Uderor[Competencia],Entrada!AY$7,Tab_Uderor[TipoReceita],Entrada!$P21) -> 0 | AZ21: =SUMIFS(Tab_Uderor[R$],Tab_Uderor[Competencia],Entrada!AZ$7,Tab_Uderor[TipoReceita],Entrada!$P21) -> 0
